Workbook

Sheet Manual
B3: MANUÁL | W3: =novVerze -> v.14a
B5: Postup pobočky: | M5: Postup 3P:
C7: 1) Vyplnění údajů v kartách "Splátka" a "Bonita" | N7: 1) Vyplnění údajů v kartách "Splátka" a "Bonita"
D8: povinné před odesláním na KC | O8: nutné před odesláním žádosti o prověření registrů na pobočku Banky
C10: 2) Vyplnění žádosti a doplňujících údajů s klientem | N10: 2) Vyplnění žádosti s klientem
D11: není povinné před odesláním na KC | O11: nutné před odesláním žádosti o prověření registrů na pobočku Banky
D13: Kdy použít? | N13: 3) Vyplnění Doplnění žádosti s klientem
E14: v případě, že nefunguje tisk z Expert Tool | O14: není nutné před odesláním žádosti o prověření registrů na pobočku Banky
E15: v případě, že s klientem vyplňujete žádost na pobočce | N15: 4) Odeslání celé kalkulačky ve formátu .xls na pobočku Banky
D16: K čemu slouží? | O16: není nutné před odesláním žádosti o prověření registrů na pobočku Banky
E17: urychlí a zefektivní kontroly na Kreditním centru
D18: Žádost je možné vytisknout i jako prázdný formulář, který můžete vyplnit ručně :-)
C20: 3) Uložení celé kalkulačky ve formátu .xls do DMS
D21: povinné před odesláním na KC
B24: Přehled funkcionalit nástroje:
C26: Pás tlačítek
D27: Nově není potřeba "hledat" názvy listů v sešitu, ale navigace je pohodlná přes pás tlačítek viditelně umístěný u horního okraje aplikace :-)
C29: Modelování nabídky - karta "Splátka"
D30: Nově se zadává datum narození klienta a délka čerpání - kalkulačka sama hlídá překročení věkové hranice při splatnosti a nutnost pojištění z důvodu věku klienta :-)
C32: Výpočet Bonity - karta "Bonita"
D33: Nově lze zobrazit pouze relevantní druhy příjmů u žadatele i spolužadatele - kalkulačka je přehledná a nezobrazuje nepotřebné údaje :-)
D34: Snadné přepínání mezi režimem více domácností :-)
D35: Bonita nyní ukazuje kromě Debt Ratio i maximální možný limit dle zadaných parametrů :-)
D36: Lze zadat i souběh příjmů u kteréhokoliv ze spolužadatelů :-) Nezapomínejte však, že mimo příjem z pronájmu je jakýkoliv jiný souběh nutné předem konzultovat se schvalovateli!
C38: Nabídka
D39: Nová personalizovaná nabídka pro klienta v designu UCB a s možností dopsat libovolné kontakty na poradce :-)
C41: Žádost
D42: Nově lze vyplnit žádost přímo v Kalkulačce i pro více spolužadatelů zároveň :-)
D43: Žádost již není rozdělena do více listů - snadný tisk :-)
D44: Opakující se pole v různých částech formuláře se propisují dále - usnadnění vyplňování :-)
C46: Doplnění žádosti
D47: Nově lze vyplnit Doplnění žádosti přímo v Kalkulačce i pro více spolužadatelů zároveň :-)
D48: Doplnění žádosti již není rozděleno do více listů - snadný tisk :-)
D49: Opakující se pole v zůzných částech formuláře se propisují dále - usnadnění vyplňování :-)

Sheet Novinky
B3: NOVINKY | E3: v.14a
B5: Datum aktualizace | C5: Verze | D5: Popis novinky
B6: 2015-11-01 | C6: 14a | D6: o Změna slevy za CPI na 30 bps. o Pásmové úročení - zdražení úvěrů do 999.999,- Kč o Pravidelná aktualizace úrokových sazeb.
B7: 2015-10-01 | C7: 13f | D7: o Nabídka - přidání volby poplatku za zpracování 2 500/0,-. o Pravidelná aktualizace úrokových sazeb.
B8: 2015-09-01 | C8: 13d | D8: o Pravidelná aktualizace úrokových sazeb.
B9: 2015-07-31 | C9: 13c | D9: o zrušení nabídky sazby Float s garancí. o Pravidelná aktualizace úrokových sazeb.
B10: 2015-07-17 | C10: 13b
B11: 2015-07-09 | C11: 13a
B12: 2015-07-01 | C12: 13 | D12: o Generátor dokumentů. o Pravidelná aktualizace úrokových sazeb.
B13: 2015-06-01 | C13: 12c | D13: o Zrušení typu produktu Flexi a vznik nové služby Mimořádná splátka až 100% jistiny. o Pravidelná aktualizace úrokových sazeb.
B14: 2015-05-22 | C14: 12b
B15: 2015-05-20 | C15: 12a
B16: 2015-05-18 | C16: 12 | D16: Celková aktualizace Hypokalkulačky která Vám přináší nové funkčnosti: o Nový výpočet příjmu podle aktualizované metodiky. o Výpočet maximální možné výše úvěru podle bonity klienta. o Nový tiskový výstup nabídky. o Možnost tisku žádosti přímo z kalkulačky. Údaje vyplněné při modelaci úvěru se Vám automaticky předvyplní. o Kontrola věku v době splatnosti úvěru (z toho důvodu přibylo pole doba čerpání úvěru a datum narození). Více informací naleznete v Manuálu.
B19: PŘIPRAVUJEME
B21: Mezi připravované novinky, o které chceme nástroj v nejbližší době rozšířit patří: o Větší provázanost jednotlivých záložek.

Sheet Splatka
R2: 3P
A3: SPLÁTKA | R3: =manVerze -> v.14a
C5: Jméno klienta | L5: Příjmení klienta
C8: Typ hypotéky | D8: Hypoteční úvěr účelový rezidenční Individual | J8: Účel hypotéky
C12: Klient žádal 30 dní od data podpisu žádosti o PRESTO / PRESTO NPR
B14: Pomocník při výpočtu splatnosti
C16: Předpoklad podpisu smlouvy do (počet měsíců) | H16: 3 | L16: CL&C datum splatnosti | O16: =FinKonecUveru -> 2016-07-25
B18: Parametry | K18: Vyhodnocení typu klienta
C20: Výše úvěru ( v CZK) | H20: 2000000 | L20: Žadatel | N20: Občan ČR
C22: Fixní období | H22: 3 roky | N22: Má české nebo slovenské RČ
C24: Odhadovaná tržní hodnota nemovitosti | H24: 3000000 | L24: Příjmy | N24: Česká republika | R24: =adminTypKlienta -> Standardní klient
C27: LTV | H27: =IF(NemHodn="","",ROUNDUP(C_D,3)) -> 0.667 | K27: Služby
C29: Doba splatnosti (v letech) | E29: 25 | F29: (v měsících) | L29: Mimořádná splátka | N29: až 20% jistiny
C32: Datum narození
C34: Věk klienta
C36: Doba čerpání (v měsících)
C38: Typ zastavované nemovitosti | F38: zděná nemovitost nebo pozemek
B41: Slevy | G41: Slevy | K41: Jednorázové pojištění
C43: Jednorázové pojištění | F43: Ano | L43: Klient hradí JP | O43: Navýšením úvěru
C45: U-konto/Premium | F45: Ano | L45: Výše pojištění | O45: =SUM(adminSplatka!C30:C31) -> 60000
C47: Kreditní karta | F47: Ano | L47: Výše úvěru včetně pojištění | O47: =IF(SlevaCardif="Ano",VyseUveruZaklad+vyseUveru2+IF(OR(O45="",LEFT(O43,1)="Z"),0,O45),VyseUveruZaklad+vyseUveru2) -> 2060000
C49: Marketingová sleva | H49: 0
C51: Další předschválené slevy | H51: 0
B54: Standardní / Navržená výše poplatků
C56: Čerpání NnV: | E56: Za poskytnutí: | G56: Za odhad:
C58: 1500 | E58: 2500 | G58: =IF(nemNemovitost="",0,nemNemovitost+nemNemovitost2+nemNemovitost3) -> 3700
D65: Úroková sazba | M65: Měsíční splátka
C68: Dokument je určen pouze k internímu použití! Není určeno k tisku!
C71: Market Rate
C72: Option spread
C73: Special refinancing spread
C74: Celkem FUNDING | F74: =IF(SplCsZmena = "","",SUM(SplCsZmena,SplOsZmena,SplSrsZmena)) -> 
C75: Přirážka k FUNDINGu (součet CM a RM)
C76: Úroková sazba před výjimkou | F76: =IF(SplCsZmena = "","",SUM(F74:H75)) -> 
B79: Vyplňte
C81: Market Rate
C82: Contry spread | D82: CZK | E82: Měna
C83: Option spread
C84: Special refinancing spread
C85: Celkem FUNDING | F85: =IF(SplCsZmena2="","",SUM(SplCsZmena2,SplOsZmena2,SplSrsZmena2,SplCoSpZmena2)) -> 
C86: Riziková marže
C87: Commercial margin (před výjimkou)
C88: Úroková sazba před výjimkou | F88: =IF(SplCsZmena2="","",SUM(F85:H87)+SplCoSpZmena2) -> 
C92: Market Rate | F92: 0.0039 | L92: Datum konce fixního období | O92: =FinKonecFixu -> 2019-02-24
C93: Option spread | F93: 0.0002 | L93: Datum splatnosti podle FINu | O93: =FinKonecUveru -> 2016-07-25
C94: Special refinancing spread | F94: 0.0001
C95: Celkem FUNDING | F95: 0.0042
C96: Riziková marže | F96: 0.0084
C97: Commercial margin | F97: 0.0518
C98: Úroková sazba před výjimkou | F98: =UrSazbaBezSl -> 0.0644
C101: Výsledek kontrol:
C129: =IF(SlevaCardif="Ne",VyseUveruZaklad,VyseUveru) -> 2060000 | D129: =NemHodn-C129 -> 940000 | E129: FALSE | F129: FALSE | H129: 0

Sheet adminSplatka (hidden)
B2: Výpočet splátky | E2: Výpočet splátky pro Bonitu | I2: Kontrola změny dat
I3: Aktuální | J3: Puvodni | K3: =AND(K4:K19) -> FALSE
B4: Produkt | C4: =IF(ISNA(VLOOKUP(IF(Flexi="až 100% jistiny (FLEXI)","Hypoteční úvěr účelový rezidenční Flexi",TypHypoteky),ProductMap,2,FALSE)),"",VLOOKUP(IF(Flexi="až 100% jistiny (FLEXI)","Hypoteční úvěr účelový rezidenční Flexi",TypHypoteky),ProductMap,2,FALSE)) -> 01a | F4: =Product -> 01a | I4: Hypoteční úvěr účelový rezidenční Individual | J4: Hypoteční úvěr účelový rezidenční Flexi | K4: =I4=J4 -> FALSE
B5: Žadatel | C5: =IF(MID(SplZadatel,7,2)="SR","S",MID(SplZadatel,1,1)) -> O | I5: 2000000 | J5: 2000000 | K5: TRUE
B6: Rodné číslo | C6: =MID(SplRodneCislo,1,1) -> M | K6: TRUE
B7: Příjmy | C7: =MID(SplPrijmyV,1,1) -> Č | D7: =Zadatel&RodneCislo&Prijmy -> OMČ | I7: =NemHodn -> 3000000 | J7: 2180000 | K7: FALSE
B8: Typ klienta | C8: =IF(ISNA(VLOOKUP(IdentTypeKl,MappingTypKl,2,FALSE)),"",VLOOKUP(IdentTypeKl,MappingTypKl,2,FALSE)) -> S | D8: =IF(TypKlienta="","Nevhodný klient",IF(TypKlienta="S","Standardní klient","Nestandardní klient")) -> Standardní klient | I8: 0.667 | J8: 0.918 | K8: FALSE
B9: Produkt_sub | C9: =VratProductDomain(Product&"_"&TypKlienta,1) -> 01a_S | F9: =VratProductDomain(ProductBON&"_"&TypKlienta,1) -> 01a_S | I9: 25 | J9: 15 | K9: FALSE
B10: Fixace | C10: =IF(Fix_obdobi="Float s garancí","CA",MID(Fix_obdobi,1,2)) -> 3 | F10: 3 | I10: =Vek -> 0 | J10: 29292 | K10: FALSE
B11: C_D (LTV) | C11: =(VyseUveruZaklad+vyseUveru2)/NemHodn -> 0.6666666667 | I11: zděná nemovitost nebo pozemek | J11: zděná nemovitost nebo pozemek | K11: TRUE
B12: C_D (LTV)iCardif | C12: =VyseUveru/NemHodn -> 0.6866666667 | I12: Ano | J12: Ano | K12: TRUE
B13: Splatnost | C13: =SplatnostPrepocetMesice -> 0 | I13: Ano | J13: Ne | K13: FALSE
B14: Typ Nemov. | C14: =IF(ISNA(VLOOKUP(SplTypNemovitosti,NemovitostMap,2,FALSE)),"",VLOOKUP(SplTypNemovitosti,NemovitostMap,2,FALSE)) -> ZDE | I14: Ano | J14: Ano | K14: TRUE
B15: Cardif pro FL | C15: =IF(FIXACE="Fl",SlevaCardif,IF(FIXACE="CA",SlevaCardif,"Ne")) -> Ne | E15: Sleva Cardif | I15: 0 | J15: 0 | K15: TRUE
B16: Cardif pro Fix | C16: =IF(FIXACE="Fl","Ne",IF(FIXACE="CA","Ne",SlevaCardif)) -> Ano | I16: Občan ČR | J16: Občan ČR | K16: TRUE
B17: Akt bal FL | C17: =IF(FIXACE="Fl",SlevaUcet,IF(FIXACE="CA",SlevaUcet,"Ne")) -> Ne | E17: sleva Bal | I17: Má české nebo slovenské RČ | J17: Má české nebo slovenské RČ | K17: TRUE
B18: Kreditní karta | C18: =SlevaKarta -> Ano | E18: sleva KK | I18: Česká republika | J18: Česká republika | K18: TRUE
B19: Akt.bal Fix | C19: =IF(FIXACE="Fl","Ne",IF(FIXACE="CA","Ne",SlevaUcet)) -> Ano | I19: Navýšením úvěru | J19: Z vlastních zdrojů | K19: FALSE
B20: Vypisovat | C20: Ne
B21: Sazby ke dni | C21: =Defsazby!B2 -> 2016-02-01
B23: Úroková sazba | C23: 0 | F23: 0
B24: Úr.sazba bez sl | C24: 0.0644 | G24: UrSazbaBezSlFL
B25: Splátka
C27: =IF(AND(SlevaUcet="Ano",SlevaKarta="Ano"),"klient bude aktivně využívat některé z Osobních kont banky dle svého výběru, libovolnou kreditní kartu UniCredit Bank Czech Republic and Slovakia, a.s.",IF(SlevaUcet="Ano","klient bude aktivně využívat některé z Osobních kont banky dle svého výběru",IF(SlevaKarta="Ano","klient bude aktivně využívat libovolnou kreditní kartu UniCredit Bank Czech Republic and Slovakia, a.s.",""))) -> klient bude aktivně využívat některé z Osobních kont banky dle svého výběru, libovolnou kreditní kartu UniCredit Bank Czech Republic and Slovakia, a.s.
C28: =IF(SlevaCardif="Ano"," a bude mít k danému úvěru sjednáno jednorázové pojištění (pojištění schopnosti splácet).","") -> a bude mít k danému úvěru sjednáno jednorázové pojištění (pojištění schopnosti splácet).
B30: Pojištění účel | C30: =ROUNDUP((VyseUveruZaklad/100)*D30,0) -> 60000 | D30: =VLOOKUP("CardifFeeInFront",DefSpecPar!A:C,2,FALSE) -> 3
B31: Pojištění neúčel | C31: =ROUNDUP((vyseUveru2/100)*D31,0) -> 0 | D31: =VLOOKUP("CardifFeeInFront",DefSpecPar!A:C,2,FALSE) -> 3
B33: Splatnost_Mesice | C33: FALSE | D33: =IF(Splatnost_Mesice=TRUE,DobaSplatnosti2,DobaSplatnosti2*12) -> 0 | E33: =IF(Splatnost_Mesice=TRUE,DobaSplatnosti2/12,DobaSplatnosti2) -> 0
B35: Úroková sazba změna | C35: =SplCsZmena+SplOsZmena+SplSrsZmena+SplRmOmZmena -> 0 | D35: =SplCsZmena2+SplOsZmena2+SplSrsZmena2+SplRmZmena2+SplOmZmena2 -> 0
B37: Hypoteční úvěr účelový rezidenční Individual | C37: Hypoteční úvěr účelový rezidenční Twin | D37: Hypoteční úvěr účelový nerezidenční | E37: Hypoteční úvěr neúčelový
B39: Koupě | C39: Koupě | D39: Koupě | E39: Neúčelový
B40: Výstavba | C40: Výstavba | D40: Výstavba
B41: Rekonstrukce | C41: Rekonstrukce | D41: Rekonstrukce
B42: Refinancování úvěru – zjednodušené | C42: Refinancování úvěru – zjednodušené | D42: Refinancování úvěru – standard
B43: Refinancování úvěru – standard | C43: Refinancování úvěru – standard | D43: Vypořádání majetkových nároků
B44: Vypořádání majetkových nároků | C44: Vypořádání majetkových nároků | D44: Zpětné proplacení vl. zdrojů
B45: Zpětné proplacení vl. zdrojů | C45: Zpětné proplacení vl. zdrojů | D45: Pronájem
B46: Získání práva nájmu / úhr. druž. pod. | C46: Získání práva nájmu / úhr. druž. pod.
B75: Chyba: Výše neúčelové části úvěru není zadána

Sheet Bonita
A3: BONITA | AB3: =manVerze -> v.14a
B5: Jméno klienta | E5: =IF(SplatkaJmenoKlienta="","",SplatkaJmenoKlienta) ->  | L5: Příjmení klienta | M5: =IF(SplPrijmeniKlienta = "","",SplPrijmeniKlienta) -> 
B8: Příjmy žadatele | P8: Příjmy spolužadatele
B10: Dokládané příjmy | P10: Dokládané příjmy
C21: Průměrný čistý měsíční příjem v posledních 12 měsících | Q21: Průměrný čistý měsíční příjem v posledních 12 měsících
C23: Základní hrubá mzda (údaj dle prac. smlouvy) | Q23: Základní hrubá mzda (údaj dle prac. smlouvy)
C25: 4.příjem | H25: =IF(SUM(Mesic1,Mesic2,Mesic3)=MAX(Mesic1,Mesic2,Mesic3),0,IF(MAX(Mesic1,Mesic2,Mesic3)/((SUM(Mesic1,Mesic2,Mesic3)-MAX(Mesic1,Mesic2,Mesic3))/2)>1.3,(SUM(Mesic1,Mesic2,Mesic3)-MAX(Mesic1,Mesic2,Mesic3)+1.3*((SUM(Mesic1,Mesic2,Mesic3)-MAX(Mesic1,Mesic2,Mesic3))/2))/3,SUM(Mesic1,Mesic2,Mesic3)/3)) ->  | Q25: 4.příjem | U25: =IF(SUM(SpoMesic1,SpoMesic2,SpoMesic3)=MAX(SpoMesic1,SpoMesic2,SpoMesic3),0,IF(MAX(SpoMesic1,SpoMesic2,SpoMesic3)/((SUM(SpoMesic1,SpoMesic2,SpoMesic3)-MAX(SpoMesic1,SpoMesic2,SpoMesic3))/2)>1.3,(SUM(SpoMesic1,SpoMesic2,SpoMesic3)-MAX(SpoMesic1,SpoMesic2,SpoMesic3)+1.3*((SUM(SpoMesic1,SpoMesic2,SpoMesic3)-MAX(SpoMesic1,SpoMesic2,SpoMesic3))/2))/3,SUM(SpoMesic1,SpoMesic2,SpoMesic3)/3)) -> 
C27: Výsledný měsíční příjem | H27: =IF(AND(Mesic1<>"",Mesic3<>""),ROUND(IF(Mesic1 > Mesic3*1.2,Mesic3*1.2,Mesic1),0),"") ->  | Q27: Výsledný měsíční příjem | U27: =IF(AND(SpoMesic1<>"",SpoMesic3<>""),ROUND(IF(SpoMesic1 > SpoMesic3*1.2,SpoMesic3*1.2,SpoMesic1),0),"") -> 
C32: Příjmy ze závislé činnosti (ř.31) | I32: Po odečtení pojistného | M32: =radek31-ROUND(IF(radek31<adminMaxZaklad,radek31*adminPojistnePodnikani,adminMaxZaklad*adminPojistnePodnikani),0) -> 0 | Q32: Příjmy ze závislé činnosti (ř.31) | V32: Po odečtení pojistného | Z32: =T32-ROUND(IF(T32<1130640,T32*11%,1130640*11%),0) -> 0
C34: Příjmy z podnikání (ř.37) | I34: Po odečtení pojistného | L34: =adminZadVysledny -> 0 | Q34: Příjmy z podnikání (ř.37) | V34: Po odečtení pojistného | Z34: =IF(SpoRadek37="","",IF(SpoPausal="Ano",SpoRadek37,SpoRadek37-IF((ROUND(IF((T32+SpoRadek37)<adminMaxZaklad,SpoRadek37*adminPojistnePodnikani,(1130640-SpoRadek31)*adminPojistnePodnikani),0))<0,0,(ROUND(IF((SpoRadek31+SpoRadek37)<adminMaxZaklad,SpoRadek37*adminPojistnePodnikani,(adminMaxZaklad-SpoRadek31)*adminPojistnePodnikani),0))))) -> 
C36: Výdaje u podnikání uplatňované paušálem? | Q36: Výdaje u podnikání uplatňované paušálem?
C38: Příjmy z pronájmu (ř.39) | Q38: Příjmy z pronájmu (ř.39)
C40: Příjmy z kapitálového majetku (ř.38) | Q40: Příjmy z kapitálového majetku (ř.38)
C42: Položky mimoř. zvyšující základ daně (ř.105) | Q42: Položky mimoř. zvyšující základ daně (ř.105)
C44: Daň (ř.74) | Q44: Daň (ř.74)
C46: Výsledný měsíční příjem | G46: =IF(adminBonita!C28=0,"",adminBonita!C28) ->  | Q46: Výsledný měsíční příjem | T46: =IF(OR(AND(SpoRadek37="",SpoRadek39="",SpoRadek38=""),AND(SpoRadek74="",SpoZavislaVysledny="")),"",((SpoRadek31Odecteni+adminSpoRadek37Odecteni+SpoRadek39+SpoRadek38-SpoRadek105-SpoRadek74)*IF(SpoZavislaVysledny="",1,1-adminDan))/12) -> 
C51: Hrubý příjem z podnikání (ř.101) | Q51: Hrubý příjem z podnikání (ř.101)
C53: Výsledný měsíční příjem | H53: =IF(HrubyPrijem="","",HrubyPrijem/2/12) ->  | Q53: Výsledný měsíční příjem | U53: =IF(SpoHrubyPrijem="","",SpoHrubyPrijem/2/12) -> 
C58: Měsíční příjem | Q58: Měsíční příjem
C63: Měsíční příjem | Q63: Měsíční příjem
B67: Výdaje 1. domácnosti
C70: Patří všichni žadatelé do jedné domácnosti? | G70: Ano
C74: Počet dospělých v domácnosti | G74: 1 | J74: Náklady na domácnost | M74: =VLOOKUP(Bydliste&MIN(Dospeli+Deti,10),NakladDomacnosti,2,FALSE) -> 3400 | Q74: Počet dospělých v domácnosti | W74: Náklady na domácnost | Z74: =IF(BonDomacnosti="Ano","",VLOOKUP(SpoBydliste&MIN(SpoDospeli+SpoDeti,10),NakladDomacnosti,2,FALSE)) -> 
C76: Počet dětí v domácnosti | G76: 0 | J76: Osobní náklady | M76: =VLOOKUP(Bydliste&"Dosp",OsobniNaklady,2,FALSE)*Dospeli+VLOOKUP(Bydliste&"Dite",OsobniNaklady,2,FALSE)*Deti -> 4100 | Q76: Počet dětí v domácnosti | W76: Osobní náklady | Z76: =IF(BonDomacnosti="Ano","",VLOOKUP(SpoBydliste&"Dosp",OsobniNaklady,2,FALSE)*SpoDospeli+VLOOKUP(SpoBydliste&"Dite",OsobniNaklady,2,FALSE)*SpoDeti) -> 
C78: Současné bydliště | G78: Praha | J78: Měsíční platby pojištění | M78: 0 | Q78: Současné bydliště | W78: Měsíční platby pojištění
C80: Měsíční splátky úvěrů | G80: 0 | J80: Ostatní pravidelné výdaje | M80: 0 | Q80: Měsíční splátky úvěrů | W80: Ostatní pravidelné výdaje
C82: Rámec kontokorentního úvěru | G82: 0 | J82: Limit kreditní karty | M82: 0 | Q82: Rámec kontokorentního úvěru | W82: Limit kreditní karty
C88: Je bonita dostatečná? | F88: Měsíční splátka | J88: Debt ratio | Q88: Max. možná výše úvěru | T88: Celk. uznatelný příjem
C89: =IF(adminCelkovePrijmy = 0,"",IF(DR<=MaxDR,"ANO","NE")) ->  | F89: =IF(adminCelkovePrijmy = 0,"",SplatkaTrigger) ->  | J89: =IF(prihlaseny="banka",IF(adminCelkovePrijmy=0,"",TEXT(ROUNDUP(DR*100,0),"0")&"% / max."&TEXT(ROUNDUP(MaxDR*100,0),"0")&"%"),IF(bonDostatecna="Ano","Vyhovující",IF(bonDostatecna="Ne","Nevyhovující",""))) ->  | Q89: =IF(adminCelkovePrijmy=0,"",adminMaxVyse) ->  | T89: =IF(adminCelkovePrijmy = 0,"",adminCelkovePrijmy) -> 
B91: Dokument je určen pouze k internímu použití! Není určeno k tisku!

Sheet adminBonita (hidden)
B2: VYPOČTENÉ PŘÍJMY | C2: žadatel | D2: Spolužadatel | F2: VYPOČTENÉ VÝDAJE | G2: Spolužadatel | I2: Koeficient splátky | J2: KTK | K2: KK
B3: Závislá | C3: =IF(ZavislaVysledny="",0,ZavislaVysledny) -> 0 | D3: =IF(SpoZavislaVysledny="",0,SpoZavislaVysledny) -> 0 | F3: Náklady na domácnost | G3: =IF(SpoDomacnost="",0,SpoDomacnost) -> 0 | J3: 0.0642243 | K3: 0.03457
B4: Daňové | C4: =IF(DanoveVysledny="",0,DanoveVysledny) -> 0 | D4: =IF(SpoDanoveVysledny="",0,SpoDanoveVysledny) -> 0 | F4: Osobní náklady | G4: =IF(SpoOsobni="",0,SpoOsobni) -> 0
B5: Hrubé | C5: =IF(HrubyVysledny="",0,HrubyVysledny) -> 0 | D5: =IF(SpoHrubyVysledny="",0,SpoHrubyVysledny) -> 0 | I5: Pojistné | J5: závislá činnost | K5: podnikání | L5: max. základ | M5: SP | N5: ZP | O5: min SP | P5: min ZP
B6: Ostatní | C6: =IF(OstatniMesicni="",0,OstatniMesicni) -> 0 | D6: =IF(SpoOstatniMesicni="",0,SpoOstatniMesicni) -> 0 | F6: Daň | G6: 0.15 | J6: 0.11 | K6: 0.2135 | L6: 1130640 | M6: 0.292 | N6: 0.135 | O6: =1943*12 -> 23316 | P6: =1797*12 -> 21564
B7: Přímé | C7: =IF(PrimeMesicni="",0,PrimeMesicni) -> 0 | D7: =IF(SpoPrimeMesicni="",0,SpoPrimeMesicni) -> 0
B8: celkem | C8: =SUM(adminOblastPrijmyZadatel) -> 0 | D8: =SUM(adminOblastPrijmySpoluzadatel) -> 0 | F8: řádek 37 po odečtení pojistného | I8: Podnikání stropy | J8: max | K8: min | L8: min SP | M8: min ZP
F9: žadatel | G9: =IF(Radek37Odecteni = "",0,Radek37Odecteni) -> 0 | J9: =1296288*2 -> 2592576 | K9: =64813*2 -> 129626 | L9: =O6/M6 -> 79849.31507 | M9: =P6/N6 -> 159733.3333
B10: Celkový příjem | C10: =SUM(adminOblastPrijmy) -> 0 | F10: spolužadatel | G10: =IF(SpoRadek37Odecteni = "",0,SpoRadek37Odecteni) -> 0
B11: Ostatní splátky | C11: =Splatky+KTK*adminKoefKtk+KK*adminKoefKK+SpoSplatky+SpoKtk*adminKoefKtk+SpoKk*adminKoefKK -> 0 | I11: činnost | J11: ZP | K11: SP | L11: celkem | M11: TRUE
B12: Celkový výdaj | C12: =ZadDomacnost+ZadNaklady+VydPojisteni+VydOstatni+adminSpoDomacnost+adminSpoOsobni+SpoPojisteni+SpoVydaje+adminOstatniSplatky -> 7500 | I12: Podnikání | J12: =IF(radek37>J9,(J9/2)*N6,IF(radek37<M9,P6,(radek37/2)*N6)) -> 21564 | K12: =IF(radek37>J9,(J9/2)*M6,IF(radek37<L9,O6,(radek37/2)*M6)) -> 23316 | L12: =J12+K12 -> 44880 | M12: =IF(D27=TRUE,IF(D21=FALSE,IF(D25=FALSE,IF(D29=FALSE,IF(D23=FALSE,TRUE,FALSE))))) -> FALSE
B13: Disponibilní zdroje | C13: =C10-C12 -> -7500 | I13: Podnikání při ZČ | J13: =IF(radek37>J9,(J9/2)*N6,((radek37/2)*N6)) -> 0 | K13: =IF(radek37<K9,0,IF(radek37>J9,(J9/2)*M6,(radek37/2)*M6)) -> 0 | L13: =SUM(J13,K13) -> 0 | M13: =IF(D27=TRUE,IF(D21=TRUE,IF(D25=FALSE,IF(D29=FALSE,IF(D23=FALSE,TRUE,FALSE))))) -> FALSE
B14: Splátka pro Bonitu | C14: =SplatkaBON -> 0 | I14: Pronájem | J14: =1148*12 -> 13776 | K14: 0 | L14: =IF(ZavislaVysledny="",IF(radek37="",IF(radek38="",IF(ZadRadek105="",IF(D27=TRUE,(J14+K14+(C24*0.15)),IF(radek39<>"",J14+K14,0)))))) -> 0 | M14: =IF(D27=TRUE,IF(D21=FALSE,IF(D25=FALSE,IF(D29=FALSE,IF(D23=FALSE,IF(adminBonita!C24>0,TRUE,FALSE)))))) -> FALSE
B15: DR | C15: =IF(adminDisponibilniZdroje<=0,999999,(adminSplatkaBon+adminOstatniSplatky) / (adminDisponibilniZdroje+adminOstatniSplatky)) -> 999999 | I15: Pronájem a ZČ | L15: =IF(M15=TRUE,radek39*0.15,0) -> 0 | M15: =IF(D21=TRUE,IF(D27=TRUE,TRUE,FALSE)) -> FALSE
B16: LTV C_D | C16: =C_D -> 0.6666666667
B17: Max DR
B18: maximální výše úvěru
B20: Zadatel podnikani | D20: zav.čin. | F20: Spoluzadatel podnikani
B21: radek31 | C21: =radek31 -> 0 | D21: FALSE | F21: radek31 | G21: =SpoRadek31 -> 0
B22: radek37 | C22: =radek37 -> 0 | D22: ost.st.přij. | F22: radek37 | G22: =SpoRadek37 -> 0
B23: pausal | C23: =PausalZad -> 0 | D23: FALSE | F23: pausal | G23: =SpoPausal -> 0
B24: radek39 | C24: =radek39 -> 0 | D24: přímé zadání | F24: radek39 | G24: =SpoRadek39 -> 0
B25: radek38 | C25: =radek38 -> 0 | D25: FALSE | F25: radek38 | G25: =SpoRadek38 -> 0
B26: radek105 | C26: =ZadRadek105 -> 0 | D26: přijem z d.p. | F26: radek105 | G26: =SpoRadek105 -> 0
B27: radek74 | C27: =radek74 -> 0 | D27: FALSE | F27: radek74 | G27: =SpoRadek74 -> 0
B28: Výsledný příjem | C28: =IF(OR(AND(radek37="",radek39="",radek38="")),0,(IF(M12=TRUE,adminZadVysledny+radek39+radek38-ZadRadek105-radek74-L14,IF(SoubehZC_Podnikani=TRUE,adminZadVysledny+radek39+radek38-ZadRadek105-L15-(C22*0.15),adminZadVysledny+radek39+radek38-ZadRadek105-radek74-L15)))/12) -> 0 | D28: hrubý podn. | F28: Výsledný příjem | G28: =IF(OR(AND(SpoRadek37="",SpoRadek39="",SpoRadek38=""),AND(SpoRadek74="",SpoZavislaVysledny="")),"",((SpoRadek31Odecteni+adminSpoRadek37Odecteni+SpoRadek39+SpoRadek38-SpoRadek105-SpoRadek74)*IF(SpoZavislaVysledny="",1,1-adminDan))/12) -> 
B29: Odečtení pojistného | C29: =IF(radek37="",0,IF(PausalZad="Ano",radek37,radek37-(IF(M12=TRUE,L12+L14+L15,L13+L14+L15)))) -> 0 | D29: FALSE | F29: Odečtení pojistného | G29: =IF(SpoRadek37="","",IF(SpoPausal="Ano",SpoRadek37,SpoRadek37-IF((ROUND(IF((T32+SpoRadek37)<adminMaxZaklad,SpoRadek37*adminPojistnePodnikani,(1130640-SpoRadek31)*adminPojistnePodnikani),0))<0,0,(ROUND(IF((SpoRadek31+SpoRadek37)<adminMaxZaklad,SpoRadek37*adminPojistnePodnikani,(adminMaxZaklad-SpoRadek31)*adminPojistnePodnikani),0))))) -> 
B31: Zadatel zč | F31: Spoluzadatel zč
B32: čistý měsíční | C32: =Mesic1 -> 0 | F32: čistý měsíční | G32: =SpoMesic1 -> 0
B33: základní hrubá mzda | C33: =Mesic3 -> 0 | F33: základní hrubá mzda | G33: =SpoMesic3 -> 0
B34: Výsledný příjem | C34: =IF(AND(Mesic1<>"",Mesic3<>""),ROUND(IF(Mesic1 > Mesic3*1.2,Mesic3*1.2,Mesic1),0),"") ->  | F34: Výsledný příjem | G34: =IF(AND(SpoMesic1<>"",SpoMesic3<>""),ROUND(IF(SpoMesic1 > SpoMesic3*1.2,SpoMesic3*1.2,SpoMesic1),0),"") -> 

Sheet Nabidka (hidden)
A3: NABÍDKA | AT3: v.12
E8: Orientační nabídka hypotečního úvěru
E13: Klient: | J13: =SplatkaJmenoKlienta & " " & SplPrijmeniKlienta -> 
E14: E-mail:
E15: Telefon:
E16: Dne: | J16: =TODAY() -> 2016-02-02
E18: Typ produktu | W18: =IF(Flexi="až 100% jistiny (FLEXI)","Hypoteční úvěr účelový rezidenční Flexi",TypHypoteky) -> Hypoteční úvěr účelový rezidenční Individual
E19: Výše úvěru | W19: =IF(SlevaCardif="Ne",VyseUveruZaklad+vyseUveru2,VyseUveru)&" Kč"&IF(AND(SlevaCardif="Ano",CardifTyp="Navýšením úvěru")," *","") -> 2060000 Kč *
E20: Fixní období | W20: =Fix_obdobi -> 3 roky
E21: Doba splatnosti | W21: =Splatka!H29 -> 0
E22: Úroková sazba | W22: =SazbaTrigger -> 0 | Z22: p. a.
E23: Výše splátky | W23: =SplatkaTrigger -> 0
E24: Měsíční poplatek za správu úvěru | W24: 0
E25: Poplatek za poskytnutí úvěru | W25: =IF(splPoplPoskZmena="",splPoplPosk,splPoplPoskZmena) -> 2500
E26: Maximální výše úvěru (při uvedeném příjmu a výdajích) | W26: =adminMaxVyse -> 0
E27: =IF(AND(SlevaCardif="Ano",CardifTyp="Navýšením úvěru"),"* Uvedená hodnota výše úvěru je včetně částky pojistného za jednorázové úvěrové pojištění ","") -> * Uvedená hodnota výše úvěru je včetně částky pojistného za jednorázové úvěrové pojištění
E29: Typ produktu | W29: Nabídka Banky**
E30: =IF(SlevaUcet="Ano","ü","û") -> ü | G30: Balíček | W30: U-Konto/Premium Konto
E31: =IF(SlevaKarta="Ano","ü","û") -> ü | G31: Kreditní karta
E32: =IF(SlevaCardif="Ano","ü","û") -> ü | G32: Jednorázové úvěrové pojištění | W32: Pojištění schopnosti splácet
E35: ** Detaily produktů najdete v příloze této nabídky
E38: Úrokovou sazbu Vám v uvedené výši rezervujeme za těchto předpokladů:
E39: · požadované parametry úvěru (účel úvěru, výše úvěru, doba splatnosti, fixní období) zůstanou beze změn
E40: · | F40: =" hodnota nemovitosti, která bude sloužit k zajištění úvěru, bude ve výši alespoň "&NemHodn&" Kč" -> hodnota nemovitosti, která bude sloužit k zajištění úvěru, bude ve výši alespoň 3000000 Kč
E41: · klient bude aktivně využívat některé z Osobních kont banky dle svého výběru, libovolnou kreditní kartu UniCredit Bank Czech Republic and Slovakia, a.s. a bude mít k danému úvěru sjednáno jednorázové pojištění (pojištění schopnosti splácet). | F41: =info1&info2 -> klient bude aktivně využívat některé z Osobních kont banky dle svého výběru, libovolnou kreditní kartu UniCredit Bank Czech Republic and Slovakia, a.s. a bude mít k danému úvěru sjednáno jednorázové pojištění (pojištění schopnosti splácet).
E43: · | F43: ="nejpozději do "&TEXT(NOW()+14,"d.m.rrrr")&" včetně bude do banky doručena kompletní žádost o úvěr (tj. vyplněná a podepsaná žádost o úvěr včetně všech požadovaných podkladů) a současně "&"nejpozději do 30 kalendářních dnů od data doručení kompletní žádosti o úvěr do banky bude mezi bankou a klientem podepsána smlouva o poskytnutí hypotečního úvěru." -> nejpozději do 16.2.2016 včetně bude do banky doručena kompletní žádost o úvěr (tj. vyplněná a podepsaná žádost o úvěr včetně všech požadovaných podkladů) a současně nejpozději do 30 kalendářních dnů od data doručení kompletní žádosti o úvěr do banky bude mezi bankou a klientem podepsána smlouva o poskytnutí hypotečního úvěru.
E47: Děkujeme za Váš zájem. V případě dotazů nás, prosím, neváhejte kontaktovat. Těšíme se na naší spolupráci.
E49: =IF(prihlaseny="banka","Jméno bankéře:","Jméno poradce:") -> Jméno poradce:
E50: =IF(prihlaseny="banka","Pobočka:","Společnost:") -> Společnost:
E51: E-mail:
E52: Telefon:
E63: Tato nabídka je pouze indikativní, není návrhem na uzavření smlouvy a nelze z ní proto dovozovat povinnost banky uskutečnit jakékoliv transakce. Případné uzavření smlouvy nebo uskutečnění transakce je vázáno na získání potřebných interních schválení v rámci banky a na podepsání příslušné smluvní dokumentace.
E66: Výhody dalších produktů
E68: U KONTO můžete mít jednoduše zcela zdarma a nemusíte splnit žádné složité podmínky. Stačí, když se k nám každý měsíc budete posílat svůj příjem v minimální výši 12 000 Kč.
E71: V rámci U konta získáváte:
E72: · Vedení konta bez měsíčního poplatku
E73: · Výběry ze všech bankomatů v ČR i ve světě
E74: · Standardní tuzemské online platby
E75: · Mezinárodní platební kartu
E76: · Internetové bankovnictví Smart Banking a Online Banking
E77: · Měsíční elektronický výpis
E78: · Smart klíč
E79: · Běžný účet v Kč a druhý v cizí měně
E82: PREMIUM KONTO můžete mít jednoduše zcela zdarma a nemusíte splnit žádné složité podmínky. Stačí, když se k nám každý měsíc budete posílat svůj příjem v minimální výši 50 000 Kč.
E85: V rámci U konta získáváte:
E86: · Vedení konta
E87: · Výběry ze všech bankomatů v ČR i ve světě
E88: · Až 3 platební karty včetně 2 zlatých
E89: · Standardní tuzemské online platby
E90: · Internetové bankovnictví Smart Banking a Online Banking
E91: · Měsíční elektronický výpis
E92: · Smart klíč
E93: · Běžný účet v Kč a druhý v cizí měně
E94: · Kontokorent (povolené přečerpání účtu)
E95: · Zdravotní asistenci PREMIUM s lékařem na telefonu 24 hodin denně.
E98: POJIŠTĚNÍ SCHOPNOSTI SPLÁCET - CPI (Credit Protection Insurance) –je úvěrové pojištění, které chrání Vás a vaší rodinu při výpadku pravidelných příjmů.
E101: · Standardní součástí CPI je pojištění pro případ úmrtí a dále si můžete zvolit jedno z následujících připojištění:
G102: o Nedobrovolná ztráta zaměstnání,
G103: o Dočasná pracovní neschopnost,
G104: o Invalidita III. Stupně.
E105: · Rychlost a snadnost sjednání - stačí vyslovit souhlas s rámcovou pojistnou smlouvou a Všeobecnými pojistnými podmínkami
E107: · Asistenční služby 24 hodin denně 365 dní v roce
E110: KREDITNÍ KARTA - Mezinárodní platební karta s úvěrovým limitem
E112: · Peněžní rezerva k dispozici kdykoliv a bez ručitele
E113: · Bezúročné období pro platbu kartou až 45 dní
E114: · Zavolej a zaplať - služba, která Vám pošle peníze z vaší kreditní karty na jakýkoliv účet v ČR
E115: · Přímé slevy při placení kreditní kartou u vybraných partnerů – www.unicreditbank.cz/slevynakartach
E116: · Výběr hotovosti Cash Back při platbě za zboží a služby u vybraných obchodníků
E117: · Platnost karty 3 roky s automatickou obnovou
E118: · Služba 3D Secure pro bezpečné platby na Internetu

Sheet Kalendar (hidden)
B3: ORIENTAČNÍ SPLÁTKOVÝ KALENDÁŘ | M3: =manVerze -> v.14a
C5: Jméno klienta: | D5: =SplatkaJmenoKlienta&" " &SplPrijmeniKlienta ->  | K5: Vyhotoveno dne: | L5: =TODAY() -> 2016-02-02
C9: Výše úvěru ( v CZK): | D9: =VyseUveru -> 2060000 | G9: Dokument je určen pouze k internímu použití! Není určeno k tisku!
C11: Úroková sazba: | D11: =SazbaTrigger -> 0
C13: Datum čerpání: | D13: 2015-05-23
C15: Datum první splátky: | D15: =DATE(YEAR(CerpaniD),MONTH(CerpaniD),25) -> 2015-05-25
C17: Měsíční splátka: | D17: =SplatkaTrigger -> 0 | G17: =IF(vypocteno,"","Kalendář není aktuální. Vypočtěte jej prosím znovu.") -> Kalendář není aktuální. Vypočtěte jej prosím znovu.
C19: Doba splatnosti v měsících: | D19: =Splatnost -> 0
G20: č. | H20: Datum | I20: Splátka | J20: Úrok | K20: Úmor | L20: Nesplacená jistina
G21: 1 | H21: 2015-05-25 | I21: 109.41 | J21: 109.41 | K21: 0 | L21: 824000
G22: 2 | H22: 2015-06-25 | I22: 7727 | J22: 1641.13 | K22: 6085.87 | L22: 817914.13
G23: 3 | H23: 2015-07-25 | I23: 7727 | J23: 1629.01 | K23: 6097.99 | L23: 811816.14
G24: 4 | H24: 2015-08-25 | I24: 7727 | J24: 1616.87 | K24: 6110.13 | L24: 805706.01
G25: 5 | H25: 2015-09-25 | I25: 7727 | J25: 1604.7 | K25: 6122.3 | L25: 799583.71
G26: 6 | H26: 2015-10-25 | I26: 7727 | J26: 1592.5 | K26: 6134.5 | L26: 793449.21
G27: 7 | H27: 2015-11-25 | I27: 7727 | J27: 1580.29 | K27: 6146.71 | L27: 787302.5
G28: 8 | H28: 2015-12-25 | I28: 7727 | J28: 1568.04 | K28: 6158.96 | L28: 781143.54
G29: 9 | H29: 2016-01-25 | I29: 7727 | J29: 1555.78 | K29: 6171.22 | L29: 774972.32
G30: 10 | H30: 2016-02-25 | I30: 7727 | J30: 1543.49 | K30: 6183.51 | L30: 768788.81
G31: 11 | H31: 2016-03-25 | I31: 7727 | J31: 1531.17 | K31: 6195.83 | L31: 762592.98
G32: 12 | H32: 2016-04-25 | I32: 7727 | J32: 1518.83 | K32: 6208.17 | L32: 756384.81
G33: 13 | H33: 2016-05-25 | I33: 7727 | J33: 1506.47 | K33: 6220.53 | L33: 750164.28
G34: 14 | H34: 2016-06-25 | I34: 7727 | J34: 1494.08 | K34: 6232.92 | L34: 743931.36
G35: 15 | H35: 2016-07-25 | I35: 7727 | J35: 1481.66 | K35: 6245.34 | L35: 737686.02
G36: 16 | H36: 2016-08-25 | I36: 7727 | J36: 1469.22 | K36: 6257.78 | L36: 731428.24
G37: 17 | H37: 2016-09-25 | I37: 7727 | J37: 1456.76 | K37: 6270.24 | L37: 725158
G38: 18 | H38: 2016-10-25 | I38: 7727 | J38: 1444.27 | K38: 6282.73 | L38: 718875.27
G39: 19 | H39: 2016-11-25 | I39: 7727 | J39: 1431.76 | K39: 6295.24 | L39: 712580.03
G40: 20 | H40: 2016-12-25 | I40: 7727 | J40: 1419.22 | K40: 6307.78 | L40: 706272.25
G41: 21 | H41: 2017-01-25 | I41: 7727 | J41: 1406.66 | K41: 6320.34 | L41: 699951.91
G42: 22 | H42: 2017-02-25 | I42: 7727 | J42: 1394.07 | K42: 6332.93 | L42: 693618.98
G43: 23 | H43: 2017-03-25 | I43: 7727 | J43: 1381.46 | K43: 6345.54 | L43: 687273.44
G44: 24 | H44: 2017-04-25 | I44: 7727 | J44: 1368.82 | K44: 6358.18 | L44: 680915.26
G45: 25 | H45: 2017-05-25 | I45: 7727 | J45: 1356.16 | K45: 6370.84 | L45: 674544.42
G46: 26 | H46: 2017-06-25 | I46: 7727 | J46: 1343.47 | K46: 6383.53 | L46: 668160.89
G47: 27 | H47: 2017-07-25 | I47: 7727 | J47: 1330.75 | K47: 6396.25 | L47: 661764.64
G48: 28 | H48: 2017-08-25 | I48: 7727 | J48: 1318.01 | K48: 6408.99 | L48: 655355.65
G49: 29 | H49: 2017-09-25 | I49: 7727 | J49: 1305.25 | K49: 6421.75 | L49: 648933.9
G50: 30 | H50: 2017-10-25 | I50: 7727 | J50: 1292.46 | K50: 6434.54 | L50: 642499.36
G51: 31 | H51: 2017-11-25 | I51: 7727 | J51: 1279.64 | K51: 6447.36 | L51: 636052
G52: 32 | H52: 2017-12-25 | I52: 7727 | J52: 1266.8 | K52: 6460.2 | L52: 629591.8
G53: 33 | H53: 2018-01-25 | I53: 7727 | J53: 1253.94 | K53: 6473.06 | L53: 623118.74
G54: 34 | H54: 2018-02-25 | I54: 7727 | J54: 1241.04 | K54: 6485.96 | L54: 616632.78
G55: 35 | H55: 2018-03-25 | I55: 7727 | J55: 1228.13 | K55: 6498.87 | L55: 610133.91
G56: 36 | H56: 2018-04-25 | I56: 7727 | J56: 1215.18 | K56: 6511.82 | L56: 603622.09
G57: 37 | H57: 2018-05-25 | I57: 7727 | J57: 1202.21 | K57: 6524.79 | L57: 597097.3
G58: 38 | H58: 2018-06-25 | I58: 7727 | J58: 1189.22 | K58: 6537.78 | L58: 590559.52
G59: 39 | H59: 2018-07-25 | I59: 7727 | J59: 1176.2 | K59: 6550.8 | L59: 584008.72
G60: 40 | H60: 2018-08-25 | I60: 7727 | J60: 1163.15 | K60: 6563.85 | L60: 577444.87
G61: 41 | H61: 2018-09-25 | I61: 7727 | J61: 1150.08 | K61: 6576.92 | L61: 570867.95
G62: 42 | H62: 2018-10-25 | I62: 7727 | J62: 1136.98 | K62: 6590.02 | L62: 564277.93
G63: 43 | H63: 2018-11-25 | I63: 7727 | J63: 1123.85 | K63: 6603.15 | L63: 557674.78
G64: 44 | H64: 2018-12-25 | I64: 7727 | J64: 1110.7 | K64: 6616.3 | L64: 551058.48
G65: 45 | H65: 2019-01-25 | I65: 7727 | J65: 1097.52 | K65: 6629.48 | L65: 544429
G66: 46 | H66: 2019-02-25 | I66: 7727 | J66: 1084.32 | K66: 6642.68 | L66: 537786.32
G67: 47 | H67: 2019-03-25 | I67: 7727 | J67: 1071.09 | K67: 6655.91 | L67: 531130.41
G68: 48 | H68: 2019-04-25 | I68: 7727 | J68: 1057.83 | K68: 6669.17 | L68: 524461.24
G69: 49 | H69: 2019-05-25 | I69: 7727 | J69: 1044.55 | K69: 6682.45 | L69: 517778.79
G70: 50 | H70: 2019-06-25 | I70: 7727 | J70: 1031.24 | K70: 6695.76 | L70: 511083.03
G71: 51 | H71: 2019-07-25 | I71: 7727 | J71: 1017.91 | K71: 6709.09 | L71: 504373.94
G72: 52 | H72: 2019-08-25 | I72: 7727 | J72: 1004.54 | K72: 6722.46 | L72: 497651.48
G73: 53 | H73: 2019-09-25 | I73: 7727 | J73: 991.16 | K73: 6735.84 | L73: 490915.64
G74: 54 | H74: 2019-10-25 | I74: 7727 | J74: 977.74 | K74: 6749.26 | L74: 484166.38
G75: 55 | H75: 2019-11-25 | I75: 7727 | J75: 964.3 | K75: 6762.7 | L75: 477403.68
G76: 56 | H76: 2019-12-25 | I76: 7727 | J76: 950.83 | K76: 6776.17 | L76: 470627.51
G77: 57 | H77: 2020-01-25 | I77: 7727 | J77: 937.33 | K77: 6789.67 | L77: 463837.84
G78: 58 | H78: 2020-02-25 | I78: 7727 | J78: 923.81 | K78: 6803.19 | L78: 457034.65
G79: 59 | H79: 2020-03-25 | I79: 7727 | J79: 910.26 | K79: 6816.74 | L79: 450217.91
G80: 60 | H80: 2020-04-25 | I80: 7727 | J80: 896.68 | K80: 6830.32 | L80: 443387.59
G81: 61 | H81: 2020-05-25 | I81: 7727 | J81: 883.08 | K81: 6843.92 | L81: 436543.67
G82: 62 | H82: 2020-06-25 | I82: 7823 | J82: 1051.34 | K82: 6771.66 | L82: 429772.01
G83: 63 | H83: 2020-07-25 | I83: 7823 | J83: 1035.03 | K83: 6787.97 | L83: 422984.04
G84: 64 | H84: 2020-08-25 | I84: 7823 | J84: 1018.69 | K84: 6804.31 | L84: 416179.73
G85: 65 | H85: 2020-09-25 | I85: 7823 | J85: 1002.3 | K85: 6820.7 | L85: 409359.03
G86: 66 | H86: 2020-10-25 | I86: 7823 | J86: 985.87 | K86: 6837.13 | L86: 402521.9
G87: 67 | H87: 2020-11-25 | I87: 7823 | J87: 969.41 | K87: 6853.59 | L87: 395668.31
G88: 68 | H88: 2020-12-25 | I88: 7823 | J88: 952.9 | K88: 6870.1 | L88: 388798.21
G89: 69 | H89: 2021-01-25 | I89: 7823 | J89: 936.36 | K89: 6886.64 | L89: 381911.57
G90: 70 | H90: 2021-02-25 | I90: 7823 | J90: 919.77 | K90: 6903.23 | L90: 375008.34
G91: 71 | H91: 2021-03-25 | I91: 7823 | J91: 903.15 | K91: 6919.85 | L91: 368088.49
G92: 72 | H92: 2021-04-25 | I92: 7823 | J92: 886.48 | K92: 6936.52 | L92: 361151.97
G93: 73 | H93: 2021-05-25 | I93: 7823 | J93: 869.77 | K93: 6953.23 | L93: 354198.74
G94: 74 | H94: 2021-06-25 | I94: 7823 | J94: 853.03 | K94: 6969.97 | L94: 347228.77
G95: 75 | H95: 2021-07-25 | I95: 7823 | J95: 836.24 | K95: 6986.76 | L95: 340242.01
G96: 76 | H96: 2021-08-25 | I96: 7823 | J96: 819.42 | K96: 7003.58 | L96: 333238.43
G97: 77 | H97: 2021-09-25 | I97: 7823 | J97: 802.55 | K97: 7020.45 | L97: 326217.98
G98: 78 | H98: 2021-10-25 | I98: 7823 | J98: 785.64 | K98: 7037.36 | L98: 319180.62
G99: 79 | H99: 2021-11-25 | I99: 7823 | J99: 768.69 | K99: 7054.31 | L99: 312126.31
G100: 80 | H100: 2021-12-25 | I100: 7823 | J100: 751.7 | K100: 7071.3 | L100: 305055.01
G101: 81 | H101: 2022-01-25 | I101: 7823 | J101: 734.67 | K101: 7088.33 | L101: 297966.68
G102: 82 | H102: 2022-02-25 | I102: 7823 | J102: 717.6 | K102: 7105.4 | L102: 290861.28
G103: 83 | H103: 2022-03-25 | I103: 7823 | J103: 700.49 | K103: 7122.51 | L103: 283738.77
G104: 84 | H104: 2022-04-25 | I104: 7823 | J104: 683.34 | K104: 7139.66 | L104: 276599.11
G105: 85 | H105: 2022-05-25 | I105: 7823 | J105: 666.14 | K105: 7156.86 | L105: 269442.25
G106: 86 | H106: 2022-06-25 | I106: 7823 | J106: 648.91 | K106: 7174.09 | L106: 262268.16
G107: 87 | H107: 2022-07-25 | I107: 7823 | J107: 631.63 | K107: 7191.37 | L107: 255076.79
G108: 88 | H108: 2022-08-25 | I108: 7823 | J108: 614.31 | K108: 7208.69 | L108: 247868.1
G109: 89 | H109: 2022-09-25 | I109: 7823 | J109: 596.95 | K109: 7226.05 | L109: 240642.05
G110: 90 | H110: 2022-10-25 | I110: 7823 | J110: 579.55 | K110: 7243.45 | L110: 233398.6
G111: 91 | H111: 2022-11-25 | I111: 7823 | J111: 562.1 | K111: 7260.9 | L111: 226137.7
G112: 92 | H112: 2022-12-25 | I112: 7823 | J112: 544.61 | K112: 7278.39 | L112: 218859.31
G113: 93 | H113: 2023-01-25 | I113: 7823 | J113: 527.09 | K113: 7295.91 | L113: 211563.4
G114: 94 | H114: 2023-02-25 | I114: 7823 | J114: 509.52 | K114: 7313.48 | L114: 204249.92
G115: 95 | H115: 2023-03-25 | I115: 7823 | J115: 491.9 | K115: 7331.1 | L115: 196918.82
G116: 96 | H116: 2023-04-25 | I116: 7823 | J116: 474.25 | K116: 7348.75 | L116: 189570.07
G117: 97 | H117: 2023-05-25 | I117: 7823 | J117: 456.55 | K117: 7366.45 | L117: 182203.62
G118: 98 | H118: 2023-06-25 | I118: 7823 | J118: 438.81 | K118: 7384.19 | L118: 174819.43
G119: 99 | H119: 2023-07-25 | I119: 7823 | J119: 421.02 | K119: 7401.98 | L119: 167417.45
G120: 100 | H120: 2023-08-25 | I120: 7823 | J120: 403.2 | K120: 7419.8 | L120: 159997.65
G121: 101 | H121: 2023-09-25 | I121: 7823 | J121: 385.33 | K121: 7437.67 | L121: 152559.98
G122: 102 | H122: 2023-10-25 | I122: 7823 | J122: 367.42 | K122: 7455.58 | L122: 145104.4
G123: 103 | H123: 2023-11-25 | I123: 7823 | J123: 349.46 | K123: 7473.54 | L123: 137630.86
G124: 104 | H124: 2023-12-25 | I124: 7823 | J124: 331.46 | K124: 7491.54 | L124: 130139.32
G125: 105 | H125: 2024-01-25 | I125: 7823 | J125: 313.42 | K125: 7509.58 | L125: 122629.74
G126: 106 | H126: 2024-02-25 | I126: 7823 | J126: 295.33 | K126: 7527.67 | L126: 115102.07
G127: 107 | H127: 2024-03-25 | I127: 7823 | J127: 277.2 | K127: 7545.8 | L127: 107556.27
G128: 108 | H128: 2024-04-25 | I128: 7823 | J128: 259.03 | K128: 7563.97 | L128: 99992.3
G129: 109 | H129: 2024-05-25 | I129: 7823 | J129: 240.81 | K129: 7582.19 | L129: 92410.11
G130: 110 | H130: 2024-06-25 | I130: 7823 | J130: 222.55 | K130: 7600.45 | L130: 84809.66
G131: 111 | H131: 2024-07-25 | I131: 7823 | J131: 204.25 | K131: 7618.75 | L131: 77190.91
G132: 112 | H132: 2024-08-25 | I132: 7823 | J132: 185.9 | K132: 7637.1 | L132: 69553.81
G133: 113 | H133: 2024-09-25 | I133: 7823 | J133: 167.51 | K133: 7655.49 | L133: 61898.32
G134: 114 | H134: 2024-10-25 | I134: 7823 | J134: 149.07 | K134: 7673.93 | L134: 54224.39
G135: 115 | H135: 2024-11-25 | I135: 7823 | J135: 130.59 | K135: 7692.41 | L135: 46531.98
G136: 116 | H136: 2024-12-25 | I136: 7823 | J136: 112.06 | K136: 7710.94 | L136: 38821.04
G137: 117 | H137: 2025-01-25 | I137: 7823 | J137: 93.49 | K137: 7729.51 | L137: 31091.53
G138: 118 | H138: 2025-02-25 | I138: 7823 | J138: 74.88 | K138: 7748.12 | L138: 23343.41
G139: 119 | H139: 2025-03-25 | I139: 7823 | J139: 56.22 | K139: 7766.78 | L139: 15576.63
G140: 120 | H140: 2025-04-25 | I140: 7823 | J140: 37.51 | K140: 7785.49 | L140: 7791.14
G141: 121 | H141: 2025-05-25 | I141: 7809.9 | J141: 18.76 | K141: 7791.14 | L141: 0

Sheet adminKalendar (hidden)
B2: FixAfter | C2: 60
B3: SazbaAfterFix | C3: =IF(SlevaCardif="Ano",Sazba +0.3%,Sazba) -> 0.003
B4: PocetDnivPrvnimMesici | C4: 2
B5: AnuitaAfterFix | C5: =IF(SlevaCardif="Ano",ROUNDUP(PMT(SazbaAfterFix/12,PocetSpl-60,-Kalendar!L81),0),Anuita) -> -7223
B8: Vypočteno Dle
B9: help | C9: =AND(Dluh=DluhLast,Sazba=SazbaLast,Kalendar!CerpaniD=CerpaniDLast,PrvniSplatka=PrvniSplatkaLast,Anuita=AnuitaLast,PocetSpl=PocetSplLast) -> FALSE
B10: Výše úvěru | C10: 824000
B11: Sazba | C11: 0.0239
B12: Poslední čerpání | C12: 2015-05-23
B13: První splátka | C13: 2015-05-25
B14: Anuita | C14: 7727
B15: Počet splátek | C15: 120

Sheet Zadost
A3: ŽÁDOST | BA3: =manVerze -> v.14a
L7: Počet žatadelů | Q7: 1
C11: Vyplní Banka
C12: Pracovník banky: | Y12: Číslo klienta (NDG): | AR12: Verze: | AS12: 1
C13: Pobočka (číslo): | Y13: Číslo žádosti:
B15: ŽÁDOST O POSKYTNUTÍ HYPOTEČNÍHO ÚVĚRU
C16: Vyplní klient
C17: ÚDAJE O ŽADATELI/SPOLUŽADATELI* (DÁLE JEN "ŽADATEL")
C18: Základní údaje
C19: Jméno | T19: Příjmení | AK19: Rodné číslo (bez lomítka)
C20: =IF(SplatkaJmenoKlienta=0,"",SplatkaJmenoKlienta) ->  | T20: =IF(SplPrijmeniKlienta = "","",SplPrijmeniKlienta) -> 
C21: Datum narození | T21: Země narození (není-li ČR) | AK21: Pohlaví | AQ21: =zadRC/11=INT(zadRC/11) -> TRUE
C22: =IF(AQ21=TRUE,(IF(zadRC="","",DATE(IF(AND(LEN(zadRC)=10,MID(zadRC,1,2)*1<54),MID(zadRC,1,2)+2000,MID(zadRC,1,2)+1900),MID(zadRC,3,2)-IF(MID(zadRC,3,2)*1>12,50),MID(zadRC,5,2)))),"Rodné číslo je zadáno chybně!") ->  | AK22: =IF(AQ21=TRUE,(IF(zadRC="","",IF(MID(zadRC,3,2)*1<12,"X",""))),"") ->  | AL22: Muž | AN22: =IF(AQ21=TRUE,(IF(zadRC="","",IF(MID(zadRC,3,2)*1>12,"X",""))),"") ->  | AO22: Žena
C23: Adresa trvalého pobytu (ulice, č.p., město, PSČ, země)
C25: Doklad totožnosti
C26: Typ dokladu
D27: Občanský průkaz | K27: Cestovní pas | Q27: Identifikační karta občana EU
C28: Číslo dokladu | T28: Země vydání dokladu (není-li ČR) | AK28: Datum vydání dokladu
C30: Kontaktní údaje
C31: Telefon | T31: E-mail
C34: ÚDAJE O POŽADOVANÉM ÚVĚRU
C35: Účel úvěru refinancování | T35: Celková výše úvěru v Kč** | AK35: Počet splátek
C36: =IF(HlavUcelUveru="Refinancování úvěru - zjednodušené","X",IF(HlavUcelUveru="Refinancování úvěru - standard","X","")) ->  | D36: Ano | G36: =IF(zadUcelUveru1="X","","X") -> X | H36: Ne | T36: =IF(SlevaCardif="Ano",(IF(VyseUveru=0,"",VyseUveru)),(IF(VyseUveruZaklad+vyseUveru2=0,"",VyseUveruZaklad+vyseUveru2))) -> 2060000 | AK36: =DobaSplatnosti*12 -> 300
C37: Úvěr v kombinaci s neúčelovou částí*** | T37: Výše účelové části v Kč | AK37: Výše neúčelové části v Kč
C38: =IF(TypHypoteky="Hypoteční úvěr účelový rezidenční Twin","X","") ->  | D38: Ano | G38: =IF(TypHypoteky<>"Hypoteční úvěr účelový rezidenční Twin","X","") -> X | H38: Ne | T38: =IF(zadUverVKomb2="x","",VyseUveruZaklad) ->  | AK38: =IF(zadUverVKomb2="x","",vyseUveru2) -> 
C40: PROHLÁŠENÍ ŽADATELE
C41: Žadatel prohlašuje, že veškeré údaje uvedené v této žádosti o poskytnutí úvěru, resp. v dokumentech přiložených, jsou úplné a odpovídají skutečnosti a že nezamlčel žádnou relevantní skutečnost, která by mohla ovlivnit rozhodnutí UniCredit Bank Czech Republic and Slovakia, a.s. (dále jen „Banka“) při poskytnutí úvěru.
C42: Dále Žadatel prohlašuje, že je plně svéprávný a že ke dni podání této žádosti o poskytnutí úvěru není v prodlení vůči státu nebo jinému subjektu s úhradou daní či poplatků, úhradou pojistného na sociální zabezpečení, zdravotní pojištění, úhradou cla nebo jiných povinných plateb.
C43: Žadatel souhlasí s tím, aby Banka získala informace o jeho bonitě (zahrnující zejména informaci o povaze a rozsahu případného porušení dřívějších závazků), platební morálce a důvěryhodnosti, které jsou nutné k posouzení žádosti o poskytnutí úvěru, a to z registrů sdružení SOLUS (www.solus.cz), jehož je Banka členem.
C44: Žadatel potvrzuje, že se seznámil s "Poučením o zpracování osobních údajů podle § 11 zákona č. 101/2000 Sb., o ochraně osobních údajů", které je k dispozici mj. na webových stránkách a pobočkách Banky, zejména výslovně bere na vědomí, že Banka může jeho osobní údaje zpracovávat i prostřednictvím zpracovatelů se sídlem v členských státech Evropské unie, zejm. UniCredit Business Integrated Solutions S.C.p.A., Itálie. Veškerá místa, na kterých dochází ke zpracování osobních údajů Bankou nebo zpracovateli Banky, jsou nahlášena jako místa zpracování osobních údajů u Úřadu pro ochranu osobních údajů.
C45: Místo: | O45: Datum:
AB47: Podpis Žadatele
C48: * Nehodící se škrtněte
C49: ** Včetně všech nákladů, které budou z úvěru hrazeny (životní pojištění, poplatky atd.)
C50: *** Hypoteční úvěr Twin (rezidenční hypoteční úvěr kombinovaný s neúčelovou částí)
C51: Vyplní Banka / Pověřený zástupce Banky / Třetí strana - rozdělit
C52: Totožnost ověřil (jméno, příjmení): | AB52: Dne: | AO52: Podpis:
C54: Název (jméno) 3P: | AB54: Jméno a příjmení makléře:
C56: Přidělené ID 3P: | AB56: IČ (popř. RČ) makléře | AO56: Evid. č. makléře
C58: Telefon makléře: | AB58: E-mail makléře:
B62: SOUHLAS se zpracováním osobních údajů a použitím rodného čísla
B63: V souvislosti s uzavřením/žádostí o uzavření smlouvy mezi mnou a UniCredit Bank Czech Republic and Slovakia, a.s. (dále jen „Smlouva“ a „Banka“) souhlasím s tím, aby Banka za níže uvedeným účelem shromažďovala, zpracovávala a uchovávala mé osobní údaje, tj. jméno, příjmení, datum narození, rodné číslo, adresu, údaje o identifikačním dokladu a IČ (dále jen „osobní údaje“), a to způsobem, a za podmínek uvedených v Informačním Memorandu Bankovního registru klientských informací a Nebankovního registru klientských informací (dále jen „Informační Memorandum“) a v Poučení o registrech Sdružení SOLUS (též jen „Poučení“).
B64: Dále souhlasím, aby Banka mé osobní údaje předávala Sdružení SOLUS k dalšímu zpracování v „Pozitivním registru sdružení SOLUS“ (též jen „Pozitivní registr“) a v Registru FO Sdružení SOLUS (též jen „Registr FO“) k dalšímu shromažďování, zpracovávání a uchovávání. Souhlasím, aby Sdružení SOLUS vytvořilo informační soubor mých osobních údajů od všech členských bank, případně též společně s dalšími mými veřejně dostupnými osobními údaji (např. mé osobní údaje obsažené v Insolvenčním rejstříku), a v rámci tohoto informačního souboru mých osobních údajů provádělo statistická vyhodnocení mé bonity a důvěryhodnosti. Souhlasím, aby Sdružení SOLUS mé osobní údaje (ve formě informačního souboru včetně údajů o statistických vyhodnoceních mé bonity a důvěryhodnosti) zpřístupnilo formou on-line dotazů všem oprávněným uživatelům (členům sdružení SOLUS) Pozitivního registru a Registru FO, tedy i Bance, a to vždy v rozsahu a za podmínek uvedeném pro každý z těchto registrů v Poučení.
B65: Souhlasím, aby Banka i opakovaně získávala informace o mé bonitě, platební morálce a důvěryhodnosti z Pozitivního registru a Registru FO. Souhlasím, aby všichni oprávnění uživatelé Pozitivního registru anebo Registru FO, kterým byly zpřístupněny mé osobní údaje, tyto používali, a to případně spolu s dalšími mými osobními údaji, jež oprávněně zpracovávají.
B66: Účelem zpracování osobních údajů v Pozitivním registru a Registru FO je splnění povinnosti odpovědného poskytování úvěrů a jiných obchodů Banky, zajištění vzájemného informování oprávněných uživatelů Pozitivního registru a Registru FO o mé bonitě, důvěryhodnosti a platební morálce, posuzování mé bonity, důvěryhodnosti a platební morálky ze strany oprávněných uživatelů Pozitivního registru a Registru FO, a to i opakovaně, jakož i ochrana práv Banky a ostatních členů sdružení SOLUS. Kromě předešlého je účelem zpracování mých osobních údajů na základě tohoto souhlasu rovněž zajištění vzájemného informování oprávněných uživatelů Bankovního registru klientských informací (dále jen „BRKI“) a Nebankovního registru klientských informací (dále jen „NRKI“) o mé bonitě, důvěryhodnosti a platební morálce a umožnění (a to i opakovaného) posuzování mé bonity, důvěryhodnosti a platební morálky ze strany oprávněných uživatelů BRKI a NRKI. Způsob, rozsah a podmínky vzájemného informování oprávněných uživatelů BRKI a NRKI jsou uvedeny v Informačním Memorandu.
B67: Souhlas uděluji na dobu 4 let ode dne jeho udělení. V případě, že mezi mnou [nebo žadatelem, pokud jde o ručitele, spolužadatele nebo zákonného zástupce] a Bankou byla nebo bude uzavřena Smlouva, uděluji tento souhlas na dobu jejího trvání a na dobu dalších 4 let od splnění veškerých mých finančních závazků z uzavřené Smlouvy, pokud tyto závazky zaniknou splněním nebo způsobem nahrazujícím splnění, resp. od zániku Smlouvy, pokud finanční závazky ze Smlouvy zaniknou jinak.
B68: Před podpisem tohoto souhlasu jsem se seznámil(a) s Informačním Memorandem, které obsahuje i poučení o mých právech v souvislosti se zpracováním mých osobních údajů v rámci BRKI i pro účely vzájemného informování se uživatelů BRKI a/nebo NRKI o bonitě, důvěryhodnosti či platební morálce jejich klientů. Před podpisem tohoto souhlasu jsem rovněž byl(a) informován(a), že aktuální znění Informačního Memoranda mohu kdykoli získat na informační lince, pobočkách a na webových stránkách banky www.unicreditbank.cz nebo na informační lince a webových stránkách provozovatele registru www.cbcb.cz.
B70: Dále prohlašuji, že jsem se seznámil(a) s dokumentem "POUČENÍ o registrech Sdružení SOLUS", jehož obsahem je: (i) vysvětlení pojmu informační soubor, a to zvlášť pro Pozitivní registr a Registr FO, (ii) definice dalších mých osobních údajů, které mohou vzniknout při zpracování, (iii) popis fungování Pozitivního registru a Registru FO, (iv) identifikace subjektů či osob, které mohou mít přístup k mým osobním údajům při jejich zpracování a (v) poučení o mých právech (§ 11 a § 12 zákona o ochraně osobních údajů č. 101/2000 Sb.) a nárocích (§ 21 zákona č. 101/2000 Sb.) v souvislosti se zpracováním mých osobních údajů v rámci pozitivního registru SOLUS. Byl(a) jsem informován(a), že aktuální znění Poučení mohu kdykoli získat na informační lince, pobočkách a webových stránkách banky www.unicreditbank.cz nebo na informační lince a webových stránkách sdružení SOLUS www.solus.cz.
B71: Potvrzuji, že jsem byl(a) Bankou poučen(a) o svých nárocích vůči porušiteli dle § 21 zákona č. 101/2000 Sb.
B72: Po uzavření Smlouvy s Bankou se tento souhlas stává její nedílnou součástí.
B74: V | T74: dne
B77: Podpis žadatele
B80: Podpis spolužadatele
B82: Jméno a podpis zástupce banky, který podpis/y ověřil:
C86: Vyplní Banka
C87: Pracovník banky: | G87: =IF(zPracovnikBanky="","",zPracovnikBanky) ->  | Y87: Číslo klienta (NDG): | AD87: =IF(zNdg="","",zNdg) -> 
C88: Pobočka (číslo): | G88: =IF(zPobocka="","",zPobocka) ->  | Y88: Číslo žádosti: | AD88: =IF(zCisloZadosti="","",zCisloZadosti) -> 
B90: ŽÁDOST O POSKYTNUTÍ HYPOTEČNÍHO ÚVĚRU
C91: Vyplní klient
C92: ÚDAJE O ŽADATELI/SPOLUŽADATELI* (DÁLE JEN "ŽADATEL")
C93: Základní údaje
C94: Jméno | T94: Příjmení | AK94: Rodné číslo (bez lomítka)
C96: Datum narození | T96: Země narození (není-li ČR) | AK96: Pohlaví | AP96: =zadRC/11=INT(zadRC/11) -> TRUE
C97: =IF(AP96=TRUE,(IF(zadRC2="","",DATE(IF(AND(LEN(zadRC2)=10,MID(zadRC2,1,2)*1<54),MID(zadRC2,1,2)+2000,MID(zadRC2,1,2)+1900),MID(zadRC2,3,2)-IF(MID(zadRC2,3,2)*1>12,50),MID(zadRC2,5,2)))),"Rodné číslo je zadáno chybně!") ->  | AK97: =IF(AP96=TRUE,(IF(zadRC2="","",IF(MID(zadRC2,3,2)*1<12,"X",""))),"") ->  | AL97: Muž | AN97: =IF(AP96=TRUE,(IF(zadRC2="","",IF(MID(zadRC2,3,2)*1>12,"X",""))),"") ->  | AO97: Žena
C98: Adresa trvalého pobytu (ulice, č.p., město, PSČ, země)
C100: Doklad totožnosti
C101: Typ dokladu
D102: Občanský průkaz | K102: Cestovní pas | Q102: Identifikační karta občana EU
C103: Číslo dokladu | T103: Země vydání dokladu (není-li ČR) | AK103: Datum vydání dokladu
C105: Kontaktní údaje
C106: Telefon | T106: E-mail
C109: ÚDAJE O POŽADOVANÉM ÚVĚRU
C110: Účel úvěru refinancování | T110: Celková výše úvěru v Kč** | AK110: Počet splátek
C111: =IF(HlavUcelUveru="Refinancování úvěru - zjednodušené","X",IF(HlavUcelUveru="Refinancování úvěru - standard","X","")) ->  | D111: Ano | G111: =IF(zadUcelUveru21="X","","X") -> X | H111: Ne | T111: =IF(SlevaCardif="Ano",(IF(VyseUveru=0,"",VyseUveru)),(IF(VyseUveruZaklad+vyseUveru2=0,"",VyseUveruZaklad+vyseUveru2))) -> 2060000 | AK111: =DobaSplatnosti*12 -> 300
C112: Úvěr v kombinaci s neúčelovou částí*** | T112: Výše účelové části v Kč | AK112: Výše neúčelové části v Kč
C113: =IF(TypHypoteky="Hypoteční úvěr účelový rezidenční Twin","X","") ->  | D113: Ano | G113: =IF(TypHypoteky<>"Hypoteční úvěr účelový rezidenční Twin","X","") -> X | H113: Ne | T113: =IF(zadUverVKomb22="x","",VyseUveruZaklad) ->  | AK113: =IF(zadUverVKomb22="x","",vyseUveru2) -> 
C115: PROHLÁŠENÍ ŽADATELE
C116: Žadatel prohlašuje, že veškeré údaje uvedené v této žádosti o poskytnutí úvěru, resp. v dokumentech přiložených, jsou úplné a odpovídají skutečnosti a že nezamlčel žádnou relevantní skutečnost, která by mohla ovlivnit rozhodnutí UniCredit Bank Czech Republic and Slovakia, a.s. (dále jen „Banka“) při poskytnutí úvěru.
C117: Dále Žadatel prohlašuje, že je plně svéprávný a že ke dni podání této žádosti o poskytnutí úvěru není v prodlení vůči státu nebo jinému subjektu s úhradou daní či poplatků, úhradou pojistného na sociální zabezpečení, zdravotní pojištění, úhradou cla nebo jiných povinných plateb.
C118: Žadatel souhlasí s tím, aby Banka získala informace o jeho bonitě (zahrnující zejména informaci o povaze a rozsahu případného porušení dřívějších závazků), platební morálce a důvěryhodnosti, které jsou nutné k posouzení žádosti o poskytnutí úvěru, a to z registrů sdružení SOLUS (www.solus.cz), jehož je Banka členem.
C119: Žadatel potvrzuje, že se seznámil s "Poučením o zpracování osobních údajů podle § 11 zákona č. 101/2000 Sb., o ochraně osobních údajů", které je k dispozici mj. na webových stránkách a pobočkách Banky, zejména výslovně bere na vědomí, že Banka může jeho osobní údaje zpracovávat i prostřednictvím zpracovatelů se sídlem v členských státech Evropské unie, zejm. UniCredit Business Integrated Solutions S.C.p.A., Itálie. Veškerá místa, na kterých dochází ke zpracování osobních údajů Bankou nebo zpracovateli Banky, jsou nahlášena jako místa zpracování osobních údajů u Úřadu pro ochranu osobních údajů.
C123: Místo, datum | AB123: Podpis Žadatele
C124: * Nehodící se škrtněte
C125: ** Včetně všech nákladů, které budou z úvěru hrazeny (životní pojištění, poplatky atd.)
C126: *** Hypoteční úvěr Twin (rezidenční hypoteční úvěr kombinovaný s neúčelovou částí)
C127: Vyplní Banka / Pověřený zástupce Banky / Třetí strana - rozdělit
C128: Totožnost ověřil (jméno, příjmení): | AB128: Dne: | AO128: Podpis:
C129: =IF(zTotoznostOveril="","",zTotoznostOveril) ->  | AB129: =IF(zDne="","",zDne) -> 
C130: Název (jméno) 3P: | AB130: Jméno a příjmení makléře:
C131: =IF(zNazev3p="","",zNazev3p) ->  | AB131: =IF(zJmenoPrijmeni="","",zJmenoPrijmeni) -> 
C132: Přidělené ID 3P: | AB132: IČ (popř. RČ) makléře | AO132: Evid. č. makléře
C133: =IF(zPrideleneId="","",zPrideleneId) ->  | AB133: =IF(zIcMaklere="","",zIcMaklere) ->  | AO133: =IF(zEvidMaklere="","",zEvidMaklere) -> 
C134: Telefon makléře: | AB134: E-mail makléře:
C135: =IF(zTelefonMaklere="","",zTelefonMaklere) ->  | AB135: =IF(zEmailMaklere="","",zEmailMaklere) -> 
B138: SOUHLAS se zpracováním osobních údajů a použitím rodného čísla
B139: V souvislosti s uzavřením/žádostí o uzavření smlouvy mezi mnou a UniCredit Bank Czech Republic and Slovakia, a.s. (dále jen „Smlouva“ a „Banka“) souhlasím s tím, aby Banka za níže uvedeným účelem shromažďovala, zpracovávala a uchovávala mé osobní údaje, tj. jméno, příjmení, datum narození, rodné číslo, adresu, údaje o identifikačním dokladu a IČ (dále jen „osobní údaje“), a to způsobem, a za podmínek uvedených v Informačním Memorandu Bankovního registru klientských informací a Nebankovního registru klientských informací (dále jen „Informační Memorandum“) a v Poučení o registrech Sdružení SOLUS (též jen „Poučení“).
B140: Dále souhlasím, aby Banka mé osobní údaje předávala Sdružení SOLUS k dalšímu zpracování v „Pozitivním registru sdružení SOLUS“ (též jen „Pozitivní registr“) a v Registru FO Sdružení SOLUS (též jen „Registr FO“) k dalšímu shromažďování, zpracovávání a uchovávání. Souhlasím, aby Sdružení SOLUS vytvořilo informační soubor mých osobních údajů od všech členských bank, případně též společně s dalšími mými veřejně dostupnými osobními údaji (např. mé osobní údaje obsažené v Insolvenčním rejstříku), a v rámci tohoto informačního souboru mých osobních údajů provádělo statistická vyhodnocení mé bonity a důvěryhodnosti. Souhlasím, aby Sdružení SOLUS mé osobní údaje (ve formě informačního souboru včetně údajů o statistických vyhodnoceních mé bonity a důvěryhodnosti) zpřístupnilo formou on-line dotazů všem oprávněným uživatelům (členům sdružení SOLUS) Pozitivního registru a Registru FO, tedy i Bance, a to vždy v rozsahu a za podmínek uvedeném pro každý z těchto registrů v Poučení.
B141: Souhlasím, aby Banka i opakovaně získávala informace o mé bonitě, platební morálce a důvěryhodnosti z Pozitivního registru a Registru FO. Souhlasím, aby všichni oprávnění uživatelé Pozitivního registru anebo Registru FO, kterým byly zpřístupněny mé osobní údaje, tyto používali, a to případně spolu s dalšími mými osobními údaji, jež oprávněně zpracovávají.
B142: Účelem zpracování osobních údajů v Pozitivním registru a Registru FO je splnění povinnosti odpovědného poskytování úvěrů a jiných obchodů Banky, zajištění vzájemného informování oprávněných uživatelů Pozitivního registru a Registru FO o mé bonitě, důvěryhodnosti a platební morálce, posuzování mé bonity, důvěryhodnosti a platební morálky ze strany oprávněných uživatelů Pozitivního registru a Registru FO, a to i opakovaně, jakož i ochrana práv Banky a ostatních členů sdružení SOLUS. Kromě předešlého je účelem zpracování mých osobních údajů na základě tohoto souhlasu rovněž zajištění vzájemného informování oprávněných uživatelů Bankovního registru klientských informací (dále jen „BRKI“) a Nebankovního registru klientských informací (dále jen „NRKI“) o mé bonitě, důvěryhodnosti a platební morálce a umožnění (a to i opakovaného) posuzování mé bonity, důvěryhodnosti a platební morálky ze strany oprávněných uživatelů BRKI a NRKI. Způsob, rozsah a podmínky vzájemného informování oprávněných uživatelů BRKI a NRKI jsou uvedeny v Informačním Memorandu.
B143: Souhlas uděluji na dobu 4 let ode dne jeho udělení. V případě, že mezi mnou [nebo žadatelem, pokud jde o ručitele, spolužadatele nebo zákonného zástupce] a Bankou byla nebo bude uzavřena Smlouva, uděluji tento souhlas na dobu jejího trvání a na dobu dalších 4 let od splnění veškerých mých finančních závazků z uzavřené Smlouvy, pokud tyto závazky zaniknou splněním nebo způsobem nahrazujícím splnění, resp. od zániku Smlouvy, pokud finanční závazky ze Smlouvy zaniknou jinak.
B144: Před podpisem tohoto souhlasu jsem se seznámil(a) s Informačním Memorandem, které obsahuje i poučení o mých právech v souvislosti se zpracováním mých osobních údajů v rámci BRKI i pro účely vzájemného informování se uživatelů BRKI a/nebo NRKI o bonitě, důvěryhodnosti či platební morálce jejich klientů. Před podpisem tohoto souhlasu jsem rovněž byl(a) informován(a), že aktuální znění Informačního Memoranda mohu kdykoli získat na informační lince, pobočkách a na webových stránkách banky www.unicreditbank.cz nebo na informační lince a webových stránkách provozovatele registru www.cbcb.cz.
B146: Dále prohlašuji, že jsem se seznámil(a) s dokumentem "POUČENÍ o registrech Sdružení SOLUS", jehož obsahem je: (i) vysvětlení pojmu informační soubor, a to zvlášť pro Pozitivní registr a Registr FO, (ii) definice dalších mých osobních údajů, které mohou vzniknout při zpracování, (iii) popis fungování Pozitivního registru a Registru FO, (iv) identifikace subjektů či osob, které mohou mít přístup k mým osobním údajům při jejich zpracování a (v) poučení o mých právech (§ 11 a § 12 zákona o ochraně osobních údajů č. 101/2000 Sb.) a nárocích (§ 21 zákona č. 101/2000 Sb.) v souvislosti se zpracováním mých osobních údajů v rámci pozitivního registru SOLUS. Byl(a) jsem informován(a), že aktuální znění Poučení mohu kdykoli získat na informační lince, pobočkách a webových stránkách banky www.unicreditbank.cz nebo na informační lince a webových stránkách sdružení SOLUS www.solus.cz.
B147: Potvrzuji, že jsem byl(a) Bankou poučen(a) o svých nárocích vůči porušiteli dle § 21 zákona č. 101/2000 Sb.
B148: Po uzavření Smlouvy s Bankou se tento souhlas stává její nedílnou součástí.
B150: V | T150: dne
B154: Podpis žadatele
B158: Podpis spolužadatele
B160: Jméno a podpis zástupce banky, který podpis/y ověřil:
C164: Vyplní Banka
C165: Pracovník banky: | G165: =IF(zPracovnikBanky="","",zPracovnikBanky) ->  | Y165: Číslo klienta (NDG): | AD165: =IF(zNdg="","",zNdg) -> 
C166: Pobočka (číslo): | G166: =IF(zPobocka="","",zPobocka) ->  | Y166: Číslo žádosti: | AD166: =IF(zCisloZadosti="","",zCisloZadosti) -> 
B168: ŽÁDOST O POSKYTNUTÍ HYPOTEČNÍHO ÚVĚRU
C169: Vyplní klient
C170: ÚDAJE O ŽADATELI/SPOLUŽADATELI* (DÁLE JEN "ŽADATEL")
C171: Základní údaje
C172: Jméno | T172: Příjmení | AK172: Rodné číslo (bez lomítka)
C174: Datum narození | T174: Země narození (není-li ČR) | AK174: Pohlaví | AP174: =zadRC3/11=INT(zadRC3/11) -> TRUE
C175: =IF(AP174=TRUE,(IF(zadRC3="","",DATE(IF(AND(LEN(zadRC3)=10,MID(zadRC3,1,2)*1<54),MID(zadRC3,1,2)+2000,MID(zadRC3,1,2)+1900),MID(zadRC3,3,2)-IF(MID(zadRC3,3,2)*1>12,50),MID(zadRC3,5,2)))),"Rodné číslo je zadáno chybně!") ->  | AK175: =IF(AP174=TRUE,(IF(zadRC3="","",IF(MID(zadRC3,3,2)*1<12,"X",""))),"") ->  | AL175: Muž | AN175: =IF(AP174=TRUE,(IF(zadRC3="","",IF(MID(zadRC3,3,2)*1>12,"X",""))),"") ->  | AO175: Žena
C176: Adresa trvalého pobytu (ulice, č.p., město, PSČ, země)
C178: Doklad totožnosti
C179: Typ dokladu
D180: Občanský průkaz | K180: Cestovní pas | Q180: Identifikační karta občana EU
C181: Číslo dokladu | T181: Země vydání dokladu (není-li ČR) | AK181: Datum vydání dokladu
C183: Kontaktní údaje
C184: Telefon | T184: E-mail
C187: ÚDAJE O POŽADOVANÉM ÚVĚRU
C188: Účel úvěru refinancování | T188: Celková výše úvěru v Kč** | AK188: Počet splátek
C189: =IF(HlavUcelUveru="Refinancování úvěru - zjednodušené","X",IF(HlavUcelUveru="Refinancování úvěru - standard","X","")) ->  | D189: Ano | G189: =IF(bunka="X","","X") -> X | H189: Ne | T189: =IF(SlevaCardif="Ano",(IF(VyseUveru=0,"",VyseUveru)),(IF(VyseUveruZaklad+vyseUveru2=0,"",VyseUveruZaklad+vyseUveru2))) -> 2060000 | AK189: =DobaSplatnosti*12 -> 300
C190: Úvěr v kombinaci s neúčelovou částí*** | T190: Výše účelové části v Kč | AK190: Výše neúčelové části v Kč
C191: =IF(TypHypoteky="Hypoteční úvěr účelový rezidenční Twin","X","") ->  | D191: Ano | G191: =IF(TypHypoteky<>"Hypoteční úvěr účelový rezidenční Twin","X","") -> X | H191: Ne | T191: =IF(zadUverVKomb32="x","",VyseUveruZaklad) ->  | AK191: =IF(zadUverVKomb32="x","",vyseUveru2) -> 
C193: PROHLÁŠENÍ ŽADATELE
C194: Žadatel prohlašuje, že veškeré údaje uvedené v této žádosti o poskytnutí úvěru, resp. v dokumentech přiložených, jsou úplné a odpovídají skutečnosti a že nezamlčel žádnou relevantní skutečnost, která by mohla ovlivnit rozhodnutí UniCredit Bank Czech Republic and Slovakia, a.s. (dále jen „Banka“) při poskytnutí úvěru.
C195: Dále Žadatel prohlašuje, že je plně svéprávný a že ke dni podání této žádosti o poskytnutí úvěru není v prodlení vůči státu nebo jinému subjektu s úhradou daní či poplatků, úhradou pojistného na sociální zabezpečení, zdravotní pojištění, úhradou cla nebo jiných povinných plateb.
C196: Žadatel souhlasí s tím, aby Banka získala informace o jeho bonitě (zahrnující zejména informaci o povaze a rozsahu případného porušení dřívějších závazků), platební morálce a důvěryhodnosti, které jsou nutné k posouzení žádosti o poskytnutí úvěru, a to z registrů sdružení SOLUS (www.solus.cz), jehož je Banka členem.
C197: Žadatel potvrzuje, že se seznámil s "Poučením o zpracování osobních údajů podle § 11 zákona č. 101/2000 Sb., o ochraně osobních údajů", které je k dispozici mj. na webových stránkách a pobočkách Banky, zejména výslovně bere na vědomí, že Banka může jeho osobní údaje zpracovávat i prostřednictvím zpracovatelů se sídlem v členských státech Evropské unie, zejm. UniCredit Business Integrated Solutions S.C.p.A., Itálie. Veškerá místa, na kterých dochází ke zpracování osobních údajů Bankou nebo zpracovateli Banky, jsou nahlášena jako místa zpracování osobních údajů u Úřadu pro ochranu osobních údajů.
C201: Místo, datum | AB201: Podpis Žadatele
C202: * Nehodící se škrtněte
C203: ** Včetně všech nákladů, které budou z úvěru hrazeny (životní pojištění, poplatky atd.)
C204: *** Hypoteční úvěr Twin (rezidenční hypoteční úvěr kombinovaný s neúčelovou částí)
C205: Vyplní Banka / Pověřený zástupce Banky / Třetí strana - rozdělit
C206: Totožnost ověřil (jméno, příjmení): | AB206: Dne: | AO206: Podpis:
C207: =IF(zTotoznostOveril="","",zTotoznostOveril) ->  | AB207: =IF(zDne="","",zDne) -> 
C208: Název (jméno) 3P: | AB208: Jméno a příjmení makléře:
C209: =IF(zNazev3p="","",zNazev3p) ->  | AB209: =IF(zJmenoPrijmeni="","",zJmenoPrijmeni) -> 
C210: Přidělené ID 3P: | AB210: IČ (popř. RČ) makléře | AO210: Evid. č. makléře
C211: =IF(zPrideleneId="","",zPrideleneId) ->  | AB211: =IF(zIcMaklere="","",zIcMaklere) ->  | AO211: =IF(zEvidMaklere="","",zevi) -> 
C212: Telefon makléře: | AB212: E-mail makléře:
C213: =IF(zTelefonMaklere="","",zTelefonMaklere) ->  | AB213: =IF(zEmailMaklere="","",zEmailMaklere) -> 
B216: SOUHLAS se zpracováním osobních údajů a použitím rodného čísla
B217: V souvislosti s uzavřením/žádostí o uzavření smlouvy mezi mnou a UniCredit Bank Czech Republic and Slovakia, a.s. (dále jen „Smlouva“ a „Banka“) souhlasím s tím, aby Banka za níže uvedeným účelem shromažďovala, zpracovávala a uchovávala mé osobní údaje, tj. jméno, příjmení, datum narození, rodné číslo, adresu, údaje o identifikačním dokladu a IČ (dále jen „osobní údaje“), a to způsobem, a za podmínek uvedených v Informačním Memorandu Bankovního registru klientských informací a Nebankovního registru klientských informací (dále jen „Informační Memorandum“) a v Poučení o registrech Sdružení SOLUS (též jen „Poučení“).
B218: Dále souhlasím, aby Banka mé osobní údaje předávala Sdružení SOLUS k dalšímu zpracování v „Pozitivním registru sdružení SOLUS“ (též jen „Pozitivní registr“) a v Registru FO Sdružení SOLUS (též jen „Registr FO“) k dalšímu shromažďování, zpracovávání a uchovávání. Souhlasím, aby Sdružení SOLUS vytvořilo informační soubor mých osobních údajů od všech členských bank, případně též společně s dalšími mými veřejně dostupnými osobními údaji (např. mé osobní údaje obsažené v Insolvenčním rejstříku), a v rámci tohoto informačního souboru mých osobních údajů provádělo statistická vyhodnocení mé bonity a důvěryhodnosti. Souhlasím, aby Sdružení SOLUS mé osobní údaje (ve formě informačního souboru včetně údajů o statistických vyhodnoceních mé bonity a důvěryhodnosti) zpřístupnilo formou on-line dotazů všem oprávněným uživatelům (členům sdružení SOLUS) Pozitivního registru a Registru FO, tedy i Bance, a to vždy v rozsahu a za podmínek uvedeném pro každý z těchto registrů v Poučení.
B219: Souhlasím, aby Banka i opakovaně získávala informace o mé bonitě, platební morálce a důvěryhodnosti z Pozitivního registru a Registru FO. Souhlasím, aby všichni oprávnění uživatelé Pozitivního registru anebo Registru FO, kterým byly zpřístupněny mé osobní údaje, tyto používali, a to případně spolu s dalšími mými osobními údaji, jež oprávněně zpracovávají.
B220: Účelem zpracování osobních údajů v Pozitivním registru a Registru FO je splnění povinnosti odpovědného poskytování úvěrů a jiných obchodů Banky, zajištění vzájemného informování oprávněných uživatelů Pozitivního registru a Registru FO o mé bonitě, důvěryhodnosti a platební morálce, posuzování mé bonity, důvěryhodnosti a platební morálky ze strany oprávněných uživatelů Pozitivního registru a Registru FO, a to i opakovaně, jakož i ochrana práv Banky a ostatních členů sdružení SOLUS. Kromě předešlého je účelem zpracování mých osobních údajů na základě tohoto souhlasu rovněž zajištění vzájemného informování oprávněných uživatelů Bankovního registru klientských informací (dále jen „BRKI“) a Nebankovního registru klientských informací (dále jen „NRKI“) o mé bonitě, důvěryhodnosti a platební morálce a umožnění (a to i opakovaného) posuzování mé bonity, důvěryhodnosti a platební morálky ze strany oprávněných uživatelů BRKI a NRKI. Způsob, rozsah a podmínky vzájemného informování oprávněných uživatelů BRKI a NRKI jsou uvedeny v Informačním Memorandu.
B221: Souhlas uděluji na dobu 4 let ode dne jeho udělení. V případě, že mezi mnou [nebo žadatelem, pokud jde o ručitele, spolužadatele nebo zákonného zástupce] a Bankou byla nebo bude uzavřena Smlouva, uděluji tento souhlas na dobu jejího trvání a na dobu dalších 4 let od splnění veškerých mých finančních závazků z uzavřené Smlouvy, pokud tyto závazky zaniknou splněním nebo způsobem nahrazujícím splnění, resp. od zániku Smlouvy, pokud finanční závazky ze Smlouvy zaniknou jinak.
B222: Před podpisem tohoto souhlasu jsem se seznámil(a) s Informačním Memorandem, které obsahuje i poučení o mých právech v souvislosti se zpracováním mých osobních údajů v rámci BRKI i pro účely vzájemného informování se uživatelů BRKI a/nebo NRKI o bonitě, důvěryhodnosti či platební morálce jejich klientů. Před podpisem tohoto souhlasu jsem rovněž byl(a) informován(a), že aktuální znění Informačního Memoranda mohu kdykoli získat na informační lince, pobočkách a na webových stránkách banky www.unicreditbank.cz nebo na informační lince a webových stránkách provozovatele registru www.cbcb.cz.
B224: Dále prohlašuji, že jsem se seznámil(a) s dokumentem "POUČENÍ o registrech Sdružení SOLUS", jehož obsahem je: (i) vysvětlení pojmu informační soubor, a to zvlášť pro Pozitivní registr a Registr FO, (ii) definice dalších mých osobních údajů, které mohou vzniknout při zpracování, (iii) popis fungování Pozitivního registru a Registru FO, (iv) identifikace subjektů či osob, které mohou mít přístup k mým osobním údajům při jejich zpracování a (v) poučení o mých právech (§ 11 a § 12 zákona o ochraně osobních údajů č. 101/2000 Sb.) a nárocích (§ 21 zákona č. 101/2000 Sb.) v souvislosti se zpracováním mých osobních údajů v rámci pozitivního registru SOLUS. Byl(a) jsem informován(a), že aktuální znění Poučení mohu kdykoli získat na informační lince, pobočkách a webových stránkách banky www.unicreditbank.cz nebo na informační lince a webových stránkách sdružení SOLUS www.solus.cz.
B225: Potvrzuji, že jsem byl(a) Bankou poučen(a) o svých nárocích vůči porušiteli dle § 21 zákona č. 101/2000 Sb.
B226: Po uzavření Smlouvy s Bankou se tento souhlas stává její nedílnou součástí.
B228: V | T228: dne
B232: Podpis žadatele
B236: Podpis spolužadatele
B238: Jméno a podpis zástupce banky, který podpis/y ověřil:
C241: Vyplní Banka
C242: Pracovník banky: | G242: =IF(zPracovnikBanky="","",zPracovnikBanky) ->  | Y242: Číslo klienta (NDG): | AD242: =IF(zNdg="","",zNdg) -> 
C243: Pobočka (číslo): | G243: =IF(zPobocka="","",zPobocka) ->  | Y243: Číslo žádosti: | AD243: =IF(zCisloZadosti="","",zCisloZadosti) -> 
B245: ŽÁDOST O POSKYTNUTÍ HYPOTEČNÍHO ÚVĚRU
C246: Vyplní klient
C247: ÚDAJE O ŽADATELI/SPOLUŽADATELI* (DÁLE JEN "ŽADATEL")
C248: Základní údaje
C249: Jméno | T249: Příjmení | AK249: Rodné číslo (bez lomítka)
C251: Datum narození | T251: Země narození (není-li ČR) | AK251: Pohlaví | AP251: =zadRC4/11=INT(zadRC4/11) -> TRUE
C252: =IF(AP251=TRUE,(IF(zadRC4="","",DATE(IF(AND(LEN(zadRC4)=10,MID(zadRC4,1,2)*1<54),MID(zadRC4,1,2)+2000,MID(zadRC4,1,2)+1900),MID(zadRC4,3,2)-IF(MID(zadRC4,3,2)*1>12,50),MID(zadRC4,5,2)))),"Rodné číslo je zadáno chybně!") ->  | AK252: =IF(AP251=TRUE,(IF(zadRC4="","",IF(MID(zadRC4,3,2)*1<12,"X",""))),"") ->  | AL252: Muž | AN252: =IF(AP251=TRUE,(IF(zadRC4="","",IF(MID(zadRC4,3,2)*1>12,"X",""))),"") ->  | AO252: Žena
C253: Adresa trvalého pobytu (ulice, č.p., město, PSČ, země)
C255: Doklad totožnosti
C256: Typ dokladu
D257: Občanský průkaz | K257: Cestovní pas | Q257: Identifikační karta občana EU
C258: Číslo dokladu | T258: Země vydání dokladu (není-li ČR) | AK258: Datum vydání dokladu
C260: Kontaktní údaje
C261: Telefon | T261: E-mail
C264: ÚDAJE O POŽADOVANÉM ÚVĚRU
C265: Účel úvěru refinancování | T265: Celková výše úvěru v Kč** | AK265: Počet splátek
C266: =IF(HlavUcelUveru="Refinancování úvěru - zjednodušené","X",IF(HlavUcelUveru="Refinancování úvěru - standard","X","")) ->  | D266: Ano | G266: =IF(zadUcelUveru41="X","","X") -> X | H266: Ne | T266: =IF(SlevaCardif="Ano",(IF(VyseUveru=0,"",VyseUveru)),(IF(VyseUveruZaklad+vyseUveru2=0,"",VyseUveruZaklad+vyseUveru2))) -> 2060000 | AK266: =DobaSplatnosti*12 -> 300
C267: Úvěr v kombinaci s neúčelovou částí*** | T267: Výše účelové části v Kč | AK267: Výše neúčelové části v Kč
C268: =IF(TypHypoteky="Hypoteční úvěr účelový rezidenční Twin","X","") ->  | D268: Ano | G268: =IF(TypHypoteky<>"Hypoteční úvěr účelový rezidenční Twin","X","") -> X | H268: Ne | T268: =IF(zadUverVKomb42="x","",VyseUveruZaklad) ->  | AK268: =IF(zadUverVKomb42="x","",vyseUveru2) -> 
C270: PROHLÁŠENÍ ŽADATELE
C271: Žadatel prohlašuje, že veškeré údaje uvedené v této žádosti o poskytnutí úvěru, resp. v dokumentech přiložených, jsou úplné a odpovídají skutečnosti a že nezamlčel žádnou relevantní skutečnost, která by mohla ovlivnit rozhodnutí UniCredit Bank Czech Republic and Slovakia, a.s. (dále jen „Banka“) při poskytnutí úvěru.
C272: Dále Žadatel prohlašuje, že je plně svéprávný a že ke dni podání této žádosti o poskytnutí úvěru není v prodlení vůči státu nebo jinému subjektu s úhradou daní či poplatků, úhradou pojistného na sociální zabezpečení, zdravotní pojištění, úhradou cla nebo jiných povinných plateb.
C273: Žadatel souhlasí s tím, aby Banka získala informace o jeho bonitě (zahrnující zejména informaci o povaze a rozsahu případného porušení dřívějších závazků), platební morálce a důvěryhodnosti, které jsou nutné k posouzení žádosti o poskytnutí úvěru, a to z registrů sdružení SOLUS (www.solus.cz), jehož je Banka členem.
C274: Žadatel potvrzuje, že se seznámil s "Poučením o zpracování osobních údajů podle § 11 zákona č. 101/2000 Sb., o ochraně osobních údajů", které je k dispozici mj. na webových stránkách a pobočkách Banky, zejména výslovně bere na vědomí, že Banka může jeho osobní údaje zpracovávat i prostřednictvím zpracovatelů se sídlem v členských státech Evropské unie, zejm. UniCredit Business Integrated Solutions S.C.p.A., Itálie. Veškerá místa, na kterých dochází ke zpracování osobních údajů Bankou nebo zpracovateli Banky, jsou nahlášena jako místa zpracování osobních údajů u Úřadu pro ochranu osobních údajů.
C278: Místo, datum | AB278: Podpis Žadatele
C279: * Nehodící se škrtněte
C280: ** Včetně všech nákladů, které budou z úvěru hrazeny (životní pojištění, poplatky atd.)
C281: *** Hypoteční úvěr Twin (rezidenční hypoteční úvěr kombinovaný s neúčelovou částí)
C282: Vyplní Banka / Pověřený zástupce Banky / Třetí strana - rozdělit
C283: Totožnost ověřil (jméno, příjmení): | AB283: Dne: | AO283: Podpis:
C284: =IF(zTotoznostOveril="","",zTotoznostOveril) ->  | AB284: =IF(zDne="","",zDne) -> 
C285: Název (jméno) 3P: | AB285: Jméno a příjmení makléře:
C286: =IF(zNazev3p="","",zNazev3p) ->  | AB286: =IF(zJmenoPrijmeni="","",zJmenoPrijmeni) -> 
C287: Přidělené ID 3P: | AB287: IČ (popř. RČ) makléře | AO287: Evid. č. makléře
C288: =IF(zPrideleneId="","",zPrideleneId) ->  | AB288: =IF(zIcMaklere="","",zIcMaklere) ->  | AO288: =IF(zEvidMaklere="","",zEvidMaklere) -> 
... 16 more rows

Sheet Dokumenty
B3: POŽADOVANÉ DOKUMENTY | L3: =manVerze -> v.14a
P5: občan ČR | Q5: standardní | R5: ano
P6: občan SR | Q6: nestandardní | R6: ne
B9: 0
C12: Příjem klienta je:
C18: Účel úvěru je:
C31: *) starobní, vdovský (akceptováno max. 60%), sirotčí důchod, rodičovský příspěvek, renta (bývalí vojáci z povolání, policisté, horníci apod.), příspěvek na bydlení vojáků z povolání
C39: Požadovaný dokument | H39: Předložit nejpozději | J39: Skupina dokumentů
C40: Žádost o úvěr | H40: Žádost | J40: interní dokumenty
C41: Doplňující informace k žádosti | H41: Žádost | J41: interní dokumenty
C42: Kompletně vyplněná Hypokalkulačka 3P uložená v DMS – formát .xls | H42: Žádost | J42: interní dokumenty
C43: Výstupy z Expert-toolu | H43: Žádost | J43: interní dokumenty
C44: Výstup z kalkulačky max. LTV (pouze v případě interního odhadu/verifikace externího ocenění interním odhadcem a zároveň je-li mezi zástavní hodnotou nemovitosti uvedenou ve verifikaci odhadu a tržní hodnotou nemovitosti rozdíl více než 25%) | H44: Žádost | J44: interní dokumenty
C45: Výpis z KN předmětu zástavy (ne starší 3 měsíce) - v případě bytové jednotky musí být předložen výpis z KN k bytu, event. pozemku (je-li vlastník odlišný od vlastníka byt.jednotky) | H45: Žádost | J45: zajištění
C46: Kopie příslušné části katastrální mapy, která je v souladu s aktuálním výpisem z KN, (pokud je mapa digitalizována, postačí výtisk mapy z neplaceného dálkového náhledu cuzk) | H46: Žádost | J46: zajištění
C47: Odhad nemovitosti vypracovaný smluvním odhadcem dle metodiky banky ne starší 1 rok | H47: Žádost | J47: zajištění
C48: Doklady prokazující rodinný stav zástavce (požadujeme pouze je-li zastavovanou nemovitostí byt nebo dům/ nepožadujeme, pokud je zastavovaný byt nebo dům v SJM nebo v podílovém spoluvlastnictví) | H48: Žádost | J48: zajištění
C49: Výpisy z úvěrových registrů zástavce (pouze bude-li trvale odlišný od spolu/žadatele a nejedná se o osobu blízkou, tj. nikoli prodávající). Osoba blízká výpisy dokládá jde-li o neúčelový HU. | H49: Žádost | J49: zajištění
C50: Listina prokazující oprávnění nakládat s nemovitým předmětem zástavy, (pouze pokud dosud trvající vlastnické právo k nemovitosti vzniklo před 1.1.1993 - úředně ověřený opis) | H50: Žádost | J50: zajištění
C51: Souhlas zástavního věřitele - stavební spořitelny nebo SFRB - se zřízením zástavního práva ve 2. pořadí zápisu (pokud v rámci poskytnutého úvěru nedojde ke splacení závazků na 1. místě) | H51: Žádost | J51: zajištění
C52: Průvodní list úvěrového případu - předávací protokol o předání podkladků k úvěru externím subjektem | H52: Žádost | J52: interní dokumenty
C53: Schválení žádosti o výjimku, která má být uplatněna (e-mailová komunikace) | H53: Žádost | J53: interní dokumenty
C54: Vyplněný zdravotní dotazník | H54: Žádost | J54: klient
C55: Smlouva o sjednaném životním pojištění (pojistná částka musí být rovna minimálně požadované výši úvěru) | H55: Žádost | J55: klient
C56: Občanský průkaz (lhůta platnosti OP v době identifikace ještě min. 1 měsíc) | H56: Žádost | J56: klient
C57: Povolení k trvalému pobytu + Doklad na základě kterého bylo povolení vydáno (Platný cestovní pas/Platná identifikační karta občana EU) + Doklad o přidělení českého rodného čísla / Řidičský průkaz ČR s uvedeným RČ (pokud není RČ uvedeno na některém z podkladů, který klient dokladá - např. ID karta, potvrzení o trv.pobytu). | H57: Žádost | J57: klient
C58: Dohoda/pravomocné rozhodnutí soudu modifikující SJM | H58: Žádost | J58: klient
C59: Po rozvodu manželství (před méně než 3 lety): - Pravomocné rozhodnutí soudu o zániku manželství rozvodem - Doklad o vypořádání SJM - Doklad o určení výše výživného (jsou-li nezaopatřené děti) | H59: Žádost | J59: klient
C60: Po rozvodu manželství (před více než 3 lety a manželé nemají vypořádáno SJM): - Pravomocné rozhodnutí soudu o zániku manželství rozvodem (pouze pokud není z dokladu totožnosti zřejmé, že je klient rozvedený více než 3 roky). - Doklad o určení výše výživného (jsou-li nezaopatřené děti) | H60: Žádost | J60: klient
C61: Plná moc pro zastupování klienta třetí osobou | H61: Žádost | J61: klient
C62: Prokázání osoby blízké | H62: Schválení | J62: klient
C63: Povolení k pobytu + Doklad na základě kterého bylo povolení vydáno (Platný cestovní pas/Platná identifikační karta občana EU) | H63: Žádost | J63: klient
C64: Jen pro občany Slovenské republiky (nesplňující definici standardního klienta): Občanský průkaz SR obsahující rodné číslo + platný cestovní pas nebo povolení k pobytu v ČR | H64: Žádost | J64: klient
C65: Pokud adresa na výpisech z bankovního účtu (viz. list Doklady - příjmy) a adresa uvedená klientem v žádosti o úvěr jsou rozdílné, klient doloží některý z následujících dokladů pro ověření skutečného pobytu klienta v ČR (doklad ne starší 3 měsíců): - rozpis SIPO; - faktura / doklad o platbě spotřeby energií, vodného / stočného, komunálního odpadu; - platby telefonu – pevné linky, kabelové televize apod. | H65: Žádost | J65: klient
C66: Výpis z úvěrového registru SR: SBCB (www.sbcb.sk) - občan SR v případě, kdy nedokládá povolení k trvalému pobytu | H66: Schválení | J66: klient
C67: Výpisy z úvěrových registrů ze země trvalého pobytu | H67: Žádost | J67: klient
C68: Potvrzení o příjmu (formulář UCBCZ&SK) | H68: Žádost | J68: příjmy - ze závislé činnosti
C69: Kompletní výpis z účtu za poslední měsíc u kterékoli banky v ČR | H69: Žádost | J69: příjmy - ze závislé činnosti
C70: Občan SR v případě, kdy nedokládá povolení k pobytu: Výpisy z účtu u kterékoli banky v ČR prokazující pravidelné příjmy a obvyklé výdaje domácnosti za posledních 6 měsíců | H70: Žádost | J70: příjmy - ze závislé činnosti/ z podnikání/ jiný standardní příjem
C71: Má-li spolu/žadatel příjem z vlastní společnosti/společnosti s majetkovou účastí osoby blízké > 33%, dokládá se přiznání k dani z příjmů právnických osob, vč. příloh, za poslední zdaňovací období (Podepsaná kopie DP s originál razítkem příslušného FÚ, elektronicky podané DP*, s podacím lístkem). Zároveň doklad o zaplacení daně NEBO doklad o vrácení přeplatku za poslední zdaňovací období. Pro tuto společnost musí být zpracován rating v SB Kalkulátoru / ACE při obratu do 50 mil. - nad 50mil. obratu je potřeba kontaktovat příslušného SME poradce. | H71: Žádost | J71: příjmy - ze závislé činnosti
C72: Výpisy z účtu u kterékoli banky v ČR nebo banky země pobytu klienta prokazující příjmy za poslední 3 měsíce (u klientů UCB opis obratů na účtu) + pracovní smlouva spolu se mzdovým výměrem | H72: Žádost | J72: příjmy - ze závislé činnosti v zahraničí
C73: Výpisy z účtu u kterékoli banky v ČR prokazující pravidelné příjmy a obvyklé výdaje domácnosti za poslední 6 měsíců + pracovní smlouva spolu se mzdovým výměrem (pouze pokud má klient příjem ze závislé činnosti) | H73: Žádost | J73: příjmy
C74: Je-li klient zastupován daňovým poradcem, pak plná moc daňového poradce podaná na FÚ (např. s podacím razítkem podatelny; je vyžadováno od 1.4. do 30.6., nepředložil-li klient DP za uplynulý rok) | H74: Žádost | J74: příjmy
C75: Čestné prohlášení o nulovém příjmu z podnikání, případně DP s nulovým základem. | H75: Žádost | J75: příjmy - aktivní živnost nevyužívaná
C76: DP za poslední zdaňovací období (Podepsaná kopie DP s originál razítkem příslušného FÚ, elektronicky podané DP*, s podacím lístkem). Zároveň doklad o zaplacení daně NEBO doklad o vrácení přeplatku za poslední zdaňovací období. | H76: Žádost | J76: příjmy - přerušení živnosti
C77: Přiznání k dani z příjmů fyzických osob za poslední kompletní zdaňovací období včetně příloh - klientem (Podepsaná kopie DP s originál razítkem příslušného FÚ, elektronicky podané DP*, s podacím lístkem). Zároveň doklad o zaplacení daně NEBO doklad o vrácení přeplatku za poslední zdaňovací období. | H77: Žádost | J77: příjmy - z podnikání
C78: Přiznání k dani z příjmů fyzických osob za poslední 2 kompletní zdaňovací období včetně příloh - klientem (Podepsaná kopie DP s originál razítkem příslušného FÚ, elektronicky podané DP*, s podacím lístkem). Zároveň doklad o zaplacení daně NEBO doklad o vrácení přeplatku za poslední zdaňovací období. | H78: Žádost | J78: příjmy - z podnikání
C79: Výpisy z účtu u kterékoli banky v ČR prokazující pravidelné příjmy a obvyklé výdaje domácnosti za poslední 6 měsíců | H79: Žádost | J79: příjmy - z podnikání
C80: Přiznání k dani z příjmů fyzických osob za poslední kompletní zdaňovací období včetně příloh prokazující příjmy z pronájmu. Zároveň doklad o zaplacení daně NEBO doklad o vrácení přeplatku za poslední zdaňovací období. Jsou-li příjmy z pronájmu akceptovány do příjmů spolu/žadatele, musí být zajištěna jejich bezhotovostní úhrada na BÚ v UCB | H80: Žádost | J80: příjmy - z pronájmu
C81: Nájemní smlouvu k pronajímané nemovitosti | H81: Žádost | J81: příjmy - z pronájmu
C82: Výpis z KN pronajímané nemovitosti - v případě bytové jednotky musí být předložen výpis z KN k bytu, domu, ve kterém se byt nachází, event. pozemku (je-li vlastník odlišný od vlastníka byt.jednotky) | H82: Žádost | J82: příjmy - z pronájmu
C83: Odpisový plán (pokud jsou odpisy nemovitosti uvedeny v nákladech v daňovém přiznání) | H83: Žádost | J83: příjmy - z pronájmu
C84: Návrh nájemní smlouvy, je-li uplatňován příjem z budoucího nájmu | H84: Žádost | J84: příjmy - z pronájmu
C85: Stanovisko odd. Oceňování nemovitostí k reálnosti budoucích příjmů z pronájmu (vyžádá si bankéř), je-li uplatňován příjem z budoucího nájmu | H85: Žádost | J85: interní dokumenty
C86: Potvrzení správy sociálního zabezpečení, resp. subjektu zajišťujícího výplatu konkrétního standardního příjmu (rozhodnutí Ministerstva obrany, rozhodnutí Ministerstva vnitra, položka na Potvrzení o příjmu apod.) | H86: Žádost | J86: příjmy - jiný standardní příjem
C87: Výživné: Soudní rozhodnutí a doklady o příjmu výživného za poslední 3 měsíce tzn. výpis z BÚ klienta/složenka, akceptováno max. 4.000 CZK/dítě | H87: Žádost | J87: příjmy - výživné
C88: Odměna pěstouna: - Rozhodnutí o svěření dítěte do pěstounské péče nebo rozhodnutí soudu, kterým byl klient ustanoven jako poručník dítěte - Rozhodnutí o přiznání dávky (odměny pěstouna) - PoP vyplněné příslušným Úřadem práce, který odměnu vyplácí | H88: Žádost | J88: příjmy - odměna pěstouna
C89: Výpisy z účtu u kterékoli banky v ČR prokazující pravidelné příjmy a obvyklé výdaje domácnosti za posledních 6 měsíců (nestandardní klient) | H89: Žádost | J89: příjmy - jiný standardní příjem
C90: Přiznání k dani z příjmů právnických osob za poslední 2 zdaňovací období společnosti vyplácející podíly na zisku společnosti (vč. všech příloh). Zároveň doklad o zaplacení daně NEBO doklad o vrácení přeplatku za poslední zdaňovací období. | H90: Žádost | J90: příjmy - z podílu
C91: Rozhodnutí valné hromady společnosti o rozdělení zisku | H91: Žádost | J91: příjmy - z podílu
C92: Doklad o výplatě podílů na zisku ve prospěch účtu spolu/žadatele o úvěr | H92: Žádost | J92: příjmy - z podílu
C93: Konkretizovaný návrh Rezervační smlouvy + konkretizovaný návrh SoSBK / Kupní smlouvy, který musí obsahovat identifikaci prodávajícího a kupujícího, předmětu koupě a způsob vypořádání kupní ceny, event. podepsaná Kupní smlouva nebo podepsaná Smlouva o smlouvě budoucí kupní (má-li klient již uzavřenu) | H93: Žádost | J93: účel - koupě
C94: Koupě z developerského projektu: vázne-li na nemovitosti zástavní právo zajišťující úvěr developera, předložit prohlášení zástavního věřitele o podmínkách vzdání se zástavního práva k nemovitosti, event. prohlášení o právním zajištění přístupu k předmětné nemovitosti. Pro developerské projekty financované UCBCZ&SK zajistí bankéř (nikoli klient). | H94: Žádost | J94: účel - koupě
C95: Koupě pozemku: Územně plánovací informace nebo územní souhlas nebo územní rozhodnutí. Za stavební pozemek lze považovat pozemek, který je dle územního plánu určen k výstavbě a musí k němu být přivedeny všechny potřebné inženýrské sítě. | H95: Žádost | J95: účel - koupě
C96: Vyčíslení úvěru prodávajícího určeného k refinancování. Pokud nebude úvěr prodávajícího doplacen celý, pak závazný příslib vzdání se zástavního práva. Pokud součástí vyčíslení není souhlas se zástavou nemovitosti a s jejím prodejem, pak i oznámení prodávajícího původnímu věřiteli. | H96: Žádost | J96: účel - koupě
C97: Koupě bytu, který není zapsán v LV: Prohlášení vlastníka /smlouva o výstavbě | H97: Zpracování smluv. dokumentace | J97: účel - koupě
C98: Výpis z KN budovy, ve které se nachází družstevní byt (ne starší 3 měsíce) | H98: Žádost | J98: účel - koupě / úhrada družstevního podílu
C99: Smlouvu o budoucím převodu družstevního podílu (k Žádosti minimálně návrh smlouvy, ke zpracování sml. dokumentace vždy podepsaná smlouva) | H99: Žádost | J99: účel - koupě družstevního podílu
C100: Doklad o členství převodce v bytovém družstvu, např. Potvrzení bytového družstva o členství převodce v družstvu, nájemní smlouva na družstevní byt, případně smlouva o převodu družstevního podílu od předchozího člena | H100: Žádost | J100: účel - koupě družstevního podílu
C101: Minimálně návrh Nájemní smlouvy mezi družstvem a nájemníkem - členem družstva | H101: Žádost | J101: účel - úhrada družstevního podílu
C102: Smlouva o úvěru / půjčce/ zápůjčce | H102: Žádost | J102: účel - splacení dřívějšího úvěru
C103: V případě úvěru/půjčky/zápůjčky od nebankovního subjektu: Příjmový doklad o přijetí částky úvěru/půjčky/zápůjčky v hotovosti (u úvěrů/zápůjčky poskytnuté po 1.12.2014 lze akceptovat pouze v případě částky do 270.000,- Kč včetně). Pro případy před 1.12.2014 platil judikát, který výši hotovostní platby neomezoval. | H103: Žádost | J103: účel - splacení dřívějšího úvěru
C104: Výpis z KN financované nemovitosti (ne starší 3 měsíce) | H104: Žádost | J104: účel - zpětné proplacení vl. finančních prostředků
C105: K účelu koupě: Kupní smlouva s potvrzením KÚ o provedení vkladu vlastnického práva / případně s vyrozuměním KÚ o provedení vkladu | H105: Žádost | J105: účel - zpětné proplacení vl. finančních prostředků
C106: K účelu výstavba, rekonstrukce, modernizace: Faktura/faktury, oznámení o užívání stavby, příp. kolaudační souhlas, nebo Zpráva o stavu výstavby (min. 95% dokončenost stavebních prací). | H106: Žádost | J106: účel - zpětné proplacení vl. finančních prostředků
C107: Doklad o zaplacení investice (např. výpis z účtu, doklad o zaplacení v hotovosti) - lze akceptovat v případě, že čátka hotovosti v jeden den činila max. 350.000,- Kč včetně, pokud byla zaplacena do 30.11.2014 příp. že částka hotovosti v jeden den činila max. 270.000,- Kč včetně, pokud byla zaplacena od 1.12.2014. | H107: Žádost | J107: účel - zpětné proplacení vl. finančních prostředků
C108: Po rozvodu manželství: - Pravomocné rozhodnutí soudu o zániku manželství rozvodem - Doklad o vypořádání SJM - Doklad o určení výše výživného (jsou-li nezaopatřené děti) | H108: Žádost | J108: účel - vypořádání spoluvlastnických / dědických nároků
C109: Po rozvodu manželství (před více než 3 lety a manželé nemají vypořádáno SJM): - Pravomocné rozhodnutí soudu o zániku manželství rozvodem (pouze pokud není z dokladu totožnosti zřejmé, že je klient rozvedený více než 3 roky). - Doklad o určení výše výživného (jsou-li nezaopatřené děti) | H109: Žádost | J109: účel - vypořádání spoluvlastnických / dědických nároků
C110: Za trvání manželství: dohoda o modifikaci SJM notářským zápisem/ pravomocné rozhodnutí soudu o modifikaci SJM | H110: Žádost | J110: účel - vypořádání spoluvlastnických / dědických nároků
C111: Pravomocné Rozhodnutí o dědictví schválené soudem a dohoda o finančním vyrovnání nebo Darovací smlouva se závazkem k vyrovnání, resp. Dohodou o finančním vyrovnání | H111: Žádost | J111: účel - vypořádání spoluvlastnických / dědických nároků
C112: Dokument o existenci vlastních zdrojů klienta, banka akceptuje dvě varianty prokázání: Všechny vlastní zdroje proinvestované před zahájením čerpání úvěru: • žadatel nemusí jejich existenci prokazovat. Před 1. čerpáním úvěru musí prokázat takové procento rozestavěnosti, které prokáže proinvestování vlastních zdrojů. Postupné použití vlastních zdrojů v průběhu čerpání úvěru: • žadatel musí prokázat použití 100% vlastních zdrojů po vyčerpání 50% části úvěru určeného právě na výstavbu/rekonstrukci; • žadatel musí jejich existenci prokázat ke schválení úvěru (vč. doložení zdrojů, které bude mít k dispozici v budoucnu). | H112: Žádost | J112: účel - výstavba / rekonstrukce
C113: Výstavba montovaných domů: návrh smlouvy/smlouvy o smlouvě budoucí o dílo | H113: Žádost | J113: účel - výstavba
C114: Pokud se jedná o koupi bytu, prohlášení vlastníka /smlouva o výstavbě - výstavba bytu, který není zapsán v LV. | H114: Zpracování zást.smlouvy | J114: účel - výstavba
C115: Přehledu zdrojů pro financování nákladů stavby (rozpočet) | H115: Žádost | J115: účel - rekonstrukce
C116: Smlouva uzavřená s družstvem, ze které vyplývá výše členského vkladu (pozn. Zajištění musí být vždy jinou nemovitostí) | H116: Žádost | J116: účel - výzva družstva k úhradě
C117: Stanovy družstva | H117: Žádost | J117: účel - výzva družstva k úhradě
C118: Doklady prokazující totožnost a rodinný stav zástavce (pokud není zřejmý z dokladu totožnosti, doložte výpis z rejstříku obyvatel). Pro zpracování žádosti je nutné, aby byl zástavce existujícím klientem banky = měl přiřazené NDG | H118: Žádost | J118: zajištění
C119: Je-li účelem úvěru refinancování úvěru, je možné předložit původní odhad nemovitosti, na jehož základě byl refinancovaný úvěr poskytnut nebo může být předložena původní kupní smlouva, na jejímž základě byla nemovitost pořízena (pouze je-li úvěr zajištěn bytovou jednotkou). | H119: Žádost | J119: zajištění
C120: Návrh Dohody o jistotním účtu zřízeném u UCBCZ&SK | H120: Schválení
C121: Prohlášení manžela (souhlas se zástavou) | H121: Čerpání
C122: Smlouva o zřízení zástavního práva k nemovitosti | H122: Čerpání
C123: Návrh na vklad zástavního práva vztahující se k předmětu zástavy (s razítkem KÚ potvrzujícím přijetí Návrhu) | H123: Čerpání
C124: Výpis z KN vztahující se k předmětu zástavy prokazující bankou požadovaný právní stav (aktuální = ne starší 30 dnů před čerpáním) - v případě bytové jednotky musí být předložen výpis z KN nejen k bytu, ale i k domu, ve kterém se byt nachází, event. pozemku (je-li vlastník odlišný od vlastníka byt.jednotky) | H124: Čerpání
C125: Smlouva o pojištění zastavované nemovitosti - budovy/bytu včetně pojistných podmínek | H125: Čerpání
C126: Doklad o právně zajištěném přístupu k zastavené nemovitosti, Koupě z develop. projektu: Není-li do doby čerpání k dispozici může být nahrazen Prohlášením zástavce. | H126: Čerpání
C127: Kolaudační souhlas / Oznámení o užívání stavby (může být vyžadováno pro poslední čerpání) nebo Zpráv o stavu výstavby prokazující dokončení stavby alespoň z 95% | H127: Čerpání
C128: Žádost o státní příspěvek | H128: Čerpání
C129: Čestné prohlášení | H129: Čerpání
C130: Údaje o dalších pozemcích | H130: Čerpání
C131: Potvrzením příslušné finanční instituce o doplacení dluhu / resp. zrušení úvěrového produktu | H131: Čerpání
C132: Potvrzení od Finančního úřadu o stavu osobního účtu (bezdlužnost)** - originál nebo dokument zkonvertovaný z elektronické verze vč. CzechPoint verifikace - nesmí být evidovány žádné nedoplatky, splátkové kalendáře ani posečkání s daňovou povinností | H132: Čerpání
C133: Potvrzení od Finančního úřadu o stavu osobního účtu (bezdlužnost)** - originál nebo dokument zkonvertovaný z elektronické verze vč. CzechPoint verifikace - nesmí být evidovány žádné nedoplatky, splátkové kalendáře ani posečkání s daňovou povinností | H133: Čerpání
C134: Potvrzení od Finančního úřadu o stavu osobního účtu (bezdlužnost)** - originál nebo dokument zkonvertovaný z elektronické verze vč. CzechPoint verifikace - nesmí být evidovány žádné nedoplatky, splátkové kalendáře ani posečkání s daňovou povinností | H134: Čerpání
C135: Potvrzení od Finančního úřadu o stavu osobního účtu (bezdlužnost), dokládá-li klient existující příjmy daňovým přiznáním - originál nebo dokument zkonvertovaný z elektronické verze vč. CzechPoint verifikace | H135: čerpání
C136: Uzavřená smlouva o budoucí kupní smlouvě, event. kupní smlouva. Podepsaná smlouva se musí s návrhem smlouvy předložené ke schválení úvěru shodovat minimálně v těchto ustanoveních: - identifikace smluvních stran; - předmět kupní smlouvy (identifikace nemovitosti); - výše kupní ceny a způsob jejího vypořádání; - zástavní práva, věcná břemena a jiná omezení vlastnického práva. | H136: Čerpání
C137: Čerpání prostřednictvím not., advok. úschovy/jistotního účtu: Uzavřená smlouva o jistotním účtu, advokátní či notářské úschově (resp. protokol o úschově) nebo úschově realitní kanceláře. Podepsaná smlouva se musí s návrhem smlouvy předložené ke schválení úvěru shodovat minimálně v těchto ustanoveních: - identifikace smluvních stran; - předmět úschovy; - podmínky vyplacení prostředků z úschovy. | H137: Čerpání
C138: Koupě z developerského projektu: Doklad o konečné kupní ceně | H138: Čerpání
C139: Koupě z developerského projektu: Zpráva o stavu výstavby | H139: Čerpání
C140: Koupě pozemku (samotného): Kolaudační souhlas s inženýrskými sítěmi k hranici pozemku | H140: Čerpání
C141: Návrh na vklad převodu vlastnického práva | H141: Čerpání
C142: Doložení právně zajištěného přístupu k zastavené nemovitosti | H142: Čerpání
C143: Potvrzení o úhradě části kupní ceny financované z vlastních zdrojů (např. výpis z účtu, doklad o zaplacení v hotovosti - lze akceptovat pouze v případě částky do 350.000,- Kč včetně) | H143: Čerpání
C144: Dohoda o jistotním účtu zřízeném u UCBCZ&SK | H144: Čerpání
C145: Dokument, na základě kterého dochází k úschově finančních prostředků v notářské / advokátní úschově | H145: Čerpání
C146: Smlouva o převodu družstevního podílu, vč. doložení skutečnosti, že smlouva byla předložena družstvu (např. vyznačením na smlouvě) | H146: Čerpání
C147: Nájemní smlouva mezi družstvem a nájemníkem - členem družstva (nebyla-li předložena k žádosti) | H147: Čerpání
C148: Výzva družstva k úhradě členského podílu | H148: Čerpání
C149: Doklad o úhradě části nákladů financované z vlastních zdrojů (např. výpis z účtu, doklad o zaplacení v hotovosti - lze akceptovat pouze v případě částky do 350.000,- Kč včetně) | H149: Čerpání
C150: Vyčíslení aktuálního zůstatku včetně příslušenství a Příslib výmazu zástavního práva, minimálně stanovenou podmínkou zániku pohledávky za dlužníkem | H150: Čerpání
C151: Souhlas se zatížením příp. i zcizením od původního věřitele, je-li tímto nemovitost zatížena. Pokud se jedná o absolutní zákaz zatížení (kdy na LV není uvedeno "bez souhlasu banky"), musí být nejdříve vymazán a až poté je možné zřídit zástavní právo Banky . | H151: Čerpání
C152: Doklad o úhradě části nákladů financované z vlastních zdrojů (např. výpis z účtu) | H152: Čerpání
C153: Doklad o úhradě části nákladů financované z vlastních zdrojů (např. výpis z účtu, doklad o zaplacení v hotovosti) | H153: Čerpání
C154: Dohoda o vypořádání podílového spoluvlastnictví | H154: Čerpání
C155: Doklad, na základě kterého je klient oprávněn zahájit stavbu (některý z těchto dokumentů): - Souhlas stavebního úřadu s provedením stavby - Certifikát vydaný autorizovaným inspektorem - Veřejnoprávní smlouva - Stavební povolení | H155: Čerpání
C156: Smlouva o dílo | H156: Čerpání
C157: Zpráva o stavu výstavby v závislosti na aktuální hodnotě nemovitosti | H157: Čerpání
C158: Pro poslední čerpání částky určené na výstavbu: Oznámení o užívání stavby / Kolaudační souhlas nebo Zpráva o stavu výstavby (min. 95% rozestavěnost) | H158: Čerpání
C159: Smlouva o dílo | H159: Čerpání
C160: Pro poslední čerpání částky určené na výstavbu: Oznámení o užívání stavby / Kolaudační souhlas nebo Zpráva o stavu výstavby (min. 95% dokončenost stavebních prací) | H160: Čerpání
C161: Souhlas valné hromady se zastavením a s převodem nemovitosti/ souhlas členské schůze družstva formou notářského zápisu | H161: Čerpání
C162: Výpis z rejstříku zástav, že není zastaven závod obchodní korporace | H162: Čerpání
C163: Smlouva o životním pojištění včetně pojistných podmínek | H163: Čerpání
C164: Smlouva o postoupení pohledávek z životního pojištění | H164: Čerpání
C165: Smlouva o postoupení pohledávek z termínovaného vkladu vedeného u Banky | H165: Čerpání
C166: Dohoda se svolením k vykonatelnosti formou notářského zápisu | H166: Čerpání

Sheet Doplneni
A3: DOPLNĚNÍ ŽÁDOSTI | BB3: =manVerze -> v.14a
L7: Počet žatadelů | Q7: 1
C11: Vyplní Banka | AB11: Datum převzetí KOMPLETNÍ dokumentace
C12: Pracovník banky: | J12: =IF(zPracovnikBanky="","",zPracovnikBanky) -> 
C13: Pobočka (číslo): | J13: =IF(zPobocka="","",zPobocka) -> 
C14: NDG klientů: | J14: =IF(zNdg="","",zNdg) -> 
AB15: razítko "Doručeno dne" | AQ15: Verze: | AT15: 1
B17: DOPLŇUJÍCÍ INFORMACE K ŽÁDOSTI O POSKYTNUTÍ HYPOTEČNÍHO ÚVĚRU
C18: Vyplní klient
C19: ŽADATEL | AC19: SPOLUŽADATEL
C20: Titul před jménem | N20: Titul za jménem | AC20: Titul před jménem | AN20: Titul za jménem
C22: Jméno | AC22: Jméno
C23: =IF(SplatkaJmenoKlienta=0,"",SplatkaJmenoKlienta) ->  | AC23: =IF(zadJmeno2=0,"",zadJmeno2) -> 
C24: Příjmení | AC24: Příjmení
C25: =IF(SplPrijmeniKlienta=0,"",SplPrijmeniKlienta) ->  | AC25: =IF(zadPrijmeni2=0,"",zadPrijmeni2) -> 
C26: Rodné číslo / u cizinců datum narození | AC26: Rodné číslo / u cizinců datum narození
C27: =IF(zadRC=0,"",zadRC) ->  | AC27: =IF(zadRC2=0,"",zadRC2) -> 
C28: Státní příslušnost | AC28: Státní příslušnost
C30: Rodinný stav | P30: Vzdělání | AC30: Rodinný stav | AP30: Vzdělání
D31: Svobodný/svobodná | Q31: VŠ | AD31: Svobodný/svobodná | AQ31: VŠ
D33: Ženatý/vdaná | Q33: Vyšší odborné | AD33: Ženatý/vdaná | AQ33: Vyšší odborné
E35: SJM zúženo | Q35: SŠ s maturitou | AE35: SJM zúženo | AQ35: SŠ s maturitou
E37: oddělená jmění | Q37: OU s maturitou | AE37: oddělená jmění | AQ37: OU s maturitou
D39: Rozvedený/rozvedená | Q39: OU | AD39: Rozvedený/rozvedená | AQ39: OU
E41: méně než 3 let | Q41: Základní | AE41: méně než 3 let | AQ41: Základní
E43: více než 3 let | AE43: více než 3 let
D45: Vdovec/vdova | AD45: Vdovec/vdova
D47: Registrovaný partner | AD47: Registrovaný partner
C48: Zvláštní vztah k UniCredit Bank Czech Republic and Slovakia, a.s. podle zákona o bankách 1) | AC48: Zvláštní vztah k UniCredit Bank Czech Republic and Slovakia, a.s. podle zákona o bankách 1)
D49: Ano | G49: Ne | AD49: Ano | AG49: Ne
L51: Jaký je vztah žadatele a spolužadatele?
C52: Bytové poměry | AC52: Bytové poměry
D53: Vlastnictví domu/bytu | N53: Nájem | T53: Bydlení s rodiči | AD53: Vlastnictví domu/bytu | AN53: Nájem | AT53: Bydlení s rodiči
D55: Právo k užívání družstevního domu/bytu | T55: Jiné | AD55: Právo k užívání družstevního domu/bytu | AT55: Jiné
C56: Bydliště (adresa skutečného pobytu, je-li odlišná od trvalého pobytu) | AC56: Bydliště (adresa skutečného pobytu, je-li odlišná od trvalého pobytu)
C58: Délka skutečného pobytu (v letech) | P58: Korespondenční adresa | AC58: Délka skutečného pobytu (v letech) | AP58: Korespondenční adresa
Q59: Adresa trvalého pobytu | V59: Adresa bydliště | AQ59: Adresa trvalého pobytu | AV59: Adresa bydliště
C61: Cizí státní příslušník | AC61: Cizí státní příslušník
D62: Délka pobytu v ČR (v letech) | P62: Pobyt v ČR | AD62: Délka pobytu v ČR (v letech) | AP62: Pobyt v ČR
Q63: Trvalý | V63: Přechodný | AQ63: Trvalý | AV63: Přechodný
C66: Zaměstnavatel | AC66: Zaměstnavatel
C67: IČ | AC67: IČ
C68: Pracovní pozice | AC68: Pracovní pozice
C70: Hlavní zdroj příjmu 2) | AC70: Hlavní zdroj příjmu
E71: závislá činnost | R71: v ČR | U71: v zahraničí | AE71: závislá činnost | AR71: v ČR | AU71: v zahraničí
Q73: =IF(ZavislaVysledny="","",ZavislaVysledny) ->  | Y73: Kč | AQ73: =IF(SpoZavislaVysledny="","",SpoZavislaVysledny) ->  | AY73: Kč
F74: délka současného prac. poměru | V74: v letech | AF74: délka současného prac. poměru | AV74: v letech
F75: délka předchozího prac. poměru | V75: v letech | AF75: délka předchozího prac. poměru | AV75: v letech
F77: zkušební / výpovědní doba 3) | R77: Ano | U77: Ne | AF77: zkušební / výpovědní doba 3) | AR77: Ano | AU77: Ne
E79: samostatně výdělečná činnost | Y79: Kč | AE79: samostatně výdělečná činnost | AY79: Kč
F81: aktivní nepřetržitě min. 12 měsíců | R81: Ano | U81: Ne | AF81: aktivní nepřetržitě min. 12 měsíců | AR81: Ano | AU81: Ne
E83: příjem z pronájmu | Y83: Kč | AE83: příjem z pronájmu | AY83: Kč
E85: příjem z kapitálového majetku | Y85: Kč | AE85: příjem z kapitálového majetku | AY85: Kč
E87: starobní důchod | Y87: Kč | AE87: starobní důchod | AY87: Kč
E89: jiný | Y89: Kč | AE89: jiný | AY89: Kč
C91: Počet dospělých v domácnosti | O91: Počet dětí v domácnosti (do 26 let) | AC91: Počet dospělých v domácnosti | AO91: Počet dětí v domácnosti (do 26 let)
C92: =Dospeli -> 1 | O92: =Deti -> 0
O94: jako spolu/žadatel | V94: jako ručitel | AO94: jako spolu/žadatel | AV94: jako ručitel
C95: Hypoteční úvěr, úvěr ze stavebního spoření | AC95: Hypoteční úvěr, úvěr ze stavebního spoření
C96: Osobní úvěr, leasing, splátkový prodej, zápůjčka | AC96: Osobní úvěr, leasing, splátkový prodej, zápůjčka
C97: Kontokorentní úvěr (vč. nevyužívaných) | O97: =KTK -> 0 | AC97: Kontokorentní úvěr (vč. nevyužívaných)
C98: Kreditní karta (vč. nevyužívaných) | O98: =KK -> 0 | AC98: Kreditní karta (vč. nevyužívaných)
C99: Další pravidelné výdaje (výživné, spoření, pojištění) | O99: =VydOstatni+VydPojisteni -> 0 | AC99: Další pravidelné výdaje (výživné, spoření, pojištění)
C100: Náklady na bydlení | AC100: Náklady na bydlení
C102: SPECIFIKACE ÚVĚRU
C103: Typ úrokové sazby | X103: Délka čerpání úvěru (v měsících) 6) | AL103: Mám zájem o slevu na úrokové sazbě za:
C104: =IF(Fix_obdobi="1 roky","X",IF(Fix_obdobi="2 roky","X",IF(Fix_obdobi="3 roky","X",IF(Fix_obdobi="5 let","X",IF(Fix_obdobi="7 let","X",IF(Fix_obdobi="10 let","X","")))))) -> X | D104: Fixní - délka fixace úrokové sazby (v letech) 4) | R104: =IF(LEFT(Fix_obdobi,2) <> "Fl",LEFT(Fix_obdobi,2),"") -> 3 | X104: =DatumDocerpani -> 0 | AL104: =IF(SlevaUcet = "Ano","X","") -> X | AM104: Aktivní běžný účet 8)
C106: =IF(Fix_obdobi="Float","X","") ->  | D106: Variabilní (Převratná hypotéka) 5) | AL106: =IF(SlevaKarta = "Ano","X","") -> X | AM106: Aktivní kreditní kartu 9)
AL108: =IF(SlevaCardif = "Ano","X","") -> X | AM108: Pojištění schopnosti splácet 7)
AD110: Pojištěný | AL110: Soubor pojištění
AE111: Hlavní žadatel | AM111: JP A: Úmrtí a pracovní neschopnost
AE113: Spolužadatel | AM113: JP B: Úmrtí a ztráta zaměstnání
AM115: JP C: Úmrtí a invalidita III. stupně
AM117: měs.: Úmrtí, invalidita III. stupně a pracovní neschopnost
C118: Účel úvěru
C119: =IF(HlavUcelUveru="Koupě","X","") ->  | D119: Koupě | AD119: Typ úvěru
C121: =IF(HlavUcelUveru="Refinancování úvěru – zjednodušené","X",IF(HlavUcelUveru="Refinancování úvěru – standard","X","")) ->  | D121: Refinancování | AD121: =IF(TypHypoteky="Hypoteční úvěr účelový rezidenční Individual","X","") -> X | AE121: INDIVIDUAL - Hypoteční úvěr účelový
C123: =IF(HlavUcelUveru="Výstavba","X",IF(HlavUcelUveru="Rekonstrukce","X","")) ->  | D123: Výstavba / Rekonstrukce | AD123: =IF(TypHypoteky="Hypoteční úvěr účelový rezidenční Flexi","X","") ->  | AE123: FLEXI - Hypoteční úvěr s možností předčasné splátky
C125: =IF(HlavUcelUveru="Vypořádání majetkových nároků","X","") ->  | D125: Vypořádání majetkových poměrů spojených s nemovitostí | AD125: =IF(TypHypoteky="Hypoteční úvěr účelový rezidenční Twin","X","") ->  | AE125: TWIN - Hypoteční úvěr s kombinací neúčelové části
C127: =IF(HlavUcelUveru="Zpětné proplacení vl. zdrojů","X","") ->  | D127: Zpětné proplacení finančních prostředků | AD127: =IF(TypHypoteky="Hypoteční úvěr účelový nerezidenční","X","") ->  | AE127: Hypoteční úvěr účelový nerezidenční
D129: Jiný | G129: =IF(dopUcelUveru6="","",HlavUcelUveru) ->  | AD129: =IF(TypHypoteky="Hypoteční úvěr neúčelový","X","") ->  | AE129: Hypoteční úvěr neúčelový
D131: Další účel
C133: 1) Za osoby, které mají k bance zvláštní vztah, se podle § 19 zákona č. 21/1992 Sb., o bankách, považují a) členové statutárního orgánu a vedoucí zaměstnanci banky, b) členové dozorčí rady banky, c) právnické osoby mající kontrolu nad bankou, jejich hlavní akcionáři a členové vedení těchto společností, d) osoby blízké členům statutárního orgánu, dozorčí rady, vedoucím zaměstnancům banky a osobám majícím kontrolu nad bankou, e) právnické osoby, ve kterých některá z osob uvedených pod písmeny a), b) a c) má podíl na základním jmění přesahující 10 %, f) hlavní akcionáři banky a jakákoliv právnická osoba pod jejich kontrolou, g) členové bankovní rady České národní banky, h) právnické osoby, nad kterými má banka kontrolu.
C134: 2) Výše čistého měsíčního příjmu za poslední 3 měsíce. U osoby samostatně výdělečně činné za posledních 12 kalendářních měsíců.
C135: 3) Nehodící se škrtněte.
C136: 4) Déka fixace úrokové sazby je počet let, po které bude fixní úroková sazba neměnná.
C137: 5) Úroková sazba je složena z variabilní a fixní složky, tj. její celková výše se mění v závislosti na situaci na finančním trhu.
C138: 6) Období čerpání (od podpisu smlouvy do ukončení čerpání).
C139: 7) Úvěrové životní pojištění s jednorázově splatným pojistným, délka pojištění je 5 let, pojištění pro případ úmrtí + pracovní neschopnosti / ztráty zaměstnání / invalidity III. stupně.
C140: 8) Platí i pro stávajícího klienta UniCredit Bank v případě, že již službu využívá.
C141: 9) Rámec kreditní karty je schválen současně s úvěrem. Karta je poskytnuta za zvýhodněných podmínek. Sleva platí i pro již existující kreditní kartu.
C142: 10) Podmínky objednání odhadu Vám budou sděleny pracovníkem Banky, resp. pověřeným zástupcem Banky.
C144: FINANCOVANÁ NEMOVITOST 1)
C145: Adresa nemovitosti
C147: Druh nemovitosti
D149: Byt - č. jednotky:
D151: Rodinný dům - č.p.: | Z151: zděný | AF151: montovaná dřevostavba
D153: Stavební pozemek - č.:
D155: Rekreační objekt - č.e./č.p.: | Z155: chata | AF155: chalupa
C157: Číslo listu vlastnictví | AD157: Výše investice do nemovitosti
C159: Účel využití objektu úvěru | O159: vlastní bydlení (event. bydlení osoby blízké) | AE159: rekreace | AK159: pronájem
C161: Na nemovitosti vázne | O161: zástavní právo - prosím uveďte
O163: věcné břemeno - prosím uveďte
C165: ZASTAVENÁ NEMOVITOST
E166: je totožná s objektem úvěru - níže uvedené údaje nevyplňujte a přejděte rovnou k podpisu žadatele a spolužadatele
E168: je odlišná od objektu úvěru
C169: Vlastník nemovitosti | O169: žadatel nebo spolužadatel | Z169: osoba blízká | AF169: jiná osoba | AK169: Jméno:
C171: Adresa nemovitosti
C173: Druh nemovitosti
D175: Byt - č. jednotky:
D177: Rodinný dům - č.p.: | Z177: zděný | AF177: montovaná dřevostavba
D179: Stavební pozemek - č.:
D181: Rekreační objekt - č.e./č.p.: | Z181: chata | AF181: chalupa
C183: Číslo listu vlastnictví | AD183: Výše investice do nemovitosti
C185: Účel využití objektu úvěru | O185: vlastní bydlení (event. bydlení osoby blízké) | AE185: rekreace | AK185: pronájem
C187: Na nemovitosti vázne | O187: zástavní právo - prosím uveďte
O189: věcné břemeno - prosím uveďte
C192: PROHLÁŠENÍ ŽADATELE A SPOLUŽADATELE
C193: Prohlašuji, že veškeré údaje uvedené v těchto doplňujících informacích k žádosti o hypoteční úvěr, resp. v dokumentech přiložených, jsou úplné a odpovídají skutečnosti a že jsem nezamlčel(a) žádnou relevantní skutečnost, která by mohla ovlivnit rozhodnutí banky při poskytnutí úvěru.
C194: Prohlašuji, že úkon učiněný žadatelem nebo spolužadatelem vůči UniCredit Bank Czech Republic and Slovakia, a.s. do uzavření smlouvy o úvěru je úkonem učiněným jménem všech, tj žadatele a všech spolužadatelů. UniCredit Bank Czech Republic and Slovakia, a.s. není povinna zkoumat vzájemné nároky těchto žadatelů a nenese žádnou odpovědnost za případné neoprávněné zásahy žadatelů do svých vzájemných nároků.
C195: Dále prohlašuji, že jsem plně způsobilý(á) k právním úkonům.
C196: Dále prohlašuji, že nejsem v prodlení vůči státu nebo jinému subjektu s úhradou daní či poplatků, úhradou pojistného na sociální zabezpečení, zdravotní pojištění, úhradou cla nebo jiných povinných plateb a zároveň prohlašuji, že nemám jiné závazky vůči fyzickým či právnickým osobám s výjimkou uvedených výše v těchto doplňujících informacích k žádosti o hypoteční úvěr.
AC201: Podpis žadatele
C204: Místo: | O204: Datum:
C206: Místo, datum | AC206: Podpis spolužadatele
C207: Vyplní Banka
C208: Totožnost žadatele/spolužadatele ověřil (jméno, příjmení): | AC208: Dle občanských průkazů č.
C209: =IF(zTotoznostOveril="","",zTotoznostOveril) -> 
C210: Dne: | O210: Podpis:
C211: =IF(zDne="","",zDne) -> 
C213: 1) V případě zjednodušeného procesu refinancování přejděte k podpisu žadatele a spolužadatele. Informace o nemovitostech nevyplňujte
C215: Vyplní Banka | AB215: Datum převzetí KOMPLETNÍ dokumentace
C216: Pracovník banky: | J216: =IF(zPracovnikBanky="","",zPracovnikBanky) -> 
C217: Pobočka (číslo): | J217: =IF(zPobocka="","",zPobocka) -> 
C218: NDG klientů: | J218: =IF(zNdg="","",zNdg) -> 
AB219: razítko "Doručeno dne"
B221: DOPLŇUJÍCÍ INFORMACE K ŽÁDOSTI O POSKYTNUTÍ HYPOTEČNÍHO ÚVĚRU
C222: Vyplní klient
C223: ŽADATEL | AC223: SPOLUŽADATEL
C224: Titul před jménem | N224: Titul za jménem | AC224: Titul před jménem | AN224: Titul za jménem
C226: Jméno | AC226: Jméno
C227: =IF(zadJmeno3=0,"",zadJmeno3) ->  | AC227: =IF(zadJmeno4=0,"",zadJmeno4) -> 
C228: Příjmení | AC228: Příjmení
C229: =IF(zadPrijmeni3=0,"",zadPrijmeni3) ->  | AC229: =IF(zadPrijmeni4=0,"",zadPrijmeni4) -> 
C230: Rodné číslo / u cizinců datum narození | AC230: Rodné číslo / u cizinců datum narození
C231: =IF(zadRC3=0,"",zadRC3) ->  | AC231: =IF(zadRC4=0,"",zadRC4) -> 
C232: Státní příslušnost | AC232: Státní příslušnost
C234: Rodinný stav | P234: Vzdělání | AC234: Rodinný stav | AP234: Vzdělání
D235: Svobodný/svobodná | Q235: VŠ | AD235: Svobodný/svobodná | AQ235: VŠ
D237: Ženatý/vdaná | Q237: Vyšší odborné | AD237: Ženatý/vdaná | AQ237: Vyšší odborné
E239: SJM zúženo | Q239: SŠ s maturitou | AE239: SJM zúženo | AQ239: SŠ s maturitou
E241: oddělená jmění | Q241: OU s maturitou | AE241: oddělená jmění | AQ241: OU s maturitou
D243: Rozvedený/rozvedená | Q243: OU | AD243: Rozvedený/rozvedená | AQ243: OU
E245: méně než 3 let | Q245: Základní | AE245: méně než 3 let | AQ245: Základní
E247: více než 3 let | AE247: více než 3 let
D249: Vdovec/vdova | AD249: Vdovec/vdova
D251: Registrovaný partner | AD251: Registrovaný partner
C252: Zvláštní vztah k UniCredit Bank Czech Republic and Slovakia, a.s. podle zákona o bankách 1) | AC252: Zvláštní vztah k UniCredit Bank Czech Republic and Slovakia, a.s. podle zákona o bankách 1)
D253: Ano | G253: Ne | AD253: Ano | AG253: Ne
L255: Jaký je vztah žadatele a spolužadatele?
C256: Bytové poměry | AC256: Bytové poměry
D257: Vlastnictví domu/bytu | N257: Nájem | T257: Bydlení s rodiči | AD257: Vlastnictví domu/bytu | AN257: Nájem | AT257: Bydlení s rodiči
D259: Právo k užívání družstevního domu/bytu | T259: Jiné | AD259: Právo k užívání družstevního domu/bytu | AT259: Jiné
C260: Bydliště (adresa skutečného pobytu, je-li odlišná od trvalého pobytu) | AC260: Bydliště (adresa skutečného pobytu, je-li odlišná od trvalého pobytu)
C262: Délka skutečného pobytu (v letech) | P262: Korespondenční adresa | AC262: Délka skutečného pobytu (v letech) | AP262: Korespondenční adresa
Q263: Adresa trvalého pobytu | V263: Adresa bydliště | AQ263: Adresa trvalého pobytu | AV263: Adresa bydliště
C265: Cizí státní příslušník | AC265: Cizí státní příslušník
D266: Délka pobytu v ČR (v letech) | P266: Pobyt v ČR | AD266: Délka pobytu v ČR (v letech) | AP266: Pobyt v ČR
Q267: Trvalý | V267: Přechodný | AQ267: Trvalý | AV267: Přechodný
C270: Zaměstnavatel | AC270: Zaměstnavatel
C271: IČ | AC271: IČ
C272: Pracovní pozice | AC272: Pracovní pozice
C274: Hlavní zdroj příjmu 2) | AC274: Hlavní zdroj příjmu
E275: závislá činnost | R275: v ČR | U275: v zahraničí | AE275: závislá činnost | AR275: v ČR | AU275: v zahraničí
Y277: Kč | AY277: Kč
F278: délka současného prac. poměru | V278: v letech | AF278: délka současného prac. poměru | AV278: v letech
F279: délka předchozího prac. poměru | V279: v letech | AF279: délka předchozího prac. poměru | AV279: v letech
F281: zkušební / výpovědní doba 3) | R281: Ano | U281: Ne | AF281: zkušební / výpovědní doba 3) | AR281: Ano | AU281: Ne
E283: samostatně výdělečná činnost | Y283: Kč | AE283: samostatně výdělečná činnost | AY283: Kč
F285: aktivní nepřetržitě min. 12 měsíců | R285: Ano | U285: Ne | AF285: aktivní nepřetržitě min. 12 měsíců | AR285: Ano | AU285: Ne
E287: příjem z pronájmu | Y287: Kč | AE287: příjem z pronájmu | AY287: Kč
E289: příjem z kapitálového majetku | Y289: Kč | AE289: příjem z kapitálového majetku | AY289: Kč
E291: starobní důchod | Y291: Kč | AE291: starobní důchod | AY291: Kč
E293: jiný | Y293: Kč | AE293: jiný | AY293: Kč
C295: Počet dospělých v domácnosti | O295: Počet dětí v domácnosti (do 26 let) | AC295: Počet dospělých v domácnosti | AO295: Počet dětí v domácnosti (do 26 let)
O298: jako spolu/žadatel | V298: jako ručitel | AO298: jako spolu/žadatel | AV298: jako ručitel
C299: Hypoteční úvěr, úvěr ze stavebního spoření | AC299: Hypoteční úvěr, úvěr ze stavebního spoření
C300: Osobní úvěr, leasing, splátkový prodej, zápůjčka | AC300: Osobní úvěr, leasing, splátkový prodej, zápůjčka
C301: Kontokorentní úvěr (vč. nevyužívaných) | AC301: Kontokorentní úvěr (vč. nevyužívaných)
C302: Kreditní karta (vč. nevyužívaných) | AC302: Kreditní karta (vč. nevyužívaných)
C303: Další pravidelné výdaje (výživné, spoření, pojištění) | AC303: Další pravidelné výdaje (výživné, spoření, pojištění)
C304: Náklady na bydlení | AC304: Náklady na bydlení
C306: SPECIFIKACE ÚVĚRU
C307: Typ úrokové sazby | X307: Délka čerpání úvěru (v měsících) 6) | AL307: Mám zájem o slevu na úrokové sazbě za:
C308: =IF(LEFT(Fix_obdobi,5) <> "Float","X","") -> X | D308: Fixní - délka fixace úrokové sazby (v letech) 4) | R308: =IF(LEFT(Fix_obdobi,2) <> "Fl",LEFT(Fix_obdobi,2),"") -> 3 | X308: =DatumDocerpani -> 0 | AL308: =IF(SlevaCardif = "Ano","X","") -> X | AM308: Pojištění schopnosti splácet 7)
C310: =IF(LEFT(Fix_obdobi,10) = "Float","X","") ->  | D310: Variabilní (Převratná hypotéka) 5) | AL310: =IF(SlevaUcet = "Ano","X","") -> X | AM310: Aktivní běžný účet 8)
AL312: =IF(SlevaKarta = "Ano","X","") -> X | AM312: Aktivní kreditní kartu 9)
C313: Účel úvěru
C314: x | D314: Koupě | AD314: Typ úvěru
C316: =IF(HlavUcelUveru="Refinancování úvěru – zjednodušené","X",IF(HlavUcelUveru="Refinancování úvěru – standard","X","")) ->  | D316: Refinancování | AD316: =IF(TypHypoteky="Hypoteční úvěr účelový rezidenční Individual","X","") -> X | AE316: INDIVIDUAL - Hypoteční úvěr účelový
... 196 more rows

Sheet PrazdnaZadost (hidden)
C3: Vyplní Banka
C4: Pracovník banky: | Y4: Číslo klienta (NDG):
C5: Pobočka (číslo): | Y5: Číslo žádosti:
B7: ŽÁDOST O POSKYTNUTÍ HYPOTEČNÍHO ÚVĚRU
C8: Vyplní klient
C9: ÚDAJE O ŽADATELI/SPOLUŽADATELI* (DÁLE JEN "ŽADATEL")
C10: Základní údaje
C11: Jméno | T11: Příjmení | AK11: Rodné číslo
C13: Datum narození | T13: Země narození (není-li ČR) | AK13: Pohlaví
AL14: Muž | AO14: Žena
C15: Adresa trvalého pobytu (ulice, č.p., město, PSČ, země)
C17: Doklad totožnosti
C18: Typ dokladu
D19: Občanský průkaz | K19: Cestovní pas | Q19: Identifikační karta občana EU
C20: Číslo dokladu | T20: Země vydání dokladu (není-li ČR) | AK20: Datum vydání dokladu
C22: Kontaktní údaje
C23: Telefon | T23: E-mail
C26: ÚDAJE O POŽADOVANÉM ÚVĚRU
C27: Účel úvěru refinancování | T27: Celková výše úvěru v Kč** | AK27: Počet splátek
D28: Ano | H28: Ne
C29: Úvěr v kombinaci s neúčelovou částí*** | T29: Výše účelové části v Kč | AK29: Výše neúčelové části v Kč
D30: Ano | H30: Ne
C32: PROHLÁŠENÍ ŽADATELE
C33: Žadatel prohlašuje, že veškeré údaje uvedené v této žádosti o poskytnutí úvěru, resp. v dokumentech přiložených, jsou úplné a odpovídají skutečnosti a že nezamlčel žádnou relevantní skutečnost, která by mohla ovlivnit rozhodnutí UniCredit Bank Czech Republic and Slovakia, a.s. (dále jen „Banka“) při poskytnutí úvěru.
C34: Dále Žadatel prohlašuje, že je plně svéprávný a že ke dni podání této žádosti o poskytnutí úvěru není v prodlení vůči státu nebo jinému subjektu s úhradou daní či poplatků, úhradou pojistného na sociální zabezpečení, zdravotní pojištění, úhradou cla nebo jiných povinných plateb.
C35: Žadatel souhlasí s tím, aby Banka získala informace o jeho bonitě (zahrnující zejména informaci o povaze a rozsahu případného porušení dřívějších závazků), platební morálce a důvěryhodnosti, které jsou nutné k posouzení žádosti o poskytnutí úvěru, a to z registrů sdružení SOLUS (www.solus.cz), jehož je Banka členem.
C36: Žadatel potvrzuje, že se seznámil s "Poučením o zpracování osobních údajů podle § 11 zákona č. 101/2000 Sb., o ochraně osobních údajů", které je k dispozici mj. na webových stránkách a pobočkách Banky, zejména výslovně bere na vědomí, že Banka může jeho osobní údaje zpracovávat i prostřednictvím zpracovatelů se sídlem v členských státech Evropské unie, zejm. UniCredit Business Integrated Solutions S.C.p.A., Itálie. Veškerá místa, na kterých dochází ke zpracování osobních údajů Bankou nebo zpracovateli Banky, jsou nahlášena jako místa zpracování osobních údajů u Úřadu pro ochranu osobních údajů.
C39: Místo, datum | AB39: Podpis Žadatele
C40: * Nehodící se škrtněte
C41: ** Včetně všech nákladů, které budou z úvěru hrazeny (životní pojištění, poplatky atd.)
C42: *** Hypoteční úvěr Twin (rezidenční hypoteční úvěr kombinovaný s neúčelovou částí)
C43: Vyplní Banka / Pověřený zástupce Banky / Třetí strana - rozdělit
C44: Totožnost ověřil (jméno, příjmení): | AB44: Dne: | AO44: Podpis:
C46: Název (jméno) 3P: | AB46: Jméno a příjmení makléře:
C48: Přidělené ID 3P: | AB48: IČ (popř. RČ) makléře | AO48: Evid. č. makléře
C50: Telefon makléře: | AB50: E-mail makléře:
B54: SOUHLAS se zpracováním osobních údajů a použitím rodného čísla
B55: V souvislosti s uzavřením/žádostí o uzavření smlouvy mezi mnou a UniCredit Bank Czech Republic and Slovakia, a.s. (dále jen „Smlouva“ a „Banka“) souhlasím s tím, aby Banka za níže uvedeným účelem shromažďovala, zpracovávala a uchovávala mé osobní údaje, tj. jméno, příjmení, datum narození, rodné číslo, adresu, údaje o identifikačním dokladu a IČ (dále jen „osobní údaje“), a to způsobem, a za podmínek uvedených v Informačním Memorandu Bankovního registru klientských informací a Nebankovního registru klientských informací (dále jen „Informační Memorandum“) a v Poučení o registrech Sdružení SOLUS (též jen „Poučení“).
B56: Dále souhlasím, aby Banka mé osobní údaje předávala Sdružení SOLUS k dalšímu zpracování v „Pozitivním registru sdružení SOLUS“ (též jen „Pozitivní registr“) a v Registru FO Sdružení SOLUS (též jen „Registr FO“) k dalšímu shromažďování, zpracovávání a uchovávání. Souhlasím, aby Sdružení SOLUS vytvořilo informační soubor mých osobních údajů od všech členských bank, případně též společně s dalšími mými veřejně dostupnými osobními údaji (např. mé osobní údaje obsažené v Insolvenčním rejstříku), a v rámci tohoto informačního souboru mých osobních údajů provádělo statistická vyhodnocení mé bonity a důvěryhodnosti. Souhlasím, aby Sdružení SOLUS mé osobní údaje (ve formě informačního souboru včetně údajů o statistických vyhodnoceních mé bonity a důvěryhodnosti) zpřístupnilo formou on-line dotazů všem oprávněným uživatelům (členům sdružení SOLUS) Pozitivního registru a Registru FO, tedy i Bance, a to vždy v rozsahu a za podmínek uvedeném pro každý z těchto registrů v Poučení.
B57: Souhlasím, aby Banka i opakovaně získávala informace o mé bonitě, platební morálce a důvěryhodnosti z Pozitivního registru a Registru FO. Souhlasím, aby všichni oprávnění uživatelé Pozitivního registru anebo Registru FO, kterým byly zpřístupněny mé osobní údaje, tyto používali, a to případně spolu s dalšími mými osobními údaji, jež oprávněně zpracovávají.
B58: Účelem zpracování osobních údajů v Pozitivním registru a Registru FO je splnění povinnosti odpovědného poskytování úvěrů a jiných obchodů Banky, zajištění vzájemného informování oprávněných uživatelů Pozitivního registru a Registru FO o mé bonitě, důvěryhodnosti a platební morálce, posuzování mé bonity, důvěryhodnosti a platební morálky ze strany oprávněných uživatelů Pozitivního registru a Registru FO, a to i opakovaně, jakož i ochrana práv Banky a ostatních členů sdružení SOLUS. Kromě předešlého je účelem zpracování mých osobních údajů na základě tohoto souhlasu rovněž zajištění vzájemného informování oprávněných uživatelů Bankovního registru klientských informací (dále jen „BRKI“) a Nebankovního registru klientských informací (dále jen „NRKI“) o mé bonitě, důvěryhodnosti a platební morálce a umožnění (a to i opakovaného) posuzování mé bonity, důvěryhodnosti a platební morálky ze strany oprávněných uživatelů BRKI a NRKI. Způsob, rozsah a podmínky vzájemného informování oprávněných uživatelů BRKI a NRKI jsou uvedeny v Informačním Memorandu.
B59: Souhlas uděluji na dobu 4 let ode dne jeho udělení. V případě, že mezi mnou [nebo žadatelem, pokud jde o ručitele, spolužadatele nebo zákonného zástupce] a Bankou byla nebo bude uzavřena Smlouva, uděluji tento souhlas na dobu jejího trvání a na dobu dalších 4 let od splnění veškerých mých finančních závazků z uzavřené Smlouvy, pokud tyto závazky zaniknou splněním nebo způsobem nahrazujícím splnění, resp. od zániku Smlouvy, pokud finanční závazky ze Smlouvy zaniknou jinak.
B60: Před podpisem tohoto souhlasu jsem se seznámil(a) s Informačním Memorandem, které obsahuje i poučení o mých právech v souvislosti se zpracováním mých osobních údajů v rámci BRKI i pro účely vzájemného informování se uživatelů BRKI a/nebo NRKI o bonitě, důvěryhodnosti či platební morálce jejich klientů. Před podpisem tohoto souhlasu jsem rovněž byl(a) informován(a), že aktuální znění Informačního Memoranda mohu kdykoli získat na informační lince, pobočkách a na webových stránkách banky www.unicreditbank.cz nebo na informační lince a webových stránkách provozovatele registru www.cbcb.cz.
B62: Dále prohlašuji, že jsem se seznámil(a) s dokumentem "POUČENÍ o registrech Sdružení SOLUS", jehož obsahem je: (i) vysvětlení pojmu informační soubor, a to zvlášť pro Pozitivní registr a Registr FO, (ii) definice dalších mých osobních údajů, které mohou vzniknout při zpracování, (iii) popis fungování Pozitivního registru a Registru FO, (iv) identifikace subjektů či osob, které mohou mít přístup k mým osobním údajům při jejich zpracování a (v) poučení o mých právech (§ 11 a § 12 zákona o ochraně osobních údajů č. 101/2000 Sb.) a nárocích (§ 21 zákona č. 101/2000 Sb.) v souvislosti se zpracováním mých osobních údajů v rámci pozitivního registru SOLUS. Byl(a) jsem informován(a), že aktuální znění Poučení mohu kdykoli získat na informační lince, pobočkách a webových stránkách banky www.unicreditbank.cz nebo na informační lince a webových stránkách sdružení SOLUS www.solus.cz.
B63: Potvrzuji, že jsem byl(a) Bankou poučen(a) o svých nárocích vůči porušiteli dle § 21 zákona č. 101/2000 Sb.
B64: Po uzavření Smlouvy s Bankou se tento souhlas stává její nedílnou součástí.
B66: V | T66: dne
B69: Podpis žadatele
B72: Podpis spolužadatele
B74: Jméno a podpis zástupce banky, který podpis/y ověřil:
C75: Vyplní Banka
C76: Pracovník banky: | Y76: Číslo klienta (NDG):
C77: Pobočka (číslo): | Y77: Číslo žádosti:
B79: ŽÁDOST O POSKYTNUTÍ HYPOTEČNÍHO ÚVĚRU
C80: Vyplní klient
C81: ÚDAJE O ŽADATELI/SPOLUŽADATELI* (DÁLE JEN "ŽADATEL")
C82: Základní údaje
C83: Jméno | T83: Příjmení | AK83: Rodné číslo
C85: Datum narození | T85: Země narození (není-li ČR) | AK85: Pohlaví
AL86: Muž | AO86: Žena
C87: Adresa trvalého pobytu (ulice, č.p., město, PSČ, země)
C89: Doklad totožnosti
C90: Typ dokladu
D91: Občanský průkaz | K91: Cestovní pas | Q91: Identifikační karta občana EU
C92: Číslo dokladu | T92: Země vydání dokladu (není-li ČR) | AK92: Datum vydání dokladu
C94: Kontaktní údaje
C95: Telefon | T95: E-mail
C98: ÚDAJE O POŽADOVANÉM ÚVĚRU
C99: Účel úvěru refinancování | T99: Celková výše úvěru v Kč** | AK99: Počet splátek
D100: Ano | H100: Ne
C101: Úvěr v kombinaci s neúčelovou částí*** | T101: Výše účelové části v Kč | AK101: Výše neúčelové části v Kč
D102: Ano | H102: Ne
C104: PROHLÁŠENÍ ŽADATELE
C105: Žadatel prohlašuje, že veškeré údaje uvedené v této žádosti o poskytnutí úvěru, resp. v dokumentech přiložených, jsou úplné a odpovídají skutečnosti a že nezamlčel žádnou relevantní skutečnost, která by mohla ovlivnit rozhodnutí UniCredit Bank Czech Republic and Slovakia, a.s. (dále jen „Banka“) při poskytnutí úvěru.
C106: Dále Žadatel prohlašuje, že je plně svéprávný a že ke dni podání této žádosti o poskytnutí úvěru není v prodlení vůči státu nebo jinému subjektu s úhradou daní či poplatků, úhradou pojistného na sociální zabezpečení, zdravotní pojištění, úhradou cla nebo jiných povinných plateb.
C107: Žadatel souhlasí s tím, aby Banka získala informace o jeho bonitě (zahrnující zejména informaci o povaze a rozsahu případného porušení dřívějších závazků), platební morálce a důvěryhodnosti, které jsou nutné k posouzení žádosti o poskytnutí úvěru, a to z registrů sdružení SOLUS (www.solus.cz), jehož je Banka členem.
C108: Žadatel potvrzuje, že se seznámil s "Poučením o zpracování osobních údajů podle § 11 zákona č. 101/2000 Sb., o ochraně osobních údajů", které je k dispozici mj. na webových stránkách a pobočkách Banky, zejména výslovně bere na vědomí, že Banka může jeho osobní údaje zpracovávat i prostřednictvím zpracovatelů se sídlem v členských státech Evropské unie, zejm. UniCredit Business Integrated Solutions S.C.p.A., Itálie. Veškerá místa, na kterých dochází ke zpracování osobních údajů Bankou nebo zpracovateli Banky, jsou nahlášena jako místa zpracování osobních údajů u Úřadu pro ochranu osobních údajů.
C112: Místo, datum | AB112: Podpis Žadatele
C113: * Nehodící se škrtněte
C114: ** Včetně všech nákladů, které budou z úvěru hrazeny (životní pojištění, poplatky atd.)
C115: *** Hypoteční úvěr Twin (rezidenční hypoteční úvěr kombinovaný s neúčelovou částí)
C116: Vyplní Banka / Pověřený zástupce Banky / Třetí strana - rozdělit
C117: Totožnost ověřil (jméno, příjmení): | AB117: Dne: | AO117: Podpis:
C119: Název (jméno) 3P: | AB119: Jméno a příjmení makléře:
C121: Přidělené ID 3P: | AB121: IČ (popř. RČ) makléře | AO121: Evid. č. makléře
C123: Telefon makléře: | AB123: E-mail makléře:
B127: SOUHLAS se zpracováním osobních údajů a použitím rodného čísla
B128: V souvislosti s uzavřením/žádostí o uzavření smlouvy mezi mnou a UniCredit Bank Czech Republic and Slovakia, a.s. (dále jen „Smlouva“ a „Banka“) souhlasím s tím, aby Banka za níže uvedeným účelem shromažďovala, zpracovávala a uchovávala mé osobní údaje, tj. jméno, příjmení, datum narození, rodné číslo, adresu, údaje o identifikačním dokladu a IČ (dále jen „osobní údaje“), a to způsobem, a za podmínek uvedených v Informačním Memorandu Bankovního registru klientských informací a Nebankovního registru klientských informací (dále jen „Informační Memorandum“) a v Poučení o registrech Sdružení SOLUS (též jen „Poučení“).
B129: Dále souhlasím, aby Banka mé osobní údaje předávala Sdružení SOLUS k dalšímu zpracování v „Pozitivním registru sdružení SOLUS“ (též jen „Pozitivní registr“) a v Registru FO Sdružení SOLUS (též jen „Registr FO“) k dalšímu shromažďování, zpracovávání a uchovávání. Souhlasím, aby Sdružení SOLUS vytvořilo informační soubor mých osobních údajů od všech členských bank, případně též společně s dalšími mými veřejně dostupnými osobními údaji (např. mé osobní údaje obsažené v Insolvenčním rejstříku), a v rámci tohoto informačního souboru mých osobních údajů provádělo statistická vyhodnocení mé bonity a důvěryhodnosti. Souhlasím, aby Sdružení SOLUS mé osobní údaje (ve formě informačního souboru včetně údajů o statistických vyhodnoceních mé bonity a důvěryhodnosti) zpřístupnilo formou on-line dotazů všem oprávněným uživatelům (členům sdružení SOLUS) Pozitivního registru a Registru FO, tedy i Bance, a to vždy v rozsahu a za podmínek uvedeném pro každý z těchto registrů v Poučení.
B130: Souhlasím, aby Banka i opakovaně získávala informace o mé bonitě, platební morálce a důvěryhodnosti z Pozitivního registru a Registru FO. Souhlasím, aby všichni oprávnění uživatelé Pozitivního registru anebo Registru FO, kterým byly zpřístupněny mé osobní údaje, tyto používali, a to případně spolu s dalšími mými osobními údaji, jež oprávněně zpracovávají.
B131: Účelem zpracování osobních údajů v Pozitivním registru a Registru FO je splnění povinnosti odpovědného poskytování úvěrů a jiných obchodů Banky, zajištění vzájemného informování oprávněných uživatelů Pozitivního registru a Registru FO o mé bonitě, důvěryhodnosti a platební morálce, posuzování mé bonity, důvěryhodnosti a platební morálky ze strany oprávněných uživatelů Pozitivního registru a Registru FO, a to i opakovaně, jakož i ochrana práv Banky a ostatních členů sdružení SOLUS. Kromě předešlého je účelem zpracování mých osobních údajů na základě tohoto souhlasu rovněž zajištění vzájemného informování oprávněných uživatelů Bankovního registru klientských informací (dále jen „BRKI“) a Nebankovního registru klientských informací (dále jen „NRKI“) o mé bonitě, důvěryhodnosti a platební morálce a umožnění (a to i opakovaného) posuzování mé bonity, důvěryhodnosti a platební morálky ze strany oprávněných uživatelů BRKI a NRKI. Způsob, rozsah a podmínky vzájemného informování oprávněných uživatelů BRKI a NRKI jsou uvedeny v Informačním Memorandu.
B132: Souhlas uděluji na dobu 4 let ode dne jeho udělení. V případě, že mezi mnou [nebo žadatelem, pokud jde o ručitele, spolužadatele nebo zákonného zástupce] a Bankou byla nebo bude uzavřena Smlouva, uděluji tento souhlas na dobu jejího trvání a na dobu dalších 4 let od splnění veškerých mých finančních závazků z uzavřené Smlouvy, pokud tyto závazky zaniknou splněním nebo způsobem nahrazujícím splnění, resp. od zániku Smlouvy, pokud finanční závazky ze Smlouvy zaniknou jinak.
B133: Před podpisem tohoto souhlasu jsem se seznámil(a) s Informačním Memorandem, které obsahuje i poučení o mých právech v souvislosti se zpracováním mých osobních údajů v rámci BRKI i pro účely vzájemného informování se uživatelů BRKI a/nebo NRKI o bonitě, důvěryhodnosti či platební morálce jejich klientů. Před podpisem tohoto souhlasu jsem rovněž byl(a) informován(a), že aktuální znění Informačního Memoranda mohu kdykoli získat na informační lince, pobočkách a na webových stránkách banky www.unicreditbank.cz nebo na informační lince a webových stránkách provozovatele registru www.cbcb.cz.
B134: Dále prohlašuji, že jsem se seznámil(a) s dokumentem "POUČENÍ o registrech Sdružení SOLUS", jehož obsahem je: (i) vysvětlení pojmu informační soubor, a to zvlášť pro Pozitivní registr a Registr FO, (ii) definice dalších mých osobních údajů, které mohou vzniknout při zpracování, (iii) popis fungování Pozitivního registru a Registru FO, (iv) identifikace subjektů či osob, které mohou mít přístup k mým osobním údajům při jejich zpracování a (v) poučení o mých právech (§ 11 a § 12 zákona o ochraně osobních údajů č. 101/2000 Sb.) a nárocích (§ 21 zákona č. 101/2000 Sb.) v souvislosti se zpracováním mých osobních údajů v rámci pozitivního registru SOLUS. Byl(a) jsem informován(a), že aktuální znění Poučení mohu kdykoli získat na informační lince, pobočkách a webových stránkách banky www.unicreditbank.cz nebo na informační lince a webových stránkách sdružení SOLUS www.solus.cz.
B135: Potvrzuji, že jsem byl(a) Bankou poučen(a) o svých nárocích vůči porušiteli dle § 21 zákona č. 101/2000 Sb.
B136: Po uzavření Smlouvy s Bankou se tento souhlas stává její nedílnou součástí.
B138: V | T138: dne
B142: Podpis žadatele
B146: Podpis spolužadatele
B148: Jméno a podpis zástupce banky, který podpis/y ověřil:
C149: Vyplní Banka
C150: Pracovník banky: | Y150: Číslo klienta (NDG):
C151: Pobočka (číslo): | Y151: Číslo žádosti:
B153: ŽÁDOST O POSKYTNUTÍ HYPOTEČNÍHO ÚVĚRU
C154: Vyplní klient
C155: ÚDAJE O ŽADATELI/SPOLUŽADATELI* (DÁLE JEN "ŽADATEL")
C156: Základní údaje
C157: Jméno | T157: Příjmení | AK157: Rodné číslo
C159: Datum narození | T159: Země narození (není-li ČR) | AK159: Pohlaví
AL160: Muž | AO160: Žena
C161: Adresa trvalého pobytu (ulice, č.p., město, PSČ, země)
C163: Doklad totožnosti
C164: Typ dokladu
D165: Občanský průkaz | K165: Cestovní pas | Q165: Identifikační karta občana EU
C166: Číslo dokladu | T166: Země vydání dokladu (není-li ČR) | AK166: Datum vydání dokladu
C168: Kontaktní údaje
C169: Telefon | T169: E-mail
C172: ÚDAJE O POŽADOVANÉM ÚVĚRU
C173: Účel úvěru refinancování | T173: Celková výše úvěru v Kč** | AK173: Počet splátek
D174: Ano | H174: Ne
C175: Úvěr v kombinaci s neúčelovou částí*** | T175: Výše účelové části v Kč | AK175: Výše neúčelové části v Kč
D176: Ano | H176: Ne
C178: PROHLÁŠENÍ ŽADATELE
C179: Žadatel prohlašuje, že veškeré údaje uvedené v této žádosti o poskytnutí úvěru, resp. v dokumentech přiložených, jsou úplné a odpovídají skutečnosti a že nezamlčel žádnou relevantní skutečnost, která by mohla ovlivnit rozhodnutí UniCredit Bank Czech Republic and Slovakia, a.s. (dále jen „Banka“) při poskytnutí úvěru.
C180: Dále Žadatel prohlašuje, že je plně svéprávný a že ke dni podání této žádosti o poskytnutí úvěru není v prodlení vůči státu nebo jinému subjektu s úhradou daní či poplatků, úhradou pojistného na sociální zabezpečení, zdravotní pojištění, úhradou cla nebo jiných povinných plateb.
C181: Žadatel souhlasí s tím, aby Banka získala informace o jeho bonitě (zahrnující zejména informaci o povaze a rozsahu případného porušení dřívějších závazků), platební morálce a důvěryhodnosti, které jsou nutné k posouzení žádosti o poskytnutí úvěru, a to z registrů sdružení SOLUS (www.solus.cz), jehož je Banka členem.
C182: Žadatel potvrzuje, že se seznámil s "Poučením o zpracování osobních údajů podle § 11 zákona č. 101/2000 Sb., o ochraně osobních údajů", které je k dispozici mj. na webových stránkách a pobočkách Banky, zejména výslovně bere na vědomí, že Banka může jeho osobní údaje zpracovávat i prostřednictvím zpracovatelů se sídlem v členských státech Evropské unie, zejm. UniCredit Business Integrated Solutions S.C.p.A., Itálie. Veškerá místa, na kterých dochází ke zpracování osobních údajů Bankou nebo zpracovateli Banky, jsou nahlášena jako místa zpracování osobních údajů u Úřadu pro ochranu osobních údajů.
C186: Místo, datum | AB186: Podpis Žadatele
C187: * Nehodící se škrtněte
C188: ** Včetně všech nákladů, které budou z úvěru hrazeny (životní pojištění, poplatky atd.)
C189: *** Hypoteční úvěr Twin (rezidenční hypoteční úvěr kombinovaný s neúčelovou částí)
C190: Vyplní Banka / Pověřený zástupce Banky / Třetí strana - rozdělit
C191: Totožnost ověřil (jméno, příjmení): | AB191: Dne: | AO191: Podpis:
C193: Název (jméno) 3P: | AB193: Jméno a příjmení makléře:
C195: Přidělené ID 3P: | AB195: IČ (popř. RČ) makléře | AO195: Evid. č. makléře
C197: Telefon makléře: | AB197: E-mail makléře:
B201: SOUHLAS se zpracováním osobních údajů a použitím rodného čísla
B202: V souvislosti s uzavřením/žádostí o uzavření smlouvy mezi mnou a UniCredit Bank Czech Republic and Slovakia, a.s. (dále jen „Smlouva“ a „Banka“) souhlasím s tím, aby Banka za níže uvedeným účelem shromažďovala, zpracovávala a uchovávala mé osobní údaje, tj. jméno, příjmení, datum narození, rodné číslo, adresu, údaje o identifikačním dokladu a IČ (dále jen „osobní údaje“), a to způsobem, a za podmínek uvedených v Informačním Memorandu Bankovního registru klientských informací a Nebankovního registru klientských informací (dále jen „Informační Memorandum“) a v Poučení o registrech Sdružení SOLUS (též jen „Poučení“).
B203: Dále souhlasím, aby Banka mé osobní údaje předávala Sdružení SOLUS k dalšímu zpracování v „Pozitivním registru sdružení SOLUS“ (též jen „Pozitivní registr“) a v Registru FO Sdružení SOLUS (též jen „Registr FO“) k dalšímu shromažďování, zpracovávání a uchovávání. Souhlasím, aby Sdružení SOLUS vytvořilo informační soubor mých osobních údajů od všech členských bank, případně též společně s dalšími mými veřejně dostupnými osobními údaji (např. mé osobní údaje obsažené v Insolvenčním rejstříku), a v rámci tohoto informačního souboru mých osobních údajů provádělo statistická vyhodnocení mé bonity a důvěryhodnosti. Souhlasím, aby Sdružení SOLUS mé osobní údaje (ve formě informačního souboru včetně údajů o statistických vyhodnoceních mé bonity a důvěryhodnosti) zpřístupnilo formou on-line dotazů všem oprávněným uživatelům (členům sdružení SOLUS) Pozitivního registru a Registru FO, tedy i Bance, a to vždy v rozsahu a za podmínek uvedeném pro každý z těchto registrů v Poučení.
B204: Souhlasím, aby Banka i opakovaně získávala informace o mé bonitě, platební morálce a důvěryhodnosti z Pozitivního registru a Registru FO. Souhlasím, aby všichni oprávnění uživatelé Pozitivního registru anebo Registru FO, kterým byly zpřístupněny mé osobní údaje, tyto používali, a to případně spolu s dalšími mými osobními údaji, jež oprávněně zpracovávají.
B205: Účelem zpracování osobních údajů v Pozitivním registru a Registru FO je splnění povinnosti odpovědného poskytování úvěrů a jiných obchodů Banky, zajištění vzájemného informování oprávněných uživatelů Pozitivního registru a Registru FO o mé bonitě, důvěryhodnosti a platební morálce, posuzování mé bonity, důvěryhodnosti a platební morálky ze strany oprávněných uživatelů Pozitivního registru a Registru FO, a to i opakovaně, jakož i ochrana práv Banky a ostatních členů sdružení SOLUS. Kromě předešlého je účelem zpracování mých osobních údajů na základě tohoto souhlasu rovněž zajištění vzájemného informování oprávněných uživatelů Bankovního registru klientských informací (dále jen „BRKI“) a Nebankovního registru klientských informací (dále jen „NRKI“) o mé bonitě, důvěryhodnosti a platební morálce a umožnění (a to i opakovaného) posuzování mé bonity, důvěryhodnosti a platební morálky ze strany oprávněných uživatelů BRKI a NRKI. Způsob, rozsah a podmínky vzájemného informování oprávněných uživatelů BRKI a NRKI jsou uvedeny v Informačním Memorandu.
B206: Souhlas uděluji na dobu 4 let ode dne jeho udělení. V případě, že mezi mnou [nebo žadatelem, pokud jde o ručitele, spolužadatele nebo zákonného zástupce] a Bankou byla nebo bude uzavřena Smlouva, uděluji tento souhlas na dobu jejího trvání a na dobu dalších 4 let od splnění veškerých mých finančních závazků z uzavřené Smlouvy, pokud tyto závazky zaniknou splněním nebo způsobem nahrazujícím splnění, resp. od zániku Smlouvy, pokud finanční závazky ze Smlouvy zaniknou jinak.
B207: Před podpisem tohoto souhlasu jsem se seznámil(a) s Informačním Memorandem, které obsahuje i poučení o mých právech v souvislosti se zpracováním mých osobních údajů v rámci BRKI i pro účely vzájemného informování se uživatelů BRKI a/nebo NRKI o bonitě, důvěryhodnosti či platební morálce jejich klientů. Před podpisem tohoto souhlasu jsem rovněž byl(a) informován(a), že aktuální znění Informačního Memoranda mohu kdykoli získat na informační lince, pobočkách a na webových stránkách banky www.unicreditbank.cz nebo na informační lince a webových stránkách provozovatele registru www.cbcb.cz.
B208: Dále prohlašuji, že jsem se seznámil(a) s dokumentem "POUČENÍ o registrech Sdružení SOLUS", jehož obsahem je: (i) vysvětlení pojmu informační soubor, a to zvlášť pro Pozitivní registr a Registr FO, (ii) definice dalších mých osobních údajů, které mohou vzniknout při zpracování, (iii) popis fungování Pozitivního registru a Registru FO, (iv) identifikace subjektů či osob, které mohou mít přístup k mým osobním údajům při jejich zpracování a (v) poučení o mých právech (§ 11 a § 12 zákona o ochraně osobních údajů č. 101/2000 Sb.) a nárocích (§ 21 zákona č. 101/2000 Sb.) v souvislosti se zpracováním mých osobních údajů v rámci pozitivního registru SOLUS. Byl(a) jsem informován(a), že aktuální znění Poučení mohu kdykoli získat na informační lince, pobočkách a webových stránkách banky www.unicreditbank.cz nebo na informační lince a webových stránkách sdružení SOLUS www.solus.cz.
B209: Potvrzuji, že jsem byl(a) Bankou poučen(a) o svých nárocích vůči porušiteli dle § 21 zákona č. 101/2000 Sb.
B210: Po uzavření Smlouvy s Bankou se tento souhlas stává její nedílnou součástí.
B212: V | T212: dne
B216: Podpis žadatele
B220: Podpis spolužadatele
B222: Jméno a podpis zástupce banky, který podpis/y ověřil:
C223: Vyplní Banka
C224: Pracovník banky: | Y224: Číslo klienta (NDG):
C225: Pobočka (číslo): | Y225: Číslo žádosti:
B227: ŽÁDOST O POSKYTNUTÍ HYPOTEČNÍHO ÚVĚRU
C228: Vyplní klient
C229: ÚDAJE O ŽADATELI/SPOLUŽADATELI* (DÁLE JEN "ŽADATEL")
C230: Základní údaje
C231: Jméno | T231: Příjmení | AK231: Rodné číslo
C233: Datum narození | T233: Země narození (není-li ČR) | AK233: Pohlaví
AL234: Muž | AO234: Žena
C235: Adresa trvalého pobytu (ulice, č.p., město, PSČ, země)
C237: Doklad totožnosti
C238: Typ dokladu
D239: Občanský průkaz | K239: Cestovní pas | Q239: Identifikační karta občana EU
C240: Číslo dokladu | T240: Země vydání dokladu (není-li ČR) | AK240: Datum vydání dokladu
C242: Kontaktní údaje
C243: Telefon | T243: E-mail
C246: ÚDAJE O POŽADOVANÉM ÚVĚRU
C247: Účel úvěru refinancování | T247: Celková výše úvěru v Kč** | AK247: Počet splátek
D248: Ano | H248: Ne
C249: Úvěr v kombinaci s neúčelovou částí*** | T249: Výše účelové části v Kč | AK249: Výše neúčelové části v Kč
D250: Ano | H250: Ne
C252: PROHLÁŠENÍ ŽADATELE
C253: Žadatel prohlašuje, že veškeré údaje uvedené v této žádosti o poskytnutí úvěru, resp. v dokumentech přiložených, jsou úplné a odpovídají skutečnosti a že nezamlčel žádnou relevantní skutečnost, která by mohla ovlivnit rozhodnutí UniCredit Bank Czech Republic and Slovakia, a.s. (dále jen „Banka“) při poskytnutí úvěru.
C254: Dále Žadatel prohlašuje, že je plně svéprávný a že ke dni podání této žádosti o poskytnutí úvěru není v prodlení vůči státu nebo jinému subjektu s úhradou daní či poplatků, úhradou pojistného na sociální zabezpečení, zdravotní pojištění, úhradou cla nebo jiných povinných plateb.
C255: Žadatel souhlasí s tím, aby Banka získala informace o jeho bonitě (zahrnující zejména informaci o povaze a rozsahu případného porušení dřívějších závazků), platební morálce a důvěryhodnosti, které jsou nutné k posouzení žádosti o poskytnutí úvěru, a to z registrů sdružení SOLUS (www.solus.cz), jehož je Banka členem.
C256: Žadatel potvrzuje, že se seznámil s "Poučením o zpracování osobních údajů podle § 11 zákona č. 101/2000 Sb., o ochraně osobních údajů", které je k dispozici mj. na webových stránkách a pobočkách Banky, zejména výslovně bere na vědomí, že Banka může jeho osobní údaje zpracovávat i prostřednictvím zpracovatelů se sídlem v členských státech Evropské unie, zejm. UniCredit Business Integrated Solutions S.C.p.A., Itálie. Veškerá místa, na kterých dochází ke zpracování osobních údajů Bankou nebo zpracovateli Banky, jsou nahlášena jako místa zpracování osobních údajů u Úřadu pro ochranu osobních údajů.
C260: Místo, datum | AB260: Podpis Žadatele
C261: * Nehodící se škrtněte
C262: ** Včetně všech nákladů, které budou z úvěru hrazeny (životní pojištění, poplatky atd.)
C263: *** Hypoteční úvěr Twin (rezidenční hypoteční úvěr kombinovaný s neúčelovou částí)
C264: Vyplní Banka / Pověřený zástupce Banky / Třetí strana - rozdělit
C265: Totožnost ověřil (jméno, příjmení): | AB265: Dne: | AO265: Podpis:
C267: Název (jméno) 3P: | AB267: Jméno a příjmení makléře:
C269: Přidělené ID 3P: | AB269: IČ (popř. RČ) makléře | AO269: Evid. č. makléře
C271: Telefon makléře: | AB271: E-mail makléře:
B275: SOUHLAS se zpracováním osobních údajů a použitím rodného čísla
B276: V souvislosti s uzavřením/žádostí o uzavření smlouvy mezi mnou a UniCredit Bank Czech Republic and Slovakia, a.s. (dále jen „Smlouva“ a „Banka“) souhlasím s tím, aby Banka za níže uvedeným účelem shromažďovala, zpracovávala a uchovávala mé osobní údaje, tj. jméno, příjmení, datum narození, rodné číslo, adresu, údaje o identifikačním dokladu a IČ (dále jen „osobní údaje“), a to způsobem, a za podmínek uvedených v Informačním Memorandu Bankovního registru klientských informací a Nebankovního registru klientských informací (dále jen „Informační Memorandum“) a v Poučení o registrech Sdružení SOLUS (též jen „Poučení“).
B277: Dále souhlasím, aby Banka mé osobní údaje předávala Sdružení SOLUS k dalšímu zpracování v „Pozitivním registru sdružení SOLUS“ (též jen „Pozitivní registr“) a v Registru FO Sdružení SOLUS (též jen „Registr FO“) k dalšímu shromažďování, zpracovávání a uchovávání. Souhlasím, aby Sdružení SOLUS vytvořilo informační soubor mých osobních údajů od všech členských bank, případně též společně s dalšími mými veřejně dostupnými osobními údaji (např. mé osobní údaje obsažené v Insolvenčním rejstříku), a v rámci tohoto informačního souboru mých osobních údajů provádělo statistická vyhodnocení mé bonity a důvěryhodnosti. Souhlasím, aby Sdružení SOLUS mé osobní údaje (ve formě informačního souboru včetně údajů o statistických vyhodnoceních mé bonity a důvěryhodnosti) zpřístupnilo formou on-line dotazů všem oprávněným uživatelům (členům sdružení SOLUS) Pozitivního registru a Registru FO, tedy i Bance, a to vždy v rozsahu a za podmínek uvedeném pro každý z těchto registrů v Poučení.
B278: Souhlasím, aby Banka i opakovaně získávala informace o mé bonitě, platební morálce a důvěryhodnosti z Pozitivního registru a Registru FO. Souhlasím, aby všichni oprávnění uživatelé Pozitivního registru anebo Registru FO, kterým byly zpřístupněny mé osobní údaje, tyto používali, a to případně spolu s dalšími mými osobními údaji, jež oprávněně zpracovávají.
B279: Účelem zpracování osobních údajů v Pozitivním registru a Registru FO je splnění povinnosti odpovědného poskytování úvěrů a jiných obchodů Banky, zajištění vzájemného informování oprávněných uživatelů Pozitivního registru a Registru FO o mé bonitě, důvěryhodnosti a platební morálce, posuzování mé bonity, důvěryhodnosti a platební morálky ze strany oprávněných uživatelů Pozitivního registru a Registru FO, a to i opakovaně, jakož i ochrana práv Banky a ostatních členů sdružení SOLUS. Kromě předešlého je účelem zpracování mých osobních údajů na základě tohoto souhlasu rovněž zajištění vzájemného informování oprávněných uživatelů Bankovního registru klientských informací (dále jen „BRKI“) a Nebankovního registru klientských informací (dále jen „NRKI“) o mé bonitě, důvěryhodnosti a platební morálce a umožnění (a to i opakovaného) posuzování mé bonity, důvěryhodnosti a platební morálky ze strany oprávněných uživatelů BRKI a NRKI. Způsob, rozsah a podmínky vzájemného informování oprávněných uživatelů BRKI a NRKI jsou uvedeny v Informačním Memorandu.
B280: Souhlas uděluji na dobu 4 let ode dne jeho udělení. V případě, že mezi mnou [nebo žadatelem, pokud jde o ručitele, spolužadatele nebo zákonného zástupce] a Bankou byla nebo bude uzavřena Smlouva, uděluji tento souhlas na dobu jejího trvání a na dobu dalších 4 let od splnění veškerých mých finančních závazků z uzavřené Smlouvy, pokud tyto závazky zaniknou splněním nebo způsobem nahrazujícím splnění, resp. od zániku Smlouvy, pokud finanční závazky ze Smlouvy zaniknou jinak.
B281: Před podpisem tohoto souhlasu jsem se seznámil(a) s Informačním Memorandem, které obsahuje i poučení o mých právech v souvislosti se zpracováním mých osobních údajů v rámci BRKI i pro účely vzájemného informování se uživatelů BRKI a/nebo NRKI o bonitě, důvěryhodnosti či platební morálce jejich klientů. Před podpisem tohoto souhlasu jsem rovněž byl(a) informován(a), že aktuální znění Informačního Memoranda mohu kdykoli získat na informační lince, pobočkách a na webových stránkách banky www.unicreditbank.cz nebo na informační lince a webových stránkách provozovatele registru www.cbcb.cz.
B282: Dále prohlašuji, že jsem se seznámil(a) s dokumentem "POUČENÍ o registrech Sdružení SOLUS", jehož obsahem je: (i) vysvětlení pojmu informační soubor, a to zvlášť pro Pozitivní registr a Registr FO, (ii) definice dalších mých osobních údajů, které mohou vzniknout při zpracování, (iii) popis fungování Pozitivního registru a Registru FO, (iv) identifikace subjektů či osob, které mohou mít přístup k mým osobním údajům při jejich zpracování a (v) poučení o mých právech (§ 11 a § 12 zákona o ochraně osobních údajů č. 101/2000 Sb.) a nárocích (§ 21 zákona č. 101/2000 Sb.) v souvislosti se zpracováním mých osobních údajů v rámci pozitivního registru SOLUS. Byl(a) jsem informován(a), že aktuální znění Poučení mohu kdykoli získat na informační lince, pobočkách a webových stránkách banky www.unicreditbank.cz nebo na informační lince a webových stránkách sdružení SOLUS www.solus.cz.
B283: Potvrzuji, že jsem byl(a) Bankou poučen(a) o svých nárocích vůči porušiteli dle § 21 zákona č. 101/2000 Sb.
B284: Po uzavření Smlouvy s Bankou se tento souhlas stává její nedílnou součástí.
B286: V | T286: dne
B290: Podpis žadatele
B294: Podpis spolužadatele
B296: Jméno a podpis zástupce banky, který podpis/y ověřil:
... 318 more rows

Sheet FIN_CLC (hidden)
C2: Pomocník při výpočtu splatnosti v EUROSIGovských úvěrových aplikacích
C4: Zadejte typ úvěru | N4: 4
N5: =TODAY() -> 2016-02-02 | O5: =DAY(N5) -> 2
D6: FIN - parametry: | N6: =MID(I8,1,30) -> 
N7: =MID(I12,1,30) -> 
D8: ASD | E8: (doba čerpání) | G8: =DatumDocerpani -> 0 | H8: =IF(G8=1,"měsíc",IF(OR(G8=2,G8=3,G8=4),"měsíce","měsíců")) -> měsíců | I8: =IF(OR(N4=1,N4=3),IF(G8>0,"POZOR!!! Vyplňte pouze hodnotu: 0",""),IF(OR(N4=2,N4=5),IF(G8>6,"POZOR!!! Vyplňte pouze hodnotu: 0-6",""),IF(N4=7,IF(G8>6,"POZOR!!! Vyplňte pouze hodnotu: 0-6",""),IF(N4=6,IF(G8>18,"POZOR!!! Vyplňte pouze hodnotu: 0-18",""),IF(G8>24,"POZOR!!! Vyplňte pouze hodnotu: 0-24",""))))) -> 
D10: =IF(N4=5,"","PSD") -> PSD | E10: =IF(N4=5,"Odklad splátek","(počet úrokových plateb po vyčerpání)") -> (počet úrokových plateb po vyčerpání) | G10: 1 | H10: =IF(G10=1,"měsíc",IF(OR(G10=2,G10=3,G10=4),"měsíce","měsíců")) -> měsíc | I10: =IF(N4=8,IF(G10<12,"POZOR!!! Vyplňte pouze hodnotu: 12 a více","Uveďte dobu splatnosti x 12 měsíců"),IF(N4=3,"K výpočtu použijte kalkulačku na Studentskou půjčku",IF(N4=5,IF(G10>12,"POZOR!!! Vyplňte pouze hodnotu: 1-12",""),IF(N4<>5,IF(G10=1,"","POZOR!!! Vyplňte pouze hodnotu: 1"),IF(G10=1,"","POZOR!!! Vyplňte pouze hodnotu: 1"))))) -> 
D12: AMM | E12: počet splátek | G12: =Splatnost -> 0 | H12: =IF(G12=1,"měsíc",IF(OR(G12=2,G12=3,G12=4),"měsíce","měsíců")) -> měsíců | I12: =IF(N4=8,IF(G12>1,"POZOR!!! Vyplňte pouze hodnotu: 1",""),IF(N4=2,IF(G12>120,"POZOR!!! Vyplňte pouze hodnotu: 1-120 - dle platné metodiky",""),IF(N4=1,IF(G12>60,"POZOR!!! Vyplňte pouze hodnotu: 1-60 - dle platné metodiky",""),IF(OR(N4=3,N4=7),IF(G12>120,"POZOR!!! Vyplňte pouze hodnotu: 1-120",""),IF(OR(N4=4,N4=5),IF(G12>480,"POZOR!!! Vyplňte pouze hodnotu: 1-480",""),IF(N4=6,IF(G12>180,"POZOR!!! Vyplňte pouze hodnotu: 1-180",""),"")))))) -> 
D14: Duration | G14: =IF(N4=5,G12+G8,G12+G10+G8) -> 1 | H14: =IF(G14=1,"měsíc",IF(OR(G14=2,G14=3,G14=4),"měsíce","měsíců")) -> měsíc
D16: Předpoklad podpisu smlouvy do: | G16: =CLC_PodpisSml -> 3 | H16: =IF(G16=1,"měsíce","měsíců") -> měsíců
D18: Délka fixního období | G18: =IF(LEFT(Fix_obdobi,1)>0,LEFT(Fix_obdobi,1),0) -> 3 | H18: =IF(G18=1,"rok",IF(OR(G18=2,G18=3,G18=4),"roky","roků")) -> roků
F20: =IF(OR(N4=1,N4=2,N4=3),"19.",IF(OR(N4=4,N4=5),"24.","9.")) -> 24. | G20: =IF(O5<25,EDATE(N5,G18*12),EDATE(N5,G18*12+1)) -> 2019-02-02
D21: Předpokládané datum konce fixního období | F21: =DATE(YEAR(G20),MONTH(G20),LEFT(F20,2)) -> 2019-02-24
D23: CL&C - datum splatnosti
F25: =IF(OR(N4=1,N4=2,N4=3),"20.",IF(OR(N4=4,N4=5),"25.","10.")) -> 25. | G25: =EDATE(N5,IF(OR(N4=1,N4=2,N4=3),G12+G16+1,G14+G16+1)) -> 2016-07-02
D26: vypočtené dle parametrů ve FINu | F26: =DATE(YEAR(G25),MONTH(G25),LEFT(F25,2)) -> 2016-07-25
B28: V případě, že se Vám v poli "Předpokládané datum konce fixního období" a "CL&C - datum splatnosti" nezobrazuje správně datum (v poli je #NÁZEV?), musíte si povolit rozšířené funkce a poté excel znovu otevřít: Nástroje -> Doplňky -> a zde zaškrnout pole Analysis ToolPak

Sheet Domain (hidden)
A1: Povolené produkty | B1: Prod Kód | C1: FIXList | D1: StandardList | E1: Typ Nemovitosti: | F1: Nem Kód | G1: Žadatel | H1: Rodné číslo | I1: Příjmy | J1: Mapping | K1: Typklienta | L1: Bydliště+osob | M1: Náklad domacnosti | N1: Bydliště +typ osoby | O1: Osobní náklady | P1: typ úvěru (fin_clc
A2: Hypoteční úvěr účelový rezidenční Individual | B2: 01a | C2: Float | D2: S | E2: zděná nemovitost nebo pozemek | F2: ZDE | G2: Občan ČR | H2: Má české nebo slovenské RČ | I2: Česká republika | J2: OMČ | K2: S | L2: Praha1 | M2: 3400 | N2: PrahaDosp | O2: 4100 | P2: Osobní úvěr - neúčelový
A3: Hypoteční úvěr účelový rezidenční Twin | B3: 01e | C3: 1 rok | D3: N | E3: montovaný rodinný dům | F3: MON | G3: Občan SR bez trvalého pobytu | H3: Nemá | I3: Závislá činnost v zahraničí | J3: CMČ | K3: S | L3: Praha2 | M3: 4500 | N3: PrahaDite | O3: 3900 | P3: Osobní úvěr - účelový
A4: Hypoteční úvěr účelový nerezidenční | B4: 02 | C4: 2 roky | E4: chata, chalupa | F4: PBR | G4: Cizinec s trvalým pobytem | I4: Podnikání v zahraničí - NEAKCEPTOVÁNO | J4: CNČ | K4: N | L4: Praha3 | M4: 5100 | N4: Ostatní kraje ČRDosp | O4: 3600 | P4: Studentská půjčka
A5: Hypoteční úvěr neúčelový | B5: 03 | C5: 3 roky | F5: PBN | G5: Jiný | J5: JMČ | K5: N | L5: Praha4 | M5: 5700 | N5: Ostatní kraje ČRDite | O5: 3500 | P5: Hypoteční úvěr - IND
A6: Hypoteční úvěr účelový rezidenční Flexi | B6: 01c | C6: 5 let | F6: CHA | J6: JNČ | K6: N | L6: Praha5 | M6: 6200 | N6: Mimo ČRDosp | O6: =O2*1.5 -> 6150 | P6: Hypoteční úvěr s odkladem splátek - IND
C7: 7 let | J7: JČ | K7: N | L7: Praha6 | M7: 6600 | N7: Mimo ČRDite | O7: =O3*1.5 -> 5850 | P7: Hypoteční úvěr - SB
C8: 10 let | J8: OMZ | K8: S | L8: Praha7 | M8: 6900 | P8: Investiční úvěr
J9: ONZ | K9: S | L9: Praha8 | M9: 7100 | P9: Hypoteční úvěr kombinovaný
J10: OZ | K10: S | L10: Praha9 | M10: 7200
J11: ONČ | K11: S | L11: Praha10 | M11: 7200
J12: SMČ | K12: S | L12: Ostatní kraje ČR1 | M12: 3000
J13: SNČ | K13: S | L13: Ostatní kraje ČR2 | M13: 3900
J14: SČ | K14: S | L14: Ostatní kraje ČR3 | M14: 4500
L15: Ostatní kraje ČR4 | M15: 5000
L16: Ostatní kraje ČR5 | M16: 5500
L17: Ostatní kraje ČR6 | M17: 5900
L18: Ostatní kraje ČR7 | M18: 6200
L19: Ostatní kraje ČR8 | M19: 6400
L20: Ostatní kraje ČR9 | M20: 6500
L21: Ostatní kraje ČR10 | M21: 6500
L22: Mimo ČR1 | M22: =M2*1.5 -> 5100
L23: Mimo ČR2 | M23: 6750
L24: Mimo ČR3 | M24: 7650
L25: Mimo ČR4 | M25: 8550
L26: Mimo ČR5 | M26: 9300
L27: Mimo ČR6 | M27: 9900
L28: Mimo ČR7 | M28: 10350
L29: Mimo ČR8 | M29: 10650
L30: Mimo ČR9 | M30: 10800
L31: Mimo ČR10 | M31: 10800

Sheet ALM_Hypo (hidden)
A1: Úrokové sazby pro výpočet sazeb hypotéčních úvěrů v CZK | T1: Jen pro vnitřní potřebu ! | Y1: Platnost pro období
A2: Perioda | B2: Typ | C2: Splatnost | D2: FTP Bid | E2: FTP Offer | Y2: Od: | Z2: 2016-02-01
A3: SPOT | B3: MM | C3: 2013-04-02 | E3: MMcurve act/360 | Y3: Do: | Z3: 2016-02-29
A4: 1W | B4: MM | C4: 2013-04-09 | D4: 0.19 | E4: 0.23
A5: 2W | B5: MM | C5: 2013-04-16 | D5: 0.19 | E5: 0.23
A6: 1M | B6: MM | C6: 2013-05-02 | D6: 0.27 | E6: 0.31 | J6: Tabulka referenčních úrokových sazeb pro standardní hypotéční úvěry v CZK
A7: 2M | B7: MM | C7: 2013-06-02 | D7: 0.33 | E7: 0.37 | J7: (úvěry pro úvěry do 20 mio. CZK)
A8: 3M | B8: MM | C8: 2013-07-02 | D8: 0.43 | E8: 0.47
A9: 6M | B9: MM | C9: 2013-10-02 | D9: 0.55 | E9: 0.59 | J9: Perioda | N9: 1 | O9: 2 | P9: 3 | Q9: 4 | R9: 5 | S9: 6 | T9: 7 | U9: 8 | V9: 9 | W9: 10
A10: 9M | B10: MM | C10: 2014-01-02 | D10: 0.66 | E10: 0.7 | J10: Typ sazby | K10: Splatnost | L10: Forward | M10: Profil Čerpání | N10: Market Rate (fixní sazba)
A11: 12M | B11: MM | C11: 2014-04-02 | D11: 0.4169970706 | E11: 0.4769970706 | J11: FIX | K11: 20 | L11: 3 | M11: 1 | N11: 0.0039 | O11: 0.0039 | P11: 0.0038 | Q11: 0.0041 | R11: 0.0046 | S11: 0.0052 | T11: 0.0058 | U11: 0.0065 | V11: 0.0072 | W11: 0.0077
A12: SPOT | B12: IRS | C12: 2013-04-02 | E12: IRScurve act/360 | J12: Typ sazby | K12: Splatnost | L12: Forward | M12: Profil Čerpání | N12: Special Refinancing Spread
A13: 1R | B13: IRS | C13: 2014-04-02 | D13: 0.465 | E13: 0.465 | J13: FIX | K13: 20 | L13: 3 | M13: 1 | N13: 0.0001 | O13: 0.0001 | P13: 0.0003 | Q13: 0.0007 | R13: 0.0009 | S13: 0.0022 | T13: 0.0031 | U13: 0.0043 | V13: 0.0054 | W13: 0.0062
A14: 2R | B14: IRS | C14: 2015-04-02 | D14: 0.625 | E14: 0.625 | J14: Typ sazby | K14: Splatnost | L14: Forward | M14: Profil Čerpání | N14: Option Spread
A15: 3R | B15: IRS | C15: 2016-04-02 | D15: 0.71 | E15: 0.71 | J15: FIX | K15: 20 | L15: 3 | M15: 1 | N15: 0.003 | O15: 0.003 | P15: 0.003 | Q15: 0.003 | R15: 0.003 | S15: 0.003 | T15: 0.003 | U15: 0.003 | V15: 0.003 | W15: 0.003
A16: 4R | B16: IRS | C16: 2017-04-02 | D16: 0.79 | E16: 0.79 | J16: Typ sazby | K16: Splatnost | L16: Forward | M16: Profil Čerpání | N16: Option Spread - prepayment option
A17: 5R | B17: IRS | C17: 2018-04-02 | D17: 0.875 | E17: 0.875 | J17: FIX | K17: 20 | L17: 3 | M17: 1 | N17: 0.0002 | O17: 0.0002 | P17: 0.0002 | Q17: 0.0002 | R17: 0.0002 | S17: 0.0002 | T17: 0.0002 | U17: 0.0002 | V17: 0.0002 | W17: 0.0002
A18: 6R | B18: IRS | C18: 2019-04-02 | D18: 0.975 | E18: 0.975 | J18: Typ sazby | K18: Splatnost | L18: Forward | M18: Profil Čerpání | N18: Special Refinancing Spread
A19: 7R | B19: IRS | C19: 2020-04-02 | D19: 1.07 | E19: 1.07 | J19: FLOAT | K19: 15 | L19: 0 | M19: 0 | N19: 0.0009
A20: 8R | B20: IRS | C20: 2021-04-02 | D20: 1.165 | E20: 1.165 | J20: Typ sazby | K20: Splatnost | L20: Forward | M20: Profil Čerpání | N20: Basis Risk Spread/Market Rate Penalty
A21: 9R | B21: IRS | C21: 2022-04-02 | D21: 1.255 | E21: 1.255 | J21: FLOAT | K21: 15 | L21: 0 | M21: 0 | N21: 0.0013
A22: 10R | B22: IRS | C22: 2023-04-02 | D22: 1.345 | E22: 1.345 | J22: Typ sazby | K22: Splatnost | L22: Forward | M22: Profil Čerpání | N22: Special Refinancing Spread
A23: 11R | B23: IRS | C23: 2024-04-02 | D23: 1.425156769 | E23: 1.425156769 | J23: FLOAT2 | K23: 15 | L23: 0 | M23: 0 | N23: 0.0009
A24: 12R | B24: IRS | C24: 2025-04-02 | D24: 1.51 | E24: 1.51 | J24: Typ sazby | K24: Splatnost | L24: Forward | M24: Profil Čerpání | N24: Option Spread
A25: 13R | B25: IRS | C25: 2026-04-02 | D25: 1.573792382 | E25: 1.573792382 | J25: FLOAT2 | K25: 15 | L25: 0 | M25: 0 | N25: 0.0039
J26: Funding u typu sazby "FIX" je součtem Market Rate a Special Refinancing Spread, u sazby typu "FLOAT" (BMR) je Special Refinancing Spread zvýšený o Market Rate Penalty, u sazby typu "FLOAT2" (BMR2) je součástí fundingu Special Refinancing Spread a Option S
J27: V případě Hypotéčního úvěru FLEXI je Funding součtem Market Rate, Special Refinancing Spread a Option Spread; ve všech ostatních případech s fixní sazbou je Funding součtem Market Rate, Special Refinancing Spread a Option Spread - undrawdown
J28: Pozn.: v MR pro nové úvěry je obsažena opce na garanci sazby klientovi po dobu 2 týdnů ve výši: | W28: 0
A29: 15R | B29: IRS | C29: 2028-04-02 | D29: 1.71 | E29: 1.71 | J29: V případě Hypotéčního úvěru FLEXI je Funding součtem Market Rate, Special Refinancing Spread a Option Spread; ve všech ostatních případech s fixní sazbou je Funding součtem Market Rate, Special Refinancing Spread a Option Spread - undrawdown
A30: 16R | B30: IRS | C30: 2029-04-02 | D30: 1.737090473 | E30: 1.737090473 | J30: Pozn.: v MR pro nové úvěry je obsažena opce na garanci sazby klientovi po dobu 2 týdnů ve výši: | W30: 0
A31: 17R | B31: IRS | C31: 2030-04-02 | D31: 1.764620536 | E31: 1.764620536 | J31: FIX | N31: 0.0057 | O31: 0.0068 | P31: 0.0076 | Q31: 0.0085 | R31: 0.0095 | S31: 0.0104 | T31: 0.0112 | U31: 0.012 | V31: 0.0128 | W31: 0.0134
A32: 18R | B32: IRS | C32: 2031-04-02 | D32: 1.792597325 | E32: 1.792597325 | J32: Typ sazby | N32: Special Refinancing Spread
A33: 19R | B33: IRS | C33: 2032-04-02 | D33: 1.821106614 | E33: 1.821106614 | J33: FIX | N33: 0.0059 | O33: 0.0059 | P33: 0.0067 | Q33: 0.0073 | R33: 0.0082 | S33: 0.0087 | T33: 0.0095 | U33: 0.0104 | V33: 0.0111 | W33: 0.0119
A34: 20R | B34: IRS | C34: 2033-04-02 | D34: 1.85 | E34: 1.85 | J34: Typ sazby | N34: Option Spread
J35: FIX | N35: 0.003 | O35: 0.003 | P35: 0.003 | Q35: 0.003 | R35: 0.003 | S35: 0.003 | T35: 0.003 | U35: 0.003 | V35: 0.003 | W35: 0.003
J36: Typ sazby | N36: Option Spread - undrawdown
J37: FIX | N37: 0.0003 | O37: 0.0003 | P37: 0.0003 | Q37: 0.0003 | R37: 0.0003 | S37: 0.0003 | T37: 0.0003 | U37: 0.0003 | V37: 0.0003 | W37: 0.0003
J38: Standard Funding | N38: 0.0119 | O38: 0.013 | P38: 0.0146 | Q38: 0.0161 | R38: 0.018 | S38: 0.0194 | T38: 0.021 | U38: 0.0227 | V38: 0.0242 | W38: 0.0256
J39: Funding with early prepayment option | N39: 0.0146 | O39: 0.0157 | P39: 0.0173 | Q39: 0.0188 | R39: 0.0207 | S39: 0.0221 | T39: 0.0237 | U39: 0.0254 | V39: 0.0269 | W39: 0.0283
J41: Q4 - Refinancing from 1/10/2013 to 31/12/2013
J42: Perioda | N42: 1 | O42: 2 | P42: 3 | Q42: 4 | R42: 5 | S42: 6 | T42: 7 | U42: 8 | V42: 9 | W42: 10
J43: Typ sazby | N43: Market Rate (fixní sazba)
J44: FIX | N44: 0.0057 | O44: 0.0068 | P44: 0.0076 | Q44: 0.0085 | R44: 0.0095 | S44: 0.0104 | T44: 0.0112 | U44: 0.012 | V44: 0.0128 | W44: 0.0134
J45: Typ sazby | N45: Special Refinancing Spread
J46: FIX | N46: 0.0059 | O46: 0.0059 | P46: 0.0067 | Q46: 0.0073 | R46: 0.0082 | S46: 0.0087 | T46: 0.0095 | U46: 0.0104 | V46: 0.0111 | W46: 0.0119
J47: Typ sazby | N47: Option Spread
J48: FIX | N48: 0.003 | O48: 0.003 | P48: 0.003 | Q48: 0.003 | R48: 0.003 | S48: 0.003 | T48: 0.003 | U48: 0.003 | V48: 0.003 | W48: 0.003
J49: Typ sazby | N49: Option Spread - undrawdown
J50: FIX | N50: 0.0003 | O50: 0.0003 | P50: 0.0003 | Q50: 0.0003 | R50: 0.0003 | S50: 0.0003 | T50: 0.0003 | U50: 0.0003 | V50: 0.0003 | W50: 0.0003
J51: Standard Funding | N51: 0.0119 | O51: 0.013 | P51: 0.0146 | Q51: 0.0161 | R51: 0.018 | S51: 0.0194 | T51: 0.021 | U51: 0.0227 | V51: 0.0242 | W51: 0.0256
J52: Funding with early prepayment option | N52: 0.0146 | O52: 0.0157 | P52: 0.0173 | Q52: 0.0188 | R52: 0.0207 | S52: 0.0221 | T52: 0.0237 | U52: 0.0254 | V52: 0.0269 | W52: 0.0283

Sheet Defsazby (hidden)
A1: TYP_ID | B1: DATUM | C1: CCY | D1: FIX | E1: LTV_MIN | F1: LTV_MAX | G1: SPLATNOST_MIN | H1: SPLATNOST_MAX | I1: VYSE_MIN | J1: VYSE_MAX | K1: RATE | L1: SLEVA_CF | M1: SLEVA_CP | N1: SLEVA_AB | O1: SLEVA_KK | P1: SLEVA_ABFL | R1: aktuální BMR | S1: maximální BMR | T1: Market Rate (MR) | U1: Option Spread (OS) | V1: Special Refinancing Spread (SRS) | W1: Funding rate | X1: Risk Margin (RM) | Y1: Basic Commercial Margin (CM)
A2: 01a_N | B2: 2016-02-01 | C2: CZK | D2: Fl | E2: 0 | F2: 85 | G2: 0 | H2: 30 | I2: 999999 | J2: 999999999 | K2: =T2+U2+V2+X2+Y2 -> 2.97 | L2: 0.3 | O2: 0.1 | P2: 0.5 | Q2: BMR2 | R2: 0.0037 | S2: 0.0093 | T2: =T22 -> 0.26 | U2: =U22 -> 0 | V2: =V22 -> 0.22 | W2: =T2+U2+V2 -> 0.48 | X2: =X22+0.38 -> 0.72 | Y2: =Y22 -> 1.77
A3: 01a_N | B3: =$B$2 -> 2016-02-01 | C3: CZK | D3: Fl | E3: 85 | F3: 100 | G3: 0 | H3: 30 | I3: 999999 | J3: 999999999 | K3: =T3+U3+V3+X3+Y3 -> 4.47 | L3: 0.3 | O3: 0.1 | P3: 0.5 | Q3: BMR1 | R3: 0.0026 | S3: x | T3: =T22 -> 0.26 | U3: =U22 -> 0 | V3: =V22 -> 0.22 | W3: =T3+U3+V3 -> 0.48 | X3: =X23+0.38 -> 1.22 | Y3: =Y23 -> 2.77
A4: 01a_N | B4: =$B$2 -> 2016-02-01 | C4: CZK | D4: 1 | E4: 0 | F4: 85 | G4: 0 | H4: 30 | I4: 999999 | J4: 999999999 | K4: 5.32 | L4: 0.3 | M4: 0.3 | N4: 0.5 | O4: 0.1 | T4: =T24 -> 0.39 | U4: =U24 -> 0.02 | V4: =V24 -> 0.01 | W4: 0.42 | X4: 0.72 | Y4: 4.18
A5: 01a_N | B5: 2016-02-01 | C5: CZK | D5: 1 | E5: 90 | F5: 100 | G5: 0 | H5: 30 | I5: 999999 | J5: 999999999 | K5: 6.82 | L5: 0.3 | M5: 0.3 | N5: 0.5 | O5: 0.1 | T5: =T24 -> 0.39 | U5: =U24 -> 0.02 | V5: =V24 -> 0.01 | W5: 0.42 | X5: 1.22 | Y5: 5.18
A6: 01a_N | B6: 2016-02-01 | C6: CZK | D6: 1 | E6: 85 | F6: 90 | G6: 0 | H6: 30 | I6: 999999 | J6: 999999999 | K6: 6.82 | L6: 0.3 | M6: 0.3 | N6: 0.5 | O6: 0.1 | T6: =T24 -> 0.39 | U6: =U24 -> 0.02 | V6: =V24 -> 0.01 | W6: 0.42 | X6: 1.22 | Y6: 5.18
A7: 01a_N | B7: 2016-02-01 | C7: CZK | D7: 10 | E7: 0 | F7: 85 | G7: 0 | H7: 30 | I7: 999999 | J7: 999999999 | K7: 4.43 | L7: 0.3 | M7: 0.3 | N7: 0.5 | O7: 0.1 | T7: =T27 -> 0.77 | U7: =U27 -> 0.02 | V7: =V27 -> 0.62 | W7: 1.41 | X7: 0.72 | Y7: 2.3
A8: 01a_N | B8: 2016-02-01 | C8: CZK | D8: 10 | E8: 90 | F8: 100 | G8: 0 | H8: 30 | I8: 999999 | J8: 999999999 | K8: 5.93 | L8: 0.3 | M8: 0.3 | N8: 0.5 | O8: 0.1 | T8: =T27 -> 0.77 | U8: =U27 -> 0.02 | V8: =V27 -> 0.62 | W8: 1.41 | X8: 1.22 | Y8: 3.3
A9: 01a_N | B9: 2016-02-01 | C9: CZK | D9: 10 | E9: 85 | F9: 90 | G9: 0 | H9: 30 | I9: 999999 | J9: 999999999 | K9: 5.93 | L9: 0.3 | M9: 0.3 | N9: 0.5 | O9: 0.1 | T9: =T27 -> 0.77 | U9: =U27 -> 0.02 | V9: =V27 -> 0.62 | W9: 1.41 | X9: 1.22 | Y9: 3.3
A10: 01a_N | B10: 2016-02-01 | C10: CZK | D10: 2 | E10: 0 | F10: 85 | G10: 0 | H10: 30 | I10: 999999 | J10: 999999999 | K10: 3.27 | L10: 0.3 | M10: 0.3 | N10: 0.5 | O10: 0.1 | T10: =T30 -> 0.39 | U10: =U30 -> 0.02 | V10: =V30 -> 0.01 | W10: 0.42 | X10: 0.72 | Y10: 2.13
A11: 01a_N | B11: 2016-02-01 | C11: CZK | D11: 2 | E11: 85 | F11: 100 | G11: 0 | H11: 30 | I11: 999999 | J11: 999999999 | K11: 4.77 | L11: 0.3 | M11: 0.3 | N11: 0.5 | O11: 0.1 | T11: =T30 -> 0.39 | U11: =U30 -> 0.02 | V11: =V30 -> 0.01 | W11: 0.42 | X11: 1.22 | Y11: 3.13
A12: 01a_N | B12: 2016-02-01 | C12: CZK | D12: 3 | E12: 0 | F12: 85 | G12: 0 | H12: 30 | I12: 999999 | J12: 999999999 | K12: 2.87 | L12: 0.3 | M12: 0.3 | N12: 0.5 | O12: 0.1 | T12: =T32 -> 0.38 | U12: =U32 -> 0.02 | V12: =V32 -> 0.03 | W12: 0.43 | X12: 0.72 | Y12: 1.72
A13: 01a_N | B13: 2016-02-01 | C13: CZK | D13: 3 | E13: 90 | F13: 100 | G13: 0 | H13: 30 | I13: 999999 | J13: 999999999 | K13: 4.37 | L13: 0.3 | M13: 0.3 | N13: 0.5 | O13: 0.1 | T13: =T32 -> 0.38 | U13: =U32 -> 0.02 | V13: =V32 -> 0.03 | W13: 0.43 | X13: 1.22 | Y13: 2.72
A14: 01a_N | B14: 2016-02-01 | C14: CZK | D14: 3 | E14: 85 | F14: 90 | G14: 0 | H14: 30 | I14: 999999 | J14: 999999999 | K14: 4.37 | L14: 0.3 | M14: 0.3 | N14: 0.5 | O14: 0.1 | T14: =T32 -> 0.38 | U14: =U32 -> 0.02 | V14: =V32 -> 0.03 | W14: 0.43 | X14: 1.22 | Y14: 2.72
A15: 01a_N | B15: 2016-02-01 | C15: CZK | D15: 5 | E15: 0 | F15: 85 | G15: 0 | H15: 30 | I15: 999999 | J15: 999999999 | K15: 2.87 | L15: 0.3 | M15: 0.3 | N15: 0.5 | O15: 0.1 | T15: =T35 -> 0.46 | U15: =U35 -> 0.02 | V15: =V35 -> 0.09 | W15: 0.57 | X15: 0.72 | Y15: 1.58
A16: 01a_N | B16: 2016-02-01 | C16: CZK | D16: 5 | E16: 85 | F16: 90 | G16: 0 | H16: 30 | I16: 999999 | J16: 999999999 | K16: 4.37 | L16: 0.3 | M16: 0.3 | N16: 0.5 | O16: 0.1 | T16: =T35 -> 0.46 | U16: =U35 -> 0.02 | V16: =V35 -> 0.09 | W16: 0.57 | X16: 1.22 | Y16: 2.58
A17: 01a_N | B17: 2016-02-01 | C17: CZK | D17: 5 | E17: 90 | F17: 100 | G17: 0 | H17: 30 | I17: 999999 | J17: 999999999 | K17: 4.37 | L17: 0.3 | M17: 0.3 | N17: 0.5 | O17: 0.1 | T17: =T35 -> 0.46 | U17: =U35 -> 0.02 | V17: =V35 -> 0.09 | W17: 0.57 | X17: 1.22 | Y17: 2.58
A18: 01a_N | B18: 2016-02-01 | C18: CZK | D18: 7 | E18: 0 | F18: 85 | G18: 0 | H18: 30 | I18: 999999 | J18: 999999999 | K18: 3.57 | L18: 0.3 | M18: 0.3 | N18: 0.5 | O18: 0.1 | T18: =T38 -> 0.58 | U18: =U38 -> 0.02 | V18: =V38 -> 0.31 | W18: 0.91 | X18: 0.72 | Y18: 1.94
A19: 01a_N | B19: 2016-02-01 | C19: CZK | D19: 7 | E19: 85 | F19: 100 | G19: 0 | H19: 30 | I19: 999999 | J19: 999999999 | K19: 5.07 | L19: 0.3 | M19: 0.3 | N19: 0.5 | O19: 0.1 | T19: =T38 -> 0.58 | U19: =U38 -> 0.02 | V19: =V38 -> 0.31 | W19: 0.91 | X19: 1.22 | Y19: 2.94
A20: 01a_N | B20: 2016-02-01 | C20: CZK | D20: CA | E20: 0 | F20: 85 | G20: 0 | H20: 30 | I20: 999999 | J20: 999999999 | K20: 3.57 | L20: 0.3 | O20: 0.1 | P20: 0.5 | T20: =T40 -> 0.37 | U20: =U40 -> 0.39 | V20: =V40 -> 0.09 | W20: 0.85 | X20: 0.72 | Y20: 2
A21: 01a_N | B21: 2016-02-01 | C21: CZK | D21: CA | E21: 85 | F21: 100 | G21: 0 | H21: 30 | I21: 999999 | J21: 999999999 | K21: 5.07 | L21: 0.3 | O21: 0.1 | P21: 0.5 | T21: =T40 -> 0.37 | U21: =U40 -> 0.39 | V21: =V40 -> 0.09 | W21: 0.85 | X21: 1.22 | Y21: 3
A22: 01a_S | B22: 2016-02-01 | C22: CZK | D22: Fl | E22: 0 | F22: 85 | G22: 0 | H22: 30 | I22: 999999 | J22: 999999999 | K22: 2.59 | L22: 0.3 | O22: 0.1 | P22: 0.5 | T22: =R3*100 -> 0.26 | U22: 0 | V22: =(ALM_Hypo!N19+ALM_Hypo!N21)*100 -> 0.22 | W22: 0.48 | X22: =X24 -> 0.34 | Y22: 1.77
A23: 01a_S | B23: 2016-02-01 | C23: CZK | D23: Fl | E23: 85 | F23: 100 | G23: 0 | H23: 30 | I23: 999999 | J23: 999999999 | K23: 4.09 | L23: 0.3 | O23: 0.1 | P23: 0.5 | T23: =T22 -> 0.26 | U23: 0 | V23: =V22 -> 0.22 | W23: 0.48 | X23: =X25 -> 0.84 | Y23: =Y22+1 -> 2.77
A24: 01a_S | B24: 2016-02-01 | C24: CZK | D24: 1 | E24: 0 | F24: 85 | G24: 0 | H24: 30 | I24: 999999 | J24: 999999999 | K24: 4.94 | L24: 0.3 | M24: 0.3 | N24: 0.5 | O24: 0.1 | T24: =ALM_Hypo!N11*100 -> 0.39 | U24: =ALM_Hypo!N17*100 -> 0.02 | V24: =ALM_Hypo!N13*100 -> 0.01 | W24: 0.42 | X24: 0.34 | Y24: 4.18
A25: 01a_S | B25: 2016-02-01 | C25: CZK | D25: 1 | E25: 90 | F25: 100 | G25: 0 | H25: 30 | I25: 999999 | J25: 999999999 | K25: 6.44 | L25: 0.3 | M25: 0.3 | N25: 0.5 | O25: 0.1 | T25: =T24 -> 0.39 | U25: =U24 -> 0.02 | V25: =V24 -> 0.01 | W25: 0.42 | X25: =X24+0.5 -> 0.84 | Y25: =Y24+1 -> 5.18
A26: 01a_S | B26: 2016-02-01 | C26: CZK | D26: 1 | E26: 85 | F26: 90 | G26: 0 | H26: 30 | I26: 999999 | J26: 999999999 | K26: 6.44 | L26: 0.3 | M26: 0.3 | N26: 0.5 | O26: 0.1 | T26: =T24 -> 0.39 | U26: =U24 -> 0.02 | V26: =V24 -> 0.01 | W26: 0.42 | X26: =X24+0.5 -> 0.84 | Y26: =Y24+1 -> 5.18
A27: 01a_S | B27: 2016-02-01 | C27: CZK | D27: 10 | E27: 0 | F27: 85 | G27: 0 | H27: 30 | I27: 999999 | J27: 999999999 | K27: 4.05 | L27: 0.3 | M27: 0.3 | N27: 0.5 | O27: 0.1 | T27: =ALM_Hypo!W11*100 -> 0.77 | U27: =ALM_Hypo!W17*100 -> 0.02 | V27: =ALM_Hypo!W13*100 -> 0.62 | W27: 1.41 | X27: =X24 -> 0.34 | Y27: 2.3
A28: 01a_S | B28: 2016-02-01 | C28: CZK | D28: 10 | E28: 90 | F28: 100 | G28: 0 | H28: 30 | I28: 999999 | J28: 999999999 | K28: 5.55 | L28: 0.3 | M28: 0.3 | N28: 0.5 | O28: 0.1 | T28: =T27 -> 0.77 | U28: =U27 -> 0.02 | V28: =V27 -> 0.62 | W28: 1.41 | X28: =X25 -> 0.84 | Y28: =Y27+1 -> 3.3
A29: 01a_S | B29: 2016-02-01 | C29: CZK | D29: 10 | E29: 85 | F29: 90 | G29: 0 | H29: 30 | I29: 999999 | J29: 999999999 | K29: 5.55 | L29: 0.3 | M29: 0.3 | N29: 0.5 | O29: 0.1 | T29: =T27 -> 0.77 | U29: =U27 -> 0.02 | V29: =V27 -> 0.62 | W29: 1.41 | X29: =X26 -> 0.84 | Y29: =Y27+1 -> 3.3
A30: 01a_S | B30: 2016-02-01 | C30: CZK | D30: 2 | E30: 0 | F30: 85 | G30: 0 | H30: 30 | I30: 999999 | J30: 999999999 | K30: 2.89 | L30: 0.3 | M30: 0.3 | N30: 0.5 | O30: 0.1 | T30: =ALM_Hypo!O11*100 -> 0.39 | U30: =ALM_Hypo!O17*100 -> 0.02 | V30: =ALM_Hypo!O13*100 -> 0.01 | W30: 0.42 | X30: =X24 -> 0.34 | Y30: 2.13
A31: 01a_S | B31: 2016-02-01 | C31: CZK | D31: 2 | E31: 85 | F31: 100 | G31: 0 | H31: 30 | I31: 999999 | J31: 999999999 | K31: 4.39 | L31: 0.3 | M31: 0.3 | N31: 0.5 | O31: 0.1 | T31: =T30 -> 0.39 | U31: =U30 -> 0.02 | V31: =V30 -> 0.01 | W31: 0.42 | X31: =X25 -> 0.84 | Y31: =Y30+1 -> 3.13
A32: 01a_S | B32: 2016-02-01 | C32: CZK | D32: 3 | E32: 0 | F32: 85 | G32: 0 | H32: 30 | I32: 999999 | J32: 999999999 | K32: 2.49 | L32: 0.3 | M32: 0.3 | N32: 0.5 | O32: 0.1 | T32: =ALM_Hypo!P11*100 -> 0.38 | U32: =ALM_Hypo!P17*100 -> 0.02 | V32: =ALM_Hypo!P13*100 -> 0.03 | W32: 0.43 | X32: =X24 -> 0.34 | Y32: 1.72
A33: 01a_S | B33: 2016-02-01 | C33: CZK | D33: 3 | E33: 90 | F33: 100 | G33: 0 | H33: 30 | I33: 999999 | J33: 999999999 | K33: 3.99 | L33: 0.3 | M33: 0.3 | N33: 0.5 | O33: 0.1 | T33: =T32 -> 0.38 | U33: =U32 -> 0.02 | V33: =V32 -> 0.03 | W33: 0.43 | X33: =X25 -> 0.84 | Y33: =Y32+1 -> 2.72
A34: 01a_S | B34: 2016-02-01 | C34: CZK | D34: 3 | E34: 85 | F34: 90 | G34: 0 | H34: 30 | I34: 999999 | J34: 999999999 | K34: 3.99 | L34: 0.3 | M34: 0.3 | N34: 0.5 | O34: 0.1 | T34: =T32 -> 0.38 | U34: =U32 -> 0.02 | V34: =V32 -> 0.03 | W34: 0.43 | X34: =X26 -> 0.84 | Y34: =Y32+1 -> 2.72
A35: 01a_S | B35: 2016-02-01 | C35: CZK | D35: 5 | E35: 0 | F35: 85 | G35: 0 | H35: 30 | I35: 999999 | J35: 999999999 | K35: 2.49 | L35: 0.3 | M35: 0.3 | N35: 0.5 | O35: 0.1 | T35: =ALM_Hypo!R11*100 -> 0.46 | U35: =ALM_Hypo!R17*100 -> 0.02 | V35: =ALM_Hypo!R13*100 -> 0.09 | W35: 0.57 | X35: =X24 -> 0.34 | Y35: 1.58
A36: 01a_S | B36: 2016-02-01 | C36: CZK | D36: 5 | E36: 85 | F36: 90 | G36: 0 | H36: 30 | I36: 999999 | J36: 999999999 | K36: 3.99 | L36: 0.3 | M36: 0.3 | N36: 0.5 | O36: 0.1 | T36: =T35 -> 0.46 | U36: =U35 -> 0.02 | V36: =V35 -> 0.09 | W36: 0.57 | X36: =X25 -> 0.84 | Y36: =Y35+1 -> 2.58
A37: 01a_S | B37: 2016-02-01 | C37: CZK | D37: 5 | E37: 90 | F37: 100 | G37: 0 | H37: 30 | I37: 999999 | J37: 999999999 | K37: 3.99 | L37: 0.3 | M37: 0.3 | N37: 0.5 | O37: 0.1 | T37: =T35 -> 0.46 | U37: =U35 -> 0.02 | V37: =V35 -> 0.09 | W37: 0.57 | X37: =X26 -> 0.84 | Y37: =Y35+1 -> 2.58
A38: 01a_S | B38: 2016-02-01 | C38: CZK | D38: 7 | E38: 0 | F38: 85 | G38: 0 | H38: 30 | I38: 999999 | J38: 999999999 | K38: 3.19 | L38: 0.3 | M38: 0.3 | N38: 0.5 | O38: 0.1 | T38: =ALM_Hypo!T11*100 -> 0.58 | U38: =ALM_Hypo!T17*100 -> 0.02 | V38: =ALM_Hypo!T13*100 -> 0.31 | W38: 0.91 | X38: =X24 -> 0.34 | Y38: 1.94
A39: 01a_S | B39: 2016-02-01 | C39: CZK | D39: 7 | E39: 85 | F39: 100 | G39: 0 | H39: 30 | I39: 999999 | J39: 999999999 | K39: 4.69 | L39: 0.3 | M39: 0.3 | N39: 0.5 | O39: 0.1 | T39: =T38 -> 0.58 | U39: =U38 -> 0.02 | V39: =V38 -> 0.31 | W39: 0.91 | X39: =X25 -> 0.84 | Y39: =Y38+1 -> 2.94
A40: 01a_S | B40: 2016-02-01 | C40: CZK | D40: CA | E40: 0 | F40: 85 | G40: 0 | H40: 30 | I40: 999999 | J40: 999999999 | K40: 3.19 | L40: 0.3 | O40: 0.1 | P40: 0.5 | T40: =R2*100 -> 0.37 | U40: =ALM_Hypo!N25*100 -> 0.39 | V40: =ALM_Hypo!N23*100 -> 0.09 | W40: 0.85 | X40: =X24 -> 0.34 | Y40: 2
A41: 01a_S | B41: 2016-02-01 | C41: CZK | D41: CA | E41: 85 | F41: 100 | G41: 0 | H41: 30 | I41: 999999 | J41: 999999999 | K41: 4.69 | L41: 0.3 | O41: 0.1 | P41: 0.5 | T41: =T40 -> 0.37 | U41: =U40 -> 0.39 | V41: =V40 -> 0.09 | W41: 0.85 | X41: =X25 -> 0.84 | Y41: =Y40+1 -> 3
A42: 01c_N | B42: 2016-02-01 | C42: CZK | D42: 1 | E42: 0 | F42: 85 | G42: 0 | H42: 30 | I42: 999999 | J42: 999999999 | K42: 5.82 | L42: 0.3 | M42: 0.3 | N42: 0.5 | O42: 0.1 | T42: =T58 -> 0.39 | U42: =U58 -> 0.3 | V42: =V58 -> 0.01 | W42: 0.7 | X42: =X58+0.38 -> 0.72 | Y42: =Y58 -> 4.4
A43: 01c_N | B43: 2016-02-01 | C43: CZK | D43: 1 | E43: 90 | F43: 100 | G43: 0 | H43: 30 | I43: 999999 | J43: 999999999 | K43: 7.32 | L43: 0.3 | M43: 0.3 | N43: 0.5 | O43: 0.1 | T43: =T59 -> 0.39 | U43: 0.3 | V43: 0.01 | W43: 0.7 | X43: =X59+0.38 -> 1.22 | Y43: =Y59 -> 5.4
A44: 01c_N | B44: 2016-02-01 | C44: CZK | D44: 1 | E44: 85 | F44: 90 | G44: 0 | H44: 30 | I44: 999999 | J44: 999999999 | K44: 7.32 | L44: 0.3 | M44: 0.3 | N44: 0.5 | O44: 0.1 | T44: 0.39 | U44: 0.3 | V44: 0.01 | W44: 0.7 | X44: 1.22 | Y44: =Y60 -> 5.4
A45: 01c_N | B45: 2016-02-01 | C45: CZK | D45: 10 | E45: 0 | F45: 85 | G45: 0 | H45: 30 | I45: 999999 | J45: 999999999 | K45: 4.93 | L45: 0.3 | M45: 0.3 | N45: 0.5 | O45: 0.1 | T45: 0.77 | U45: 0.3 | V45: 0.62 | W45: 1.69 | X45: 0.72 | Y45: =Y61 -> 2.52
A46: 01c_N | B46: 2016-02-01 | C46: CZK | D46: 10 | E46: 85 | F46: 90 | G46: 0 | H46: 30 | I46: 999999 | J46: 999999999 | K46: 6.43 | L46: 0.3 | M46: 0.3 | N46: 0.5 | O46: 0.1 | T46: 0.77 | U46: 0.3 | V46: 0.62 | W46: 1.69 | X46: 1.22 | Y46: 3.52
A47: 01c_N | B47: 2016-02-01 | C47: CZK | D47: 10 | E47: 90 | F47: 100 | G47: 0 | H47: 30 | I47: 999999 | J47: 999999999 | K47: 6.43 | L47: 0.3 | M47: 0.3 | N47: 0.5 | O47: 0.1 | T47: 0.77 | U47: 0.3 | V47: 0.62 | W47: 1.69 | X47: 1.22 | Y47: 3.52
A48: 01c_N | B48: 2016-02-01 | C48: CZK | D48: 2 | E48: 0 | F48: 85 | G48: 0 | H48: 30 | I48: 999999 | J48: 999999999 | K48: 3.77 | L48: 0.3 | M48: 0.3 | N48: 0.5 | O48: 0.1 | T48: 0.39 | U48: 0.3 | V48: 0.01 | W48: 0.7 | X48: 0.72 | Y48: 2.35
A49: 01c_N | B49: 2016-02-01 | C49: CZK | D49: 2 | E49: 85 | F49: 100 | G49: 0 | H49: 30 | I49: 999999 | J49: 999999999 | K49: 5.27 | L49: 0.3 | M49: 0.3 | N49: 0.5 | O49: 0.1 | T49: 0.39 | U49: 0.3 | V49: 0.01 | W49: 0.7 | X49: 1.22 | Y49: 3.35
A50: 01c_N | B50: 2016-02-01 | C50: CZK | D50: 3 | E50: 0 | F50: 85 | G50: 0 | H50: 30 | I50: 999999 | J50: 999999999 | K50: 3.37 | L50: 0.3 | M50: 0.3 | N50: 0.5 | O50: 0.1 | T50: 0.38 | U50: 0.3 | V50: 0.03 | W50: 0.71 | X50: 0.72 | Y50: 1.94
A51: 01c_N | B51: 2016-02-01 | C51: CZK | D51: 3 | E51: 90 | F51: 100 | G51: 0 | H51: 30 | I51: 999999 | J51: 999999999 | K51: 4.87 | L51: 0.3 | M51: 0.3 | N51: 0.5 | O51: 0.1 | T51: 0.38 | U51: 0.3 | V51: 0.03 | W51: 0.71 | X51: 1.22 | Y51: 2.94
A52: 01c_N | B52: 2016-02-01 | C52: CZK | D52: 3 | E52: 85 | F52: 90 | G52: 0 | H52: 30 | I52: 999999 | J52: 999999999 | K52: 4.87 | L52: 0.3 | M52: 0.3 | N52: 0.5 | O52: 0.1 | T52: 0.38 | U52: 0.3 | V52: 0.03 | W52: 0.71 | X52: 1.22 | Y52: 2.94
A53: 01c_N | B53: 2016-02-01 | C53: CZK | D53: 5 | E53: 0 | F53: 85 | G53: 0 | H53: 30 | I53: 999999 | J53: 999999999 | K53: 3.37 | L53: 0.3 | M53: 0.3 | N53: 0.5 | O53: 0.1 | T53: 0.46 | U53: 0.3 | V53: 0.09 | W53: 0.85 | X53: 0.72 | Y53: 1.8
A54: 01c_N | B54: 2016-02-01 | C54: CZK | D54: 5 | E54: 85 | F54: 90 | G54: 0 | H54: 30 | I54: 999999 | J54: 999999999 | K54: 4.87 | L54: 0.3 | M54: 0.3 | N54: 0.5 | O54: 0.1 | T54: 0.46 | U54: 0.3 | V54: 0.09 | W54: 0.85 | X54: 1.22 | Y54: 2.8
A55: 01c_N | B55: 2016-02-01 | C55: CZK | D55: 5 | E55: 90 | F55: 100 | G55: 0 | H55: 30 | I55: 999999 | J55: 999999999 | K55: 4.87 | L55: 0.3 | M55: 0.3 | N55: 0.5 | O55: 0.1 | T55: 0.46 | U55: 0.3 | V55: 0.09 | W55: 0.85 | X55: 1.22 | Y55: 2.8
A56: 01c_N | B56: 2016-02-01 | C56: CZK | D56: 7 | E56: 0 | F56: 85 | G56: 0 | H56: 30 | I56: 999999 | J56: 999999999 | K56: 4.07 | L56: 0.3 | M56: 0.3 | N56: 0.5 | O56: 0.1 | T56: 0.58 | U56: 0.3 | V56: 0.31 | W56: 1.19 | X56: 0.72 | Y56: 2.16
A57: 01c_N | B57: 2016-02-01 | C57: CZK | D57: 7 | E57: 85 | F57: 100 | G57: 0 | H57: 30 | I57: 999999 | J57: 999999999 | K57: 5.57 | L57: 0.3 | M57: 0.3 | N57: 0.5 | O57: 0.1 | T57: 0.58 | U57: 0.3 | V57: 0.31 | W57: 1.19 | X57: 1.22 | Y57: 3.16
A58: 01c_S | B58: 2016-02-01 | C58: CZK | D58: 1 | E58: 0 | F58: 85 | G58: 0 | H58: 30 | I58: 999999 | J58: 999999999 | K58: 5.44 | L58: 0.3 | M58: 0.3 | N58: 0.5 | O58: 0.1 | T58: =T24 -> 0.39 | U58: 0.3 | V58: =V24 -> 0.01 | W58: 0.7 | X58: =X24 -> 0.34 | Y58: =Y24+0.22 -> 4.4
A59: 01c_S | B59: 2016-02-01 | C59: CZK | D59: 1 | E59: 90 | F59: 100 | G59: 0 | H59: 30 | I59: 999999 | J59: 999999999 | K59: 6.94 | L59: 0.3 | M59: 0.3 | N59: 0.5 | O59: 0.1 | T59: =T25 -> 0.39 | U59: =U58 -> 0.3 | V59: =V25 -> 0.01 | W59: 0.7 | X59: =X25 -> 0.84 | Y59: =Y25+0.22 -> 5.4
A60: 01c_S | B60: 2016-02-01 | C60: CZK | D60: 1 | E60: 85 | F60: 90 | G60: 0 | H60: 30 | I60: 999999 | J60: 999999999 | K60: 6.94 | L60: 0.3 | M60: 0.3 | N60: 0.5 | O60: 0.1 | T60: 0.39 | U60: =U58 -> 0.3 | V60: 0.01 | W60: 0.7 | X60: 0.84 | Y60: =Y26+0.22 -> 5.4
A61: 01c_S | B61: 2016-02-01 | C61: CZK | D61: 10 | E61: 0 | F61: 85 | G61: 0 | H61: 30 | I61: 999999 | J61: 999999999 | K61: 4.55 | L61: 0.3 | M61: 0.3 | N61: 0.5 | O61: 0.1 | T61: 0.77 | U61: 0.3 | V61: 0.62 | W61: 1.69 | X61: 0.34 | Y61: =Y27+0.22 -> 2.52
A62: 01c_S | B62: 2016-02-01 | C62: CZK | D62: 10 | E62: 85 | F62: 90 | G62: 0 | H62: 30 | I62: 999999 | J62: 999999999 | K62: 6.05 | L62: 0.3 | M62: 0.3 | N62: 0.5 | O62: 0.1 | T62: 0.77 | U62: =U61 -> 0.3 | V62: 0.62 | W62: 1.69 | X62: 0.84 | Y62: 3.52
A63: 01c_S | B63: 2016-02-01 | C63: CZK | D63: 10 | E63: 90 | F63: 100 | G63: 0 | H63: 30 | I63: 999999 | J63: 999999999 | K63: 6.05 | L63: 0.3 | M63: 0.3 | N63: 0.5 | O63: 0.1 | T63: 0.77 | U63: =U61 -> 0.3 | V63: 0.62 | W63: 1.69 | X63: 0.84 | Y63: 3.52
A64: 01c_S | B64: 2016-02-01 | C64: CZK | D64: 2 | E64: 0 | F64: 85 | G64: 0 | H64: 30 | I64: 999999 | J64: 999999999 | K64: 3.39 | L64: 0.3 | M64: 0.3 | N64: 0.5 | O64: 0.1 | T64: 0.39 | U64: 0.3 | V64: 0.01 | W64: 0.7 | X64: 0.34 | Y64: 2.35
A65: 01c_S | B65: 2016-02-01 | C65: CZK | D65: 2 | E65: 85 | F65: 100 | G65: 0 | H65: 30 | I65: 999999 | J65: 999999999 | K65: 4.89 | L65: 0.3 | M65: 0.3 | N65: 0.5 | O65: 0.1 | T65: 0.39 | U65: =U64 -> 0.3 | V65: 0.01 | W65: 0.7 | X65: 0.84 | Y65: 3.35
A66: 01c_S | B66: 2016-02-01 | C66: CZK | D66: 3 | E66: 0 | F66: 85 | G66: 0 | H66: 30 | I66: 999999 | J66: 999999999 | K66: 2.99 | L66: 0.3 | M66: 0.3 | N66: 0.5 | O66: 0.1 | T66: 0.38 | U66: 0.3 | V66: 0.03 | W66: 0.71 | X66: 0.34 | Y66: 1.94
A67: 01c_S | B67: 2016-02-01 | C67: CZK | D67: 3 | E67: 90 | F67: 100 | G67: 0 | H67: 30 | I67: 999999 | J67: 999999999 | K67: =T67+U67+V67+X67+Y67 -> 4.49 | L67: 0.3 | M67: 0.3 | N67: 0.5 | O67: 0.1 | T67: 0.38 | U67: =U66 -> 0.3 | V67: 0.03 | W67: =T67+U67+V67 -> 0.71 | X67: 0.84 | Y67: 2.94
A68: 01c_S | B68: =$B$2 -> 2016-02-01 | C68: CZK | D68: 3 | E68: 85 | F68: 90 | G68: 0 | H68: 30 | I68: 999999 | J68: 999999999 | K68: 4.49 | L68: 0.3 | M68: 0.3 | N68: 0.5 | O68: 0.1 | T68: 0.38 | U68: =U66 -> 0.3 | V68: 0.03 | W68: 0.71 | X68: 0.84 | Y68: 2.94
A69: 01c_S | B69: 2016-02-01 | C69: CZK | D69: 5 | E69: 0 | F69: 85 | G69: 0 | H69: 30 | I69: 999999 | J69: 999999999 | K69: 2.99 | L69: 0.3 | M69: 0.3 | N69: 0.5 | O69: 0.1 | T69: 0.46 | U69: 0.3 | V69: 0.09 | W69: 0.85 | X69: 0.34 | Y69: 1.8
A70: 01c_S | B70: 2016-02-01 | C70: CZK | D70: 5 | E70: 85 | F70: 90 | G70: 0 | H70: 30 | I70: 999999 | J70: 999999999 | K70: 4.49 | L70: 0.3 | M70: 0.3 | N70: 0.5 | O70: 0.1 | T70: 0.46 | U70: =U69 -> 0.3 | V70: 0.09 | W70: 0.85 | X70: 0.84 | Y70: 2.8
A71: 01c_S | B71: 2016-02-01 | C71: CZK | D71: 5 | E71: 90 | F71: 100 | G71: 0 | H71: 30 | I71: 999999 | J71: 999999999 | K71: 4.49 | L71: 0.3 | M71: 0.3 | N71: 0.5 | O71: 0.1 | T71: 0.46 | U71: =U69 -> 0.3 | V71: 0.09 | W71: 0.85 | X71: 0.84 | Y71: 2.8
A72: 01c_S | B72: 2016-02-01 | C72: CZK | D72: 7 | E72: 0 | F72: 85 | G72: 0 | H72: 30 | I72: 999999 | J72: 999999999 | K72: 3.69 | L72: 0.3 | M72: 0.3 | N72: 0.5 | O72: 0.1 | T72: 0.58 | U72: 0.3 | V72: 0.31 | W72: 1.19 | X72: 0.34 | Y72: 2.16
A73: 01c_S | B73: 2016-02-01 | C73: CZK | D73: 7 | E73: 85 | F73: 100 | G73: 0 | H73: 30 | I73: 999999 | J73: 999999999 | K73: 5.19 | L73: 0.3 | M73: 0.3 | N73: 0.5 | O73: 0.1 | T73: 0.58 | U73: =U72 -> 0.3 | V73: 0.31 | W73: 1.19 | X73: 0.84 | Y73: 3.16
A74: 01d_N | B74: 2016-02-01 | C74: CZK | D74: Fl | E74: 0 | F74: 85 | G74: 0 | H74: 30 | I74: 999999 | J74: 999999999 | K74: 17 | L74: 0.3 | O74: 0.1 | P74: 0.5 | T74: 1 | U74: 2 | V74: 3 | W74: 6 | X74: 5 | Y74: 6
A75: 01d_N | B75: 2016-02-01 | C75: CZK | D75: Fl | E75: 85 | F75: 100 | G75: 0 | H75: 30 | I75: 999999 | J75: 999999999 | K75: 17 | L75: 0.3 | O75: 0.1 | P75: 0.5 | T75: 1 | U75: 2 | V75: 3 | W75: 6 | X75: 5 | Y75: 6
A76: 01d_N | B76: 2016-02-01 | C76: CZK | D76: 10 | E76: 0 | F76: 85 | G76: 0 | H76: 30 | I76: 999999 | J76: 999999999 | K76: 17 | L76: 0.3 | M76: 0.3 | N76: 0.5 | O76: 0.1 | T76: 1 | U76: 2 | V76: 3 | W76: 6 | X76: 5 | Y76: 6
A77: 01d_N | B77: 2016-02-01 | C77: CZK | D77: 10 | E77: 85 | F77: 90 | G77: 0 | H77: 30 | I77: 999999 | J77: 999999999 | K77: 17 | L77: 0.3 | M77: 0.3 | N77: 0.5 | O77: 0.1 | T77: 1 | U77: 2 | V77: 3 | W77: 6 | X77: 5 | Y77: 6
A78: 01d_N | B78: 2016-02-01 | C78: CZK | D78: 10 | E78: 90 | F78: 100 | G78: 0 | H78: 30 | I78: 999999 | J78: 999999999 | K78: 17 | L78: 0.3 | M78: 0.3 | N78: 0.5 | O78: 0.1 | T78: 1 | U78: 2 | V78: 3 | W78: 6 | X78: 5 | Y78: 6
A79: 01d_N | B79: 2016-02-01 | C79: CZK | D79: 3 | E79: 0 | F79: 85 | G79: 0 | H79: 30 | I79: 999999 | J79: 999999999 | K79: 17 | L79: 0.3 | M79: 0.3 | N79: 0.5 | O79: 0.1 | T79: 1 | U79: 2 | V79: 3 | W79: 6 | X79: 5 | Y79: 6
A80: 01d_N | B80: 2016-02-01 | C80: CZK | D80: 3 | E80: 90 | F80: 100 | G80: 0 | H80: 30 | I80: 999999 | J80: 999999999 | K80: 17 | L80: 0.3 | M80: 0.3 | N80: 0.5 | O80: 0.1 | T80: 1 | U80: 2 | V80: 3 | W80: 6 | X80: 5 | Y80: 6
A81: 01d_N | B81: 2016-02-01 | C81: CZK | D81: 3 | E81: 85 | F81: 90 | G81: 0 | H81: 30 | I81: 999999 | J81: 999999999 | K81: 17 | L81: 0.3 | M81: 0.3 | N81: 0.5 | O81: 0.1 | T81: 1 | U81: 2 | V81: 3 | W81: 6 | X81: 5 | Y81: 6
A82: 01d_N | B82: 2016-02-01 | C82: CZK | D82: 5 | E82: 0 | F82: 85 | G82: 0 | H82: 30 | I82: 999999 | J82: 999999999 | K82: 17 | L82: 0.3 | M82: 0.3 | N82: 0.5 | O82: 0.1 | T82: 1 | U82: 2 | V82: 3 | W82: 6 | X82: 5 | Y82: 6
A83: 01d_N | B83: 2016-02-01 | C83: CZK | D83: 5 | E83: 85 | F83: 90 | G83: 0 | H83: 30 | I83: 999999 | J83: 999999999 | K83: 17 | L83: 0.3 | M83: 0.3 | N83: 0.5 | O83: 0.1 | T83: 1 | U83: 2 | V83: 3 | W83: 6 | X83: 5 | Y83: 6
A84: 01d_N | B84: 2016-02-01 | C84: CZK | D84: 5 | E84: 90 | F84: 100 | G84: 0 | H84: 30 | I84: 999999 | J84: 999999999 | K84: 17 | L84: 0.3 | M84: 0.3 | N84: 0.5 | O84: 0.1 | T84: 1 | U84: 2 | V84: 3 | W84: 6 | X84: 5 | Y84: 6
A85: 01d_N | B85: 2016-02-01 | C85: CZK | D85: 7 | E85: 0 | F85: 85 | G85: 0 | H85: 30 | I85: 999999 | J85: 999999999 | K85: 17 | L85: 0.3 | O85: 0.1 | P85: 0.5 | T85: 1 | U85: 2 | V85: 3 | W85: 6 | X85: 5 | Y85: 6
A86: 01d_N | B86: 2016-02-01 | C86: CZK | D86: 7 | E86: 85 | F86: 100 | G86: 0 | H86: 30 | I86: 999999 | J86: 999999999 | K86: 17 | L86: 0.3 | O86: 0.1 | P86: 0.5 | T86: 1 | U86: 2 | V86: 3 | W86: 6 | X86: 5 | Y86: 6
A87: 01d_N | B87: 2016-02-01 | C87: CZK | D87: CA | E87: 0 | F87: 85 | G87: 0 | H87: 30 | I87: 999999 | J87: 999999999 | K87: 17 | L87: 0.3 | O87: 0.1 | P87: 0.5 | T87: 1 | U87: 2 | V87: 3 | W87: 6 | X87: 5 | Y87: 6
A88: 01d_N | B88: 2016-02-01 | C88: CZK | D88: CA | E88: 85 | F88: 100 | G88: 0 | H88: 30 | I88: 999999 | J88: 999999999 | K88: 17 | L88: 0.3 | O88: 0.1 | P88: 0.5 | T88: 1 | U88: 2 | V88: 3 | W88: 6 | X88: 5 | Y88: 6
A89: 01d_S | B89: 2016-02-01 | C89: CZK | D89: Fl | E89: 0 | F89: 85 | G89: 0 | H89: 30 | I89: 999999 | J89: 999999999 | K89: 17 | L89: 0.3 | O89: 0.1 | P89: 0.5 | T89: 1 | U89: 2 | V89: 3 | W89: 6 | X89: 5 | Y89: 6
A90: 01d_S | B90: 2016-02-01 | C90: CZK | D90: Fl | E90: 85 | F90: 100 | G90: 0 | H90: 30 | I90: 999999 | J90: 999999999 | K90: 17 | L90: 0.3 | O90: 0.1 | P90: 0.5 | T90: 1 | U90: 2 | V90: 3 | W90: 6 | X90: 5 | Y90: 6
A91: 01d_S | B91: 2016-02-01 | C91: CZK | D91: 10 | E91: 0 | F91: 85 | G91: 0 | H91: 30 | I91: 999999 | J91: 999999999 | K91: 17 | L91: 0.3 | M91: 0.3 | N91: 0.5 | O91: 0.1 | T91: 1 | U91: 2 | V91: 3 | W91: 6 | X91: 5 | Y91: 6
A92: 01d_S | B92: 2016-02-01 | C92: CZK | D92: 10 | E92: 85 | F92: 90 | G92: 0 | H92: 30 | I92: 999999 | J92: 999999999 | K92: 17 | L92: 0.3 | M92: 0.3 | N92: 0.5 | O92: 0.1 | T92: 1 | U92: 2 | V92: 3 | W92: 6 | X92: 5 | Y92: 6
A93: 01d_S | B93: 2016-02-01 | C93: CZK | D93: 10 | E93: 90 | F93: 100 | G93: 0 | H93: 30 | I93: 999999 | J93: 999999999 | K93: 17 | L93: 0.3 | M93: 0.3 | N93: 0.5 | O93: 0.1 | T93: 1 | U93: 2 | V93: 3 | W93: 6 | X93: 5 | Y93: 6
A94: 01d_S | B94: 2016-02-01 | C94: CZK | D94: 3 | E94: 0 | F94: 85 | G94: 0 | H94: 30 | I94: 999999 | J94: 999999999 | K94: 17 | L94: 0.3 | M94: 0.3 | N94: 0.5 | O94: 0.1 | T94: 1 | U94: 2 | V94: 3 | W94: 6 | X94: 5 | Y94: 6
A95: 01d_S | B95: 2016-02-01 | C95: CZK | D95: 3 | E95: 90 | F95: 100 | G95: 0 | H95: 30 | I95: 999999 | J95: 999999999 | K95: 17 | L95: 0.3 | M95: 0.3 | N95: 0.5 | O95: 0.1 | T95: 1 | U95: 2 | V95: 3 | W95: 6 | X95: 5 | Y95: 6
A96: 01d_S | B96: 2016-02-01 | C96: CZK | D96: 3 | E96: 85 | F96: 90 | G96: 0 | H96: 30 | I96: 999999 | J96: 999999999 | K96: 17 | L96: 0.3 | M96: 0.3 | N96: 0.5 | O96: 0.1 | T96: 1 | U96: 2 | V96: 3 | W96: 6 | X96: 5 | Y96: 6
A97: 01d_S | B97: 2016-02-01 | C97: CZK | D97: 5 | E97: 0 | F97: 85 | G97: 0 | H97: 30 | I97: 999999 | J97: 999999999 | K97: 17 | L97: 0.3 | M97: 0.3 | N97: 0.5 | O97: 0.1 | T97: 1 | U97: 2 | V97: 3 | W97: 6 | X97: 5 | Y97: 6
A98: 01d_S | B98: 2016-02-01 | C98: CZK | D98: 5 | E98: 85 | F98: 90 | G98: 0 | H98: 30 | I98: 999999 | J98: 999999999 | K98: 17 | L98: 0.3 | M98: 0.3 | N98: 0.5 | O98: 0.1 | T98: 1 | U98: 2 | V98: 3 | W98: 6 | X98: 5 | Y98: 6
A99: 01d_S | B99: 2016-02-01 | C99: CZK | D99: 5 | E99: 90 | F99: 100 | G99: 0 | H99: 30 | I99: 999999 | J99: 999999999 | K99: 17 | L99: 0.3 | M99: 0.3 | N99: 0.5 | O99: 0.1 | T99: 1 | U99: 2 | V99: 3 | W99: 6 | X99: 5 | Y99: 6
A100: 01d_S | B100: 2016-02-01 | C100: CZK | D100: 7 | E100: 0 | F100: 85 | G100: 0 | H100: 30 | I100: 999999 | J100: 999999999 | K100: 17 | L100: 0.3 | O100: 0.1 | P100: 0.5 | T100: 1 | U100: 2 | V100: 3 | W100: 6 | X100: 5 | Y100: 6
A101: 01d_S | B101: 2016-02-01 | C101: CZK | D101: 7 | E101: 85 | F101: 100 | G101: 0 | H101: 30 | I101: 999999 | J101: 999999999 | K101: 17 | L101: 0.3 | O101: 0.1 | P101: 0.5 | T101: 1 | U101: 2 | V101: 3 | W101: 6 | X101: 5 | Y101: 6
A102: 01d_S | B102: 2016-02-01 | C102: CZK | D102: CA | E102: 0 | F102: 85 | G102: 0 | H102: 30 | I102: 999999 | J102: 999999999 | K102: 17 | L102: 0.3 | O102: 0.1 | P102: 0.5 | T102: 1 | U102: 2 | V102: 3 | W102: 6 | X102: 5 | Y102: 6
A103: 01d_S | B103: 2016-02-01 | C103: CZK | D103: CA | E103: 85 | F103: 100 | G103: 0 | H103: 30 | I103: 999999 | J103: 999999999 | K103: 17 | L103: 0.3 | O103: 0.1 | P103: 0.5 | T103: 1 | U103: 2 | V103: 3 | W103: 6 | X103: 5 | Y103: 6
A104: 01e_N | B104: 2016-02-01 | C104: CZK | D104: Fl | E104: 0 | F104: 85 | G104: 0 | H104: 30 | I104: 999999 | J104: 999999999 | K104: 3.17 | L104: 0.3 | O104: 0.1 | P104: 0.5 | T104: =T124 -> 0.26 | U104: =U124 -> 0 | V104: =V124 -> 0.22 | W104: 0.48 | X104: =X124+0.38 -> 0.84 | Y104: =Y124 -> 1.85
A105: 01e_N | B105: 2016-02-01 | C105: CZK | D105: Fl | E105: 85 | F105: 100 | G105: 0 | H105: 30 | I105: 999999 | J105: 999999999 | K105: 4.67 | L105: 0.3 | O105: 0.1 | P105: 0.5 | T105: =T125 -> 0.26 | U105: 0 | V105: 0.22 | W105: 0.48 | X105: =X125+0.38 -> 1.34 | Y105: =Y125 -> 2.85
A106: 01e_N | B106: 2016-02-01 | C106: CZK | D106: 1 | E106: 0 | F106: 85 | G106: 0 | H106: 30 | I106: 999999 | J106: 999999999 | K106: 5.52 | L106: 0.3 | M106: 0.3 | N106: 0.5 | O106: 0.1 | T106: 0.39 | U106: 0.02 | V106: 0.01 | W106: 0.42 | X106: 0.84 | Y106: 4.26
A107: 01e_N | B107: 2016-02-01 | C107: CZK | D107: 1 | E107: 85 | F107: 90 | G107: 0 | H107: 30 | I107: 999999 | J107: 999999999 | K107: 7.02 | L107: 0.3 | M107: 0.3 | N107: 0.5 | O107: 0.1 | T107: 0.39 | U107: 0.02 | V107: 0.01 | W107: 0.42 | X107: 1.34 | Y107: 5.26
A108: 01e_N | B108: 2016-02-01 | C108: CZK | D108: 1 | E108: 90 | F108: 100 | G108: 0 | H108: 30 | I108: 999999 | J108: 999999999 | K108: 7.02 | L108: 0.3 | M108: 0.3 | N108: 0.5 | O108: 0.1 | T108: 0.39 | U108: 0.02 | V108: 0.01 | W108: 0.42 | X108: 1.34 | Y108: 5.26
A109: 01e_N | B109: 2016-02-01 | C109: CZK | D109: 10 | E109: 0 | F109: 85 | G109: 0 | H109: 30 | I109: 999999 | J109: 999999999 | K109: 4.63 | L109: 0.3 | M109: 0.3 | N109: 0.5 | O109: 0.1 | T109: 0.77 | U109: 0.02 | V109: 0.62 | W109: 1.41 | X109: 0.84 | Y109: 2.38
A110: 01e_N | B110: 2016-02-01 | C110: CZK | D110: 10 | E110: 85 | F110: 90 | G110: 0 | H110: 30 | I110: 999999 | J110: 999999999 | K110: 6.13 | L110: 0.3 | M110: 0.3 | N110: 0.5 | O110: 0.1 | T110: 0.77 | U110: 0.02 | V110: 0.62 | W110: 1.41 | X110: 1.34 | Y110: 3.38
A111: 01e_N | B111: 2016-02-01 | C111: CZK | D111: 10 | E111: 90 | F111: 100 | G111: 0 | H111: 30 | I111: 999999 | J111: 999999999 | K111: 6.13 | L111: 0.3 | M111: 0.3 | N111: 0.5 | O111: 0.1 | T111: 0.77 | U111: 0.02 | V111: 0.62 | W111: 1.41 | X111: 1.34 | Y111: 3.38
A112: 01e_N | B112: 2016-02-01 | C112: CZK | D112: 2 | E112: 0 | F112: 85 | G112: 0 | H112: 30 | I112: 999999 | J112: 999999999 | K112: 3.47 | L112: 0.3 | M112: 0.3 | N112: 0.5 | O112: 0.1 | T112: 0.39 | U112: 0.02 | V112: 0.01 | W112: 0.42 | X112: 0.84 | Y112: 2.21
A113: 01e_N | B113: 2016-02-01 | C113: CZK | D113: 2 | E113: 85 | F113: 100 | G113: 0 | H113: 30 | I113: 999999 | J113: 999999999 | K113: 4.97 | L113: 0.3 | M113: 0.3 | N113: 0.5 | O113: 0.1 | T113: 0.39 | U113: 0.02 | V113: 0.01 | W113: 0.42 | X113: 1.34 | Y113: 3.21
A114: 01e_N | B114: 2016-02-01 | C114: CZK | D114: 3 | E114: 0 | F114: 85 | G114: 0 | H114: 30 | I114: 999999 | J114: 999999999 | K114: 3.07 | L114: 0.3 | M114: 0.3 | N114: 0.5 | O114: 0.1 | T114: 0.38 | U114: 0.02 | V114: 0.03 | W114: 0.43 | X114: 0.84 | Y114: 1.8
A115: 01e_N | B115: 2016-02-01 | C115: CZK | D115: 3 | E115: 85 | F115: 90 | G115: 0 | H115: 30 | I115: 999999 | J115: 999999999 | K115: 4.57 | L115: 0.3 | M115: 0.3 | N115: 0.5 | O115: 0.1 | T115: 0.38 | U115: 0.02 | V115: 0.03 | W115: 0.43 | X115: 1.34 | Y115: 2.8
A116: 01e_N | B116: 2016-02-01 | C116: CZK | D116: 3 | E116: 90 | F116: 100 | G116: 0 | H116: 30 | I116: 999999 | J116: 999999999 | K116: 4.57 | L116: 0.3 | M116: 0.3 | N116: 0.5 | O116: 0.1 | T116: 0.38 | U116: 0.02 | V116: 0.03 | W116: 0.43 | X116: 1.34 | Y116: 2.8
A117: 01e_N | B117: 2016-02-01 | C117: CZK | D117: 5 | E117: 0 | F117: 85 | G117: 0 | H117: 30 | I117: 999999 | J117: 999999999 | K117: 3.07 | L117: 0.3 | M117: 0.3 | N117: 0.5 | O117: 0.1 | T117: 0.46 | U117: 0.02 | V117: 0.09 | W117: 0.57 | X117: 0.84 | Y117: 1.66
A118: 01e_N | B118: 2016-02-01 | C118: CZK | D118: 5 | E118: 85 | F118: 90 | G118: 0 | H118: 30 | I118: 999999 | J118: 999999999 | K118: 4.57 | L118: 0.3 | M118: 0.3 | N118: 0.5 | O118: 0.1 | T118: 0.46 | U118: 0.02 | V118: 0.09 | W118: 0.57 | X118: 1.34 | Y118: 2.66
A119: 01e_N | B119: 2016-02-01 | C119: CZK | D119: 5 | E119: 90 | F119: 100 | G119: 0 | H119: 30 | I119: 999999 | J119: 999999999 | K119: 4.57 | L119: 0.3 | M119: 0.3 | N119: 0.5 | O119: 0.1 | T119: 0.46 | U119: 0.02 | V119: 0.09 | W119: 0.57 | X119: 1.34 | Y119: 2.66
A120: 01e_N | B120: 2016-02-01 | C120: CZK | D120: 7 | E120: 0 | F120: 85 | G120: 0 | H120: 30 | I120: 999999 | J120: 999999999 | K120: 3.77 | L120: 0.3 | M120: 0.3 | N120: 0.5 | O120: 0.1 | T120: 0.58 | U120: 0.02 | V120: 0.31 | W120: 0.91 | X120: 0.84 | Y120: 2.02
A121: 01e_N | B121: 2016-02-01 | C121: CZK | D121: 7 | E121: 85 | F121: 100 | G121: 0 | H121: 30 | I121: 999999 | J121: 999999999 | K121: 5.27 | L121: 0.3 | M121: 0.3 | N121: 0.5 | O121: 0.1 | T121: =T141 -> 0.58 | U121: 0.02 | V121: 0.31 | W121: 0.91 | X121: 1.34 | Y121: 3.02
A122: 01e_N | B122: 2016-02-01 | C122: CZK | D122: CA | E122: 0 | F122: 85 | G122: 0 | H122: 30 | I122: 999999 | J122: 999999999 | K122: 3.77 | L122: 0.3 | O122: 0.1 | P122: 0.5 | T122: 0.37 | U122: 0.39 | V122: 0.09 | W122: 0.85 | X122: 0.84 | Y122: 2.08
A123: 01e_N | B123: 2016-02-01 | C123: CZK | D123: CA | E123: 85 | F123: 100 | G123: 0 | H123: 30 | I123: 999999 | J123: 999999999 | K123: 5.27 | L123: 0.3 | O123: 0.1 | P123: 0.5 | T123: 0.37 | U123: 0.39 | V123: 0.09 | W123: 0.85 | X123: 1.34 | Y123: 3.08
A124: 01e_S | B124: 2016-02-01 | C124: CZK | D124: Fl | E124: 0 | F124: 85 | G124: 0 | H124: 30 | I124: 999999 | J124: 999999999 | K124: 2.79 | L124: 0.3 | O124: 0.1 | P124: 0.5 | T124: =T22 -> 0.26 | U124: =U22 -> 0 | V124: =V22 -> 0.22 | W124: 0.48 | X124: =X22+0.12 -> 0.46 | Y124: =Y22+0.08 -> 1.85
A125: 01e_S | B125: 2016-02-01 | C125: CZK | D125: Fl | E125: 85 | F125: 100 | G125: 0 | H125: 30 | I125: 999999 | J125: 999999999 | K125: 4.29 | L125: 0.3 | O125: 0.1 | P125: 0.5 | T125: =T23 -> 0.26 | U125: 0 | V125: 0.22 | W125: 0.48 | X125: =X23+0.12 -> 0.96 | Y125: =Y23+0.08 -> 2.85
A126: 01e_S | B126: 2016-02-01 | C126: CZK | D126: 1 | E126: 0 | F126: 85 | G126: 0 | H126: 30 | I126: 999999 | J126: 999999999 | K126: 5.14 | L126: 0.3 | M126: 0.3 | N126: 0.5 | O126: 0.1 | T126: 0.39 | U126: 0.02 | V126: 0.01 | W126: 0.42 | X126: 0.46 | Y126: 4.26
A127: 01e_S | B127: 2016-02-01 | C127: CZK | D127: 1 | E127: 85 | F127: 90 | G127: 0 | H127: 30 | I127: 999999 | J127: 999999999 | K127: 6.64 | L127: 0.3 | M127: 0.3 | N127: 0.5 | O127: 0.1 | T127: 0.39 | U127: 0.02 | V127: 0.01 | W127: 0.42 | X127: 0.96 | Y127: 5.26
A128: 01e_S | B128: 2016-02-01 | C128: CZK | D128: 1 | E128: 90 | F128: 100 | G128: 0 | H128: 30 | I128: 999999 | J128: 999999999 | K128: 6.64 | L128: 0.3 | M128: 0.3 | N128: 0.5 | O128: 0.1 | T128: 0.39 | U128: 0.02 | V128: 0.01 | W128: 0.42 | X128: 0.96 | Y128: 5.26
A129: 01e_S | B129: 2016-02-01 | C129: CZK | D129: 10 | E129: 0 | F129: 85 | G129: 0 | H129: 30 | I129: 999999 | J129: 999999999 | K129: 4.25 | L129: 0.3 | M129: 0.3 | N129: 0.5 | O129: 0.1 | T129: 0.77 | U129: 0.02 | V129: 0.62 | W129: 1.41 | X129: 0.46 | Y129: 2.38
A130: 01e_S | B130: 2016-02-01 | C130: CZK | D130: 10 | E130: 85 | F130: 90 | G130: 0 | H130: 30 | I130: 999999 | J130: 999999999 | K130: 5.75 | L130: 0.3 | M130: 0.3 | N130: 0.5 | O130: 0.1 | T130: 0.77 | U130: 0.02 | V130: 0.62 | W130: 1.41 | X130: 0.96 | Y130: 3.38
A131: 01e_S | B131: 2016-02-01 | C131: CZK | D131: 10 | E131: 90 | F131: 100 | G131: 0 | H131: 30 | I131: 999999 | J131: 999999999 | K131: =T131+U131+V131+X131+Y131 -> 5.75 | L131: 0.3 | M131: 0.3 | N131: 0.5 | O131: 0.1 | T131: 0.77 | U131: 0.02 | V131: 0.62 | W131: =T131+U131+V131 -> 1.41 | X131: 0.96 | Y131: 3.38
A132: 01e_S | B132: =$B$2 -> 2016-02-01 | C132: CZK | D132: 2 | E132: 0 | F132: 85 | G132: 0 | H132: 30 | I132: 999999 | J132: 999999999 | K132: 3.09 | L132: 0.3 | M132: 0.3 | N132: 0.5 | O132: 0.1 | T132: 0.39 | U132: 0.02 | V132: 0.01 | W132: 0.42 | X132: 0.46 | Y132: 2.21
A133: 01e_S | B133: 2016-02-01 | C133: CZK | D133: 2 | E133: 85 | F133: 100 | G133: 0 | H133: 30 | I133: 999999 | J133: 999999999 | K133: 4.59 | L133: 0.3 | M133: 0.3 | N133: 0.5 | O133: 0.1 | T133: 0.39 | U133: 0.02 | V133: 0.01 | W133: 0.42 | X133: 0.96 | Y133: 3.21
A134: 01e_S | B134: 2016-02-01 | C134: CZK | D134: 3 | E134: 0 | F134: 85 | G134: 0 | H134: 30 | I134: 999999 | J134: 999999999 | K134: 2.69 | L134: 0.3 | M134: 0.3 | N134: 0.5 | O134: 0.1 | T134: 0.38 | U134: 0.02 | V134: 0.03 | W134: 0.43 | X134: 0.46 | Y134: 1.8
A135: 01e_S | B135: 2016-02-01 | C135: CZK | D135: 3 | E135: 85 | F135: 90 | G135: 0 | H135: 30 | I135: 999999 | J135: 999999999 | K135: 4.19 | L135: 0.3 | M135: 0.3 | N135: 0.5 | O135: 0.1 | T135: 0.38 | U135: 0.02 | V135: 0.03 | W135: 0.43 | X135: 0.96 | Y135: 2.8
A136: 01e_S | B136: 2016-02-01 | C136: CZK | D136: 3 | E136: 90 | F136: 100 | G136: 0 | H136: 30 | I136: 999999 | J136: 999999999 | K136: 4.19 | L136: 0.3 | M136: 0.3 | N136: 0.5 | O136: 0.1 | T136: 0.38 | U136: 0.02 | V136: 0.03 | W136: 0.43 | X136: 0.96 | Y136: 2.8
A137: 01e_S | B137: 2016-02-01 | C137: CZK | D137: 5 | E137: 0 | F137: 85 | G137: 0 | H137: 30 | I137: 999999 | J137: 999999999 | K137: 2.69 | L137: 0.3 | M137: 0.3 | N137: 0.5 | O137: 0.1 | T137: 0.46 | U137: 0.02 | V137: 0.09 | W137: 0.57 | X137: 0.46 | Y137: 1.66
A138: 01e_S | B138: 2016-02-01 | C138: CZK | D138: 5 | E138: 85 | F138: 90 | G138: 0 | H138: 30 | I138: 999999 | J138: 999999999 | K138: 4.19 | L138: 0.3 | M138: 0.3 | N138: 0.5 | O138: 0.1 | T138: 0.46 | U138: 0.02 | V138: 0.09 | W138: 0.57 | X138: 0.96 | Y138: 2.66
A139: 01e_S | B139: 2016-02-01 | C139: CZK | D139: 5 | E139: 90 | F139: 100 | G139: 0 | H139: 30 | I139: 999999 | J139: 999999999 | K139: 4.19 | L139: 0.3 | M139: 0.3 | N139: 0.5 | O139: 0.1 | T139: 0.46 | U139: 0.02 | V139: 0.09 | W139: 0.57 | X139: 0.96 | Y139: 2.66
A140: 01e_S | B140: 2016-02-01 | C140: CZK | D140: 7 | E140: 0 | F140: 85 | G140: 0 | H140: 30 | I140: 999999 | J140: 999999999 | K140: 3.39 | L140: 0.3 | M140: 0.3 | N140: 0.5 | O140: 0.1 | T140: 0.58 | U140: 0.02 | V140: 0.31 | W140: 0.91 | X140: 0.46 | Y140: 2.02
A141: 01e_S | B141: 2016-02-01 | C141: CZK | D141: 7 | E141: 85 | F141: 100 | G141: 0 | H141: 30 | I141: 999999 | J141: 999999999 | K141: 4.89 | L141: 0.3 | M141: 0.3 | N141: 0.5 | O141: 0.1 | T141: =T39 -> 0.58 | U141: 0.02 | V141: 0.31 | W141: 0.91 | X141: 0.96 | Y141: 3.02
A142: 01e_S | B142: 2016-02-01 | C142: CZK | D142: CA | E142: 0 | F142: 85 | G142: 0 | H142: 30 | I142: 999999 | J142: 999999999 | K142: 3.39 | L142: 0.3 | O142: 0.1 | P142: 0.5 | T142: 0.37 | U142: 0.39 | V142: 0.09 | W142: 0.85 | X142: 0.46 | Y142: 2.08
A143: 01e_S | B143: 2016-02-01 | C143: CZK | D143: CA | E143: 85 | F143: 100 | G143: 0 | H143: 30 | I143: 999999 | J143: 999999999 | K143: 4.89 | L143: 0.3 | O143: 0.1 | P143: 0.5 | T143: 0.37 | U143: 0.39 | V143: 0.09 | W143: 0.85 | X143: 0.96 | Y143: 3.08
A144: 02_N | B144: 2016-02-01 | C144: CZK | D144: Fl | E144: 0 | F144: 85 | G144: 0 | H144: 30 | I144: 999999 | J144: 999999999 | K144: 2.97 | L144: 0.3 | O144: 0.1 | P144: 0.5 | T144: =T160 -> 0.26 | U144: =U160 -> 0 | V144: =V160 -> 0.22 | W144: 0.48 | X144: =X160+0.38 -> 0.72 | Y144: =Y160 -> 1.77
A145: 02_N | B145: 2016-02-01 | C145: CZK | D145: Fl | E145: 85 | F145: 100 | G145: 0 | H145: 30 | I145: 999999 | J145: 999999999 | K145: 4.47 | L145: 0.3 | O145: 0.1 | P145: 0.5 | T145: =T161 -> 0.26 | U145: 0 | V145: 0.22 | W145: 0.48 | X145: =X161+0.38 -> 1.22 | Y145: =Y161 -> 2.77
A146: 02_N | B146: 2016-02-01 | C146: CZK | D146: 1 | E146: 0 | F146: 85 | G146: 0 | H146: 30 | I146: 999999 | J146: 999999999 | K146: 5.32 | L146: 0.3 | M146: 0.3 | N146: 0.5 | O146: 0.1 | T146: 0.39 | U146: 0.02 | V146: 0.01 | W146: 0.42 | X146: 0.72 | Y146: 4.18
A147: 02_N | B147: 2016-02-01 | C147: CZK | D147: 1 | E147: 85 | F147: 100 | G147: 0 | H147: 30 | I147: 999999 | J147: 999999999 | K147: 6.82 | L147: 0.3 | M147: 0.3 | N147: 0.5 | O147: 0.1 | T147: 0.39 | U147: 0.02 | V147: 0.01 | W147: 0.42 | X147: 1.22 | Y147: 5.18
A148: 02_N | B148: 2016-02-01 | C148: CZK | D148: 10 | E148: 0 | F148: 85 | G148: 0 | H148: 30 | I148: 999999 | J148: 999999999 | K148: 4.43 | L148: 0.3 | M148: 0.3 | N148: 0.5 | O148: 0.1 | T148: 0.77 | U148: 0.02 | V148: 0.62 | W148: 1.41 | X148: 0.72 | Y148: 2.3
A149: 02_N | B149: 2016-02-01 | C149: CZK | D149: 10 | E149: 85 | F149: 100 | G149: 0 | H149: 30 | I149: 999999 | J149: 999999999 | K149: 5.93 | L149: 0.3 | M149: 0.3 | N149: 0.5 | O149: 0.1 | T149: 0.77 | U149: 0.02 | V149: 0.62 | W149: 1.41 | X149: 1.22 | Y149: 3.3
A150: 02_N | B150: 2016-02-01 | C150: CZK | D150: 2 | E150: 0 | F150: 85 | G150: 0 | H150: 30 | I150: 999999 | J150: 999999999 | K150: 3.27 | L150: 0.3 | M150: 0.3 | N150: 0.5 | O150: 0.1 | T150: 0.39 | U150: 0.02 | V150: 0.01 | W150: 0.42 | X150: 0.72 | Y150: 2.13
A151: 02_N | B151: 2016-02-01 | C151: CZK | D151: 2 | E151: 85 | F151: 100 | G151: 0 | H151: 30 | I151: 999999 | J151: 999999999 | K151: 4.77 | L151: 0.3 | M151: 0.3 | N151: 0.5 | O151: 0.1 | T151: 0.39 | U151: 0.02 | V151: 0.01 | W151: 0.42 | X151: 1.22 | Y151: 3.13
A152: 02_N | B152: 2016-02-01 | C152: CZK | D152: 3 | E152: 0 | F152: 85 | G152: 0 | H152: 30 | I152: 999999 | J152: 999999999 | K152: 2.87 | L152: 0.3 | M152: 0.3 | N152: 0.5 | O152: 0.1 | T152: 0.38 | U152: 0.02 | V152: 0.03 | W152: 0.43 | X152: 0.72 | Y152: 1.72
A153: 02_N | B153: 2016-02-01 | C153: CZK | D153: 3 | E153: 85 | F153: 100 | G153: 0 | H153: 30 | I153: 999999 | J153: 999999999 | K153: 4.37 | L153: 0.3 | M153: 0.3 | N153: 0.5 | O153: 0.1 | T153: 0.38 | U153: 0.02 | V153: 0.03 | W153: 0.43 | X153: 1.22 | Y153: 2.72
A154: 02_N | B154: 2016-02-01 | C154: CZK | D154: 5 | E154: 0 | F154: 85 | G154: 0 | H154: 30 | I154: 999999 | J154: 999999999 | K154: 2.87 | L154: 0.3 | M154: 0.3 | N154: 0.5 | O154: 0.1 | T154: 0.46 | U154: 0.02 | V154: 0.09 | W154: 0.57 | X154: 0.72 | Y154: 1.58
A155: 02_N | B155: 2016-02-01 | C155: CZK | D155: 5 | E155: 85 | F155: 100 | G155: 0 | H155: 30 | I155: 999999 | J155: 999999999 | K155: 4.37 | L155: 0.3 | M155: 0.3 | N155: 0.5 | O155: 0.1 | T155: 0.46 | U155: 0.02 | V155: 0.09 | W155: 0.57 | X155: 1.22 | Y155: 2.58
A156: 02_N | B156: 2016-02-01 | C156: CZK | D156: 7 | E156: 0 | F156: 85 | G156: 0 | H156: 30 | I156: 999999 | J156: 999999999 | K156: 3.57 | L156: 0.3 | M156: 0.3 | N156: 0.5 | O156: 0.1 | T156: 0.58 | U156: 0.02 | V156: 0.31 | W156: 0.91 | X156: 0.72 | Y156: 1.94
A157: 02_N | B157: 2016-02-01 | C157: CZK | D157: 7 | E157: 85 | F157: 100 | G157: 0 | H157: 30 | I157: 999999 | J157: 999999999 | K157: 5.07 | L157: 0.3 | M157: 0.3 | N157: 0.5 | O157: 0.1 | T157: 0.58 | U157: 0.02 | V157: 0.31 | W157: 0.91 | X157: 1.22 | Y157: 2.94
A158: 02_N | B158: 2016-02-01 | C158: CZK | D158: CA | E158: 0 | F158: 85 | G158: 0 | H158: 30 | I158: 999999 | J158: 999999999 | K158: 3.57 | L158: 0.3 | O158: 0.1 | P158: 0.5 | T158: 0.37 | U158: 0.39 | V158: 0.09 | W158: 0.85 | X158: 0.72 | Y158: 2
A159: 02_N | B159: 2016-02-01 | C159: CZK | D159: CA | E159: 85 | F159: 100 | G159: 0 | H159: 30 | I159: 999999 | J159: 999999999 | K159: 5.07 | L159: 0.3 | O159: 0.1 | P159: 0.5 | T159: 0.37 | U159: 0.39 | V159: 0.09 | W159: 0.85 | X159: 1.22 | Y159: 3
A160: 02_S | B160: 2016-02-01 | C160: CZK | D160: Fl | E160: 0 | F160: 85 | G160: 0 | H160: 30 | I160: 999999 | J160: 999999999 | K160: 2.59 | L160: 0.3 | O160: 0.1 | P160: 0.5 | T160: =T22 -> 0.26 | U160: =U22 -> 0 | V160: 0.22 | W160: 0.48 | X160: =X22 -> 0.34 | Y160: 1.77
A161: 02_S | B161: 2016-02-01 | C161: CZK | D161: Fl | E161: 85 | F161: 100 | G161: 0 | H161: 30 | I161: 999999 | J161: 999999999 | K161: 4.09 | L161: 0.3 | O161: 0.1 | P161: 0.5 | T161: =T23 -> 0.26 | U161: 0 | V161: 0.22 | W161: 0.48 | X161: 0.84 | Y161: 2.77
A162: 02_S | B162: 2016-02-01 | C162: CZK | D162: 1 | E162: 0 | F162: 85 | G162: 0 | H162: 30 | I162: 999999 | J162: 999999999 | K162: 4.94 | L162: 0.3 | M162: 0.3 | N162: 0.5 | O162: 0.1 | T162: 0.39 | U162: 0.02 | V162: 0.01 | W162: 0.42 | X162: 0.34 | Y162: 4.18
A163: 02_S | B163: 2016-02-01 | C163: CZK | D163: 1 | E163: 85 | F163: 100 | G163: 0 | H163: 30 | I163: 999999 | J163: 999999999 | K163: 6.44 | L163: 0.3 | M163: 0.3 | N163: 0.5 | O163: 0.1 | T163: 0.39 | U163: 0.02 | V163: 0.01 | W163: 0.42 | X163: 0.84 | Y163: 5.18
A164: 02_S | B164: 2016-02-01 | C164: CZK | D164: 10 | E164: 0 | F164: 85 | G164: 0 | H164: 30 | I164: 999999 | J164: 999999999 | K164: 4.05 | L164: 0.3 | M164: 0.3 | N164: 0.5 | O164: 0.1 | T164: =T27 -> 0.77 | U164: 0.02 | V164: 0.62 | W164: 1.41 | X164: =X27 -> 0.34 | Y164: =Y27 -> 2.3
A165: 02_S | B165: 2016-02-01 | C165: CZK | D165: 10 | E165: 85 | F165: 100 | G165: 0 | H165: 30 | I165: 999999 | J165: 999999999 | K165: 5.55 | L165: 0.3 | M165: 0.3 | N165: 0.5 | O165: 0.1 | T165: 0.77 | U165: 0.02 | V165: 0.62 | W165: 1.41 | X165: =X28 -> 0.84 | Y165: =Y28 -> 3.3
A166: 02_S | B166: 2016-02-01 | C166: CZK | D166: 2 | E166: 0 | F166: 85 | G166: 0 | H166: 30 | I166: 999999 | J166: 999999999 | K166: 2.89 | L166: 0.3 | M166: 0.3 | N166: 0.5 | O166: 0.1 | T166: =T30 -> 0.39 | U166: 0.02 | V166: 0.01 | W166: 0.42 | X166: =X30 -> 0.34 | Y166: 2.13
A167: 02_S | B167: 2016-02-01 | C167: CZK | D167: 2 | E167: 85 | F167: 100 | G167: 0 | H167: 30 | I167: 999999 | J167: 999999999 | K167: 4.39 | L167: 0.3 | M167: 0.3 | N167: 0.5 | O167: 0.1 | T167: 0.39 | U167: 0.02 | V167: 0.01 | W167: 0.42 | X167: 0.84 | Y167: 3.13
A168: 02_S | B168: 2016-02-01 | C168: CZK | D168: 3 | E168: 0 | F168: 85 | G168: 0 | H168: 30 | I168: 999999 | J168: 999999999 | K168: 2.49 | L168: 0.3 | M168: 0.3 | N168: 0.5 | O168: 0.1 | T168: 0.38 | U168: 0.02 | V168: 0.03 | W168: 0.43 | X168: 0.34 | Y168: 1.72
A169: 02_S | B169: 2016-02-01 | C169: CZK | D169: 3 | E169: 85 | F169: 100 | G169: 0 | H169: 30 | I169: 999999 | J169: 999999999 | K169: 3.99 | L169: 0.3 | M169: 0.3 | N169: 0.5 | O169: 0.1 | T169: 0.38 | U169: 0.02 | V169: 0.03 | W169: 0.43 | X169: 0.84 | Y169: 2.72
A170: 02_S | B170: 2016-02-01 | C170: CZK | D170: 5 | E170: 0 | F170: 85 | G170: 0 | H170: 30 | I170: 999999 | J170: 999999999 | K170: 2.49 | L170: 0.3 | M170: 0.3 | N170: 0.5 | O170: 0.1 | T170: =T35 -> 0.46 | U170: 0.02 | V170: 0.09 | W170: 0.57 | X170: =X35 -> 0.34 | Y170: =Y35 -> 1.58
A171: 02_S | B171: 2016-02-01 | C171: CZK | D171: 5 | E171: 85 | F171: 100 | G171: 0 | H171: 30 | I171: 999999 | J171: 999999999 | K171: 3.99 | L171: 0.3 | M171: 0.3 | N171: 0.5 | O171: 0.1 | T171: 0.46 | U171: 0.02 | V171: 0.09 | W171: 0.57 | X171: =X36 -> 0.84 | Y171: =Y36 -> 2.58
A172: 02_S | B172: 2016-02-01 | C172: CZK | D172: 7 | E172: 0 | F172: 85 | G172: 0 | H172: 30 | I172: 999999 | J172: 999999999 | K172: 3.19 | L172: 0.3 | M172: 0.3 | N172: 0.5 | O172: 0.1 | T172: =T38 -> 0.58 | U172: 0.02 | V172: 0.31 | W172: 0.91 | X172: =X38 -> 0.34 | Y172: 1.94
A173: 02_S | B173: 2016-02-01 | C173: CZK | D173: 7 | E173: 85 | F173: 100 | G173: 0 | H173: 30 | I173: 999999 | J173: 999999999 | K173: 4.69 | L173: 0.3 | M173: 0.3 | N173: 0.5 | O173: 0.1 | T173: 0.58 | U173: 0.02 | V173: 0.31 | W173: 0.91 | X173: 0.84 | Y173: 2.94
A174: 02_S | B174: 2016-02-01 | C174: CZK | D174: CA | E174: 0 | F174: 85 | G174: 0 | H174: 30 | I174: 999999 | J174: 999999999 | K174: 3.19 | L174: 0.3 | M174: 0.3 | O174: 0.1 | P174: 0.5 | T174: 0.37 | U174: 0.39 | V174: 0.09 | W174: 0.85 | X174: 0.34 | Y174: 2
A175: 02_S | B175: 2016-02-01 | C175: CZK | D175: CA | E175: 85 | F175: 100 | G175: 0 | H175: 30 | I175: 999999 | J175: 999999999 | K175: 4.69 | L175: 0.3 | M175: 0.3 | O175: 0.1 | P175: 0.5 | T175: 0.37 | U175: 0.39 | V175: 0.09 | W175: 0.85 | X175: 0.84 | Y175: 3
A176: 03_N | B176: 2016-02-01 | C176: CZK | D176: Fl | E176: 0 | F176: 60 | G176: 0 | H176: 99999 | I176: 999999 | J176: 999999999 | K176: 6.23 | L176: 0.3 | O176: 0.1 | P176: 0.5 | T176: =T192 -> 0.26 | U176: =U192 -> 0 | V176: =V192 -> 0.22 | W176: 0.48 | X176: =X192+0.38 -> 0.98 | Y176: =Y192 -> 4.77
A177: 03_N | B177: 2016-02-01 | C177: CZK | D177: Fl | E177: 60 | F177: 80 | G177: 0 | H177: 99999 | I177: 999999 | J177: 999999999 | K177: 6.47 | L177: 0.3 | O177: 0.1 | P177: 0.5 | T177: =T193 -> 0.26 | U177: 0 | V177: 0.22 | W177: 0.48 | X177: =X193+0.38 -> 1.22 | Y177: =Y193 -> 4.77
A178: 03_N | B178: 2016-02-01 | C178: CZK | D178: 1 | E178: 0 | F178: 60 | G178: 0 | H178: 99999 | I178: 999999 | J178: 999999999 | K178: 8.58 | L178: 0.3 | M178: 0.3 | N178: 0.5 | O178: 0.1 | T178: 0.39 | U178: 0.02 | V178: 0.01 | W178: 0.42 | X178: 0.98 | Y178: 7.18
A179: 03_N | B179: 2016-02-01 | C179: CZK | D179: 1 | E179: 60 | F179: 80 | G179: 0 | H179: 99999 | I179: 999999 | J179: 999999999 | K179: 8.82 | L179: 0.3 | M179: 0.3 | N179: 0.5 | O179: 0.1 | T179: 0.39 | U179: 0.02 | V179: 0.01 | W179: 0.42 | X179: 1.22 | Y179: 7.18
A180: 03_N | B180: 2016-02-01 | C180: CZK | D180: 10 | E180: 0 | F180: 60 | G180: 0 | H180: 99999 | I180: 999999 | J180: 999999999 | K180: 7.69 | L180: 0.3 | M180: 0.3 | N180: 0.5 | O180: 0.1 | T180: 0.77 | U180: 0.02 | V180: 0.62 | W180: 1.41 | X180: 0.98 | Y180: 5.3
A181: 03_N | B181: 2016-02-01 | C181: CZK | D181: 10 | E181: 60 | F181: 80 | G181: 0 | H181: 99999 | I181: 999999 | J181: 999999999 | K181: 7.93 | L181: 0.3 | M181: 0.3 | N181: 0.5 | O181: 0.1 | T181: 0.77 | U181: 0.02 | V181: 0.62 | W181: 1.41 | X181: 1.22 | Y181: 5.3
A182: 03_N | B182: 2016-02-01 | C182: CZK | D182: 2 | E182: 0 | F182: 60 | G182: 0 | H182: 99999 | I182: 999999 | J182: 999999999 | K182: 6.53 | L182: 0.3 | M182: 0.3 | N182: 0.5 | O182: 0.1 | T182: 0.39 | U182: 0.02 | V182: 0.01 | W182: 0.42 | X182: 0.98 | Y182: 5.13
A183: 03_N | B183: 2016-02-01 | C183: CZK | D183: 2 | E183: 60 | F183: 80 | G183: 0 | H183: 99999 | I183: 999999 | J183: 999999999 | K183: 6.77 | L183: 0.3 | M183: 0.3 | N183: 0.5 | O183: 0.1 | T183: 0.39 | U183: 0.02 | V183: 0.01 | W183: 0.42 | X183: 1.22 | Y183: 5.13
A184: 03_N | B184: 2016-02-01 | C184: CZK | D184: 3 | E184: 0 | F184: 60 | G184: 0 | H184: 99999 | I184: 999999 | J184: 999999999 | K184: 6.13 | L184: 0.3 | M184: 0.3 | N184: 0.5 | O184: 0.1 | T184: 0.38 | U184: 0.02 | V184: 0.03 | W184: 0.43 | X184: 0.98 | Y184: 4.72
A185: 03_N | B185: 2016-02-01 | C185: CZK | D185: 3 | E185: 60 | F185: 80 | G185: 0 | H185: 99999 | I185: 999999 | J185: 999999999 | K185: 6.37 | L185: 0.3 | M185: 0.3 | N185: 0.5 | O185: 0.1 | T185: 0.38 | U185: 0.02 | V185: 0.03 | W185: 0.43 | X185: 1.22 | Y185: 4.72
A186: 03_N | B186: 2016-02-01 | C186: CZK | D186: 5 | E186: 0 | F186: 60 | G186: 0 | H186: 99999 | I186: 999999 | J186: 999999999 | K186: 6.13 | L186: 0.3 | M186: 0.3 | N186: 0.5 | O186: 0.1 | T186: 0.46 | U186: 0.02 | V186: 0.09 | W186: 0.57 | X186: 0.98 | Y186: 4.58
A187: 03_N | B187: 2016-02-01 | C187: CZK | D187: 5 | E187: 60 | F187: 80 | G187: 0 | H187: 99999 | I187: 999999 | J187: 999999999 | K187: 6.37 | L187: 0.3 | M187: 0.3 | N187: 0.5 | O187: 0.1 | T187: 0.46 | U187: 0.02 | V187: 0.09 | W187: 0.57 | X187: 1.22 | Y187: 4.58
A188: 03_N | B188: 2016-02-01 | C188: CZK | D188: 7 | E188: 0 | F188: 60 | G188: 0 | H188: 99999 | I188: 999999 | J188: 999999999 | K188: 6.83 | L188: 0.3 | M188: 0.3 | N188: 0.5 | O188: 0.1 | T188: 0.58 | U188: 0.02 | V188: 0.31 | W188: 0.91 | X188: 0.98 | Y188: 4.94
A189: 03_N | B189: 2016-02-01 | C189: CZK | D189: 7 | E189: 60 | F189: 80 | G189: 0 | H189: 99999 | I189: 999999 | J189: 999999999 | K189: 7.07 | L189: 0.3 | M189: 0.3 | N189: 0.5 | O189: 0.1 | T189: 0.58 | U189: 0.02 | V189: 0.31 | W189: 0.91 | X189: 1.22 | Y189: 4.94
A190: 03_N | B190: 2016-02-01 | C190: CZK | D190: CA | E190: 0 | F190: 60 | G190: 0 | H190: 99999 | I190: 999999 | J190: 999999999 | K190: 6.83 | L190: 0.3 | O190: 0.1 | P190: 0.5 | T190: 0.37 | U190: 0.39 | V190: 0.09 | W190: 0.85 | X190: 0.98 | Y190: 5
A191: 03_N | B191: 2016-02-01 | C191: CZK | D191: CA | E191: 60 | F191: 80 | G191: 0 | H191: 99999 | I191: 999999 | J191: 999999999 | K191: 7.07 | L191: 0.3 | O191: 0.1 | P191: 0.5 | T191: 0.37 | U191: 0.39 | V191: 0.09 | W191: 0.85 | X191: 1.22 | Y191: 5
A192: 03_S | B192: 2016-02-01 | C192: CZK | D192: Fl | E192: 0 | F192: 60 | G192: 0 | H192: 99999 | I192: 999999 | J192: 999999999 | K192: 5.85 | L192: 0.3 | O192: 0.1 | P192: 0.5 | T192: =T22 -> 0.26 | U192: =U22 -> 0 | V192: =V22 -> 0.22 | W192: 0.48 | X192: 0.6 | Y192: =Y22+3 -> 4.77
A193: 03_S | B193: 2016-02-01 | C193: CZK | D193: Fl | E193: 60 | F193: 80 | G193: 0 | H193: 99999 | I193: 999999 | J193: 999999999 | K193: 6.09 | L193: 0.3 | O193: 0.1 | P193: 0.5 | T193: =T22 -> 0.26 | U193: =U22 -> 0 | V193: =V22 -> 0.22 | W193: 0.48 | X193: =X192+0.24 -> 0.84 | Y193: =Y22+3 -> 4.77
A194: 03_S | B194: 2016-02-01 | C194: CZK | D194: 1 | E194: 0 | F194: 60 | G194: 0 | H194: 99999 | I194: 999999 | J194: 999999999 | K194: 8.2 | L194: 0.3 | M194: 0.3 | N194: 0.5 | O194: 0.1 | T194: =T24 -> 0.39 | U194: =U24 -> 0.02 | V194: =V24 -> 0.01 | W194: 0.42 | X194: 0.6 | Y194: =Y24+3 -> 7.18
A195: 03_S | B195: 2016-02-01 | C195: CZK | D195: 1 | E195: 60 | F195: 80 | G195: 0 | H195: 99999 | I195: 999999 | J195: 999999999 | K195: 8.44 | L195: 0.3 | M195: 0.3 | N195: 0.5 | O195: 0.1 | T195: =T24 -> 0.39 | U195: =U24 -> 0.02 | V195: =V24 -> 0.01 | W195: 0.42 | X195: =X194+0.24 -> 0.84 | Y195: =Y24+3 -> 7.18
A196: 03_S | B196: 2016-02-01 | C196: CZK | D196: 10 | E196: 0 | F196: 60 | G196: 0 | H196: 99999 | I196: 999999 | J196: 999999999 | K196: 7.31 | L196: 0.3 | M196: 0.3 | N196: 0.5 | O196: 0.1 | T196: =T27 -> 0.77 | U196: =U27 -> 0.02 | V196: =V27 -> 0.62 | W196: 1.41 | X196: 0.6 | Y196: =Y27+3 -> 5.3
A197: 03_S | B197: 2016-02-01 | C197: CZK | D197: 10 | E197: 60 | F197: 80 | G197: 0 | H197: 99999 | I197: 999999 | J197: 999999999 | K197: 7.55 | L197: 0.3 | M197: 0.3 | N197: 0.5 | O197: 0.1 | T197: =T27 -> 0.77 | U197: =U27 -> 0.02 | V197: =V27 -> 0.62 | W197: 1.41 | X197: =X196+0.24 -> 0.84 | Y197: =Y27+3 -> 5.3
A198: 03_S | B198: 2016-02-01 | C198: CZK | D198: 2 | E198: 0 | F198: 60 | G198: 0 | H198: 99999 | I198: 999999 | J198: 999999999 | K198: 6.15 | L198: 0.3 | M198: 0.3 | N198: 0.5 | O198: 0.1 | T198: =T30 -> 0.39 | U198: =U30 -> 0.02 | V198: =V30 -> 0.01 | W198: 0.42 | X198: 0.6 | Y198: =Y30+3 -> 5.13
A199: 03_S | B199: 2016-02-01 | C199: CZK | D199: 2 | E199: 60 | F199: 80 | G199: 0 | H199: 99999 | I199: 999999 | J199: 999999999 | K199: 6.39 | L199: 0.3 | M199: 0.3 | N199: 0.5 | O199: 0.1 | T199: =T30 -> 0.39 | U199: =U30 -> 0.02 | V199: =V30 -> 0.01 | W199: 0.42 | X199: =X198+0.24 -> 0.84 | Y199: =Y30+3 -> 5.13
A200: 03_S | B200: 2016-02-01 | C200: CZK | D200: 3 | E200: 0 | F200: 60 | G200: 0 | H200: 99999 | I200: 999999 | J200: 999999999 | K200: 5.75 | L200: 0.3 | M200: 0.3 | N200: 0.5 | O200: 0.1 | T200: =T32 -> 0.38 | U200: =U32 -> 0.02 | V200: =V32 -> 0.03 | W200: 0.43 | X200: 0.6 | Y200: =Y32+3 -> 4.72
... 213 more rows

Sheet DefProd (hidden)
A1: TYP_ID | B1: PRODUCT | C1: VYSE_MIN | D1: MINTEXT | E1: VYSE_MAX | F1: MAXTEXT | G1: FIXACE | H1: SPLATNOST_MIN | I1: SPLATNOST_MAX | J1: MAXBEZALM | K1: VEK_MIN | L1: VEK_MAX | M1: LTV Max
A2: 01a_N | B2: Hypoteční úvěr účelový rezidenční Individual | C2: 200000 | D2: 200.000 | E2: 999999999 | F2: 999.999.999 | G2: Float, 1 rok, 2 roky, 3 roky, 5 let, 7 let, 10 let | H2: 12 | I2: 300 | J2: 20000000 | K2: 18 | L2: 99 | M2: 100
A3: 01a_S | B3: Hypoteční úvěr účelový rezidenční Individual | C3: 200000 | D3: 200.000 | E3: 999999999 | F3: 999.999.999 | G3: Float, 1 rok, 2 roky, 3 roky, 5 let, 7 let, 10 let | H3: 12 | I3: 360 | J3: 20000000 | K3: 18 | L3: 99 | M3: 100
A4: 01c_N | B4: Hypoteční úvěr účelový rezidenční Flexi | C4: 200000 | D4: 200.000 | E4: 999999999 | F4: 999.999.999 | G4: 1 rok, 2 roky, 3 roky, 5 let, 7 let, 10 let | H4: 12 | I4: 300 | J4: 20000000 | K4: 18 | L4: 99 | M4: 100
A5: 01c_S | B5: Hypoteční úvěr účelový rezidenční Flexi | C5: 200000 | D5: 200.000 | E5: 999999999 | F5: 999.999.999 | G5: 1 rok, 2 roky, 3 roky, 5 let, 7 let, 10 let | H5: 12 | I5: 360 | J5: 20000000 | K5: 18 | L5: 99 | M5: 100
A6: 01d_N | B6: Hypoteční úvěr účelový rezidenční Plus | C6: 200000 | D6: 200.000 | E6: 999999999 | F6: 999.999.999 | G6: Float, 3 roky, 5 let, 10 let | H6: 60 | I6: 300 | J6: 20000000 | K6: 18 | L6: 99 | M6: 100
A7: 01d_S | B7: Hypoteční úvěr účelový rezidenční Plus | C7: 200000 | D7: 200.000 | E7: 999999999 | F7: 999.999.999 | G7: Float, 3 roky, 5 let, 10 let | H7: 60 | I7: 360 | J7: 20000000 | K7: 18 | L7: 99 | M7: 100
A8: 01e_N | B8: Hypoteční úvěr účelový rezidenční Twin | C8: 200000 | D8: 200.000 | E8: 999999999 | F8: 999.999.999 | G8: Float, 1 rok, 2 roky, 3 roky, 5 let, 7 let, 10 let | H8: 12 | I8: 300 | J8: 20000000 | K8: 18 | L8: 99 | M8: 100
A9: 01e_S | B9: Hypoteční úvěr účelový rezidenční Twin | C9: 200000 | D9: 200.000 | E9: 999999999 | F9: 999.999.999 | G9: Float, 1 rok, 2 roky, 3 roky, 5 let, 7 let, 10 let | H9: 12 | I9: 360 | J9: 20000000 | K9: 18 | L9: 99 | M9: 100
A10: 02_N | B10: Hypoteční úvěr účelový nerezidenční | C10: 200000 | D10: 200.000 | E10: 999999999 | F10: 999.999.999 | G10: Float, 1 rok, 2 roky, 3 roky, 5 let, 7 let, 10 let | H10: 12 | I10: 180 | J10: 20000000 | K10: 18 | L10: 99 | M10: 100
A11: 02_S | B11: Hypoteční úvěr účelový nerezidenční | C11: 200000 | D11: 200.000 | E11: 999999999 | F11: 999.999.999 | G11: Float, 1 rok, 2 roky, 3 roky, 5 let, 7 let, 10 let | H11: 12 | I11: 360 | J11: 20000000 | K11: 18 | L11: 99 | M11: 100
A12: 03_N | B12: Hypoteční úvěr neúčelový | C12: 200000 | D12: 200.000 | E12: 10000000 | F12: 10.000.000 | G12: Float, 1 rok, 2 roky, 3 roky, 5 let, 7 let, 10 let | H12: 12 | I12: 240 | J12: 20000000 | K12: 18 | L12: 99 | M12: 70
A13: 03_S | B13: Hypoteční úvěr neúčelový | C13: 200000 | D13: 200.000 | E13: 10000000 | F13: 10.000.000 | G13: Float, 1 rok, 2 roky, 3 roky, 5 let, 7 let, 10 let | H13: 12 | I13: 240 | J13: 20000000 | K13: 18 | L13: 99 | M13: 70

Sheet DefSpecPar (hidden)
A1: PROMENNA | B1: HODNOTA | C1: POPISKA
A2: CardifFeeInFront | B2: 3 | C2: Poplatek CARDIF navyšující úvěr

Sheet POBOČKY
A1: SEZNAM POBOČEK UniCredit Bank Czech Republic and Slovakia _platnost od 1.11.2015
A2: code | B2: branch | C2: street | D2: zip | E2: city | F2: e-mail | G2: tel | H2: fax | I2: manager
B3: OBLAST PRAHA | I3: G. Guidi
B4: BANKOVNÍ DŮM NÁM REPUBLIKY | I4: Achtstaetter Andre
A5: 7040 | B5: NR EXPRESNÍ SLUŽBY | C5: náměstí Republiky 3a | D5: 110 00 | E5: Praha 1 | F5: bankovnidum@unicreditgroup.cz | G5: 955959835 | H5: 221159622 | I5: Voršilka Radek
A6: 7042 | B6: NR SLUŽBY NA MÍRU 1 | C6: náměstí Republiky 3a | D6: 110 00 | E6: Praha 1 | I6: Lachmanová Barbora
A7: 7043 | B7: NR SLUŽBY NA MÍRU 2 | C7: náměstí Republiky 3a | D7: 110 00 | E7: Praha 1 | I7: Seidlová Martina
A8: 7046 | B8: SVOBODNÁ POVOLÁNÍ NÁM REP | C8: náměstí Republiky 3a | D8: 110 00 | E8: Praha 1 | I8: Řídkosil Havlíčková Petra
A9: 7090 | B9: INTERNATIONAL Clients Center | C9: náměstí Republiky 3a | D9: 110 00 | E9: Praha 1 | F9: icc@unicreditgroup.cz | G9: 955962060-3 | H9: 221159622 | I9: Rada Marek
B10: PRAHA SEVEROZÁPAD | I10: Krausová Petra
A11: 7026 | B11: ADRIA | C11: Jungmannova 31 | D11: 110 00 | E11: Praha 1 | F11: praha.adria@unicreditgroup.cz | G11: 955959840 | H11: 221153101 | I11: Berka Oldřich
A12: 7031 | B12: ARBES | C12: Štefánikova 32 | D12: 150 00 | E12: Praha 5 | F12: praha.arbes@unicreditgroup.cz | G12: 956959851 | H12: 221153001 | I12: Švarcova Radka
A13: 7027 | B13: HAVELSKÁ | C13: Havelská 19 | D13: 110 00 | E13: Praha 1 | F13: praha.havelska@unicreditgroup.cz | G13: 955959836 | H13: 221153501 | I13: Jílek Jan
A14: 7030 | B14: VÍTĚZNÉ NÁMĚSTÍ | C14: Vítězné náměstí 10 | D14: 160 00 | E14: Praha 6 | F14: praha.vitezne@unicreditgroup.cz | G14: 955959852 | H14: 221153301 | I14: Bošák Ivo
A15: 7003 | B15: ANDĚL | C15: Štefánikova 281/4 | D15: 150 00 | E15: Praha 5 | F15: praha.andel@unicreditgroup.cz | G15: 955959850 | H15: 221155660 | I15: Putnová Romana
A16: 7002 | B16: DEJVICKÁ | C16: Dejvická 30 | D16: 160 00 | E16: Praha 6 | F16: praha.dejvicka@unicreditgroup.cz | G16: 955959853 | H16: 221155640 | I16: Pech Pavel
A17: 7033 | B17: HLAVNÍ NÁDRAŽÍ | C17: Wilsonova 300/8 | D17: 120 00 | E17: Praha 2 | F17: praha.hlavninadrazi@unicreditgroup.cz | G17: 955959890 | H17: 221155165 | I17: Losenický Jaroslav
A18: 7022 | B18: HOLEŠOVICE | C18: Komunardů 883/24 | D18: 170 00 | E18: Praha 7 | F18: praha.komunardu@unicreditgroup.cz | G18: 955959854 | H18: 221155670 | I18: Holcová Hana
A19: 7017 | B19: KOBYLISKÉ NÁMĚSTÍ | C19: Horňátecká 447/1 | D19: 180 00 | E19: Praha 8 | F19: praha.kobylisy@unicreditgroup.cz | G19: 955959857 | H19: 221155700 | I19: Nyklíčková Petra
A20: 7012 | B20: LAZARSKÁ | C20: Spálená 82/4 | D20: 110 00 | E20: Praha 1 | F20: praha.lazarska@unicreditgroup.cz | G20: 955959837 | H20: 221155520 | I20: Krausová Petra
A21: 7021 | B21: NA POŘÍČÍ | C21: Na Poříčí 1933/36 | D21: 110 00 | E21: Praha 1 | F21: praha.porici@unicreditgroup.cz | G21: 955959838 | H21: 221155500 | I21: Brabec Ivan
A22: 7020 | B22: STROSSMAYEROVO NÁM. | C22: Pplk. Sochora 693/23 | D22: 170 00 | E22: Praha 7 | F22: praha.strossmayerovo@unicreditgroup.cz | G22: 955959855 | H22: 221155680 | I22: Mašková Lucie
A23: 7015 | B23: VÁCLAVSKÉ NÁMĚSTÍ | C23: Václavské náměstí 815/53 | D23: 110 00 | E23: Praha 1 | F23: praha.vaclavske@unicreditgroup.cz | G23: 955959842 | H23: 221155730 | I23: Losenický Jaroslav
B24: PRAHA JIHOVÝCHOD | I24: Dzúrová Katarína
A25: 7028 | B25: PRAHA - VALDEK | C25: Jugoslávská 29 | D25: 120 00 | E25: Praha 2 | F25: praha.valdek@unicreditgroup.cz | G25: 955959845 | H25: 221159722 | I25: Šťastná Romana
A26: 7023 | B26: BUDĚJOVICKÁ | C26: Olbrachtova 1946/64 | D26: 140 00 | E26: Praha 4 | F26: praha.budejovicka@unicreditgroup.cz | G26: 955959848 | H26: 221155580 | I26: Víchová Zuzana
A27: 7037 | B27: BUTOVICE | C27: Petržílkova 1435 | D27: 158 00 | E27: Praha 13 | F27: praha.butovice@unicreditgroup.cz | G27: 955959898 | H27: 221155200 | I27: Dudař Jan
A28: 7011 | B28: EDEN | C28: Vršovická 1398/70 | D28: 101 00 | E28: Praha 10 | F28: praha.eden@unicreditgroup.cz | G28: 955959858 | H28: 221155710 | I28: Hlaváčková Andrea
A29: 7007 | B29: FILADELFIE | C29: Želetavská 1525/1 | D29: 140 00 | E29: Praha 4 | F29: praha.filadelfie@unicreditgroup.cz | G29: 955959904 | H29: 221155205 | I29: Víchová Zuzana
A30: 7029 | B30: FLÓRA | C30: Vinohradská 151 | D30: 130 00 | E30: Praha 3 | F30: praha.flora@unicreditgroup.cz | G30: 955959846 | H30: 221153205 | I30: Kovář Vladimír
A31: 7010 | B31: KARLÍN | C31: Thámova 84/23 | D31: 180 00 | E31: Praha 8 | F31: praha.karlin@unicreditgroup.cz | G31: 955959856 | H31: 221155690 | I31: Libertínová Nikola
A32: 7035 | B32: NUSLE | C32: Nuselská 401/4 | D32: 140 00 | E32: Praha 4 | F32: praha.nusle@unicreditgroup.cz | G32: 955959885 | H32: 221155175 | I32: Bernášková Yveta
A33: 7004 | B33: PANKRÁC | C33: Na Pankráci 58 | D33: 140 00 | E33: Praha 4 | F33: praha.pankrac@unicreditgroup.cz | G33: 955959849 | H33: 221155650 | I33: Hrůza René
A34: 7013 | B34: TYLOVO NÁMĚSTÍ | C34: Jugoslávská 479/10 | D34: 120 00 | E34: Praha 2 | F34: praha.tylovo@unicreditgroup.cz | G34: 955959844 | H34: 221155740 | I34: Ježková Eva
A35: 7001 | B35: VINOHRADY | C35: Vinohradská 115 | D35: 130 00 | E35: Praha 3 | F35: praha.vinohrady@unicreditgroup.cz | G35: 955959847 | H35: 221155570 | I35: Vaňková Aneta
A36: 7005 | B36: VRŠOVICE | C36: Moskevská 345/39 | D36: 101 00 | E36: Praha 10 | F36: praha.vrsovice@unicreditgroup.cz | G36: 955959905 | H36: 221155210 | I36: Bernášková Yveta
A37: 7034 | B37: VYSOČANY | C37: Freyova 945/35 | D37: 190 00 | E37: Praha 9 | F37: praha.vysocany@unicreditgroup.cz | G37: 955959884 | H37: 221155190 | I37: Holec Miloš
A38: 7036 | B38: ŽIŽKOV | C38: Jana Želivského 1859/29 | D38: 130 00 | E38: Praha 3 | F38: praha.zizkov@unicreditgroup.cz | G38: 955959886 | H38: 221155180 | I38: Chovančíková Paštová Eva
B39: SMALL BUSINESS PRAHA | I39: Kosmata Vladimír
A40: 7091 | B40: SB HUB BANKOVNÍ DUM | C40: náměstí Republiky 3a | D40: 110 00 | E40: Praha 1 | F40: praha.sbbh@unicreditgroup.cz, | G40: 955959835 | H40: 221159622 | I40: Polešák Miloň
A41: 7092 | B41: SB HUB VALDEK | C41: Jugoslávská 29 | D41: 120 00 | E41: Praha 2 | F41: praha.sbvaldek@unicreditgroup.cz | G41: 955959845 | H41: 221159722 | I41: Tichý Marcel
A42: 7093 | B42: SB HUB FILADELFIE | C42: Želetavská 1525/1 | D42: 140 00 | E42: Praha 4 | F42: praha.sbfiladelfie@unicreditgroup.cz | G42: 955960231 | H42: 221155205 | I42: Cvejn František
B43: OBLAST ČECHY A MORAVA | I43: Komárek Petr
B44: JIŽNÍ ČECHY | I44: Hrubec Pavel
A45: 7307 | B45: PLZEŇ NÁM. REPUBLIKY | C45: nám. Republiky/Riegrova 1 | D45: 301 00 | E45: Plzeň | F45: plzen.republiky@unicreditgroup.cz | G45: 955959834 | H45: 221157001 | I45: Tomandl Václav
A46: 7709 | B46: BENEŠOV | C46: Masarykovo Náměstí/Řeznická 228 | D46: 256 01 | E46: Benešov | F46: benesov@unicreditgroup.cz | G46: 955959903 | H46: 221155005 | I46: KohárováJaroslava
A47: 7500 | B47: ČESKÉ BUDĚJOVICE NÁMĚSTÍ | C47: nám. Přemysla Otakara II. č. 122/35 | D47: 370 21 | E47: České Budějovice | F47: cb.otakara@unicreditgroup.cz | G47: 955959815 | H47: 221155620 | I47: Valenta Dalibor
A48: 7506 | B48: ČESKÉ BUDĚJOVICE IGY | C48: Pražská třída 1247/24 | D48: 370 04 | E48: České Budějovice 3 | F48: cb.igy@unicreditgroup.cz | G48: 955959814 | H48: 221155225 | I48: Beneš Filip
A49: 7504 | B49: JINDŘICHUV HRADEC | C49: Nám. Míru 164, | D49: 377 01 | E49: Jindřichův Hradec | F49: jindrichuvhradec@unicreditgroup.cz | G49: 955959872 | H49: 221155045 | I49: Macků Martin
A50: 7313 | B50: KLATOVY | C50: Kpt. Jaroše 47 | D50: 339 01 | E50: Klatovy | F50: klatovy@unicreditgroup.cz | G50: 955959897 | H50: 221155060 | I50: Jiřičková Lenka
A51: 7502 | B51: PÍSEK | C51: Alšovo náměstí 16 | D51: 397 01 | E51: Písek | F51: pisek@unicreditgroup.cz | G51: 955959832 | H51: 221155720 | I51: Podhrázská Michaela
A52: 7304 | B52: PLZEŇ AMERICKÁ | C52: Americká 72 | D52: 301 50 | E52: Plzeň | F52: plzen.americka@unicreditgroup.cz | G52: 955959833 | H52: 221155510 | I52: Urválek Vít
A53: 7312 | B53: PLZEŇ KOTEROVSKÁ | C53: Koterovská 2040/116 | D53: 326 00 | E53: Plzeň | F53: plzen.koterovska@unicreditgroup.cz | G53: 955959893 | H53: 221155115 | I53: Altmanová Michaela
A54: 7309 | B54: PŘÍBRAM | C54: Náměstí T.G. Masaryka 144 | D54: 261 01 | E54: Příbram | F54: pribram@unicreditgroup.cz | G54: 955959860 | H54: 221157920 | I54: Pekárik Pavel
A55: 7505 | B55: STRAKONICE | C55: Lidická 207 | D55: 386 01 | E55: Strakonice | F55: strakonice@unicreditgroup.cz | G55: 955959895 | H55: 221155125 | I55: Reiser Vít
A56: 7501 | B56: TÁBOR | C56: třída 9. května 2886 | D56: 390 02 | E56: Tábor | F56: tabor@unicreditgroup.cz | G56: 955959862 | H56: 221155590 | I56: John Přemysl
B57: SEVEROVÝCHODNÍ ČECHY | I57: Hubeňák Radek
A58: 7703 | B58: HRADEC KRÁLOVÉ | C58: Ulrichovo nám. 854 | D58: 500 02 | E58: Hradec Králové | F58: hradec.ulrichovo@unicreditgroup.cz | G58: 955959818 | H58: 221157701 | I58: Matajová Lydie
A59: 7403 | B59: LIBEREC MOSKEVSKÁ | C59: Moskevská 638/8 | D59: 460 01 | E59: Liberec | F59: liberec.moskevska@unicreditgroup.cz | G59: 955959825 | H59: 221157501 | I59: Smítka Václav
A60: 7701 | B60: HRADEC KRÁLOVÉ KARLA IV. | C60: Karla IV. 522 | D60: 500 02 | E60: Hradec Králové | F60: hradec.karlaiv@unicreditgroup.cz | G60: 955959819 | H60: 221155760 | I60: Holoubek Luboš
A61: 7410 | B61: JABLONEC NAD NISOU | C61: Máchova 21/2 | D61: 466 01 | E61: Jablonec n. Nisou | F61: jablonec@unicreditgroup.cz | G61: 955959875 | H61: 221155040 | I61: Klíma Luděk
A62: 7706 | B62: KOLÍN | C62: Pražská 167 | D62: 280 02 | E62: Kolín | F62: kolin@unicreditgroup.cz | G62: 955959868 | H62: 221155065 | I62: Králiková Ilona
A63: 7708 | B63: KUTNÁ HORA | C63: Šultysova 153 | D63: 284 01 | E63: Kutná Hora | F63: kutnahora@unicreditgroup.cz | G63: 955959894 | H63: 221155070 | I63: Archalous Petr
A64: 7413 | B64: LIBEREC NISA | C64: České Mládeže 456 | D64: 460 03 | E64: Liberec | F64: liberec.nisa@unicreditgroup.cz | G64: 955959899 | H64: 221155075 | I64: Pavlíková Miroslava
A65: 7407 | B65: MLADÁ BOLESLAV | C65: Českobratrské nám. 1321 | D65: 293 01 | E65: Mladá Boleslav | F65: mb.ceskobratrske@unicreditgroup.cz | G65: 955959826 | H65: 221157601 | I65: Bázler Petr
A66: 7707 | B66: NÁCHOD | C66: Palackého 921 | D66: 547 01 | E66: Náchod | F66: nachod@unicreditgroup.cz | G66: 955959878 | H66: 221155095 | I66: Janečka Zdeněk
A67: 7700 | B67: PARDUBICE | C67: třída Míru 92 | D67: 530 01 | E67: Pardubice | F67: pardubice.grand@unicreditgroup.cz | G67: 955959831 | H67: 221157801 | I67: Boušková Šárka
A68: 7705 | B68: TRUTNOV | C68: Krakonošovo nám. 133 | D68: 541 01 | E68: Trutnov | F68: trutnov@unicreditgroup.cz | G68: 955959867 | H68: 221155135 | I68: Brádler Petr
B69: SEVEROZÁPADNÍ ČECHY | I69: Keller David
A70: 7300 | B70: KARLOVY VARY TGM | C70: Zeyerova 892/7 | D70: 360 01 | E70: Karlovy Vary | F70: kv.tgm@unicreditgroup.cz | G70: 955963835 | H70: 221157201 | I70: Duřtová Vladimíra
A71: 7405 | B71: ÚSTÍ NAD LABEM | C71: Mírové nám. 35A | D71: 400 01 | E71: Ústí/ Labem | F71: usti.mirove@unicreditgroup.cz | G71: 955959865 | H71: 221157401 | I71: Kalabisová Danuše
A72: 7311 | B72: BEROUN | C72: Husovo nám. 11/83 | D72: 266 01 | E72: Beroun | F72: beroun@unicreditgroup.cz | G72: 955959888 | H72: 221155010 | I72: Tvrdík Pavel
A73: 7411 | B73: ČESKÁ LÍPA | C73: Jindřicha z Lipé 108 | D73: 470 01 | E73: Česká Lípa | F73: ceskalipa@unicreditgroup.cz | G73: 955959891 | H73: 221155025 | I73: Poláková Dagmar
A74: 7408 | B74: DĚČÍN | C74: Husovo nám. 74/5 | D74: 405 02 | E74: Děčín | F74: decin@unicreditgroup.cz | G74: 955959817 | H74: 221157940 | I74: Kotrba Jan
A75: 7308 | B75: CHEB | C75: Svobody 520/3 | D75: 350 02 | E75: Cheb | F75: cheb@unicreditgroup.cz | G75: 955964254 | H75: 221157900 | I75: Jonátová Zdeňka
A76: 7303 | B76: CHOMUTOV | C76: Revoluční 36 / Husovo náměstí | D76: 430 01 | E76: Chomutov | F76: chomutov.revolucni@unicreditgroup.cz | G76: 955959821 | H76: 221157301 | I76: Trýznová Petra
A77: 7310 | B77: KLADNO | C77: Havířská 96 | D77: 272 01 | E77: Kladno | F77: kladno@unicreditgroup.cz | G77: 955959879 | H77: 221155055 | I77: Tvrdík Pavel
A78: 7414 | B78: LITOMĚŘICE | C78: Michalská 40/2 | D78: 412 01 | E78: Litoměřice | F78: litomerice@unicreditgroup.cz | G78: 955959906 | H78: 221155080 | I78: Štemberová Magdalena
A79: 7412 | B79: MĚLNÍK | C79: nám. Karla IV. 143 | D79: 276 01 | E79: Mělník | F79: melnik@unicreditgroup.cz | G79: 955959883 | H79: 221155085 | I79: Jourová Svatava
A80: 7409 | B80: MOST | C80: Budovatelů 295 | D80: 434 01 | E80: Most | F80: most@unicreditgroup.cz | G80: 955959869 | H80: 221155090 | I80: Málek David
A81: 7402 | B81: TEPLICE | C81: náměstí Svobody 40/1 | D81: 415 01 | E81: Teplice | F81: teplice@unicreditgroup.cz | G81: 955959863 | H81: 221155600 | I81: Silnicová Daniela
B82: BRNO | I82: Klíma Jan
A83: 7100 | B83: BRNO DIVADELNÍ | C83: Divadelní 2 | D83: 601 57 | E83: Brno | F83: brno.divadelni@unicreditgroup.cz | G83: 955959810 | H83: 221155610 | I83: Smělý Ondřej
A84: 7108 | B84: BRNO KOBLIŽNÁ | C84: nám. Svobody 7 | D84: 602 00 | E84: Brno | F84: brno.koblizna@unicreditgroup.cz | G84: 955959811 | H84: 221154101 | I84: Homolová Iva
A85: 7109 | B85: BRNO TRINITI | C85: Úzká 488/8 | D85: 602 00 | E85: Brno | F85: brno.triniti@unicreditgroup.cz | G85: 955959812 | H85: 221154001 | I85: Klíma Jan
A86: 7120 | B86: BRNO KRÁLOVO POLE | C86: Palackého třída 721/78 | D86: 612 00 | E86: Brno | F86: brno.kralovopole@unicreditgroup.cz | G86: 955959900 | H86: 221155195 | I86: Vašíček Tomáš
A87: 7111 | B87: BRNO SPIELBERK | C87: Holandská 2 | D87: 639 00 | E87: Brno | F87: brno.spielberk@unicreditgroup.cz | G87: 955959813 | H87: 221155630 | I87: Havlíková Romana
A88: 7121 | B88: BRNO JOŠTOVA | C88: Joštova 138/4 | D88: 602 00 | E88: Brno | F88: brno.jostova@unicreditgroup.cz | G88: 955959930 | H88: 221155220 | I88: Machát Norbert
B89: JIHOZÁPADNÍ MORAVA | I89: Ligmajer Jan
A90: 7101 | B90: JIHLAVA | C90: Masarykovo náměstí 54 | D90: 586 01 | E90: Jihlava | F90: jihlava.masarykovo@unicreditgroup.cz | G90: 955959822 | H90: 221154501 | I90: Kozub Ondřej
A91: 7602 | B91: ZLÍN BARTOŠOVA | C91: Bartošova 5532 | D91: 760 01 | E91: Zlín | F91: zlin.bartosova@unicreditgroup.cz | G91: 955959866 | H91: 221154301 | I91: Fľaková Katarína
A92: 7118 | B92: BLANSKO | C92: Wanklovo nám. 1436 | D92: 678 01 | E92: Blansko | F92: blansko@unicreditgroup.cz | G92: 955959882 | H92: 221155015 | I92: Sedlák Zdeněk
A93: 7116 | B93: BŘECLAV | C93: Ul. 17. listopadu 3 | D93: 690 02 | E93: Břeclav | F93: breclav@unicreditgroup.cz | G93: 955959881 | H93: 221155020 | I93: Cymbál Petr
A94: 7115 | B94: HAVLÍČKUV BROD | C94: Havlíčkovo náměstí 158 | D94: 580 01 | E94: Havlíčkův Brod | F94: havlickuvbrod@unicreditgroup.cz | G94: 955959874 | H94: 221155035 | I94: Vranková Dana
A95: 7601 | B95: KROMĚŘÍŽ | C95: Vodní/Farní 95 | D95: 767 01 | E95: Kroměříž | F95: kromeriz@unicreditgroup.cz | G95: 955959824 | H95: 221155780 | I95: Režňáková Lenka
A96: 7104 | B96: PROSTĚJOV | C96: náměstí T.G.Masaryka 8 | D96: 796 01 | E96: Prostějov | F96: prostejov@unicreditgroup.cz | G96: 955959859 | H96: 221155530 | I96: Kasanová Monika
A97: 7113 | B97: TŘEBÍČ | C97: Komenského nám. 1045/18 | D97: 674 01 | E97: Třebíč | F97: trebic@unicreditgroup.cz | G97: 955959864 | H97: 221154640 | I97: Hampová Andrea
A98: 7603 | B98: UHERSKÉ HRADIŠTĚ | C98: Palackého náměstí 175 | D98: 686 01 | E98: Uherské Hradiště | F98: uherskehradiste@unicreditgroup.cz | G98: 955959908 | H98: 221155140 | I98: Mikušová Pavla
A99: 7119 | B99: VYŠKOV | C99: Masarykovo nám. 145/30 | D99: 685 01 | E99: Vyškov | F99: vyskov@unicreditgroup.cz | G99: 955959889 | H99: 221155150 | I99: Vanderka Zbyněk
A100: 7604 | B100: ZLÍN NÁMĚSTÍ MÍRU | C100: Náměstí Míru 66 | D100: 760 01 | E100: Zlín | F100: zlin.namestimiru@unicreditgroup.cz | G100: 955959929 | H100: 221155215 | I100: Očadlík Jiří
A101: 7114 | B101: ZNOJMO | C101: Horní nám. 139 | D101: 669 02 | E101: Znojmo | F101: znojmo@unicreditgroup.cz | G101: 955959871 | H101: 221155160 | I101: Střecha Karel
A102: 7117 | B102: ŽĎÁR NAD SÁZAVOU | C102: Náměstí Republiky 145 | D102: 591 01 | E102: Žďár nad Sázavou | F102: zdarnadsazavou@unicreditgroup.cz | G102: 955959880 | H102: 221155155 | I102: Loučka Petr
B103: SEVEROVÝCHODNÍ MORAVA | I103: Guzik Rudolf
A104: 7110 | B104: OLOMOUC | C104: 28. října 15 | D104: 772 00 | E104: Olomouc | F104: olomouc.28rijna@unicreditgroup.cz | G104: 955959827 | H104: 221154401 | I104: Polednová Simona
A105: 7804 | B105: OSTRAVA | C105: 28.října 3348/65 | D105: 702 00 | E105: Ostrava | F105: ostrava.karolina@unicreditgroup.cz | G105: 955959829 | H105: 221154201 | I105: Špaltová Zdeňka
A106: 7805 | B106: FRÝDEK - MÍSTEK | C106: Pivovarská 2340 | D106: 738 01 | E106: Frýdek-Místek | F106: frydek-mistek@unicreditgroup.cz | G106: 955959816 | H106: 221154600 | I106: Matzner Rostislav
A107: 7811 | B107: HAVÍŘOV | C107: Československé armády 195/1a | D107: 736 01 | E107: Havířov | F107: havirov@unicreditgroup.cz | G107: 955959901 | H107: 221155030 | I107: Kopečková Lucie
A108: 7808 | B108: KARVINÁ | C108: Třída Osvobození 1720/11 | D108: 735 06 | E108: Karviná | F108: karvina@unicreditgroup.cz | G108: 955959887 | H108: 221155050 | I108: Jantoš Petr
A109: 7806 | B109: NOVÝ JIČÍN | C109: Ul. 5. května 18 | D109: 741 01 | E109: Nový Jičín | F109: novyjicin@unicreditgroup.cz | G109: 955959870 | H109: 221155100 | I109: Bauer Eduard
A110: 7122 | B110: OLOMOUC ŠANTOVKA | C110: Polská 1 | D110: 772 00 | E110: Olomouc | F110: olomouc.santovka@unicreditgroup.cz | G110: 955959932 | H110: 221155105 | I110: Kinová Marie
A111: 7801 | B111: OPAVA | C111: Ostrožná 18 | D111: 746 01 | E111: Opava 1 | F111: opava@unicreditgroup.cz | G111: 955959828 | H111: 221155790 | I111: Matlochová Renáta
A112: 7812 | B112: OSTRAVA HRABUVKA | C112: Horní 1642/55a | D112: 700 30 | E112: Ostrava Hrabůvka | F112: ostrava.hrabuvka@unicreditgroup.cz | G112: 955959907 | H112: 221155110 | I112: Durčák Michal
A113: 7803 | B113: OSTRAVA PORUBA | C113: Hlavní tř. 583/99 | D113: 708 00 | E113: Ostrava Poruba | F113: ostrava.poruba@unicreditgroup.cz | G113: 955959830 | H113: 221155770 | I113: Trbušek Radim
A114: 7809 | B114: PŘEROV | C114: Čechova 37 | D114: 750 02 | E114: Přerov | F114: prerov@unicreditgroup.cz | G114: 955959896 | H114: 221155120 | I114: Přidalová Libuše
A115: 7112 | B115: ŠUMPERK | C115: Náměstí Svobody 2840 | D115: 780 01 | E115: Šumperk | F115: sumperk@unicreditgroup.cz | G115: 955959861 | H115: 221154620 | I115: Krňávek Pavel
A116: 7807 | B116: TŘINEC | C116: Nám. Svobody 527 | D116: 739 61 | E116: Třinec | F116: trinec@unicreditgroup.cz | G116: 955959873 | H116: 221155130 | I116: Galuszková Dagmar
A117: 7810 | B117: VALAŠSKÉ MEZIŘÍČÍ | C117: Náměstí 90/23 | D117: 757 01 | E117: Valašské Meziříčí | F117: valasskemezirici@unicreditgroup.cz | G117: 955959892 | H117: 221155145 | I117: Ptáček Bronislav | K117: 70
A118: 7820 | B118: SB HUB OSTRAVA | C118: Smetanovo nám. 1 | D118: 702 00 | E118: Ostrava | F118: sbostrava@unicreditgroup.cz | G118: 955959829 | H118: 221154201 | I118: Kocián Vladimír
B119: SLOVENSKO
B120: BRATISLAVA | I120: Burian Marian
A121: 7200 | B121: Krížna | C121: Krížna 50 | D121: 821 08 | E121: Bratislava | F121: zuzana.hullajurkovska@unicreditgroup.sk | G121: 918 501 736 | H121: 02/49504412 | I121: Hulla Jurkovská Zuzana
A122: 7201 | B122: Panenská | C122: Panenská 7 | D122: 811 03 | E122: Bratislava | F122: katarina.janosikovasikutova@unicreditgroup.sk | G122: 908721174 | H122: 02/54413228 | I122: Šikutová Jánošiková Katarína
A123: 7202 | B123: Aupark | C123: Einsteinova | D123: 851 01 | E123: Bratislava | F123: jana.dudasova@unicreditgroup.sk | G123: 908782244 | H123: 02/68202035 | I123: Dudášová Jana
A124: 7203 | B124: Šancová | C124: Šancová 1/A | D124: 813 33 | E124: Bratislava | F124: darina.mokosova@unicreditgroup.sk | G124: 905925740 | H124: 02/49502505 | I124: Mokošová Darina
A125: 7204 | B125: Dulovo nám. | C125: Dulovo nám. 13 | D125: 821 08 | E125: Bratislava | F125: martina.bohmova@unicreditgroup.sk | G125: 907984214 | H125: 02/50202066 | I125: Böhmová Martina
A126: 7205 | B126: Park One | C126: Nám. 1. Mája 18 | D126: 811 06 | E126: Bratislava | F126: janette.petrovicova@unicreditgroup.sk | G126: 908721045 | H126: 02/49504501 | I126: Petrovičová Eliášová Janette
A127: 7206 | B127: BiznisDom, Šancová | C127: Krížna 50 | D127: 813 33 | E127: Bratislava | F127: peter.horny@unicreditgroup.sk | G127: 908721156 | H127: 02/49502595 | I127: Horný Peter
A128: 7207 | B128: Dúbravská | C128: Dúbravská 2 | D128: 841 04 | E128: Bratislava | F128: tomas.bondor@unicreditgroup.sk | G128: 918501728 | H128: 02/59202030 | I128: Bondor Tomáš
A129: 7208 | B129: Dunajská | C129: Dunajská 25 | D129: 811 08 | E129: Bratislava | F129: renata.medvedova@unicreditgroup.sk | G129: 905400990 | H129: 02/40255704 | I129: Medveďová Renáta
A130: 7209 | B130: Hurbanovo nám. | C130: Hurbanovo nám.1 | D130: 811 06 | E130: Bratislava | F130: marta.manasova@unicreditgroup.sk | G130: 905925738 | H130: 02/59305415 | I130: Manasová Marta
A131: 7210 | B131: Plynárenská | C131: Plynárenská 7/A | D131: 821 09 | E131: Bratislava | F131: eduard.turcanik@unicreditgroup.sk | G131: 905227953 | H131: 02/58103085 | I131: Turčánik Eduard
A132: 7216 | B132: Mostová | C132: Mostová 6, 811 02 | D132: 811 02 | E132: Bratislava | F132: marta.chachalakova@unicreditgroup.sk | G132: 918501611 | H132: 02/59428000 | I132: Chachaľáková Marta
A133: 7211 | B133: ROZADOL | C133: Trenčianska 56/A | D133: 821 09 | E133: Bratislava | F133: erika.timoranska@unicreditgroup.sk | G133: 905479926 | H133: 02/58101070 | I133: Satko Ľubomír
A134: 7212 | B134: HRON | C134: Dudvážska 5 | D134: 821 07 | E134: Bratislava | F134: michal.marada@unicreditgroup.sk | G134: 918861192 | H134: 02/40255700 | I134: Marada Michal
A135: 7213 | B135: Rustica | C135: Saratovská 6B | D135: 841 02 | E135: Bratislava | F135: zuzana.adamcikova@unicreditgroup.sk | G135: 918501743 | H135: 02/58101403 | I135: Adamčíková Zuzana
A136: 7215 | B136: Polus CC | C136: Vajnorská 100 | D136: 831 04 | E136: Bratislava | F136: alica.pavlovcikova@unicreditgroup.sk | G136: 903205107 | H136: 02/49114800 | I136: Pavlovčíková Alica
A137: 7217 | B137: AVION | C137: Ivánska cesta 16 | D137: 821 04 | E137: Bratislava | F137: andrea.sokolova@unicreditgroup.sk | G137: 918501670 | H137: 02/48252700 | I137: Sokolová Andrea
B138: ZÁPADNÉ SLOVENSKO | I138: Paulen Maroš
A139: 7218 | B139: Trnava | C139: Štefánikova 48, 917 01 | D139: 917 01 | E139: Trnava | F139: eva.markovicova@unicreditgroup.sk | G139: 915786006 | H139: 033/5908305 | I139: Markovičová Eva
A140: 7219 | B140: Malacky | C140: Záhorácka 51, 901 01 | D140: 901 01 | E140: Malacky | F140: filip.tikl@unicreditgroup.sk | G140: 905748732 | H140: 034/7979279 | I140: Tikl Filip
A141: 7220 | B141: Piešťany | C141: Nitrianska 5, 921 01 | D141: 921 01 | E141: Piešťany | F141: maria.selecka@unicreditgroup.sk | G141: 908721069 | H141: 033/7910833 | I141: Selecká Mária
A142: 7221 | B142: Pezinok | C142: Holubyho 27, 902 01 | D142: 902 01 | E142: Pezinok | F142: barbora.stefanovicova@unicreditgroup.sk | G142: 918501672 | H142: 033/6905405 | I142: Štefanovičová Barbora
A143: 7222 | B143: Skalica | C143: Škarniclovská 1, 909 01 | D143: 909 01 | E143: Skalica | F143: jan.kristofik@unicreditgroup.sk | G143: 908721039 | H143: 034/6906125 | I143: Krištofík Ján
A144: 7223 | B144: Senica | C144: Hviezdoslavova 61, 905 01 | D144: 905 01 | E144: Senica | F144: jan.blazek@unicreditgroup.sk | G144: 907988026 | H144: 034/6909133 | I144: Blažek Ján
A145: 7224 | B145: Hlohovec | C145: M.R.Štefánika 4, 920 01 | D145: 920 01 | E145: Hlohovec | F145: juraj.kollar@unicreditgroup.sk | G145: 915913940 | H145: 033/7351015 | I145: Kollár Juraj
A146: 7225 | B146: Trenčín | C146: Nám.Svätej Anny 3, 911 01 | D146: 911 01 | E146: Trenčín | F146: anna.misikova@unicreditgroup.sk | G146: 908793817 | H146: 032/6509203 | I146: Mišíková Anna
A147: 7226 | B147: Nové Mesto nad V. | C147: Čsl.armády 4, 915 01 | D147: 915 01 | E147: Nové Město nad V. | F147: zaneta.brezovska@unicreditgroup.sk | G147: 905479912 | H147: 032/7484995 | I147: Brezovská Žaneta
A148: 7227 | B148: Myjava | C148: M.R.Štefánika 581/29A, 907 01 | D148: 907 01 | E148: Myjava | F148: martin.kovarik@unicreditgroup.sk | G148: 918501679 | H148: 034/6983300 | I148: Kovárik Martin
A149: 7228 | B149: Bánovce nad Bebravou | C149: Jesenského 561/3, 957 01 | D149: 957 01 | E149: Bánovce nad Bebravou | F149: linda.cikelova@unicreditgroup.sk | G149: 918501702 | H149: 038/7627015 | I149: Čikelová Linda
A150: 7229 | B150: Považská Bystrica | C150: M.R.Štefánika 161/4, 017 01 | D150: 017 01 | E150: Považská Bystrica | F150: martina.stefancova@unicreditgroup.sk | G150: 905455880 | H150: 042/4379955 | I150: Štefancová Martina
A151: 7230 | B151: Senec | C151: Lichnerova 30, 903 01 | D151: 903 01 | E151: Senec | F151: natalia.batalikova@unicreditgroup.sk | G151: 908764266 | H151: 02/40202055 | I151: Baťalíková Natália
B152: ZÁPADNÉ SLOVENSKO II | I152: Pavle Josef
A153: 7231 | B153: Nitra | C153: Štefánikova tr.13 | D153: 949 01 | E153: Nitra | F153: zuzana.chrenekova@unicreditgroup.sk | G153: 908721096 | H153: 037/6926051 | I153: Chreneková Zuzana
A154: 7232 | B154: Nitra ZOC MAX | C154: Chrenovská 1661/30 | D154: 949 01 | E154: Nitra | F154: monika.kovacova@unicreditgroup.sk | G154: 918501674 | H154: 037/6928900 | I154: Kováčová Monika
A155: 7233 | B155: Topolčany | C155: Krušovská 19 | D155: 955 01 | E155: Topolčany | F155: peter.hollan@unicreditgroup.sk | G155: 915785998 | H155: 038/5327055 | I155: Hollan Peter
A156: 7235 | B156: Nové Zámky | C156: Majzonovo nám.2 | D156: 940 01 | E156: Nové Zámky | F156: kvetoslava.polacekova@unicreditgroup.sk | G156: 918868118 | H156: 035/6913433 | I156: Poláčeková Kvetoslava
A157: 7236 | B157: Levice | C157: Sv. Michala 4 (blok ATOM 2) | D157: 934 01 | E157: Levice | F157: helena.gregusova@unicreditgroup.sk | G157: 908721058 | H157: 036/6350315 | I157: Gregušová Helena
A158: 7237 | B158: Dunajská Streda | C158: Hlavná 5599/3B | D158: 929 01 | E158: Dunajská Streda | F158: ivana.nagyova@unicreditgroup.sk | G158: 907735739 | H158: 031/5905500 | I158: Nagyová Ivana
A159: 7238 | B159: Galanta | C159: Revolučná 1 | D159: 924 01 | E159: Galanta | F159: anna.cetliova@unicreditgroup.sk | G159: 908721102 | H159: 031/7884500 | I159: Cetliová Anna
A160: 7239 | B160: Komárno | C160: Palatínova 39 | D160: 945 05 | E160: Komárno | F160: katarina.csoma@unicreditgroup.sk | G160: 908721158 | H160: 035/7900065 | I160: Csoma Katarína
A161: 7240 | B161: Šala | C161: Hlavná 12A | D161: 927 01 | E161: Šala | F161: maria.stranakova@unicreditgroup.sk | G161: 905231101 | H161: 031/7838700 | I161: Straňáková Mária
A162: 7241 | B162: Prievidza | C162: G.Švéniho 3A | D162: 971 01 | E162: Prievidza | F162: klaudius.satek@unicreditgroup.sk | G162: 918501676 | H162: 046/5189420 046/5189400 | I162: Šátek Klaudius
A163: 7243 | B163: Sereď | C163: Dionýza Štúra 1012 | D163: 926 01 | E163: Sereď | F163: adriana.kopplova@unicreditgroup.sk | G163: 905479916 | H163: 031/7892707 | I163: Köpplová Adriana
A164: 7244 | B164: Šamorín | C164: Gazdovský rad 49/B | D164: 931 01 | E164: Šamorín | F164: gabriella.nagy@unicreditgroup.sk | G164: 908721105 | H164: 031/5627962 | I164: Nagy Gabriella
B165: STREDNÉ SLOVENSKO | I165: Hazlinger Jaroslav
A166: 7245 | B166: Žilina | C166: Národná 12 | D166: 010 01 | E166: Žilina | F166: igor.kusy@unicreditgroup.sk | G166: 908799742 | H166: 041/5628205 | I166: Kusý Igor
A167: 7246 | B167: Žilina Aupark | C167: Veľká okružná 59A | D167: 010 01 | E167: Žilina | F167: jana.kalisova@unicreditgroup.sk | G167: 918501629 | H167: 041/5628500 | I167: Kališová Janka
A168: 7247 | B168: Martin | C168: M.R.Štefánika 1 | D168: 036 01 | E168: Martin | F168: ladislav.zalepa@unicreditgroup.sk | G168: 905455828 | H168: 043/4207011 | I168: Zálepa Ladislav
A169: 7248 | B169: Čadca | C169: Palárikova 85 | D169: 022 01 | E169: Čadca | F169: robert.casnocha@unicreditgroup.sk | G169: 908788703 | H169: 041/4302815 | I169: Časnocha Róbert
A170: 7249 | B170: Liptovský Mikuláš | C170: Nám.Osloboditeľov 7 | D170: 031 01 | E170: Liptovský Mikuláš | F170: katarina.dzurova@unicreditgroup.sk | G170: 918501623 | H170: 044/5475005 | I170: Dzúrová Katarína
A171: 7250 | B171: Ružomberok | C171: Mostová 2 | D171: 034 01 | E171: Ružomberok | F171: andrea.stefanekova@unicreditgroup.sk | G171: 918501626 | H171: 044/4320660 | I171: Štefáneková Andrea
A172: 7251 | B172: Zvolen | C172: Nám.SNP 50 | D172: 960 01 | E172: Zvolen | F172: ines.kentosova@unicreditgroup.sk | G172: 908721112 | H172: 045/5248016 | I172: Kentošová Ines
A173: 7252 | B173: Banská Bystrica | C173: SC EUROPA, Na Troskách 25 | D173: 974 01 | E173: Banská Bystrica | F173: erika.sochorova@unicreditgroup.sk | G173: 905479921 | H173: 048/4723000 | I173: Sochorová Erika
A174: 7253 | B174: Banská Bystrica | C174: Nám. SNP 18 | D174: 974 01 | E174: Banská Bystrica | F174: peter.likavec@unicreditgroup.sk | G174: 918501631 | H174: 048/4719700 | I174: Likavec Peter
A175: 7254 | B175: Lučenec | C175: Železničná 15 | D175: 984 01 | E175: Lučenec | F175: peter.grenda@unicreditgroup.sk | G175: 908721114 | H175: 047/4303520 | I175: Grenda Peter
A176: 7255 | B176: Brezno | C176: ČSA 17 | D176: 977 01 | E176: Brezno | F176: branislav.grecmal@unicreditgroup.sk | G176: 908793816 | H176: 048/6700055 | I176: Parašínová Erika
A177: 7256 | B177: Žiar nad Hronom | C177: Š.Moyzesa 427 | D177: 965 01 | E177: Žiar nad Hronom | F177: anna.sykorova@unicreditgroup.sk | G177: 918501709 | H177: 045/6788905 | I177: Sýkorová Anna
B178: VÝCHODNÉ SLOVENSKO | I178: Rampáčková Jana
A179: 7257 | B179: Košice | C179: Rooseveltova 10 | D179: 040 01 | E179: Košice | F179: svetlana.kovacova@unicreditgroup.sk | G179: 908721120 | H179: 055/6232741 | I179: Kováčová Svetlana
A180: 7258 | B180: Košice | C180: Toryská 1/C | D180: 040 11 | E180: Košice | F180: gabriela.vargova@unicreditgroup.sk | G180: 905899851 | H180: 055/7881860 | I180: Vargová Gabriela
A181: 7259 | B181: Košice | C181: Mlynská 7 | D181: 040 01 | E181: Košice | F181: michal.bronis@unicreditgroup.sk | G181: 918501646 | H181: 055/7281911 | I181: Broniš Michal
A182: 7260 | B182: Košice Aupark | C182: Nám. Osloboditeľov | D182: 040 01 | E182: Košice | F182: peter.bakajsa@unicreditgroup.sk | G182: 918501647 | H182: 055/7262500 | I182: Bakajsa Peter
A183: 7261 | B183: Michalovce | C183: Nám.Osloboditeľov 1 | D183: 071 01 | E183: Michalovce | F183: zuzana.cervenakova@unicreditgroup.sk | G183: 905444157 | H183: 056/6880707 | I183: Červenáková Zuzana
A184: 7262 | B184: Rožňava | C184: Nám.Baníkov 33 | D184: 048 01 | E184: Rožňava | F184: erika.brezinova@unicreditgroup.sk | G184: 908721033 | H184: 058/7880700 | I184: Brezinová Erika
A185: 7263 | B185: Čierna nad Tisou | C185: Hlavná 11 | D185: 076 43 | E185: Čierna nad Tisou | F185: sarlota.takacsova@unicreditgroup.sk | G185: 908721122 | H185: 056/6871540 | I185: Takácsová Šarlota
A186: 7264 | B186: Trebišov | C186: M.R.Štefánika 20 | D186: 075 01 | E186: Trebišov | F186: aneta.bernatova@unicreditgroup.sk | G186: 917225445 | H186: 056/6670015 | I186: Bernátová Aneta
A187: 7265 | B187: Prešov | C187: Hlavná 29 | D187: 080 01 | E187: Prešov | F187: eva.orgovanova@unicreditgroup.sk | G187: 908712030 | H187: 051/7729605 | I187: Orgovánová Eva
A188: 7266 | B188: Prešov ZOC MAX | C188: Vihorlatská 2A | D188: 080 01 | E188: Prešov | F188: stefan.tomasik@unicreditgroup.sk | G188: 903205143 | H188: 051/7563000 | I188: Tomášik Štefan
A189: 7267 | B189: Bardejov | C189: Dlhý rad 17 | D189: 085 01 | E189: Bardejov | F189: maria.hudakova@unicreditgroup.sk | G189: 908721134 | H189: 054/4880410 | I189: Hudáková Mária
A190: 7268 | B190: Humenné | C190: Mierová 64/2 | D190: 066 01 | E190: Humenné | F190: emilia.behunova@unicreditgroup.sk | G190: 907735669 | H190: 057/7862341 | I190: Behúňová Emilia
A191: 7269 | B191: Poprad | C191: Popradské nábr.18 | D191: 058 01 | E191: Poprad | F191: jozef.sinko@unicreditgroup.sk | G191: 907735648 | H191: 052/7870327 | I191: Šinko Jozef
A192: 7270 | B192: Spišská Nová Ves | C192: Zimná 56 | D192: 052 01 | E192: Spišská Nová Ves | F192: miroslav.pekarcik@unicreditgroup.sk | G192: 908721139 | H192: 053/4425788 | I192: Pekarčík Miroslav
A193: 7271 | B193: Kežmarok | C193: Hlavné nám.3 | D193: 060 01 | E193: Kežmarok | F193: daniel.macicak@unicreditgroup.sk | G193: 917912790 | H193: 052/4680035 | I193: Mačičák Daniel
A194: 7272 | B194: Levoča | C194: Nám. Majstra Pavla č.19 | D194: 054 01 | E194: Levoča | F194: rastislav.sloboda@unicreditgroup.sk | G194: 911991444 | H194: 053/4182600 | I194: Sloboda Rastislav
B195: Multi - Channel Banking
A196: 7095 | B196: SB Remote Services | C196: Želetavská 1525/1 | D196: 140 00 | E196: Praha 4 | F196: firmyapodnikatele@unicreditgroup.cz | G196: 800 149 999 | I196: Hudobová Lenka
A197: 7273 | B197: BRAC | C197: Krížna 50 | D197: 821 08 | E197: Bratislava | F197: anita.polovic@unicreditgroup.sk | G197: 905400046 | H197: 02/49504415 | I197: Polovic Anita

Sheet Nemovitost
C4: NEMOVITOST
G6: Jméno klienta | H6: =IF(SplatkaJmenoKlienta="","",SplatkaJmenoKlienta) ->  | S6: Příjmení klienta | T6: =IF(SplPrijmeniKlienta="","",SplPrijmeniKlienta) -> 
D8: Tržní hodnota nemovitosti
E10: Počet nemovitostí v zástavě: | K10: 1 | R10: Jedná se o úvěr pro zaměstnance skupiny UCI či důchodce banky
E12: Jedná se o koupi z developerského projektu | U12: Jméno: | AG12: FALSE
D15: Developerský projekt
E17: Je financovaný bankou? | K17: Typ: | T17: Název:
E19: Název DP není v seznamu, název DP:
D22: Nemovitost č. 1 | T22: Poplatek za odhad
E24: Typ nemovitosti: | K24: =SplTypNemovitosti -> zděná nemovitost nebo pozemek | U24: Poplatek za odhad: | AB24: 3700
E26: Tržní hodnota nemovitosti:
E28: Účel úvěru: | H28: =Splatka!M8 -> 0
E30: Další účel: | H30: Rekonstrukce
E34: LTV: | K34: =IF(nem_PocetNem=1,SumaLTV1,IF(nem_PocetNem=2,SumaLTV2,IF(nem_PocetNem=3,SumaLTV3))) -> 
E36: Financovaná nemovitost: | K36: je v zástavě
E38: Datum ocenění:
E40: Tržní hodnota nemovitosti stanovená na základě: | K40: vyberte | AB40: =IF(nem_LokalNem="","",adminNemoviost!C10) -> 
E43: * Minimální stavební náklady uvedené v ocenění financované nemovitosti
E44: ** Stavební náklady deklarované klientem (nezahrnují se náklady na koupi)
E45: *** Hodnota zajištění na zastavené nemovitosti zajištěného zástavním právem, které nebude použitím úvěru vymazáno
D47: Nemovitost č. 2 | T47: Poplatek za odhad
E49: Typ nemovitosti: | K49: vyberte | U49: Poplatek za odhad:
E51: Tržní hodnota nemovitosti:
E53: Účel úvěru: | H53: =nemUcelUveru -> 0
E55: Další účel: | H55: Bez dalšího účelu
E59: LTV: | K59: =IF(nem_PocetNem=1,SumaLTV1,IF(nem_PocetNem=2,SumaLTV2,IF(nem_PocetNem=3,SumaLTV3))) -> 
E61: Financovaná nemovitost: | K61: =IF(nemFinancovanaNemovitost="","",nemFinancovanaNemovitost) -> je v zástavě
E63: Datum ocenění:
E65: Tržní hodnota nemovitosti stanovená na základě: | K65: vyberte | AB65: =IF(nem_LokalNem2="","",adminNemoviost!C44) -> 
E68: * Minimální stavební náklady uvedené v ocenění financované nemovitosti
E69: ** Stavební náklady deklarované klientem (nezahrnují se náklady na koupi)
E70: *** Hodnota zajištění na zastavené nemovitosti zajištěného zástavním právem, které nebude použitím úvěru vymazáno
D72: Nemovitost č. 3 | T72: Poplatek za odhad
E74: Typ nemovitosti: | K74: vyberte | U74: Poplatek za odhad:
E76: Tržní hodnota nemovitosti:
E78: Účel úvěru: | H78: =nemUcelUveru -> 0
E80: Další účel: | H80: Bez dalšího účelu
E82: Zástavní hodnota:
E84: LTV: | K84: =IF(nem_PocetNem=1,SumaLTV1,IF(nem_PocetNem=2,SumaLTV2,IF(nem_PocetNem=3,SumaLTV3))) -> 
E86: Financovaná nemovitost: | K86: =IF(nemFinancovanaNemovitost="","",nemFinancovanaNemovitost) -> je v zástavě
E88: Datum ocenění:
E90: Tržní hodnota nemovitosti stanovená na základě: | K90: vyberte | AB90: =IF(nem_LokalNem3="","",adminNemoviost!C61) -> 
E93: * Minimální stavební náklady uvedené v ocenění financované nemovitosti
E94: ** Stavební náklady deklarované klientem (nezahrnují se náklady na koupi)
E95: *** Hodnota zajištění na zastavené nemovitosti zajištěného zástavním právem, které nebude použitím úvěru vymazáno
D97: Přehled zdrojů pro financování nákladů stavby
E99: Minimální stavební náklady: | K99: 20000 | U99: Výstavba bude prováděna: | Z99: na klíč | AC99: svépomocí
E101: Základní přehled položek (možné hradit z hypoteční úvěru) | Z101: jednotlivými subdodávkami
D104: Tržní hodnota po dokončení | Z104: Výpočet požadovaného % rozestavěnosti pro financování:
P105: čerpání kumulovaně | T105: % vyčerpaného úvěru
E106: % rozestavěnosti z odhadu
E108: Vlastní zdroje | P108: =J112 -> 0 | T108: =IF(AE114=0,"",P108/AE114) ->  | Z108: Tržní hodnota po dokončení
E110: % rozestavěnosti | J110: =IF(AE112=0,"",J108/AE112+J106) -> 
E112: 1. tranše | Z112: Stavební náklady
E114: Vlastní zdroje | P114: =J112+L117 -> 0 | T114: =IF(AE114=0,"",P114/AE114) ->  | Z114: Úvěr na výstavbu
E116: % rozestavěnosti | J116: =IF(AE112=0,"",(J108+J112+J114)/AE112+J106) ->  | Z116: LTV
E118: 2. tranše | Z118: Vlastní zdroje | AE118: =AE112-AE114 -> 0
E120: Vlastní zdroje | P120: =J112+J118+J124 -> 0 | T120: =IF(AE114=0,"",P120/AE114) ->  | Z120: Kontrolní součty:
E122: % rozestavěnosti | J122: =IF(AE112=0,"",(J108+J112+J114+J118+J120)/AE112+J106) ->  | Z122: Investice celkem | AE122: =IF(AE124="","",AE124+AE126) -> 
E124: 3. tranše | Z124: Úvěr | AE124: =IF(J112="","",J112+J118+J124+J130) -> 
E126: Vlastní zdroje | J126: =AE118-J108-J114-J120 -> 0 | P126: =IF(J112="","",J112+J118+J124+J130) ->  | T126: =IF(AE114=0,"",P126/AE114) ->  | Z126: Vlastní zdroje | AE126: =J108+J114+J120+J126 -> 0
E128: % rozestavěnosti | J128: ≥ 95% | Z128: Částka úvěru nerozdělená do tranší | AE128: =IF(AE114="","",AE114-P120-J130) -> 
E130: Poslední tranše | J130: =IF(nemUverNaVystavbu="","",0.05*nemUverNaVystavbu) -> 
D133: Procento rozestavěnosti
E135: Procento rozestavěnosti před 1. čerpáním | J135: =IF(AE112=0,"",IF(AE114="","",(AE112-AE114)/AE112)) -> 
E140: č. | F140: Popis položky rozpočtu | L140: Počátek realizace | Q140: Konec realizace | T140: Náklady (Kč) | W140: Použití vlastních zdrojů (Kč) | AA140: Čerpání úvěru (Kč) | AD140: Kumulovaná částka (Kč)
E142: 1. | F142: Stavební pozemek | AD142: =IF(SUM(W142:AC142)=0,"",SUM(W142:AC142)) -> 
E144: 2. | F144: Inženýrské sítě | AD144: =IF(SUM(W144:AC144)=0,"",SUM(W144:AC144)) -> 
E146: 3. | F146: Základy vč. zem. prací | AD146: =IF(SUM(W146:AC146)=0,"",SUM(W146:AC146)) -> 
E148: 4. | F148: Konstrukce (svislé , vodorovné) | AD148: =IF(SUM(W148:AC148)=0,"",SUM(W148:AC148)) -> 
E150: 5. | F150: Střecha (krov, krytina) | AD150: =IF(SUM(W150:AC150)=0,"",SUM(W150:AC150)) -> 
E152: 6. | F152: Klempířské konstrukce | AD152: =IF(SUM(W152:AC152)=0,"",SUM(W152:AC152)) -> 
E154: 7. | F154: Okna a jiné vnější výplně otvorů | AD154: =IF(SUM(W154:AC154)=0,"",SUM(W154:AC154)) -> 
E156: 8. | F156: Vnitřní dveře | AD156: =IF(SUM(W156:AC156)=0,"",SUM(W156:AC156)) -> 
E158: 9. | F158: Vnitřní omítky, sádrokartony | AD158: =IF(SUM(W158:AC158)=0,"",SUM(W158:AC158)) -> 
E160: 10. | F160: Obklady, dlažby | AD160: =IF(SUM(W160:AC160)=0,"",SUM(W160:AC160)) -> 
E162: 11. | F162: Schodiště | AD162: =IF(SUM(W162:AC162)=0,"",SUM(W162:AC162)) -> 
E164: 12. | F164: Povrchy podlah s výjimkou dlažeb | AD164: =IF(SUM(W164:AC164)=0,"",SUM(W164:AC164)) -> 
E166: 13. | F166: Voda, kanalizace | AD166: =IF(SUM(W166:AC166)=0,"",SUM(W166:AC166)) -> 
E168: 14. | F168: Zařizovací předměty | AD168: =IF(SUM(W168:AC168)=0,"",SUM(W168:AC168)) -> 
E170: 15. | F170: Topení, ohřev TUV | AD170: =IF(SUM(W170:AC170)=0,"",SUM(W170:AC170)) -> 
E172: 16. | F172: Elektro | AD172: =IF(SUM(W172:AC172)=0,"",SUM(W172:AC172)) -> 
E174: 17. | F174: Fasáda | AD174: =IF(SUM(W174:AC174)=0,"",SUM(W174:AC174)) -> 
E176: 18. | F176: Venkovní úpravy | AD176: =IF(SUM(W176:AC176)=0,"",SUM(W176:AC176)) -> 
E178: 19. | F178: Ostatní stavební náklady | AD178: =IF(SUM(W178:AC178)=0,"",SUM(W178:AC178)) -> 
E180: 20. | F180: Rezerva | AD180: =IF(SUM(W180:AC180)=0,"",SUM(W180:AC180)) -> 
E182: Celkem | T182: =IF(SUM(T142:V180)=0,"",SUM(T142:V180)) ->  | W182: =IF(SUM(W142:Z180)=0,"",SUM(W142:Z180)) ->  | AA182: =IF(SUM(AA142:AC180)=0,"",SUM(AA142:AC180)) ->  | AD182: =IF(SUM(W182:AC182)=0,"",SUM(W182:AC182)) -> 

Sheet adminNemoviost
A1: Byt-revit.panel | B1: není | C1: v zástavě | D1: Praha, Brno
A2: Byt-nerevit.panel | B2: koupě | C2: není v zástavě | D2: ostatní
A3: Byt ostatní | B3: výstavba / rekonstrukce
A4: Byt družstevní | B4: vypořádání majetkových poměrů | C4: externího ocenění s verifikací
A5: Pozemek rezid. | B5: splacení půjčky / úvěru | C5: externího ocenění bez verifikace
A6: Pozemek nerezid. | B6: zpětné proplacení finančních prostředků | C6: interního ocenění
A7: Rekreační objekt | B7: neúčelý úvěr
A8: Rodinný dům
A10: Přepočítaná tržní hodnota nemovitosti | B10: =trzniHodnotaNemovistosti -> 0 | C10: =B10-(B10*D19) -> 0
A11: Rok ocenění / Typ nemovitosti | B11: 2006 a starší | D11: 2007 | F11: 2008 | H11: 2009 | J11: 2010 | L11: 2011 | N11: 2012
B12: Praha, Brno | C12: ostatní | D12: Praha, Brno | E12: ostatní | F12: Praha, Brno | G12: ostatní | H12: Praha, Brno | I12: ostatní | J12: Praha, Brno | K12: ostatní | L12: Praha, Brno | M12: ostatní | N12: Praha, Brno | O12: ostatní
A13: Rodinný dům | B13: 0 | C13: 0 | D13: 0.1 | E13: 0.125 | F13: 0.15 | G13: 0.175 | H13: 0.15 | I13: 0.175 | J13: 0.05 | K13: 0.05 | L13: 0.05 | M13: 0.05 | N13: 0 | O13: 0
A14: Pozemek | B14: 0 | C14: 0 | D14: 0 | E14: 0 | F14: 0 | G14: 0 | H14: 0 | I14: 0 | J14: 0 | K14: 0 | L14: 0 | M14: 0.05 | N14: 0 | O14: 0
A15: Byt-cihla | B15: 0 | C15: 0 | D15: 0.125 | E15: 0.125 | F15: 0.2 | G15: 0.175 | H15: 0.175 | I15: 0.15 | J15: 0.05 | K15: 0.05 | L15: 0.05 | M15: 0.05 | N15: 0 | O15: 0
A16: Byt-panel | B16: 0 | C16: 0 | D16: 0.125 | E16: 0.125 | F16: 0.225 | G16: 0.225 | H16: 0.2 | I16: 0.175 | J16: 0.05 | K16: 0.05 | L16: 0.05 | M16: 0.05 | N16: 0 | O16: 0
A18: =IF(nem_TypNem="Rodinný dům",1,IF(nem_TypNem="Pozemek",2,IF(nem_TypNem="Byt-cihla",3,4))) -> 4 | C18: TH | D18: =trzniHodnotaNemovistosti -> 0 | E18: 2012 | F18: 2012-01-01 | G18: 2012-12-31 | H18: 1 | I18: 1
A19: =IF(nem_LokalNem="Praha, Brno",1,2) -> 2 | C19: % | D19: =IF(A22=B11,B13,IF((AND(A22=D11,A19=I18,A18=H18)),D13,IF((AND(A22=D11,A19=I18,A18=H19)),D14,IF((AND(A22=D11,A19=I18,A18=H20)),D15,IF((AND(A22=D11,A19=I18,A18=H21)),D16,IF((AND(A22=D11,A19=I19,A18=H18)),E13,IF((AND(A22=D11,A19=I19,A18=H19)),E14,IF((AND(A22=D11,A19=I19,A18=H20)),E15,IF((AND(A22=D11,A19=I19,A18=H21)),E16,IF((AND(A22=F11,A19=I18,A18=H18)),F13,IF((AND(A22=F11,A19=I18,A18=H19)),F14,IF((AND(A22=F11,A19=I18,A18=H20)),F15,IF((AND(A22=F11,A19=I18,A18=H21)),F16,IF((AND(A22=F11,A19=I19,A18=H18)),G13,IF((AND(A22=F11,A19=I19,A18=H19)),G14,IF((AND(A22=F11,A19=I19,A18=H20)),G15,IF((AND(A22=F11,A19=I19,A18=H21)),G16,IF((AND(A22=H11,A19=I18,A18=H18)),H13,IF((AND(A22=H11,A19=I18,A18=H19)),H14,IF((AND(A22=H11,A19=I18,A18=H20)),H15,IF((AND(A22=H11,A19=I18,A18=H21)),H16,IF((AND(A22=H11,A19=I19,A18=H18)),I13,IF((AND(A22=H11,A19=I19,A18=H19)),I14,IF((AND(A22=H11,A19=I19,A18=H20)),I15,IF((AND(A22=H11,A19=I19,A18=H21)),I16,IF((AND(A22=J11,A18=H18)),J13,IF((AND(A22=J11,A18=H19)),J14,IF((AND(A22=J11,A18=H20)),J15,IF((AND(A22=J11,A18=H21)),J16,IF((AND(A22=L11,A19=I18,A18=H18)),L13,IF((AND(A22=L11,A19=I18,A18=H19)),L14,IF((AND(A22=L11,A19=I18,A18=H20)),L15,IF((AND(A22=L11,A19=I18,A18=H21)),L16,IF((AND(A22=L11,A19=I19)),M13,IF(A22=N11,N13,0))))))))))))))))))))))))))))))))))) -> 0 | E19: 2011 | F19: 2011-01-01 | G19: 2011-12-31 | H19: 2 | I19: 2
A20: =nemDatumOceneni -> 00:00:00 | E20: 2010 | F20: 2010-01-01 | G20: 2010-12-31 | H20: 3
E21: 2009 | F21: 2009-01-01 | G21: 2009-12-31 | H21: 4
A22: =IF((AND(A20<=G18,A20>=F18)),E18,IF((AND(A20<=G19,A20>=F19)),E19,IF((AND(A20<=G20,A20>=F20)),E20,IF((AND(A20<=G21,A20>=F21)),E21,IF((AND(A20<=G22,A20>=F22)),E22,IF((AND(A20<=F23,A20>=G23)),E23,IF((AND(A20<=G24,A20>=F24)),E24,"mladší"))))))) -> mladší | E22: 2008 | F22: 2008-01-01 | G22: 2008-12-31
E23: 2007 | F23: 2007-01-01 | G23: 2007-12-31
E24: 2006 a starší | F24: 1900-01-01 | G24: 2006-12-31
A25: vyberte
A26: Bytová jednotka
A27: Pozemek rezid.
A28: Pozemek nerezid.
A29: Rekreační objekt
A30: Rodinný dům
A35: vyberte | B35: vyberte | C35: vyberte
A36: Externí odhad - Remedy | B36: Externí odhad - Remedy | C36: Externí odhad - Remedy | D36: ostatní
A37: Externí odhad s verifikací | B37: Externí odhad s verifikací | C37: Externí odhad s verifikací | E37: =IF(HlavUcelUveru="Refinancování úvěru – standard",1,IF(HlavUcelUveru="Refinancování úvěru – zjednodušené",1,IF(HlavUcelUveru="Koupě",2,3))) -> 3 | G37: =IF(adminNemoviost!E37=1,adminNemoviost!C35:C40,IF(adminNemoviost!E37=2,adminNemoviost!B35:B39,adminNemoviost!A35:A38)) -> Externí odhad s verifikací
A38: Interní odhad | B38: Interní odhad | C38: Interní odhad
B39: Kupní smlouva | C39: Původní odhad | D39: Koupě
C40: Kupní smlouva | D40: Refinancování úvěru – zjednodušené
D41: Refinancování úvěru – standard
A43: Nem2
A44: Přepočítaná tržní hodnota nemovitosti | B44: =trzniHodnotaNemovistosti2 -> 0 | C44: =B44-(B44*D53) -> 0
A45: Rok ocenění / Typ nemovitosti | B45: 2006 a starší | D45: 2007 | F45: 2008 | H45: 2009 | J45: 2010 | L45: 2011 | N45: 2012
B46: Praha, Brno | C46: ostatní | D46: Praha, Brno | E46: ostatní | F46: Praha, Brno | G46: ostatní | H46: Praha, Brno | I46: ostatní | J46: Praha, Brno | K46: ostatní | L46: Praha, Brno | M46: ostatní | N46: Praha, Brno | O46: ostatní
A47: Rodinný dům | B47: 0 | C47: 0 | D47: 0.1 | E47: 0.125 | F47: 0.15 | G47: 0.175 | H47: 0.15 | I47: 0.175 | J47: 0.05 | K47: 0.05 | L47: 0.05 | M47: 0.05 | N47: 0 | O47: 0
A48: Pozemek | B48: 0 | C48: 0 | D48: 0 | E48: 0 | F48: 0 | G48: 0 | H48: 0 | I48: 0 | J48: 0 | K48: 0 | L48: 0 | M48: 0.05 | N48: 0 | O48: 0
A49: Byt-cihla | B49: 0 | C49: 0 | D49: 0.125 | E49: 0.125 | F49: 0.2 | G49: 0.175 | H49: 0.175 | I49: 0.15 | J49: 0.05 | K49: 0.05 | L49: 0.05 | M49: 0.05 | N49: 0 | O49: 0
A50: Byt-panel | B50: 0 | C50: 0 | D50: 0.125 | E50: 0.125 | F50: 0.225 | G50: 0.225 | H50: 0.2 | I50: 0.175 | J50: 0.05 | K50: 0.05 | L50: 0.05 | M50: 0.05 | N50: 0 | O50: 0
A52: =IF(nem_TypNem2="Rodinný dům",1,IF(nem_TypNem2="Pozemek",2,IF(nem_TypNem2="Byt-cihla",3,4))) -> 4 | C52: TH | D52: =trzniHodnotaNemovistosti2 -> 0 | E52: 2012 | F52: 2012-01-01 | G52: 2012-12-31 | H52: 1 | I52: 1
A53: =IF(nem_LokalNem2="Praha, Brno",1,2) -> 2 | C53: % | D53: =IF(A56=B45,B47,IF((AND(A56=D45,A53=I52,A52=H52)),D47,IF((AND(A56=D45,A53=I52,A52=H53)),D48,IF((AND(A56=D45,A53=I52,A52=H54)),D49,IF((AND(A56=D45,A53=I52,A52=H55)),D50,IF((AND(A56=D45,A53=I53,A52=H52)),E47,IF((AND(A56=D45,A53=I53,A52=H53)),E48,IF((AND(A56=D45,A53=I53,A52=H54)),E49,IF((AND(A56=D45,A53=I53,A52=H55)),E50,IF((AND(A56=F45,A53=I52,A52=H52)),F47,IF((AND(A56=F45,A53=I52,A52=H53)),F48,IF((AND(A56=F45,A53=I52,A52=H54)),F49,IF((AND(A56=F45,A53=I52,A52=H55)),F50,IF((AND(A56=F45,A53=I53,A52=H52)),G47,IF((AND(A56=F45,A53=I53,A52=H53)),G48,IF((AND(A56=F45,A53=I53,A52=H54)),G49,IF((AND(A56=F45,A53=I53,A52=H55)),G50,IF((AND(A56=H45,A53=I52,A52=H52)),H47,IF((AND(A56=H45,A53=I52,A52=H53)),H48,IF((AND(A56=H45,A53=I52,A52=H54)),H49,IF((AND(A56=H45,A53=I52,A52=H55)),H50,IF((AND(A56=H45,A53=I53,A52=H52)),I47,IF((AND(A56=H45,A53=I53,A52=H53)),I48,IF((AND(A56=H45,A53=I53,A52=H54)),I49,IF((AND(A56=H45,A53=I53,A52=H55)),I50,IF((AND(A56=J45,A52=H52)),J47,IF((AND(A56=J45,A52=H53)),J48,IF((AND(A56=J45,A52=H54)),J49,IF((AND(A56=J45,A52=H55)),J50,IF((AND(A56=L45,A53=I52,A52=H52)),L47,IF((AND(A56=L45,A53=I52,A52=H53)),L48,IF((AND(A56=L45,A53=I52,A52=H54)),L49,IF((AND(A56=L45,A53=I52,A52=H55)),L50,IF((AND(A56=L45,A53=I53)),M47,IF(A56=N45,N47,0))))))))))))))))))))))))))))))))))) -> 0 | E53: 2011 | F53: 2011-01-01 | G53: 2011-12-31 | H53: 2 | I53: 2
A54: =nemDatumOceneni2 -> 00:00:00 | E54: 2010 | F54: 2010-01-01 | G54: 2010-12-31 | H54: 3
E55: 2009 | F55: 2009-01-01 | G55: 2009-12-31 | H55: 4
A56: =IF((AND(A54<=G52,A54>=F52)),E52,IF((AND(A54<=G53,A54>=F53)),E53,IF((AND(A54<=G54,A54>=F54)),E54,IF((AND(A54<=G55,A54>=F55)),E55,IF((AND(A54<=G56,A54>=F56)),E56,IF((AND(A54<=F57,A54>=G57)),E57,IF((AND(A54<=G58,A54>=F58)),E58,"mladší"))))))) -> mladší | E56: 2008 | F56: 2008-01-01 | G56: 2008-12-31
E57: 2007 | F57: 2007-01-01 | G57: 2007-12-31
E58: 2006 a starší | F58: 1900-01-01 | G58: 2006-12-31
A60: Nem3
A61: Přepočítaná tržní hodnota nemovitosti | B61: =trzniHodnotaNemovistosti3 -> 0 | C61: =B61-(B61*D70) -> 0
A62: Rok ocenění / Typ nemovitosti | B62: 2006 a starší | D62: 2007 | F62: 2008 | H62: 2009 | J62: 2010 | L62: 2011 | N62: 2012
B63: Praha, Brno | C63: ostatní | D63: Praha, Brno | E63: ostatní | F63: Praha, Brno | G63: ostatní | H63: Praha, Brno | I63: ostatní | J63: Praha, Brno | K63: ostatní | L63: Praha, Brno | M63: ostatní | N63: Praha, Brno | O63: ostatní
A64: Rodinný dům | B64: 0 | C64: 0 | D64: 0.1 | E64: 0.125 | F64: 0.15 | G64: 0.175 | H64: 0.15 | I64: 0.175 | J64: 0.05 | K64: 0.05 | L64: 0.05 | M64: 0.05 | N64: 0 | O64: 0
A65: Pozemek | B65: 0 | C65: 0 | D65: 0 | E65: 0 | F65: 0 | G65: 0 | H65: 0 | I65: 0 | J65: 0 | K65: 0 | L65: 0 | M65: 0.05 | N65: 0 | O65: 0
A66: Byt-cihla | B66: 0 | C66: 0 | D66: 0.125 | E66: 0.125 | F66: 0.2 | G66: 0.175 | H66: 0.175 | I66: 0.15 | J66: 0.05 | K66: 0.05 | L66: 0.05 | M66: 0.05 | N66: 0 | O66: 0
A67: Byt-panel | B67: 0 | C67: 0 | D67: 0.125 | E67: 0.125 | F67: 0.225 | G67: 0.225 | H67: 0.2 | I67: 0.175 | J67: 0.05 | K67: 0.05 | L67: 0.05 | M67: 0.05 | N67: 0 | O67: 0
A69: =IF(nem_TypNem3="Rodinný dům",1,IF(nem_TypNem3="Pozemek",2,IF(nem_TypNem3="Byt-cihla",3,4))) -> 4 | C69: TH | D69: =trzniHodnotaNemovistosti3 -> 0 | E69: 2012 | F69: 2012-01-01 | G69: 2012-12-31 | H69: 1 | I69: 1
A70: =IF(nem_LokalNem3="Praha, Brno",1,2) -> 2 | C70: % | D70: =IF(A73=B62,B64,IF((AND(A73=D62,A70=I69,A69=H69)),D64,IF((AND(A73=D62,A70=I69,A69=H70)),D65,IF((AND(A73=D62,A70=I69,A69=H71)),D66,IF((AND(A73=D62,A70=I69,A69=H72)),D67,IF((AND(A73=D62,A70=I70,A69=H69)),E64,IF((AND(A73=D62,A70=I70,A69=H70)),E65,IF((AND(A73=D62,A70=I70,A69=H71)),E66,IF((AND(A73=D62,A70=I70,A69=H72)),E67,IF((AND(A73=F62,A70=I69,A69=H69)),F64,IF((AND(A73=F62,A70=I69,A69=H70)),F65,IF((AND(A73=F62,A70=I69,A69=H71)),F66,IF((AND(A73=F62,A70=I69,A69=H72)),F67,IF((AND(A73=F62,A70=I70,A69=H69)),G64,IF((AND(A73=F62,A70=I70,A69=H70)),G65,IF((AND(A73=F62,A70=I70,A69=H71)),G66,IF((AND(A73=F62,A70=I70,A69=H72)),G67,IF((AND(A73=H62,A70=I69,A69=H69)),H64,IF((AND(A73=H62,A70=I69,A69=H70)),H65,IF((AND(A73=H62,A70=I69,A69=H71)),H66,IF((AND(A73=H62,A70=I69,A69=H72)),H67,IF((AND(A73=H62,A70=I70,A69=H69)),I64,IF((AND(A73=H62,A70=I70,A69=H70)),I65,IF((AND(A73=H62,A70=I70,A69=H71)),I66,IF((AND(A73=H62,A70=I70,A69=H72)),I67,IF((AND(A73=J62,A69=H69)),J64,IF((AND(A73=J62,A69=H70)),J65,IF((AND(A73=J62,A69=H71)),J66,IF((AND(A73=J62,A69=H72)),J67,IF((AND(A73=L62,A70=I69,A69=H69)),L64,IF((AND(A73=L62,A70=I69,A69=H70)),L65,IF((AND(A73=L62,A70=I69,A69=H71)),L66,IF((AND(A73=L62,A70=I69,A69=H72)),L67,IF((AND(A73=L62,A70=I70)),M64,IF(A73=N62,N64,0))))))))))))))))))))))))))))))))))) -> 0 | E70: 2011 | F70: 2011-01-01 | G70: 2011-12-31 | H70: 2 | I70: 2
A71: =nemDatumOceneni3 -> 00:00:00 | E71: 2010 | F71: 2010-01-01 | G71: 2010-12-31 | H71: 3
E72: 2009 | F72: 2009-01-01 | G72: 2009-12-31 | H72: 4
A73: =IF((AND(A71<=G69,A71>=F69)),E69,IF((AND(A71<=G70,A71>=F70)),E70,IF((AND(A71<=G71,A71>=F71)),E71,IF((AND(A71<=G72,A71>=F72)),E72,IF((AND(A71<=G73,A71>=F73)),E73,IF((AND(A71<=F74,A71>=G74)),E74,IF((AND(A71<=G75,A71>=F75)),E75,"mladší"))))))) -> mladší | E73: 2008 | F73: 2008-01-01 | G73: 2008-12-31
E74: 2007 | F74: 2007-01-01 | G74: 2007-12-31
E75: 2006 a starší | F75: 1900-01-01 | G75: 2006-12-31
A78: LTV | B78: Hodnota | C78: Zaokr_Hodnota
A79: LTV1 | B79: =IF(trzniHodnotaNemovistosti="","",(VyseUveruZaklad+vyseUveru2)/trzniHodnotaNemovistosti) ->  | C79: =IF(admLTV1="","",ROUNDUP(admLTV1,3)) -> 
A80: LTV2 | B80: =IF(trzniHodnotaNemovistosti2="","",(VyseUveruZaklad+vyseUveru2)/(trzniHodnotaNemovistosti2+trzniHodnotaNemovistosti)) ->  | C80: =IF(admLTV2="","",ROUNDUP(admLTV2,3)) -> 
A81: LTV3 | B81: =IF(trzniHodnotaNemovistosti3="","",(VyseUveruZaklad+vyseUveru2)/(trzniHodnotaNemovistosti3+trzniHodnotaNemovistosti2+trzniHodnotaNemovistosti)) ->  | C81: =IF(admLTV3="","",ROUNDUP(admLTV3,3)) -> 

Sheet Protokol
C2: banker | Q2: DP - ano, Financ. bankou - ano | T2: DP - ne | W2: DP - ano, Financ. bankou - ne
C3: bPobocka | D3: =zPobocka -> 0 | E3: ID Bankéře (extra tabulka na lokálním disku bankéře) / Nabídka | Q3: Nemovitost | T3: Nemovitost | W3: Nemovitost
C4: bBanker | D4: =zPracovnikBanky -> 0 | E4: ID Bankéře (extra tabulka na lokálním disku bankéře) / Nabídka | Q4: nem_PocetNem | R4: =nem_PocetNem -> 1 | S4: =IF(R4=0,TRUE,FALSE) -> FALSE | T4: nem_PocetNem | U4: =nem_PocetNem -> 1 | V4: =IF(U4=0,TRUE,FALSE) -> FALSE | W4: nem_PocetNem | X4: =nem_PocetNem -> 1 | Y4: =IF(X4=0,TRUE,FALSE) -> FALSE
C5: bVyseUveru | D5: =IF(SlevaCardif="Ano",(IF(VyseUveru=0,"",VyseUveru)),(IF(VyseUveruZaklad+vyseUveru2=0,"",VyseUveruZaklad+vyseUveru2))) -> 2060000 | E5: Splátka | Q5: nem_TypKlienta | R5: =nem_TypKlienta -> 0 | S5: =FALSE -> FALSE | T5: nem_TypKlienta | U5: =nem_TypKlienta -> 0 | V5: =FALSE -> FALSE | W5: nem_TypKlienta | X5: =nem_TypKlienta -> 0 | Y5: =FALSE -> FALSE
C6: DatumPodaniZadosti | D6: =zadDatum -> 0 | E6: To pole je vyplňovaný i s místem | Q6: nem_DPFinBank | R6: =nem_DPFinBank -> 0 | S6: =IF(R6=0,TRUE,FALSE) -> TRUE | T6: nemTypNemovitosti | U6: =nemTypNemovitosti -> zděná nemovitost nebo pozemek | V6: =IF(U6=0,TRUE,FALSE) -> FALSE | W6: nem_DPFinBank | X6: =nem_DPFinBank -> 0 | Y6: =IF(X6=0,TRUE,FALSE) -> TRUE
C7: Typ_uveru | D7: =TypHypoteky -> Hypoteční úvěr účelový rezidenční Individual | E7: Splátka | Q7: nem_TypDP | R7: =nem_TypDP -> 0 | S7: TRUE | T7: trzniHodnotaNemovistosti | U7: =trzniHodnotaNemovistosti -> 0 | V7: TRUE | W7: nemTypNemovitosti | X7: =nemTypNemovitosti -> zděná nemovitost nebo pozemek | Y7: FALSE
C8: HlavUcelUveru | D8: =HlavUcelUveru -> 0 | E8: Splátka | Q8: nem_NazevDP | R8: =IF(nem_NazevDP="",DP_JinyNazev,nem_NazevDP) -> 0 | S8: TRUE | T8: nemDalsiUcel | U8: =nemDalsiUcel -> Rekonstrukce | V8: FALSE | W8: trzniHodnotaNemovistosti | X8: =trzniHodnotaNemovistosti -> 0 | Y8: TRUE
C9: TypUrokSazby | D9: =Fix_obdobi -> 3 roky | E9: Splátka | I9: Poplatky: | Q9: nemTypNemovitosti | R9: =nemTypNemovitosti -> zděná nemovitost nebo pozemek | S9: FALSE | T9: zastavniHodnota | U9: =zastavniHodnota -> 0 | V9: =FALSE -> FALSE | W9: nemDalsiUcel | X9: =nemDalsiUcel -> Rekonstrukce | Y9: FALSE
C10: bTypSlevy1 | E10: Splátka | Q10: trzniHodnotaNemovistosti | R10: =trzniHodnotaNemovistosti -> 0 | S10: TRUE | T10: LTV | U10: =LTV ->  | V10: FALSE | W10: zastavniHodnota | X10: =zastavniHodnota -> 0 | Y10: =FALSE -> FALSE
C11: bVyseSlevy1 | D11: =I16 ->  | E11: Splátka | F11: pokračování dole | I11: NnV | J11: Posk | K11: Odhad | Q11: nemDalsiUcel | R11: =nemDalsiUcel -> Rekonstrukce | S11: FALSE | T11: nemFinancovanaNemovitost | U11: =nemFinancovanaNemovitost -> je v zástavě | V11: FALSE | W11: LTV | X11: =LTV ->  | Y11: FALSE
C12: KC | I12: =splPoplNnV -> 1500 | J12: =splPoplPosk -> 2500 | K12: =splPoplOdhad -> 3700 | Q12: zastavniHodnota | R12: =zastavniHodnota -> 0 | S12: =FALSE -> FALSE | T12: nemDatumOceneni | U12: =nemDatumOceneni -> 0 | V12: TRUE | W12: nemFinancovanaNemovitost | X12: =nemFinancovanaNemovitost -> je v zástavě | Y12: FALSE
C13: kcDobaCerpani | D13: =DatumDocerpani -> 0 | E13: Splátka | Q13: LTV | R13: =LTV ->  | S13: FALSE | T13: nemTrzniHodnota | U13: =nemTrzniHodnota -> vyberte | V13: FALSE | W13: nemDatumOceneni | X13: =nemDatumOceneni -> 0 | Y13: TRUE
C14: kcDobaSplaceni | D14: =DobaSplatnosti -> 25 | E14: Splátka | I14: Sleva na poplatcích | Q14: nemFinancovanaNemovitost | R14: =nemFinancovanaNemovitost -> je v zástavě | S14: FALSE | T14: minimalniStavedniNaklady | U14: =minimalniStavedniNaklady ->  | V14: =FALSE -> FALSE | W14: nemTrzniHodnota | X14: =nemTrzniHodnota -> vyberte | Y14: FALSE
C15: kcDatumKonecFixniObdobi | D15: =KonecFixu -> 2019-02-24 | E15: Splátka | I15: NnV | J15: Posk | K15: sazba | Q15: nemDatumOceneni | R15: =nemDatumOceneni -> 0 | S15: TRUE | T15: stavebniNaklady | U15: =stavebniNaklady -> 0 | V15: =FALSE -> FALSE | W15: minimalniStavedniNaklady | X15: =minimalniStavedniNaklady ->  | Y15: =FALSE -> FALSE
C16: kcDatumSplatnostiFIN | D16: =KonecUveru -> 2016-07-25 | E16: Splátka | I16: =IF(I19=0,"",((I12-I19)/I12)*100) ->  | J16: =IF(J19=0,"",((J12-J19)/J12)*100) ->  | K16: =IF(SlevaNaTvrdo=0,"",SlevaNaTvrdo*100) ->  | Q16: nemTrzniHodnota | R16: =nemTrzniHodnota -> vyberte | S16: FALSE | T16: hodnotaZavazku | U16: =hodnotaZavazku -> 0 | V16: =FALSE -> FALSE | W16: stavebniNaklady | X16: =stavebniNaklady -> 0 | Y16: =FALSE -> FALSE
C17: kc3PJmenoPrijmeni | D17: =zTotoznostOveril -> 0 | E17: Žádost | Q17: minimalniStavedniNaklady | R17: =minimalniStavedniNaklady ->  | S17: =FALSE -> FALSE | T17: nemNemovitost | U17: =nemNemovitost -> 3700 | V17: =FALSE -> FALSE | W17: hodnotaZavazku | X17: =hodnotaZavazku -> 0 | Y17: =FALSE -> FALSE
C18: IC_RC_3P | D18: =zIcMaklere -> 0 | E18: Žádost | I18: Výsledek | Q18: stavebniNaklady | R18: =stavebniNaklady -> 0 | S18: =FALSE -> FALSE | T18: nem_TypNem | U18: =nem_TypNem -> 0 | V18: =FALSE -> FALSE | W18: nemNemovitost | X18: =nemNemovitost -> 3700 | Y18: =FALSE -> FALSE
C19: kcCountrySpread | E19: Splátka | I19: =splPoplNnVx -> 0 | J19: =Splatka!E60 -> 0 | K19: =Splatka!G60 -> 0 | Q19: hodnotaZavazku | R19: =hodnotaZavazku -> 0 | S19: =FALSE -> FALSE | T19: nem_LokalNem | U19: =nem_LokalNem -> 0 | V19: =FALSE -> FALSE | W19: nem_TypNem | X19: =nem_TypNem -> 0 | Y19: =FALSE -> FALSE
C20: kcSpecialRefinancSpread | D20: =SplSrs -> 0.0001 | E20: Splátka | Q20: nemNemovitost | R20: =nemNemovitost -> 3700 | S20: =FALSE -> FALSE | T20: =OR(V4:V19) -> TRUE | W20: nem_LokalNem | X20: =nem_LokalNem -> 0 | Y20: =FALSE -> FALSE
C21: kcRizikMarze | D21: =SplRm -> 0.0084 | E21: Splátka | Q21: nem_TypNem | R21: =nem_TypNem -> 0 | S21: =FALSE -> FALSE | W21: DP_JinyNazev | X21: =DP_JinyNazev -> 0 | Y21: TRUE
C22: kcObchodMarze | D22: =SplOm -> 0.0518 | E22: Splátka | Q22: nem_LokalNem | R22: =nem_LokalNem -> 0 | S22: =FALSE -> FALSE | W22: =OR(Y4:Y21) -> TRUE
C23: kcVyjimkaMarketing | D23: =SplMarketingSleva -> 0 | E23: Splátka | Q23: checkbox - DP | R23: TRUE
C24: kc_Ucet | D24: =SlevaUcet -> Ano | E24: Splátka | Q24: =OR(S4:S22) -> TRUE
C25: kc_KK | D25: =SlevaKarta -> Ano | E25: Splátka
C26: kc_CPI | D26: =SlevaCardif -> Ano | E26: Splátka
C27: CPI_Povinne | E27: Splátka | F27: Možná nějaký admin - výpočet je "odněkud hlídán", takže musí existovat :-) | Q27: Doplneni
C28: Typ_CPI | D28: =CardifTyp -> Navýšením úvěru | E28: Splátka | Q28: dopPracB3 | R28: =zPracovnikBanky -> 0 | S28: =IF(R28=0,TRUE,FALSE) -> TRUE
C29: kc_akceptPrijmy_zadatel | D29: =adminPrijmyZadatel -> 0 | E29: Bonita | Q29: dopPobocka3 | R29: =zPobocka -> 0 | S29: =IF(R29=0,TRUE,FALSE) -> TRUE
C30: kc_Z1_Jmeno | D30: =zadJmeno&" "&zadPrijmeni ->  | E30: Žádost | Q30: dopNDG3 | R30: =zNdg -> 0 | S30: TRUE
C31: kc_Z1_RC | D31: =zadRC -> 0 | E31: Žádost | Q31: dopJmeno | R31: =SplatkaJmenoKlienta ->  | S31: FALSE
C32: kc_Z1_Telefon | D32: =zadTelefon -> 0 | E32: Žádost | Q32: dopPrijmeni | R32: =dopPrijmeni ->  | S32: FALSE
C33: kc_Z1_CBskore | Q33: dopRC | R33: =dopRC ->  | S33: FALSE
C34: kc_Z1_SJM | D34: =IF(dopRodinnyStav21<>"",textSJM1,IF(dopRodinnyStav23<>"",textSJM2,"")) ->  | E34: Doplnění | Q34: dopStPris | R34: =dopStPris -> 0 | S34: TRUE
C35: kc_Z1_ICzam | D35: =dopIC -> 0 | E35: Doplnění | Q35: dopRodinnyStav1 | R35: =dopRodinnyStav1 -> 0 | S35: =FALSE -> FALSE | T35: =IF(R35=0,FALSE,TRUE) -> FALSE | U35: =OR(T35:T39) -> FALSE
C36: kc_Z1_RodStav | D36: =IF(dopRodinnyStav1<>"",textRS1,IF(dopRodinnyStav2<>"",textRS2,IF(dopRodinnyStav3<>"",textRS3,IF(dopRodinnyStav4<>"",textRS4,IF(dopRodinnyStav5<>"",textRS5,""))))) ->  | E36: Doplnění | Q36: dopRodinnyStav2 | R36: =dopRodinnyStav2 -> 0 | S36: =FALSE -> FALSE | T36: =IF(R36=0,FALSE,TRUE) -> FALSE
C37: kc_Z1_ZpusBydl | D37: =IF(dopBytovePomery1<>"",textBP1,IF(dopBytovePomery2<>"",textBP2,IF(dopBytovePomery3<>"",textBP3,IF(dopBytovePomery4<>"",textBP3,IF(dopBytovePomery5<>"",textBP5,""))))) ->  | E37: Doplnění | Q37: dopRodinnyStav3 | R37: =dopRodinnyStav3 -> 0 | S37: =FALSE -> FALSE | T37: FALSE
C38: kc_Z1_Vzdelani | D38: =IF(dopVzdelani1<>"",textVzd1,IF(dopVzdelani¨2<>"",textVzd2,IF(dopVzdelani4<>"",textVzd3,IF(dopVzdelani5<>"",textVzd4,IF(dopVzdelani6<>"",textVzd5,IF(dopVzdelani7<>"",textVzd6,"")))))) ->  | E38: Doplnění | Q38: dopRodinnyStav4 | R38: =dopRodinnyStav4 -> 0 | S38: =FALSE -> FALSE | T38: FALSE
C39: kc_Z1_PocetDosp | D39: =dopDosp -> 1 | E39: Doplnění | Q39: dopRodinnyStav5 | R39: =dopRodinnyStav5 -> 0 | S39: =IF(U35=TRUE,FALSE,TRUE) -> TRUE | T39: FALSE
C40: kc_Z1_PocetDeti | D40: =dopDeti -> 0 | E40: Doplnění | Q40: dopVzdelani1 | R40: =dopVzdelani1 -> 0 | S40: =FALSE -> FALSE | T40: FALSE | U40: =OR(T40:T45) -> FALSE
C41: kc_Z1_PocetMZam | D41: =dopSoucZam -> 0 | E41: Doplnění | Q41: dopVzdelani¨2 | R41: =dopVzdelani¨2 -> 0 | S41: =FALSE -> FALSE | T41: FALSE
C42: kc_Z2_Jmeno | D42: =dopJmeno2&" "&dopPrijmeni2 ->  | E42: Doplnění | Q42: dopVzdelani4 | R42: =dopVzdelani4 -> 0 | S42: =FALSE -> FALSE | T42: FALSE
C43: kc_Z2_RC | D43: =dopRC2 ->  | E43: Doplnění | Q43: dopVzdelani5 | R43: =dopVzdelani5 -> 0 | S43: =FALSE -> FALSE | T43: FALSE
C44: kc_Z2_Telefon | D44: =zadTelefon2 -> 0 | E44: Doplnění | Q44: dopVzdelani6 | R44: =dopVzdelani6 -> 0 | S44: =FALSE -> FALSE | T44: FALSE
C45: kc_Z2_CBskore | Q45: dopVzdelani7 | R45: =dopVzdelani7 -> 0 | S45: =IF(U40=TRUE,FALSE,TRUE) -> TRUE | T45: FALSE
C46: kc_Z2_SJM | D46: =IF(dopRodinnyStav21_2<>"",textSJM1,IF(dopRodinnyStav23_2<>"",textSJM2,"")) ->  | E46: Doplnění | Q46: dopZvlastniVztah1 | R46: =dopZvlastniVztah1 -> 0 | S46: =FALSE -> FALSE | T46: FALSE | U46: =OR(T46:T47) -> FALSE
C47: kc_Z2_ICzam | D47: =dopIC2 -> 0 | E47: Doplnění | Q47: dopZvlastniVztah2 | R47: =dopZvlastniVztah2 -> 0 | S47: =IF(U46=TRUE,FALSE,TRUE) -> TRUE | T47: FALSE
C48: kc_Z2_RodStav | D48: =IF(dopRodinnyStav1_2<>"",textRS1,IF(dopRodinnyStav2_2<>"",textRS2,IF(dopRodinnyStav3_2<>"",textRS3,IF(dopRodinnyStav4_2<>"",textRS4,IF(dopRodinnyStav5_2<>"",textRS5,""))))) ->  | E48: Doplnění | Q48: dopBytovePomery1 | R48: =dopBytovePomery1 -> 0 | S48: =FALSE -> FALSE | T48: FALSE | U48: =OR(T48:T52) -> FALSE
C49: kc_Z2_ZpusBydl | D49: =IF(dopBytovePomery1_2<>"",textBP1,IF(dopBytovePomery2_2<>"",textBP2,IF(dopBytovePomery3_2<>"",textBP3,IF(dopBytovePomery4_2<>"",textBP4,IF(dopBytovePomery5_2<>"",textBP5,""))))) ->  | E49: Doplnění | Q49: dopBytovePomery4 | R49: =dopBytovePomery4 -> 0 | S49: =FALSE -> FALSE | T49: FALSE
C50: kc_Z2_Vzdelani | D50: =IF(dopVzdelani1_2<>"",textVzd1,IF(dopVzdelani¨2_2<>"",textVzd2,IF(dopVzdelani4_2<>"",textVzd3,IF(dopVzdelani6_2<>"",textVzd4,IF(dopVzdelani5_2<>"",textVzd5,IF(dopVzdelani7_2<>"",textVzd6,"")))))) ->  | E50: Doplnění | Q50: dopBytovePomery2 | R50: =dopBytovePomery2 -> 0 | S50: =FALSE -> FALSE | T50: FALSE
C51: kc_Z2_PocetDosp | D51: =dopDosp2 -> 0 | E51: Doplnění | Q51: dopBytovePomery3 | R51: =dopBytovePomery3 -> 0 | S51: =FALSE -> FALSE | T51: FALSE
C52: kc_Z2_PocetDeti | D52: =dopDeti2 -> 0 | E52: Doplnění | Q52: dopBytovePomery5 | R52: =dopBytovePomery5 -> 0 | S52: =IF(U48=TRUE,FALSE,TRUE) -> TRUE | T52: FALSE
C53: kc_Z2_PocetMZam | D53: =dopSoucZam2 -> 0 | E53: Doplnění | Q53: dopDelkaPobytu | R53: =dopDelkaPobytu -> 0 | S53: =IF(R53=0,TRUE,FALSE) -> TRUE
C54: kc_Z3_Jmeno | D54: =dopJmeno3&" "&dopPrijmeni3 ->  | E54: Doplnění | Q54: dopKorespondAdresa1 | R54: =dopKorespondAdresa1 -> 0 | S54: =FALSE -> FALSE | T54: FALSE | U54: =OR(T54:T55) -> FALSE
C55: kc_Z3_RC | D55: =dopRC3 ->  | E55: Doplnění | Q55: dopKorespondAdresa2 | R55: =dopKorespondAdresa2 -> 0 | S55: =IF(U54=TRUE,FALSE,TRUE) -> TRUE | T55: FALSE
C56: kc_Z3_Telefon | D56: =zadTelefon3 -> 0 | E56: Doplnění | Q56: dopZamestnavatel | R56: =dopZamestnavatel -> 0 | S56: =IF(R56=0,TRUE,FALSE) -> TRUE
C57: kc_Z3_CBskore | Q57: dopIC | R57: =dopIC -> 0 | S57: =IF(R57=0,TRUE,FALSE) -> TRUE
C58: kc_Z3_SJM | D58: =IF(dopRodinnyStav22_3<>"",textSJM1,IF(dopRodinnyStav23_3<>"",textSJM2,"")) ->  | E58: Doplnění | Q58: dopPracPoz | R58: =dopPracPoz -> 0 | S58: =IF(R58=0,TRUE,FALSE) -> TRUE
C59: kc_Z3_ICzam | D59: =dopIC3 -> 0 | E59: Doplnění | Q59: dopZdrojPrijmu1 | R59: =dopZdrojPrijmu1 -> 0 | S59: =FALSE -> FALSE | T59: FALSE | U59: =OR(T59:T64) -> FALSE
C60: kc_Z3_RodStav | D60: =IF(dopRodinnyStav1_3<>"",textRS1,IF(dopRodinnyStav2_3<>"",textRS2,IF(dopRodinnyStav3_3<>"",textRS3,IF(dopRodinnyStav4_3<>"",textRS4,IF(dopRodinnyStav5_3<>"",textRS5,""))))) ->  | E60: Doplnění | Q60: dopZdrojPrijmu2 | R60: =dopZdrojPrijmu2 -> 0 | S60: =FALSE -> FALSE | T60: FALSE
C61: kc_Z3_ZpusBydl | D61: =IF(dopBytovePomery1_3<>"",textBP1,IF(dopBytovePomery2_3<>"",textBP2,IF(dopBytovePomery3_3<>"",textBP3,IF(dopBytovePomery4_3<>"",textBP4,IF(dopBytovePomery5_3<>"",textBP5,""))))) ->  | E61: Doplnění | Q61: dopZdrojPrijmu3 | R61: =dopZdrojPrijmu3 -> 0 | S61: =FALSE -> FALSE | T61: FALSE
C62: kc_Z3_Vzdelani | D62: =IF(dopVzdelani1_3<>"",textVzd1,IF(dopVzdelani¨2_3<>"",textVzd2,IF(dopVzdelani4_3<>"",textVzd3,IF(dopVzdelani5_3<>"",textVzd4,IF(dopVzdelani6_3<>"",textVzd5,IF(dopVzdelani7_3<>"",textVzd6,"")))))) ->  | E62: Doplnění | Q62: dopZdrojPrijmu4 | R62: =dopZdrojPrijmu4 -> 0 | S62: =FALSE -> FALSE | T62: FALSE
C63: kc_Z3_PocetDosp | D63: =dopDosp3 -> 0 | E63: Doplnění | Q63: dopZdrojPrijmu5 | R63: =dopZdrojPrijmu5 -> 0 | S63: =FALSE -> FALSE | T63: FALSE
C64: kc_Z3_PocetDeti | D64: =dopDeti3 -> 0 | E64: Doplnění | Q64: dopZdrojPrijmu6 | R64: =dopZdrojPrijmu6 -> 0 | S64: =IF(U59=TRUE,FALSE,TRUE) -> TRUE | T64: FALSE
C65: kc_Z3_PocetMZam | D65: =dopSoucZam3 -> 0 | E65: Doplnění | Q65: dopZdrojPrijmu12 | R65: =dopZdrojPrijmu12 -> 0 | S65: =FALSE -> FALSE | T65: FALSE | U65: =OR(T65:T66) -> FALSE
C66: kc_Z4_Jmeno | D66: =dopJmeno4&" "&dopPrijmeni4 ->  | E66: Doplnění | Q66: dopZdrojPrijmu13 | R66: =dopZdrojPrijmu13 -> 0 | S66: =IF(R59="X",IF(U65=TRUE,FALSE,TRUE),FALSE) -> FALSE | T66: FALSE
C67: kc_Z4_RC | D67: =dopRC4 ->  | E67: Doplnění | Q67: zavislaCinnost | R67: =zavislaCinnost ->  | S67: =IF(R59="X",IF(R67=0,TRUE,FALSE),FALSE) -> FALSE
C68: kc_Z4_Telefon | D68: =zadTelefon4 -> 0 | E68: Doplnění | Q68: dopSoucZam | R68: =dopSoucZam -> 0 | S68: =IF(R59="X",IF(R68=0,TRUE,FALSE),FALSE) -> FALSE
C69: kc_Z4_CBskore | Q69: dopPredchZam | R69: =dopPredchZam -> 0 | S69: =FALSE -> FALSE
C70: kc_Z4_SJM | D70: =IF(dopRodinnyStav21_4<>"",textSJM1,IF(dopRodinnyStav23_4<>"",textSJM2,"")) ->  | E70: Doplnění | Q70: dopZdrojPrijmu14 | R70: =dopZdrojPrijmu14 -> 0 | S70: =FALSE -> FALSE | T70: FALSE | U70: =OR(T70:T71) -> FALSE
C71: kc_Z4_ICzam | D71: =dopIC4 -> 0 | E71: Doplnění | Q71: dopZdrojPrijmu15 | R71: =dopZdrojPrijmu15 -> 0 | S71: =IF(R59="X",IF(U70=TRUE,FALSE,TRUE),FALSE) -> FALSE | T71: FALSE
C72: kc_Z4_RodStav | D72: =IF(dopRodinnyStav1_4<>"",textRS1,IF(dopRodinnyStav22_4<>"",textRS2,IF(dopRodinnyStav3_4<>"",textRS3,IF(dopRodinnyStav4_4<>"",textRS4,IF(dopRodinnyStav5_4<>"",textRS5,""))))) ->  | E72: Doplnění | Q72: samostatneVydelecnaCinnost | R72: =samostatneVydelecnaCinnost -> 0 | S72: =IF(R60="X",IF(R72=0,TRUE,FALSE),FALSE) -> FALSE
C73: kc_Z4_ZpusBydl | D73: =IF(dopBytovePomery1_4<>"",textBP1,IF(dopBytovePomery2_4<>"",textBP2,IF(dopZvlastniVztah3_4<>"",textBP3,IF(dopZvlastniVztah4_4<>"",textBP4,IF(dopZvlastniVztah5_4<>"",textBP5,""))))) ->  | E73: Doplnění | Q73: dopZdrojPrijmu21 | R73: =dopZdrojPrijmu21 -> 0 | S73: =FALSE -> FALSE | T73: FALSE | U73: =OR(T73:T74) -> FALSE
C74: kc_Z4_Vzdelani | D74: =IF(dopVzdelani1_4<>"",textVzd1,IF(dopVzdelani¨2_4<>"",textVzd2,IF(dopVzdelani4_4<>"",textVzd3,IF(dopVzdelani5_4<>"",textVzd4,IF(dopVzdelani6_4<>"",textVzd5,IF(dopVzdelani7_4<>"",textVzd6,"")))))) ->  | E74: Doplnění | Q74: dopZdrojPrijmu22 | R74: =dopZdrojPrijmu22 -> 0 | S74: =IF(R60="X",IF(U73=TRUE,FALSE,TRUE),FALSE) -> FALSE | T74: FALSE
C75: kc_Z4_PocetDosp | D75: =dopDosp4 -> 0 | E75: Doplnění | Q75: prijemZPronajmu | R75: =prijemZPronajmu -> 0 | S75: =IF(R61="X",IF(R75=0,TRUE,FALSE),FALSE) -> FALSE
C76: kc_Z4_PocetDeti | D76: =dopDeti4 -> 0 | E76: Doplnění | Q76: prijemZKapitalovehoMajetku | R76: =prijemZKapitalovehoMajetku -> 0 | S76: =IF(R62="X",IF(R76=0,TRUE,FALSE),FALSE) -> FALSE
C77: kc_Z4_PocetMZam | D77: =dopSoucZam4 -> 0 | E77: Doplnění | Q77: starobniDuchod | R77: =starobniDuchod -> 0 | S77: =IF(R63="X",IF(R77=0,TRUE,FALSE),FALSE) -> FALSE
C78: nemovitost | Q78: jiny | R78: =jiny -> 0 | S78: =IF(R64="X",IF(R78=0,TRUE,FALSE),FALSE) -> FALSE
C79: nemPocetNemov | D79: =nem_PocetNem -> 1 | E79: Nemovitost | Q79: dopDosp | R79: =dopDosp -> 1 | S79: =IF(R79=0,TRUE,FALSE) -> FALSE
C80: cbUP_TypKlient | D80: =nem_TypKlienta -> 0 | E80: Splátka | Q80: dopDeti | R80: =dopDeti -> 0 | S80: =FALSE -> FALSE
C81: nem_UverZamDuchBanky | D81: FALSE | E81: Nemovitost | Q81: dopTypUrS1 | R81: =dopTypUrS1 -> X | S81: =FALSE -> FALSE | T81: TRUE | U81: =OR(T81:T82) -> TRUE
C82: Devel_pr | D82: =DP -> FALSE | E82: Nemovitost | Q82: dopTypUrS2 | R82: =dopTypUrS2 ->  | S82: =IF(U81=TRUE,FALSE,TRUE) -> FALSE | T82: TRUE
C83: nem_DPFinancBanka | D83: =nem_DPFinBank -> 0 | E83: Nemovitost | Q83: dopUcelUveru1 | R83: =dopUcelUveru1 ->  | S83: =FALSE -> FALSE | T83: TRUE | U83: =OR(T83:T88) -> TRUE
C84: nem_TypDP | D84: =nem_TypDP -> 0 | E84: Nemovitost | Q84: dopUcelUveru2 | R84: =dopUcelUveru2 ->  | S84: =FALSE -> FALSE | T84: TRUE
C85: nem_NazevDP | D85: =IF(nem_NazevDP="",DP_JinyNazev,nem_NazevDP) -> 0 | E85: Nemovitost | Q85: dopUcelUveru3 | R85: =dopUcelUveru3 ->  | S85: =FALSE -> FALSE | T85: TRUE
C86: kcTHnemovitosti1 | D86: =trzniHodnotaNemovistosti -> 0 | E86: Nemovitost | Q86: dopUcelUveru4 | R86: =dopUcelUveru4 ->  | S86: =FALSE -> FALSE | T86: TRUE
C87: nem1_THNemNaZaklade | D87: =nemTrzniHodnota -> vyberte | E87: Nemovitost | Q87: dopUcelUveru5 | R87: =dopUcelUveru5 ->  | S87: =FALSE -> FALSE | T87: TRUE
C88: nem_TypNemovitosti | D88: =SplTypNemovitosti -> zděná nemovitost nebo pozemek | E88: Nemovitost | Q88: dopUcelUveru6 | R88: =dopUcelUveru6 -> 0 | S88: =IF(U83=TRUE,FALSE,TRUE) -> FALSE | T88: FALSE
C89: Nem1_DatumOcenění | D89: =nemDatumOceneni -> 0 | E89: Nemovitost | Q89: dopTypUveru1 | R89: =dopTypUveru1 -> X | S89: =FALSE -> FALSE
C90: RozdTypNem1 | E90: Nemovitost | Q90: dopTypUveru2 | R90: =dopTypUveru2 ->  | S90: =FALSE -> FALSE
C91: kcMaxLTV1 | D91: =LTV ->  | E91: Nemovitost | Q91: dopTypUveru3 | R91: =dopTypUveru3 ->  | S91: =FALSE -> FALSE
C92: nem_MinStavNaklady1 | D92: =minimalniStavebniNaklady1 -> 0 | E92: Nemovitost | Q92: dopTypUveru4 | R92: =dopTypUveru4 ->  | S92: =FALSE -> FALSE
C93: nem_StavNaklady1 | D93: =stavebniNaklady -> 0 | E93: Nemovitost | Q93: dopTypUveru5 | R93: =dopTypUveru5 ->  | S93: =FALSE -> FALSE
C94: nem_HodnZavazku1 | D94: =hodnotaZavazku -> 0 | E94: Nemovitost | Q94: dopAdrNem | R94: =dopAdrNem -> 0 | S94: =IF(R94=0,TRUE,FALSE) -> TRUE
C95: nem_FinancNem | D95: =nemFinancovanaNemovitost -> je v zástavě | E95: Nemovitost | Q95: dopCLV | R95: =dopCLV -> 0 | S95: =IF(R95=0,TRUE,FALSE) -> TRUE
C96: kcTHnemovitosti2 | D96: =trzniHodnotaNemovistosti2 -> 0 | E96: Nemovitost | Q96: dopVyseInvestice | R96: =dopVyseInvestice -> 0 | S96: =IF(R96=0,TRUE,FALSE) -> TRUE
C97: nem2_THNemNaZaklade | D97: =nemTrzniHodnota2 -> vyberte | E97: Nemovitost | Q97: dopUcelVyuzitiObjektu1 | R97: =dopUcelVyuzitiObjektu1 -> 0 | S97: =FALSE -> FALSE | T97: FALSE | U97: =OR(T97:T99) -> FALSE
C98: nem_TypNemovitosti2 | D98: =nemTypNemovitosti2 -> vyberte | E98: Nemovitost | Q98: dopUcelVyuzitiObjektu2 | R98: =dopUcelVyuzitiObjektu2 -> 0 | S98: =FALSE -> FALSE | T98: FALSE
C99: Nem2_DatumOcenění | D99: =nemDatumOceneni2 -> 00:00:00 | E99: Nemovitost | Q99: dopUcelVyuzitiObjektu3 | R99: =dopUcelVyuzitiObjektu3 -> 0 | S99: =IF(U97=TRUE,FALSE,TRUE) -> TRUE | T99: FALSE
C100: RozdTypNem2 | D100: =SplTypNemovitosti -> zděná nemovitost nebo pozemek | E100: Nemovitost | Q100: dopZastavenaNemovitost1 | R100: =dopZastavenaNemovitost1 -> 0 | S100: =FALSE -> FALSE | T100: =IF(R100=0,FALSE,TRUE) -> FALSE | U100: =OR(T100:T101) -> FALSE
C101: nem_MinStavNaklady2 | D101: =minimalniStavebniNaklady2 -> 0 | E101: Nemovitost | Q101: dopZastavenaNemovitost2 | R101: =dopZastavenaNemovitost2 -> 0 | S101: =IF(U100=TRUE,FALSE,TRUE) -> TRUE | T101: =IF(R101=0,FALSE,TRUE) -> FALSE
C102: kcMaxLTV2 | D102: =LTV ->  | E102: Nemovitost | Q102: dopVlastnikNemovitosti1 | R102: =dopVlastnikNemovitosti1 -> 0 | S102: =FALSE -> FALSE | T102: =IF(R102=0,FALSE,TRUE) -> FALSE | U102: =OR(T102:T104) -> FALSE
C103: nem_StavNaklady2 | D103: =stavebniNaklady2 -> 0 | E103: Nemovitost | Q103: dopVlastnikNemovitosti2 | R103: =dopVlastnikNemovitosti2 -> 0 | S103: =FALSE -> FALSE | T103: =IF(R103=0,FALSE,TRUE) -> FALSE
C104: nem_HodnZavazku2 | D104: =hodnotaZavazku2 -> 0 | E104: Nemovitost | Q104: dopVlastnikNemovitosti3 | R104: =dopVlastnikNemovitosti3 -> 0 | S104: =IF(R100="X",FALSE,IF(U102=TRUE,FALSE,TRUE)) -> TRUE | T104: =IF(R104=0,FALSE,TRUE) -> FALSE
C105: kcTHnemovitosti3 | D105: =trzniHodnotaNemovistosti3 -> 0 | E105: Nemovitost | Q105: dopAdresaNemovitosti | R105: =dopAdresaNemovitosti -> 0 | S105: =IF(R100="X",FALSE,IF(R105=0,TRUE,FALSE)) -> TRUE
C106: nem3_THNemNaZaklade | D106: =nemTrzniHodnota3 -> vyberte | E106: Nemovitost | Q106: Dopl_Fixni | R106: =Dopl_Fixni -> 3 | S106: =IF(R106=0,TRUE,FALSE) -> FALSE
C107: nem_TypNemovitosti3 | D107: =nemTypNemovitosti3 -> vyberte | E107: Nemovitost | Q107: Dopl_DelkaCerpani | R107: =Dopl_DelkaCerpani -> 0 | S107: =IF(R107=0,TRUE,FALSE) -> TRUE
C108: Nem3_DatumOcenění | D108: =nemDatumOceneni3 -> 00:00:00 | E108: Nemovitost | Q108: dopUcelUveru6_Jiny | R108: =dopUcelUveru6_Jiny ->  | S108: =IF(R88<>0,IF(R108=0,TRUE,FALSE),FALSE) -> FALSE
C109: RozdTypNem3 | E109: Nemovitost | Q109: Dopl_UcelVyuziti1 | R109: =Dopl_UcelVyuziti1 -> 0 | S109: =FALSE -> FALSE | T109: =IF(R109=0,FALSE,TRUE) -> FALSE | U109: =OR(T109:T111) -> FALSE
C110: kcMaxLTV3 | D110: =LTV ->  | E110: Nemovitost | Q110: Dopl_UcelVyuziti2 | R110: =Dopl_UcelVyuziti2 -> 0 | S110: =FALSE -> FALSE | T110: =IF(R110=0,FALSE,TRUE) -> FALSE
C111: nem_MinStavNaklady3 | D111: =minimalniStavebniNaklady3 -> 0 | E111: Nemovitost | Q111: Dopl_UcelVyuziti3 | R111: =Dopl_UcelVyuziti3 -> 0 | S111: =IF(R100="X",FALSE,IF(U109=TRUE,FALSE,TRUE)) -> TRUE | T111: =IF(R111=0,FALSE,TRUE) -> FALSE
C112: nem_StavNaklady3 | D112: =stavebniNaklady3 -> 0 | E112: Nemovitost | Q112: dopMisto | R112: =dopMisto -> 0 | S112: =IF(R112=0,TRUE,FALSE) -> TRUE
C113: nem_HodnZavazku3 | D113: =hodnotaZavazku3 -> 0 | E113: Nemovitost | Q113: Dopl_Datum1 | R113: =Dopl_Datum1 -> 0 | S113: =IF(R113=0,TRUE,FALSE) -> TRUE
C114: kontrolni list | Q114: zJpA | R114: =zJpA -> 0 | S114: =FALSE -> FALSE | T114: =IF(R114=0,FALSE,TRUE) -> FALSE | U114: =OR(T114:T117) -> FALSE
C115: kl_PoplPoskyt | D115: =IF(Splatka!E60="",splPoplPosk,Splatka!E60) -> 2500 | E115: Splátka | F115: tam je sleva na poplatcích, ale kde je výše poplatku? není to daný pevně a tohle se dopočítá samo po slevě? | Q115: zJpB | R115: =zJpB -> 0 | S115: =FALSE -> FALSE | T115: FALSE
C116: kl_PoplNnV | D116: =IF(splPoplNnVx="",splPoplNnV,splPoplNnVx) -> 1500 | E116: Splátka | Q116: zJpC | R116: =zJpC -> 0 | S116: =FALSE -> FALSE | T116: FALSE
C117: kl_PoplVedeniUveru | D117: 0 | E117: Splátka | Q117: zMes | R117: =zMes -> 0 | S117: =FALSE -> FALSE | T117: FALSE
C118: kl_PoplCelkem | Q118: zPojistenyHlavni | R118: =zPojistenyHlavni -> 0 | S118: =FALSE -> FALSE | T118: FALSE | U118: =OR(T118:T119) -> FALSE
C119: kcOptionSpread | D119: =SplOs -> 0.0002 | Q119: zPojistenySpolu | R119: =zPojistenySpolu -> 0 | S119: =FALSE -> FALSE | T119: FALSE
C120: bTypSlevy2 | Q120: dopZajOSlevu3 | R120: =dopZajOSlevu3 -> X | S120: =IF(R120=0,TRUE,FALSE) -> FALSE
C121: bTypSlevy3 | Q121: =OR(S28:S120) -> TRUE
C122: bVyseSlevy2 | D122: =J16 -> 
C123: bVyseSlevy3 | D123: =K16 -> 
C125: bPocetZadatelu | D125: =ZadPocetZadatelu -> 1
C126: Kontroly WF | Q126: Zadost
C127: Kontrola APS | Q127: zPracovnikBanky | R127: =zPracovnikBanky -> 0 | S127: =IF(R127=0,TRUE,FALSE) -> TRUE
C128: Kontrola Nem | Q128: zPobocka | R128: =zPobocka -> 0 | S128: =IF(R128=0,TRUE,FALSE) -> TRUE
C129: Kontrola | Q129: zNdg | R129: =zNdg -> 0 | S129: TRUE
C130: Datumy | D130: 2016.02.02 14:41:29 | Q130: zCisloZadosti | R130: =zCisloZadosti -> 0 | S130: TRUE
C131: DatumVytvořeníSplátka | Q131: zadJmeno | R131: =zadJmeno ->  | S131: FALSE
C132: kcOptionSpread | D132: =IF(VypocitatPodle=0,SplOs,IF(VypocitatPodle=1,SplOsZmena,IF(VypocitatPodle=2,SplOsZmena2,SplOs))) -> 0.0002 | Q132: zadDatNar | R132: =zadDatNar ->  | S132: FALSE
C133: kcMarketRate | D133: =IF(VypocitatPodle=0,SplCs,IF(VypocitatPodle=1,SplCsZmena,IF(VypocitatPodle=2,SplCsZmena2,SplCs))) -> 0.0039 | Q133: zadPrijmeni | R133: =SplPrijmeniKlienta -> 0 | S133: TRUE
